Workbook

Sheet Zadání
A1: Celková spotřeba tepla | B1: ='Spotřeba tepla'!D15 -> 59208
A2: Spotřeba páry | B2: ='Spotřeba tepla'!C15 -> 25530
A3: Spotřeba horké vody | B3: ='Spotřeba tepla'!B15 -> 33678
A4: Nákup elektřiny | B4: 2500
A5: Cena tepla - pára | B5: 457.7
A6: Cena tepla - horká voda | B6: 529
A7: Cena povolenek | B7: 160
A8: Roční růst ceny elektřiny | B8: 0.02
A9: Roční růst ceny tepla | B9: 0.015
A10: Roční růst cen povolenek | B10: 0.01
A11: Roční růst cen dopravy | B11: 0.01
A13: Pokles účinnosti
A14: 2. - 5. rok | B14: 0.002
A15: 6. - 15. rok | B15: 0.005
A16: 16. - 30. rok | B16: 0.0075
A18: Počet zaměstnanců | B18: 5
A19: Průměrná mzda | B19: 40000
A20: Daň z příjmů právnický osob | B20: 0.19
A21: Roční růst mezd | B21: 0.025
A22: Pojištění zařízení % z investice | B22: 0.005
A24: Inflace | B24: 0.02
A25: Výnosnost vlastního kapitálu | B25: 0.07
A26: WACC | B26: =B30*B31+B25*(1-B31) -> 0.03
A27: Diskont | B27: =(1+B26)*(1+B24)-1 -> 0.0506
A29: Doba splácení úvěru | B29: 30
A30: Úrok úvěru | B30: 0.03
A31: Velikost půjčky | B31: 1
A32: Doba životnosti projektu | B32: 30
A34: Ztráty v rozvodech - parní | B34: 0.2
A35: Ztráty v rozvodech - teplovodní | B35: 0.07
A37: Navrhovaná velikost zařízení | B37: 10
A39: Prodej elektřiny | B39: 750
A40: Růst cen elektřiny | B40: 0.005
A41: Plyn
A42: Průměrná výhřevnost | B42: 0.03348
A43: Cena | B43: 324.46
A44: Emisní faktor | B44: 0.2
A45: Účinnost spalování | B45: 0.91
A46: Tepelná účinnost | B46: 0.471
A47: Elektrická účinnost | B47: 0.437
A48: Roční růst cen plynu | B48: 0.01
A49: m^3->MWh | B49: =0.010607 -> 0.010607
A50: Doba provozu kogenerační jednotky | B50: 3000
A51: Elektrický výkon | B51: 2000
A52: Tepelný výkon | B52: 2154
A54: Spotřeba elektřiny | B54: 630
A55: Náklady na provoz % z investice | B55: 0.02
A56: Oprava a údržba % z investice | B56: 0.015
A58: Investice | B58: Odpisová skupina | C58: Cena
A59: Měrné investiční výdaje | C59: 10000
A60: Celková investice | B60: 4 | C60: =C59*B37*1000 -> 100000000
A62: Spoluspalování
A63: Biomasa
A64: Průměrná výhřevnost | B64: 15.5
A65: Cena | B65: 140
A66: Cena dopravy | B66: 115
A67: Emisní faktor | B67: 0
A68: Účinnost spalování | B68: 0.91
A69: Roční růst cen biomasy | B69: 0.015
A70: Poměr spoluspalování (využití biomasy) | B70: 0.4
A71: Uhlí
A72: Průměrná výhřevnost | B72: 17
A73: Cena | B73: 90
A74: Cena dopravy | B74: 150
A75: Emisní faktor | B75: 0.36
A76: Roční růst cen uhlí | B76: 0.02
A78: Spotřeba elektřiny | B78: 630
A79: Výroba elektřiny | B79: 630
A80: Náklady na provoz % z investice | B80: 0.05
A81: Oprava a údržba % z investice | B81: 0.015
A83: Investice | B83: Odpisová skupina | C83: Cena
A84: Měrné investiční výdaje | C84: 8000
A85: Celková investice | B85: 4 | C85: =C84*1000*B37 -> 80000000
A87: Uhlí
A88: Průměrná výhřevnost | B88: 24
A89: Cena | B89: 114.7
A90: Cena dopravy | B90: 2000
A91: Emisní faktor | B91: 0.36
A92: Účinnost spalování | B92: 0.92
A93: Roční růst cen uhlí | B93: 0.02
A95: Spotřeba elektřiny | B95: 630
A96: Výroba elektřiny | B96: 630
A97: Náklady na provoz % z investice | B97: 0.03
A98: Oprava a údržba % z investice | B98: 0.015
A100: Investice | B100: Odpisová skupina | C100: Cena
A101: Měrné investiční výdaje | C101: 8500
A102: Celková investice | B102: 4 | C102: =C101*1000*B37 -> 85000000

Sheet Spotřeba tepla
A1: Měsíc | B1: Množství tepla
B2: Teplovodní [GJ] | C2: Parní [GJ] | D2: Celkem [GJ] | E2: Celkem [MWh] | F2: Teplovodní [MWh] | G2: Parní [MWh] | H2: Průměrně za den [MWh] | I2: Teplovodní za den [MWh] | J2: Parní za den [MWh]
A3: Leden | B3: 4919 | C3: 3711 | D3: =C3+B3 -> 8630 | E3: =D3/3.6 -> 2397.222222 | F3: =B3/3.6 -> 1366.388889 | G3: =C3/3.6 -> 1030.833333 | H3: =E3/31 -> 77.3297491 | I3: =F3/31 -> 44.07706093 | J3: 33.25268817 | L3: =J3-$J$8 -> 20.65083632
A4: Únor | B4: 4724 | C4: 3592 | D4: =C4+B4 -> 8316 | E4: =D4/3.6 -> 2310 | F4: =B4/3.6 -> 1312.222222 | G4: =C4/3.6 -> 997.7777778 | H4: =E4/28 -> 82.5 | I4: =F4/28 -> 46.86507937 | J4: 35.63492063 | L4: =J4-$J$8 -> 23.03306878
A5: Březen | B5: 3835 | C5: 2989 | D5: 6824 | E5: 1895.555556 | F5: 1065.277778 | G5: 830.2777778 | H5: =E5/31 -> 61.14695341 | I5: =F5/31 -> 34.36379928 | J5: 26.78315412 | L5: 14.18130227
A6: Duben | B6: 2422 | C6: 2294 | D6: 4716 | E6: 1310 | F6: 672.7777778 | G6: 637.2222222 | H6: =E6/30 -> 43.66666667 | I6: =F6/30 -> 22.42592593 | J6: 21.24074074 | L6: 8.638888889
A7: Květen | B7: 1901 | C7: 1722 | D7: 3623 | E7: 1006.388889 | F7: 528.0555556 | G7: 478.3333333 | H7: =E7/31 -> 32.46415771 | I7: =F7/31 -> 17.03405018 | J7: 15.43010753 | L7: 2.828255675
A8: Červen | B8: 813 | C8: 1361 | D8: 2174 | E8: 603.8888889 | F8: 225.8333333 | G8: 378.0555556 | H8: =E8/30 -> 20.12962963 | I8: =F8/30 -> 7.527777778 | J8: 12.60185185 | L8: 0
A9: Červenec | B9: 729 | C9: 842 | D9: 1571 | E9: 436.3888889 | F9: 202.5 | G9: 233.8888889 | H9: =E9/31 -> 14.07706093 | I9: =F9/31 -> 6.532258065 | J9: 7.544802867 | L9: -5.057048984
A10: Srpen | B10: 1254 | C10: 1442 | D10: 2696 | E10: 748.8888889 | F10: 348.3333333 | G10: 400.5555556 | H10: =E10/31 -> 24.15770609 | I10: 11.23655914 | J10: 12.92114695 | L10: 0.3192951016
A11: Září | B11: 1563 | C11: 1588 | D11: 3151 | E11: 875.2777778 | F11: 434.1666667 | G11: 441.1111111 | H11: =E11/30 -> 29.17592593 | I11: =F11/30 -> 14.47222222 | J11: 14.7037037 | L11: 2.101851852
A12: Říjen | B12: 2496 | C12: 1665 | D12: 4161 | E12: 1155.833333 | F12: 693.3333333 | G12: 462.5 | H12: =E12/31 -> 37.28494624 | I12: =F12/31 -> 22.3655914 | J12: 14.91935484 | L12: 2.317502987
A13: Listopad | B13: 3813 | C13: 1619 | D13: 5432 | E13: 1508.888889 | F13: 1059.166667 | G13: 449.7222222 | H13: =E13/30 -> 50.2962963 | I13: =F13/30 -> 35.30555556 | J13: 14.99074074 | L13: 2.388888889
A14: Prosinec | B14: 5209 | C14: 2705 | D14: 7914 | E14: 2198.333333 | F14: 1446.944444 | G14: 751.3888889 | H14: =E14/31 -> 70.91397849 | I14: =F14/31 -> 46.67562724 | J14: 24.23835125 | L14: =J14-$J$8 -> 11.6364994
A15: Celkem | B15: =SUM(B3:B14) -> 33678 | C15: =SUM(C3:C14) -> 25530 | D15: 59208 | E15: 16446.66667 | F15: 9355 | G15: 7091.666667
A17: Teplovodní rozvod
F18: Leden | G18: Únor | H18: Březen | I18: Duben | J18: Květen | K18: Červen | L18: Červenec | M18: Srpen | N18: Září | O18: Říjen | P18: Listopad | Q18: Prosinec
A19: Špička | B19: DDZ_zima | C19: DDZ_jaro | D19: DDZ_léto | E19: DDZ_podzim | F19: =I3/SUM(B20:B43) -> 4.497659279 | G19: =I4/SUM(B20:B43) -> 4.782150956 | H19: =I5/SUM(C20:C43) -> 4.462831076 | I19: =I6/SUM(C20:C43) -> 2.912457912 | J19: =I7/SUM(C20:C43) -> 2.212214309 | K19: =I8/SUM(D20:D43) -> 1.320662768 | L19: =I9/SUM(D20:D43) -> 1.146010187 | M19: =I10/SUM(D20:D43) -> 1.971326165 | N19: =I11/SUM(E20:E43) -> 1.87950938 | O19: =I12/SUM(E20:E43) -> 2.904622259 | P19: =I13/SUM(E20:E43) -> 4.585137085 | Q19: =I14/SUM(B20:B43) -> 4.762819106
A20: 0:00-1:00 | B20: 0.3 | C20: 0.3 | D20: 0.2 | E20: 0.3 | F20: =F$19*B20 -> 1.349297784 | G20: =G$19*B20 -> 1.434645287 | H20: =H$19*C20 -> 1.338849323 | I20: =I$19*C20 -> 0.8737373737 | J20: =J$19*C20 -> 0.6636642927 | K20: =K$19*$D20 -> 0.2641325536 | L20: =L$19*$D20 -> 0.2292020374 | M20: =M$19*$D20 -> 0.394265233 | N20: =N$19*$E20 -> 0.5638528139 | O20: =O$19*$E20 -> 0.8713866778 | P20: =P$19*$E20 -> 1.375541126 | Q20: =Q$19*$B20 -> 1.428845732
A21: 1:00-2:00 | B21: 0.3 | C21: 0.2 | D21: 0.1 | E21: 0.2 | F21: =F$19*B21 -> 1.349297784 | G21: =G$19*B21 -> 1.434645287 | H21: 0.8925662151 | I21: =I$19*C21 -> 0.5824915825 | J21: =J$19*C21 -> 0.4424428618 | K21: 0.1320662768 | L21: =L$19*$D21 -> 0.1146010187 | M21: 0.1971326165 | N21: =N$19*$E21 -> 0.3759018759 | O21: 0.5809244519 | P21: 0.917027417 | Q21: =Q$19*$B21 -> 1.428845732
A22: 2:00-3:00 | B22: 0.3 | C22: 0.1 | D22: 0.1 | E22: 0.1 | F22: 1.349297784 | G22: 1.434645287 | H22: 0.4462831076 | I22: 0.2912457912 | J22: 0.2212214309 | K22: 0.1320662768 | L22: 0.1146010187 | M22: 0.1971326165 | N22: 0.187950938 | O22: 0.2904622259 | P22: 0.4585137085 | Q22: 1.428845732
A23: 3:00-4:00 | B23: 0.2 | C23: 0.1 | D23: 0.1 | E23: 0.1 | F23: 0.8995318558 | G23: 0.9564301911 | H23: 0.4462831076 | I23: 0.2912457912 | J23: 0.2212214309 | K23: 0.1320662768 | L23: 0.1146010187 | M23: 0.1971326165 | N23: 0.187950938 | O23: 0.2904622259 | P23: 0.4585137085 | Q23: 0.9525638212
A24: 4:00-5:00 | B24: 0.2 | C24: 0.2 | D24: 0.1 | E24: 0.2 | F24: 0.8995318558 | G24: 0.9564301911 | H24: 0.8925662151 | I24: 0.5824915825 | J24: 0.4424428618 | K24: 0.1320662768 | L24: 0.1146010187 | M24: 0.1971326165 | N24: 0.3759018759 | O24: 0.5809244519 | P24: 0.917027417 | Q24: 0.9525638212
A25: 5:00-6:00 | B25: 0.3 | C25: 0.3 | D25: 0.2 | E25: 0.3 | F25: 1.349297784 | G25: 1.434645287 | H25: 1.338849323 | I25: 0.8737373737 | J25: 0.6636642927 | K25: 0.2641325536 | L25: 0.2292020374 | M25: 0.394265233 | N25: 0.5638528139 | O25: 0.8713866778 | P25: 1.375541126 | Q25: 1.428845732
A26: 6:00-7:00 | B26: 0.4 | C26: 0.3 | D26: 0.3 | E26: 0.3 | F26: 1.799063712 | G26: 1.912860382 | H26: 1.338849323 | I26: 0.8737373737 | J26: 0.6636642927 | K26: 0.3961988304 | L26: 0.343803056 | M26: 0.5913978495 | N26: 0.5638528139 | O26: 0.8713866778 | P26: 1.375541126 | Q26: 1.905127642
A27: 7:00-8:00 | B27: 0.5 | C27: 0.4 | D27: 0.3 | E27: 0.4 | F27: 2.248829639 | G27: 2.391075478 | H27: 1.78513243 | I27: 1.164983165 | J27: 0.8848857236 | K27: 0.3961988304 | L27: 0.343803056 | M27: 0.5913978495 | N27: 0.7518037518 | O27: 1.161848904 | P27: 1.834054834 | Q27: 2.381409553
A28: 8:00-9:00 | B28: 0.3 | C28: 0.2 | D28: 0.2 | E28: 0.2 | F28: 1.349297784 | G28: 1.434645287 | H28: 0.8925662151 | I28: 0.5824915825 | J28: 0.4424428618 | K28: 0.2641325536 | L28: 0.2292020374 | M28: 0.394265233 | N28: 0.3759018759 | O28: 0.5809244519 | P28: 0.917027417 | Q28: 1.428845732
A29: 9:00-10:00 | B29: 0.3 | C29: 0.1 | D29: 0.1 | E29: 0.1 | F29: 1.349297784 | G29: 1.434645287 | H29: 0.4462831076 | I29: 0.2912457912 | J29: 0.2212214309 | K29: 0.1320662768 | L29: 0.1146010187 | M29: 0.1971326165 | N29: 0.187950938 | O29: 0.2904622259 | P29: 0.4585137085 | Q29: 1.428845732
A30: 10:00-11:00 | B30: 0.2 | C30: 0.2 | D30: 0.1 | E30: 0.2 | F30: 0.8995318558 | G30: 0.9564301911 | H30: 0.8925662151 | I30: 0.5824915825 | J30: 0.4424428618 | K30: 0.1320662768 | L30: 0.1146010187 | M30: 0.1971326165 | N30: 0.3759018759 | O30: 0.5809244519 | P30: 0.917027417 | Q30: 0.9525638212
A31: 11:00-12:00 | B31: 0.2 | C31: 0.1 | D31: 0.1 | E31: 0.1 | F31: 0.8995318558 | G31: 0.9564301911 | H31: 0.4462831076 | I31: 0.2912457912 | J31: 0.2212214309 | K31: 0.1320662768 | L31: 0.1146010187 | M31: 0.1971326165 | N31: 0.187950938 | O31: 0.2904622259 | P31: 0.4585137085 | Q31: 0.9525638212
A32: 12:00-13:00 | B32: 0.2 | C32: 0.2 | D32: 0.1 | E32: 0.2 | F32: 0.8995318558 | G32: 0.9564301911 | H32: 0.8925662151 | I32: 0.5824915825 | J32: 0.4424428618 | K32: 0.1320662768 | L32: 0.1146010187 | M32: 0.1971326165 | N32: 0.3759018759 | O32: 0.5809244519 | P32: 0.917027417 | Q32: 0.9525638212
A33: 13:00-14:00 | B33: 0.3 | C33: 0.1 | D33: 0.1 | E33: 0.1 | F33: 1.349297784 | G33: 1.434645287 | H33: 0.4462831076 | I33: 0.2912457912 | J33: 0.2212214309 | K33: 0.1320662768 | L33: 0.1146010187 | M33: 0.1971326165 | N33: 0.187950938 | O33: 0.2904622259 | P33: 0.4585137085 | Q33: 1.428845732
A34: 14:00-15:00 | B34: 0.3 | C34: 0.3 | D34: 0.2 | E34: 0.3 | F34: 1.349297784 | G34: 1.434645287 | H34: 1.338849323 | I34: 0.8737373737 | J34: 0.6636642927 | K34: 0.2641325536 | L34: 0.2292020374 | M34: 0.394265233 | N34: 0.5638528139 | O34: 0.8713866778 | P34: 1.375541126 | Q34: 1.428845732
A35: 15:00-16:00 | B35: 0.3 | C35: 0.3 | D35: 0.2 | E35: 0.3 | F35: 1.349297784 | G35: 1.434645287 | H35: 1.338849323 | I35: 0.8737373737 | J35: 0.6636642927 | K35: 0.2641325536 | L35: 0.2292020374 | M35: 0.394265233 | N35: 0.5638528139 | O35: 0.8713866778 | P35: 1.375541126 | Q35: 1.428845732
A36: 16:00-17:00 | B36: 0.4 | C36: 0.4 | D36: 0.3 | E36: 0.4 | F36: 1.799063712 | G36: 1.912860382 | H36: 1.78513243 | I36: 1.164983165 | J36: 0.8848857236 | K36: 0.3961988304 | L36: 0.343803056 | M36: 0.5913978495 | N36: 0.7518037518 | O36: 1.161848904 | P36: 1.834054834 | Q36: 1.905127642
A37: 17:00-18:00 | B37: 0.5 | C37: 0.4 | D37: 0.3 | E37: 0.4 | F37: 2.248829639 | G37: 2.391075478 | H37: 1.78513243 | I37: 1.164983165 | J37: 0.8848857236 | K37: 0.3961988304 | L37: 0.343803056 | M37: 0.5913978495 | N37: 0.7518037518 | O37: 1.161848904 | P37: 1.834054834 | Q37: 2.381409553
A38: 18:00-19:00 | B38: 0.5 | C38: 0.4 | D38: 0.3 | E38: 0.4 | F38: 2.248829639 | G38: 2.391075478 | H38: 1.78513243 | I38: 1.164983165 | J38: 0.8848857236 | K38: 0.3961988304 | L38: 0.343803056 | M38: 0.5913978495 | N38: 0.7518037518 | O38: 1.161848904 | P38: 1.834054834 | Q38: 2.381409553
A39: 19:00-20:00 | B39: 0.7 | C39: 0.6 | D39: 0.4 | E39: 0.6 | F39: 3.148361495 | G39: 3.347505669 | H39: 2.677698645 | I39: 1.747474747 | J39: 1.327328585 | K39: 0.5282651072 | L39: 0.4584040747 | M39: 0.7885304659 | N39: 1.127705628 | O39: 1.742773356 | P39: 2.751082251 | Q39: 3.333973374
A40: 20:00-21:00 | B40: 1 | C40: 0.8 | D40: 0.5 | E40: 0.8 | F40: 4.497659279 | G40: 4.782150956 | H40: 3.570264861 | I40: 2.32996633 | J40: 1.769771447 | K40: 0.660331384 | L40: 0.5730050934 | M40: 0.9856630824 | N40: 1.503607504 | O40: 2.323697808 | P40: 3.668109668 | Q40: 4.762819106
A41: 21:00-22:00 | B41: 0.9 | C41: 0.7 | D41: 0.6 | E41: 0.7 | F41: 4.047893351 | G41: 4.30393586 | H41: 3.123981753 | I41: 2.038720539 | J41: 1.548550016 | K41: 0.7923976608 | L41: 0.6876061121 | M41: 1.182795699 | N41: 1.315656566 | O41: 2.033235582 | P41: 3.20959596 | Q41: 4.286537196
A42: 22:00-23:00 | B42: 0.7 | C42: 0.6 | D42: 0.5 | E42: 0.6 | F42: 3.148361495 | G42: 3.347505669 | H42: 2.677698645 | I42: 1.747474747 | J42: 1.327328585 | K42: 0.660331384 | L42: 0.5730050934 | M42: 0.9856630824 | N42: 1.127705628 | O42: 1.742773356 | P42: 2.751082251 | Q42: 3.333973374
A43: 23:00-24:00 | B43: 0.5 | C43: 0.4 | D43: 0.3 | E43: 0.4 | F43: 2.248829639 | G43: 2.391075478 | H43: 1.78513243 | I43: 1.164983165 | J43: 0.8848857236 | K43: 0.3961988304 | L43: 0.343803056 | M43: 0.5913978495 | N43: 0.7518037518 | O43: 1.161848904 | P43: 1.834054834 | Q43: 2.381409553
A45: Pára
F46: Leden | G46: Únor | H46: Březen | I46: Duben | J46: Květen | K46: Červen | L46: Červenec | M46: Srpen | N46: Září | O46: Říjen | P46: Listopad | Q46: Prosinec
A47: Špička | B47: DDZ_zima | C47: DDZ_jaro | D47: DDZ_léto | E47: DDZ_podzim | F47: =J3/SUM(B48:B71) -> 2.187676853 | G47: =J4/SUM(B48:B71) -> 2.344402673 | H47: =J5/SUM(C48:C71) -> 2.911212405 | I47: =J6/SUM(C48:C71) -> 2.308776167 | J47: =J7/SUM(C48:C71) -> 1.677185601 | K47: =J8/SUM(D48:D71) -> 5.040740741 | L47: =J9/SUM(D48:D71) -> 3.017921147 | M47: =J10/SUM(D48:D71) -> 5.168458781 | N47: =J11/SUM(E48:E71) -> 1.598228663 | O47: =J12/SUM(E48:E71) -> 1.621669004 | P47: =J13/SUM(E48:E71) -> 1.629428341 | Q47: =J14/SUM(B48:B71) -> 1.594628372
A48: 0:00-1:00 | B48: 0.2 | C48: 0.1 | D48: 0 | E48: 0.1 | F48: =F$47*B48 -> 0.4375353707 | G48: =G$47*B48 -> 0.4688805347 | H48: =H$47*C48 -> 0.2911212405 | I48: =I$47*C48 -> 0.2308776167 | J48: =J$47*C48 -> 0.1677185601 | K48: =K$47*$D48 -> 0 | L48: =L$47*$D48 -> 0 | M48: =M$47*$D48 -> 0 | N48: =N$47*$E48 -> 0.1598228663 | O48: =O$47*$E48 -> 0.1621669004 | P48: =P$47*$E48 -> 0.1629428341 | Q48: =Q$47*$B48 -> 0.3189256744
A49: 1:00-2:00 | B49: 0.2 | C49: 0.1 | D49: 0 | E49: 0.1 | F49: =F$47*B49 -> 0.4375353707 | G49: =G$47*B49 -> 0.4688805347 | H49: =H$47*C49 -> 0.2911212405 | I49: =I$47*C49 -> 0.2308776167 | J49: =J$47*C49 -> 0.1677185601 | K49: =K$47*$D49 -> 0 | L49: 0 | M49: 0 | N49: =N$47*$E49 -> 0.1598228663 | O49: 0.1621669004 | P49: 0.1629428341 | Q49: =Q$47*$B49 -> 0.3189256744
A50: 2:00-3:00 | B50: 0.2 | C50: 0.1 | D50: 0 | E50: 0.1 | F50: 0.4375353707 | G50: 0.4688805347 | H50: 0.2911212405 | I50: 0.2308776167 | J50: 0.1677185601 | K50: 0 | L50: 0 | M50: 0 | N50: 0.1598228663 | O50: 0.1621669004 | P50: 0.1629428341 | Q50: 0.3189256744
A51: 3:00-4:00 | B51: 0.2 | C51: 0.1 | D51: 0 | E51: 0.1 | F51: 0.4375353707 | G51: 0.4688805347 | H51: 0.2911212405 | I51: 0.2308776167 | J51: 0.1677185601 | K51: 0 | L51: 0 | M51: 0 | N51: 0.1598228663 | O51: 0.1621669004 | P51: 0.1629428341 | Q51: 0.3189256744
A52: 4:00-5:00 | B52: 0.2 | C52: 0.1 | D52: 0 | E52: 0.1 | F52: 0.4375353707 | G52: 0.4688805347 | H52: 0.2911212405 | I52: 0.2308776167 | J52: 0.1677185601 | K52: 0 | L52: 0 | M52: 0 | N52: 0.1598228663 | O52: 0.1621669004 | P52: 0.1629428341 | Q52: 0.3189256744
A53: 5:00-6:00 | B53: 0.6 | C53: 0.3 | D53: 0.05 | E53: 0.3 | F53: 1.312606112 | G53: 1.406641604 | H53: 0.8733637214 | I53: 0.6926328502 | J53: 0.5031556802 | K53: 0.252037037 | L53: 0.1508960573 | M53: 0.2584229391 | N53: 0.479468599 | O53: 0.4865007013 | P53: 0.4888285024 | Q53: 0.9567770232
A54: 6:00-7:00 | B54: 0.8 | C54: 0.5 | D54: 0.15 | E54: 0.5 | F54: 1.750141483 | G54: 1.875522139 | H54: 1.455606202 | I54: 1.154388084 | J54: 0.8385928004 | K54: 0.7561111111 | L54: 0.452688172 | M54: 0.7752688172 | N54: 0.7991143317 | O54: 0.8108345021 | P54: 0.8147141707 | Q54: 1.275702698
A55: 7:00-8:00 | B55: 0.8 | C55: 0.5 | D55: 0.15 | E55: 0.5 | F55: 1.750141483 | G55: 1.875522139 | H55: 1.455606202 | I55: 1.154388084 | J55: 0.8385928004 | K55: 0.7561111111 | L55: 0.452688172 | M55: 0.7752688172 | N55: 0.7991143317 | O55: 0.8108345021 | P55: 0.8147141707 | Q55: 1.275702698
A56: 8:00-9:00 | B56: 0.8 | C56: 0.5 | D56: 0.15 | E56: 0.5 | F56: 1.750141483 | G56: 1.875522139 | H56: 1.455606202 | I56: 1.154388084 | J56: 0.8385928004 | K56: 0.7561111111 | L56: 0.452688172 | M56: 0.7752688172 | N56: 0.7991143317 | O56: 0.8108345021 | P56: 0.8147141707 | Q56: 1.275702698
A57: 9:00-10:00 | B57: 0.8 | C57: 0.5 | D57: 0.15 | E57: 0.5 | F57: 1.750141483 | G57: 1.875522139 | H57: 1.455606202 | I57: 1.154388084 | J57: 0.8385928004 | K57: 0.7561111111 | L57: 0.452688172 | M57: 0.7752688172 | N57: 0.7991143317 | O57: 0.8108345021 | P57: 0.8147141707 | Q57: 1.275702698
A58: 10:00-11:00 | B58: 0.8 | C58: 0.5 | D58: 0.15 | E58: 0.5 | F58: 1.750141483 | G58: 1.875522139 | H58: 1.455606202 | I58: 1.154388084 | J58: 0.8385928004 | K58: 0.7561111111 | L58: 0.452688172 | M58: 0.7752688172 | N58: 0.7991143317 | O58: 0.8108345021 | P58: 0.8147141707 | Q58: 1.275702698
A59: 11:00-12:00 | B59: 0.8 | C59: 0.5 | D59: 0.15 | E59: 0.5 | F59: 1.750141483 | G59: 1.875522139 | H59: 1.455606202 | I59: 1.154388084 | J59: 0.8385928004 | K59: 0.7561111111 | L59: 0.452688172 | M59: 0.7752688172 | N59: 0.7991143317 | O59: 0.8108345021 | P59: 0.8147141707 | Q59: 1.275702698
A60: 12:00-13:00 | B60: 0.8 | C60: 0.5 | D60: 0.15 | E60: 0.5 | F60: 1.750141483 | G60: 1.875522139 | H60: 1.455606202 | I60: 1.154388084 | J60: 0.8385928004 | K60: 0.7561111111 | L60: 0.452688172 | M60: 0.7752688172 | N60: 0.7991143317 | O60: 0.8108345021 | P60: 0.8147141707 | Q60: 1.275702698
A61: 13:00-14:00 | B61: 0.8 | C61: 0.5 | D61: 0.15 | E61: 0.5 | F61: 1.750141483 | G61: 1.875522139 | H61: 1.455606202 | I61: 1.154388084 | J61: 0.8385928004 | K61: 0.7561111111 | L61: 0.452688172 | M61: 0.7752688172 | N61: 0.7991143317 | O61: 0.8108345021 | P61: 0.8147141707 | Q61: 1.275702698
A62: 14:00-15:00 | B62: 0.8 | C62: 0.5 | D62: 0.15 | E62: 0.5 | F62: 1.750141483 | G62: 1.875522139 | H62: 1.455606202 | I62: 1.154388084 | J62: 0.8385928004 | K62: 0.7561111111 | L62: 0.452688172 | M62: 0.7752688172 | N62: 0.7991143317 | O62: 0.8108345021 | P62: 0.8147141707 | Q62: 1.275702698
A63: 15:00-16:00 | B63: 0.8 | C63: 0.5 | D63: 0.15 | E63: 0.5 | F63: 1.750141483 | G63: 1.875522139 | H63: 1.455606202 | I63: 1.154388084 | J63: 0.8385928004 | K63: 0.7561111111 | L63: 0.452688172 | M63: 0.7752688172 | N63: 0.7991143317 | O63: 0.8108345021 | P63: 0.8147141707 | Q63: 1.275702698
A64: 16:00-17:00 | B64: 0.8 | C64: 0.5 | D64: 0.15 | E64: 0.5 | F64: 1.750141483 | G64: 1.875522139 | H64: 1.455606202 | I64: 1.154388084 | J64: 0.8385928004 | K64: 0.7561111111 | L64: 0.452688172 | M64: 0.7752688172 | N64: 0.7991143317 | O64: 0.8108345021 | P64: 0.8147141707 | Q64: 1.275702698
A65: 17:00-18:00 | B65: 0.8 | C65: 0.5 | D65: 0.15 | E65: 0.5 | F65: 1.750141483 | G65: 1.875522139 | H65: 1.455606202 | I65: 1.154388084 | J65: 0.8385928004 | K65: 0.7561111111 | L65: 0.452688172 | M65: 0.7752688172 | N65: 0.7991143317 | O65: 0.8108345021 | P65: 0.8147141707 | Q65: 1.275702698
A66: 18:00-19:00 | B66: 0.8 | C66: 0.5 | D66: 0.15 | E66: 0.5 | F66: 1.750141483 | G66: 1.875522139 | H66: 1.455606202 | I66: 1.154388084 | J66: 0.8385928004 | K66: 0.7561111111 | L66: 0.452688172 | M66: 0.7752688172 | N66: 0.7991143317 | O66: 0.8108345021 | P66: 0.8147141707 | Q66: 1.275702698
A67: 19:00-20:00 | B67: 0.8 | C67: 0.5 | D67: 0.15 | E67: 0.5 | F67: 1.750141483 | G67: 1.875522139 | H67: 1.455606202 | I67: 1.154388084 | J67: 0.8385928004 | K67: 0.7561111111 | L67: 0.452688172 | M67: 0.7752688172 | N67: 0.7991143317 | O67: 0.8108345021 | P67: 0.8147141707 | Q67: 1.275702698
A68: 20:00-21:00 | B68: 0.8 | C68: 0.5 | D68: 0.15 | E68: 0.5 | F68: 1.750141483 | G68: 1.875522139 | H68: 1.455606202 | I68: 1.154388084 | J68: 0.8385928004 | K68: 0.7561111111 | L68: 0.452688172 | M68: 0.7752688172 | N68: 0.7991143317 | O68: 0.8108345021 | P68: 0.8147141707 | Q68: 1.275702698
A69: 21:00-22:00 | B69: 0.8 | C69: 0.5 | D69: 0.15 | E69: 0.5 | F69: 1.750141483 | G69: 1.875522139 | H69: 1.455606202 | I69: 1.154388084 | J69: 0.8385928004 | K69: 0.7561111111 | L69: 0.452688172 | M69: 0.7752688172 | N69: 0.7991143317 | O69: 0.8108345021 | P69: 0.8147141707 | Q69: 1.275702698
A70: 22:00-23:00 | B70: 0.6 | C70: 0.3 | D70: 0.05 | E70: 0.3 | F70: 1.312606112 | G70: 1.406641604 | H70: 0.8733637214 | I70: 0.6926328502 | J70: 0.5031556802 | K70: 0.252037037 | L70: 0.1508960573 | M70: 0.2584229391 | N70: 0.479468599 | O70: 0.4865007013 | P70: 0.4888285024 | Q70: 0.9567770232
A71: 23:00-24:00 | B71: 0.2 | C71: 0.1 | D71: 0 | E71: 0.1 | F71: 0.4375353707 | G71: 0.4688805347 | H71: 0.2911212405 | I71: 0.2308776167 | J71: 0.1677185601 | K71: 0 | L71: 0 | M71: 0 | N71: 0.1598228663 | O71: 0.1621669004 | P71: 0.1629428341 | Q71: 0.3189256744
A73: Celkem
B74: Leden | C74: Únor | D74: Březen | E74: Duben | F74: Květen | G74: Červen | H74: Červenec | I74: Srpen | J74: Září | K74: Říjen | L74: Listopad | M74: Prosinec | N74: Maximální hodnota
A75: 0:00-1:00 | B75: =F20+F48 -> 1.786833154 | C75: =G20+G48 -> 1.903525821 | D75: 1.629970563 | E75: 1.10461499 | F75: 0.8313828528 | G75: 0.2641325536 | H75: 0.2292020374 | I75: 0.394265233 | J75: 0.7236756802 | K75: 1.033553578 | L75: 1.53848396 | M75: 1.747771406 | N75: =MAX(B75:M75) -> 1.903525821
A76: 1:00-2:00 | B76: =F21+F49 -> 1.786833154 | C76: =G21+G49 -> 1.903525821 | D76: =H21+H49 -> 1.183687456 | E76: =I21+I49 -> 0.8133691992 | F76: =J21+J49 -> 0.6101614219 | G76: =K21+K49 -> 0.1320662768 | H76: =L21+L49 -> 0.1146010187 | I76: =M21+M49 -> 0.1971326165 | J76: =N21+N49 -> 0.5357247422 | K76: =O21+O49 -> 0.7430913523 | L76: =P21+P49 -> 1.079970251 | M76: =Q21+Q49 -> 1.747771406 | N76: =MAX(B76:M76) -> 1.903525821
A77: 2:00-3:00 | B77: 1.786833154 | C77: 1.903525821 | D77: 0.737404348 | E77: 0.522123408 | F77: 0.388939991 | G77: 0.1320662768 | H77: 0.1146010187 | I77: 0.1971326165 | J77: 0.3477738043 | K77: 0.4526291264 | L77: 0.6214565427 | M77: 1.747771406 | N77: 1.903525821
A78: 3:00-4:00 | B78: 1.337067226 | C78: 1.425310726 | D78: 0.737404348 | E78: 0.522123408 | F78: 0.388939991 | G78: 0.1320662768 | H78: 0.1146010187 | I78: 0.1971326165 | J78: 0.3477738043 | K78: 0.4526291264 | L78: 0.6214565427 | M78: 1.271489496 | N78: 1.425310726
A79: 4:00-5:00 | B79: 1.337067226 | C79: 1.425310726 | D79: 1.183687456 | E79: 0.8133691992 | F79: 0.6101614219 | G79: 0.1320662768 | H79: 0.1146010187 | I79: 0.1971326165 | J79: 0.5357247422 | K79: 0.7430913523 | L79: 1.079970251 | M79: 1.271489496 | N79: 1.425310726
A80: 5:00-6:00 | B80: 2.661903896 | C80: 2.841286891 | D80: 2.212213044 | E80: 1.566370224 | F80: 1.166819973 | G80: 0.5161695906 | H80: 0.3800980947 | I80: 0.652688172 | J80: 1.043321413 | K80: 1.357887379 | L80: 1.864369628 | M80: 2.385622755 | N80: 2.841286891
A81: 6:00-7:00 | B81: 3.549205194 | C81: 3.788382521 | D81: 2.794455525 | E81: 2.028125457 | F81: 1.502257093 | G81: 1.152309942 | H81: 0.7964912281 | I81: 1.366666667 | J81: 1.362967146 | K81: 1.68222118 | L81: 2.190255296 | M81: 3.18083034 | N81: 3.788382521
A82: 7:00-8:00 | B82: 3.998971122 | C82: 4.266597616 | D82: 3.240738633 | E82: 2.319371249 | F82: 1.723478524 | G82: 1.152309942 | H82: 0.7964912281 | I82: 1.366666667 | J82: 1.550918084 | K82: 1.972683406 | L82: 2.648769005 | M82: 3.657112251 | N82: 4.266597616
A83: 8:00-9:00 | B83: 3.099439266 | C83: 3.310167425 | D83: 2.348172417 | E83: 1.736879666 | F83: 1.281035662 | G83: 1.020243665 | H83: 0.6818902094 | I83: 1.16953405 | J83: 1.175016208 | K83: 1.391758954 | L83: 1.731741588 | M83: 2.704548429 | N83: 3.310167425
A84: 9:00-10:00 | B84: 3.099439266 | C84: 3.310167425 | D84: 1.90188931 | E84: 1.445633875 | F84: 1.059814231 | G84: 0.8881773879 | H84: 0.5672891907 | I84: 0.9724014337 | J84: 0.9870652697 | K84: 1.101296728 | L84: 1.273227879 | M84: 2.704548429 | N84: 3.310167425
A85: 10:00-11:00 | B85: 2.649673338 | C85: 2.83195233 | D85: 2.348172417 | E85: 1.736879666 | F85: 1.281035662 | G85: 0.8881773879 | H85: 0.5672891907 | I85: =M30+M58 -> 0.9724014337 | J85: 1.175016208 | K85: 1.391758954 | L85: 1.731741588 | M85: 2.228266519 | N85: 2.83195233
A86: 11:00-12:00 | B86: 2.649673338 | C86: 2.83195233 | D86: 1.90188931 | E86: 1.445633875 | F86: 1.059814231 | G86: 0.8881773879 | H86: 0.5672891907 | I86: 0.9724014337 | J86: 0.9870652697 | K86: 1.101296728 | L86: 1.273227879 | M86: 2.228266519 | N86: 2.83195233
A87: 12:00-13:00 | B87: 2.649673338 | C87: 2.83195233 | D87: 2.348172417 | E87: 1.736879666 | F87: 1.281035662 | G87: 0.8881773879 | H87: 0.5672891907 | I87: 0.9724014337 | J87: 1.175016208 | K87: 1.391758954 | L87: 1.731741588 | M87: 2.228266519 | N87: 2.83195233
A88: 13:00-14:00 | B88: 3.099439266 | C88: 3.310167425 | D88: 1.90188931 | E88: 1.445633875 | F88: 1.059814231 | G88: 0.8881773879 | H88: 0.5672891907 | I88: 0.9724014337 | J88: 0.9870652697 | K88: 1.101296728 | L88: 1.273227879 | M88: 2.704548429 | N88: 3.310167425
A89: 14:00-15:00 | B89: 3.099439266 | C89: 3.310167425 | D89: 2.794455525 | E89: 2.028125457 | F89: 1.502257093 | G89: 1.020243665 | H89: 0.6818902094 | I89: 1.16953405 | J89: 1.362967146 | K89: 1.68222118 | L89: 2.190255296 | M89: 2.704548429 | N89: 3.310167425
A90: 15:00-16:00 | B90: 3.099439266 | C90: 3.310167425 | D90: 2.794455525 | E90: 2.028125457 | F90: 1.502257093 | G90: 1.020243665 | H90: 0.6818902094 | I90: 1.16953405 | J90: 1.362967146 | K90: 1.68222118 | L90: 2.190255296 | M90: 2.704548429 | N90: 3.310167425
A91: 16:00-17:00 | B91: 3.549205194 | C91: 3.788382521 | D91: 3.240738633 | E91: 2.319371249 | F91: 1.723478524 | G91: 1.152309942 | H91: 0.7964912281 | I91: 1.366666667 | J91: 1.550918084 | K91: 1.972683406 | L91: 2.648769005 | M91: 3.18083034 | N91: 3.788382521
A92: 17:00-18:00 | B92: 3.998971122 | C92: 4.266597616 | D92: 3.240738633 | E92: 2.319371249 | F92: 1.723478524 | G92: 1.152309942 | H92: 0.7964912281 | I92: 1.366666667 | J92: 1.550918084 | K92: 1.972683406 | L92: 2.648769005 | M92: 3.657112251 | N92: 4.266597616
A93: 18:00-19:00 | B93: 3.998971122 | C93: 4.266597616 | D93: 3.240738633 | E93: 2.319371249 | F93: 1.723478524 | G93: 1.152309942 | H93: 0.7964912281 | I93: 1.366666667 | J93: 1.550918084 | K93: 1.972683406 | L93: 2.648769005 | M93: 3.657112251 | N93: 4.266597616
A94: 19:00-20:00 | B94: 4.898502978 | C94: 5.223027808 | D94: 4.133304848 | E94: 2.901862831 | F94: 2.165921386 | G94: 1.284376218 | H94: 0.9110922467 | I94: 1.563799283 | J94: 1.926819959 | K94: 2.553607858 | L94: 3.565796422 | M94: 4.609676072 | N94: 5.223027808
A95: 20:00-21:00 | B95: 6.247800762 | C95: 6.657673094 | D95: 5.025871063 | E95: 3.484354414 | F95: 2.608364248 | G95: 1.416442495 | H95: 1.025693265 | I95: 1.7609319 | J95: 2.302721835 | K95: 3.13453231 | L95: 4.482823839 | M95: 6.038521804 | N95: 6.657673094
A96: 21:00-22:00 | B96: 5.798034834 | C96: 6.179457999 | D96: 4.579587955 | E96: 3.193108622 | F96: 2.387142817 | G96: 1.548508772 | H96: 1.140294284 | I96: 1.958064516 | J96: 2.114770897 | K96: 2.844070084 | L96: 4.02431013 | M96: 5.562239893 | N96: 6.179457999
A97: 22:00-23:00 | B97: 4.460967607 | C97: 4.754147273 | D97: 3.551062367 | E97: 2.440107598 | F97: 1.830484266 | G97: 0.9123684211 | H97: 0.7239011507 | I97: 1.244086022 | J97: 1.607174227 | K97: 2.229274057 | L97: 3.239910753 | M97: 4.290750397 | N97: 4.754147273
A98: 23:00-24:00 | B98: 2.68636501 | C98: 2.859956012 | D98: 2.076253671 | E98: 1.395860782 | F98: 1.052604284 | G98: 0.3961988304 | H98: 0.343803056 | I98: 0.5913978495 | J98: 0.9116266181 | K98: 1.324015804 | L98: 1.996997668 | M98: 2.700335227 | N98: 2.859956012
N99: =MAX(N75:N98) -> 6.657673094
A100: Na patě teplárny | C100: Plyn | D100: Biomasa | E100: Uhlí
A101: 0:00-1:00 | B101: =G20/(1-Zadání!$B$35)+'Spotřeba tepla'!G48/(1-Zadání!$B$34) -> 2.128730009 | C101: =B101/Zadání!$B$45 -> 2.339263746 | D101: =B101/Zadání!$B$68 -> 2.339263746 | E101: =B101/Zadání!$B$92 -> 2.313836966
A102: 1:00-2:00 | B102: =G21/(1-Zadání!$B$35)+'Spotřeba tepla'!G49/(1-Zadání!$B$34) -> 2.128730009 | C102: =B102/Zadání!$B$45 -> 2.339263746 | D102: =B102/Zadání!$B$68 -> 2.339263746 | E102: =B102/Zadání!$B$92 -> 2.313836966
A103: 2:00-3:00 | B103: =G22/(1-Zadání!$B$35)+'Spotřeba tepla'!G50/(1-Zadání!$B$34) -> 2.128730009 | C103: =B103/Zadání!$B$45 -> 2.339263746 | D103: =B103/Zadání!$B$68 -> 2.339263746 | E103: =B103/Zadání!$B$92 -> 2.313836966
A104: 3:00-4:00 | B104: =G23/(1-Zadání!$B$35)+'Spotřeba tepla'!G51/(1-Zadání!$B$34) -> 1.614520229 | C104: =B104/Zadání!$B$45 -> 1.774198054 | D104: =B104/Zadání!$B$68 -> 1.774198054 | E104: =B104/Zadání!$B$92 -> 1.754913292
A105: 4:00-5:00 | B105: =G24/(1-Zadání!$B$35)+'Spotřeba tepla'!G52/(1-Zadání!$B$34) -> 1.614520229 | C105: =B105/Zadání!$B$45 -> 1.774198054 | D105: =B105/Zadání!$B$68 -> 1.774198054 | E105: =B105/Zadání!$B$92 -> 1.754913292
A106: 5:00-6:00 | B106: =G25/(1-Zadání!$B$35)+'Spotřeba tepla'!G53/(1-Zadání!$B$34) -> 3.300931346 | C106: =B106/Zadání!$B$45 -> 3.627397083 | D106: =B106/Zadání!$B$68 -> 3.627397083 | E106: =B106/Zadání!$B$92 -> 3.587968854
A107: 6:00-7:00 | B107: =G26/(1-Zadání!$B$35)+'Spotřeba tepla'!G54/(1-Zadání!$B$34) -> 4.401241794 | C107: =B107/Zadání!$B$45 -> 4.836529444 | D107: =B107/Zadání!$B$68 -> 4.836529444 | E107: =B107/Zadání!$B$92 -> 4.783958472
A108: 7:00-8:00 | B108: =G27/(1-Zadání!$B$35)+'Spotřeba tepla'!G55/(1-Zadání!$B$34) -> 4.915451574 | C108: =B108/Zadání!$B$45 -> 5.401595137 | D108: =B108/Zadání!$B$68 -> 5.401595137 | E108: =B108/Zadání!$B$92 -> 5.342882146
A109: 8:00-9:00 | B109: =G28/(1-Zadání!$B$35)+'Spotřeba tepla'!G56/(1-Zadání!$B$34) -> 3.887032014 | C109: =B109/Zadání!$B$45 -> 4.271463752 | D109: =B109/Zadání!$B$68 -> 4.271463752 | E109: =B109/Zadání!$B$92 -> 4.225034798
A110: 9:00-10:00 | B110: =G29/(1-Zadání!$B$35)+'Spotřeba tepla'!G57/(1-Zadání!$B$34) -> 3.887032014 | C110: =B110/Zadání!$B$45 -> 4.271463752 | D110: =B110/Zadání!$B$68 -> 4.271463752 | E110: =B110/Zadání!$B$92 -> 4.225034798
A111: 10:00-11:00 | B111: =G30/(1-Zadání!$B$35)+'Spotřeba tepla'!G58/(1-Zadání!$B$34) -> 3.372822234 | C111: =B111/Zadání!$B$45 -> 3.706398059 | D111: =B111/Zadání!$B$68 -> 3.706398059 | E111: =B111/Zadání!$B$92 -> 3.666111124
A112: 11:00-12:00 | B112: =G31/(1-Zadání!$B$35)+'Spotřeba tepla'!G59/(1-Zadání!$B$34) -> 3.372822234 | C112: =B112/Zadání!$B$45 -> 3.706398059 | D112: =B112/Zadání!$B$68 -> 3.706398059 | E112: =B112/Zadání!$B$92 -> 3.666111124
A113: 12:00-13:00 | B113: =G32/(1-Zadání!$B$35)+'Spotřeba tepla'!G60/(1-Zadání!$B$34) -> 3.372822234 | C113: =B113/Zadání!$B$45 -> 3.706398059 | D113: =B113/Zadání!$B$68 -> 3.706398059 | E113: =B113/Zadání!$B$92 -> 3.666111124
A114: 13:00-14:00 | B114: =G33/(1-Zadání!$B$35)+'Spotřeba tepla'!G61/(1-Zadání!$B$34) -> 3.887032014 | C114: =B114/Zadání!$B$45 -> 4.271463752 | D114: =B114/Zadání!$B$68 -> 4.271463752 | E114: =B114/Zadání!$B$92 -> 4.225034798
A115: 14:00-15:00 | B115: =G34/(1-Zadání!$B$35)+'Spotřeba tepla'!G62/(1-Zadání!$B$34) -> 3.887032014 | C115: =B115/Zadání!$B$45 -> 4.271463752 | D115: =B115/Zadání!$B$68 -> 4.271463752 | E115: =B115/Zadání!$B$92 -> 4.225034798
A116: 15:00-16:00 | B116: =G35/(1-Zadání!$B$35)+'Spotřeba tepla'!G63/(1-Zadání!$B$34) -> 3.887032014 | C116: =B116/Zadání!$B$45 -> 4.271463752 | D116: =B116/Zadání!$B$68 -> 4.271463752 | E116: =B116/Zadání!$B$92 -> 4.225034798
A117: 16:00-17:00 | B117: =G36/(1-Zadání!$B$35)+'Spotřeba tepla'!G64/(1-Zadání!$B$34) -> 4.401241794 | C117: =B117/Zadání!$B$45 -> 4.836529444 | D117: =B117/Zadání!$B$68 -> 4.836529444 | E117: =B117/Zadání!$B$92 -> 4.783958472
A118: 17:00-18:00 | B118: =G37/(1-Zadání!$B$35)+'Spotřeba tepla'!G65/(1-Zadání!$B$34) -> 4.915451574 | C118: =B118/Zadání!$B$45 -> 5.401595137 | D118: =B118/Zadání!$B$68 -> 5.401595137 | E118: =B118/Zadání!$B$92 -> 5.342882146
A119: 18:00-19:00 | B119: =G38/(1-Zadání!$B$35)+'Spotřeba tepla'!G66/(1-Zadání!$B$34) -> 4.915451574 | C119: =B119/Zadání!$B$45 -> 5.401595137 | D119: =B119/Zadání!$B$68 -> 5.401595137 | E119: =B119/Zadání!$B$92 -> 5.342882146
A120: 19:00-20:00 | B120: =G39/(1-Zadání!$B$35)+'Spotřeba tepla'!G67/(1-Zadání!$B$34) -> 5.943871135 | C120: =B120/Zadání!$B$45 -> 6.531726522 | D120: =B120/Zadání!$B$68 -> 6.531726522 | E120: =B120/Zadání!$B$92 -> 6.460729494
A121: 20:00-21:00 | B121: =G40/(1-Zadání!$B$35)+'Spotřeba tepla'!G68/(1-Zadání!$B$34) -> 7.486500475 | C121: =B121/Zadání!$B$45 -> 8.226923599 | D121: =B121/Zadání!$B$68 -> 8.226923599 | E121: =B121/Zadání!$B$92 -> 8.137500516
A122: 21:00-22:00 | B122: =G41/(1-Zadání!$B$35)+'Spotřeba tepla'!G69/(1-Zadání!$B$34) -> 6.972290695 | C122: =B122/Zadání!$B$45 -> 7.661857907 | D122: =B122/Zadání!$B$68 -> 7.661857907 | E122: =B122/Zadání!$B$92 -> 7.578576842
A123: 22:00-23:00 | B123: =G42/(1-Zadání!$B$35)+'Spotřeba tepla'!G70/(1-Zadání!$B$34) -> 5.357770466 | C123: =B123/Zadání!$B$45 -> 5.887659853 | D123: =B123/Zadání!$B$68 -> 5.887659853 | E123: =B123/Zadání!$B$92 -> 5.82366355
A124: 23:00-24:00 | B124: =G43/(1-Zadání!$B$35)+'Spotřeba tepla'!G71/(1-Zadání!$B$34) -> 3.157149569 | C124: =B124/Zadání!$B$45 -> 3.469395131 | D124: =B124/Zadání!$B$68 -> 3.469395131 | E124: =B124/Zadání!$B$92 -> 3.431684314
C125: =MAX(C101:C124) -> 8.226923599 | D125: =MAX(D101:D124) -> 8.226923599 | E125: =MAX(E101:E124) -> 8.137500516

Sheet Odpisy
D1: Roky | E1: 0 | F1: 1 | G1: 2 | H1: 3 | I1: 4 | J1: 5 | K1: 6 | L1: 7 | M1: 8 | N1: 9 | O1: 10 | P1: 11 | Q1: 12 | R1: 13 | S1: 14 | T1: 15 | U1: 16 | V1: 17 | W1: 18 | X1: 19 | Y1: 20 | Z1: 21 | AA1: 22 | AB1: 23 | AC1: 24 | AD1: 25 | AE1: 26 | AF1: 27 | AG1: 28 | AH1: 29 | AI1: 30
A2: =Zadání!A41 -> Plyn
A3: Položka | B3: Odpisová skupina | C3: Pocět let
A4: =Zadání!A60 -> Celková investice | B4: =Zadání!B60 -> 4 | C4: =IF(B4=1,3,IF(B4=2,5,IF(B4=3,10,IF(B4=4,20,IF(B4=5,30,IF(B4=6,50,"špatně")))))) -> 20 | D4: Investice [Kč] | E4: =-Zadání!C60 -> -100000000
D5: Odpisy | F5: =-$E4/(2*$C4-1) -> 2564102.564 | G5: =IF($C4>=(G$1-$E$1),-2*$E4/(2*$C4-1),0) -> 5128205.128 | H5: =IF($C4>=(H$1-$E$1),-2*$E4/(2*$C4-1),0) -> 5128205.128 | I5: 5128205.128 | J5: 5128205.128 | K5: 5128205.128 | L5: 5128205.128 | M5: 5128205.128 | N5: 5128205.128 | O5: 5128205.128 | P5: 5128205.128 | Q5: 5128205.128 | R5: 5128205.128 | S5: 5128205.128 | T5: 5128205.128 | U5: 5128205.128 | V5: 5128205.128 | W5: 5128205.128 | X5: 5128205.128 | Y5: 5128205.128 | Z5: 0 | AA5: 0 | AB5: 0 | AC5: 0 | AD5: 0 | AE5: 0 | AF5: 0 | AG5: 0 | AH5: 0 | AI5: 0
A7: =Zadání!A63 -> Biomasa
A8: Položka | B8: Odpisová skupina | C8: Pocět let
A9: =Zadání!A85 -> Celková investice | B9: =Zadání!B85 -> 4 | C9: =IF(B9=1,3,IF(B9=2,5,IF(B9=3,10,IF(B9=4,20,IF(B9=5,30,IF(B9=6,50,"špatně")))))) -> 20 | D9: Investice [Kč] | E9: =-Zadání!C85 -> -80000000
D10: Odpisy | F10: =-$E9/(2*$C9-1) -> 2051282.051 | G10: =IF($C9>=(G$1-$E$1),-2*$E9/(2*$C9-1),0) -> 4102564.103 | H10: =IF($C9>=(H$1-$E$1),-2*$E9/(2*$C9-1),0) -> 4102564.103 | I10: =IF($C9>=(I$1-$E$1),-2*$E9/(2*$C9-1),0) -> 4102564.103 | J10: =IF($C9>=(J$1-$E$1),-2*$E9/(2*$C9-1),0) -> 4102564.103 | K10: =IF($C9>=(K$1-$E$1),-2*$E9/(2*$C9-1),0) -> 4102564.103 | L10: =IF($C9>=(L$1-$E$1),-2*$E9/(2*$C9-1),0) -> 4102564.103 | M10: =IF($C9>=(M$1-$E$1),-2*$E9/(2*$C9-1),0) -> 4102564.103 | N10: =IF($C9>=(N$1-$E$1),-2*$E9/(2*$C9-1),0) -> 4102564.103 | O10: =IF($C9>=(O$1-$E$1),-2*$E9/(2*$C9-1),0) -> 4102564.103 | P10: =IF($C9>=(P$1-$E$1),-2*$E9/(2*$C9-1),0) -> 4102564.103 | Q10: =IF($C9>=(Q$1-$E$1),-2*$E9/(2*$C9-1),0) -> 4102564.103 | R10: =IF($C9>=(R$1-$E$1),-2*$E9/(2*$C9-1),0) -> 4102564.103 | S10: =IF($C9>=(S$1-$E$1),-2*$E9/(2*$C9-1),0) -> 4102564.103 | T10: =IF($C9>=(T$1-$E$1),-2*$E9/(2*$C9-1),0) -> 4102564.103 | U10: =IF($C9>=(U$1-$E$1),-2*$E9/(2*$C9-1),0) -> 4102564.103 | V10: =IF($C9>=(V$1-$E$1),-2*$E9/(2*$C9-1),0) -> 4102564.103 | W10: =IF($C9>=(W$1-$E$1),-2*$E9/(2*$C9-1),0) -> 4102564.103 | X10: =IF($C9>=(X$1-$E$1),-2*$E9/(2*$C9-1),0) -> 4102564.103 | Y10: =IF($C9>=(Y$1-$E$1),-2*$E9/(2*$C9-1),0) -> 4102564.103 | Z10: =IF($C9>=(Z$1-$E$1),-2*$E9/(2*$C9-1),0) -> 0 | AA10: =IF($C9>=(AA$1-$E$1),-2*$E9/(2*$C9-1),0) -> 0 | AB10: =IF($C9>=(AB$1-$E$1),-2*$E9/(2*$C9-1),0) -> 0 | AC10: =IF($C9>=(AC$1-$E$1),-2*$E9/(2*$C9-1),0) -> 0 | AD10: =IF($C9>=(AD$1-$E$1),-2*$E9/(2*$C9-1),0) -> 0 | AE10: =IF($C9>=(AE$1-$E$1),-2*$E9/(2*$C9-1),0) -> 0 | AF10: =IF($C9>=(AF$1-$E$1),-2*$E9/(2*$C9-1),0) -> 0 | AG10: =IF($C9>=(AG$1-$E$1),-2*$E9/(2*$C9-1),0) -> 0 | AH10: =IF($C9>=(AH$1-$E$1),-2*$E9/(2*$C9-1),0) -> 0 | AI10: =IF($C9>=(AI$1-$E$1),-2*$E9/(2*$C9-1),0) -> 0
A12: =Zadání!A87 -> Uhlí
A13: Položka | B13: Odpisová skupina | C13: Pocět let
A14: =Zadání!A102 -> Celková investice | B14: =Zadání!B102 -> 4 | C14: =IF(B14=1,3,IF(B14=2,5,IF(B14=3,10,IF(B14=4,20,IF(B14=5,30,IF(B14=6,50,"špatně")))))) -> 20 | D14: Investice [Kč] | E14: =-Zadání!C102 -> -85000000
D15: Odpisy | F15: =-$E14/(2*$C14-1) -> 2179487.179 | G15: =IF($C14>=(G$1-$E$1),-2*$E14/(2*$C14-1),0) -> 4358974.359 | H15: =IF($C14>=(H$1-$E$1),-2*$E14/(2*$C14-1),0) -> 4358974.359 | I15: =IF($C14>=(I$1-$E$1),-2*$E14/(2*$C14-1),0) -> 4358974.359 | J15: =IF($C14>=(J$1-$E$1),-2*$E14/(2*$C14-1),0) -> 4358974.359 | K15: =IF($C14>=(K$1-$E$1),-2*$E14/(2*$C14-1),0) -> 4358974.359 | L15: =IF($C14>=(L$1-$E$1),-2*$E14/(2*$C14-1),0) -> 4358974.359 | M15: =IF($C14>=(M$1-$E$1),-2*$E14/(2*$C14-1),0) -> 4358974.359 | N15: =IF($C14>=(N$1-$E$1),-2*$E14/(2*$C14-1),0) -> 4358974.359 | O15: =IF($C14>=(O$1-$E$1),-2*$E14/(2*$C14-1),0) -> 4358974.359 | P15: =IF($C14>=(P$1-$E$1),-2*$E14/(2*$C14-1),0) -> 4358974.359 | Q15: =IF($C14>=(Q$1-$E$1),-2*$E14/(2*$C14-1),0) -> 4358974.359 | R15: =IF($C14>=(R$1-$E$1),-2*$E14/(2*$C14-1),0) -> 4358974.359 | S15: =IF($C14>=(S$1-$E$1),-2*$E14/(2*$C14-1),0) -> 4358974.359 | T15: =IF($C14>=(T$1-$E$1),-2*$E14/(2*$C14-1),0) -> 4358974.359 | U15: =IF($C14>=(U$1-$E$1),-2*$E14/(2*$C14-1),0) -> 4358974.359 | V15: =IF($C14>=(V$1-$E$1),-2*$E14/(2*$C14-1),0) -> 4358974.359 | W15: =IF($C14>=(W$1-$E$1),-2*$E14/(2*$C14-1),0) -> 4358974.359 | X15: =IF($C14>=(X$1-$E$1),-2*$E14/(2*$C14-1),0) -> 4358974.359 | Y15: =IF($C14>=(Y$1-$E$1),-2*$E14/(2*$C14-1),0) -> 4358974.359 | Z15: =IF($C14>=(Z$1-$E$1),-2*$E14/(2*$C14-1),0) -> 0 | AA15: =IF($C14>=(AA$1-$E$1),-2*$E14/(2*$C14-1),0) -> 0 | AB15: =IF($C14>=(AB$1-$E$1),-2*$E14/(2*$C14-1),0) -> 0 | AC15: =IF($C14>=(AC$1-$E$1),-2*$E14/(2*$C14-1),0) -> 0 | AD15: =IF($C14>=(AD$1-$E$1),-2*$E14/(2*$C14-1),0) -> 0 | AE15: =IF($C14>=(AE$1-$E$1),-2*$E14/(2*$C14-1),0) -> 0 | AF15: =IF($C14>=(AF$1-$E$1),-2*$E14/(2*$C14-1),0) -> 0 | AG15: =IF($C14>=(AG$1-$E$1),-2*$E14/(2*$C14-1),0) -> 0 | AH15: =IF($C14>=(AH$1-$E$1),-2*$E14/(2*$C14-1),0) -> 0 | AI15: =IF($C14>=(AI$1-$E$1),-2*$E14/(2*$C14-1),0) -> 0

Sheet Splátkový kalendář
A1: Počet let | B1: =Zadání!B29 -> 30
A2: Sazba | B2: =Zadání!B30 -> 0.03
A3: Velikost půjčky | B3: =Zadání!B31 -> 1
A4: Roky | B4: 0 | C4: 1 | D4: 2 | E4: 3 | F4: 4 | G4: 5 | H4: 6 | I4: 7 | J4: 8 | K4: 9 | L4: 10 | M4: 11 | N4: 12 | O4: 13 | P4: 14 | Q4: 15 | R4: 16 | S4: 17 | T4: 18 | U4: 19 | V4: 20 | W4: 21 | X4: 22 | Y4: 23 | Z4: 24 | AA4: 25 | AB4: 26 | AC4: 27 | AD4: 28 | AE4: 29 | AF4: 30
A5: =Zadání!A41 -> Plyn
A6: Zůstatek | B6: =SUM(Odpisy!E4:E5)*$B$3 -> -100000000 | C6: =IF($B$1>=(C$4-$B$4),B6+C8,0) -> -97898074.07 | D6: -95733090.36 | E6: -93503157.14 | F6: -91206325.92 | G6: -88840589.76 | H6: -86403881.53 | I6: -83894072.04 | J6: -81308968.27 | K6: -78646311.38 | L6: -75903774.79 | M6: -73078962.11 | N6: -70169405.04 | O6: -67172561.26 | P6: -64085812.16 | Q6: -60906460.59 | R6: -57631728.48 | S6: -54258754.4 | T6: -50784591.1 | U6: -47206202.9 | V6: -43520463.06 | W6: -39724151.02 | X6: -35813949.62 | Y6: -31786442.17 | Z6: -27638109.51 | AA6: -23365326.86 | AB6: -18964360.73 | AC6: -14431365.62 | AD6: -9762380.66 | AE6: -4953326.148 | AF6: -8.381903172e-08
A7: Anuita | C7: =IF($B$1>=(C$4-$B$4),PMT($B$2,$B$1,$B$6,0,0),0) -> 5101925.932 | D7: 5101925.932 | E7: 5101925.932 | F7: 5101925.932 | G7: 5101925.932 | H7: 5101925.932 | I7: 5101925.932 | J7: 5101925.932 | K7: 5101925.932 | L7: 5101925.932 | M7: 5101925.932 | N7: 5101925.932 | O7: 5101925.932 | P7: 5101925.932 | Q7: 5101925.932 | R7: 5101925.932 | S7: 5101925.932 | T7: 5101925.932 | U7: 5101925.932 | V7: 5101925.932 | W7: 5101925.932 | X7: 5101925.932 | Y7: 5101925.932 | Z7: 5101925.932 | AA7: 5101925.932 | AB7: 5101925.932 | AC7: 5101925.932 | AD7: 5101925.932 | AE7: 5101925.932 | AF7: 5101925.932
A8: Úmor | C8: =IF($B$1>=(C$4-$B$4),C7-C9,0) -> 2101925.932 | D8: 2164983.71 | E8: 2229933.221 | F8: 2296831.218 | G8: 2365736.154 | H8: 2436708.239 | I8: 2509809.486 | J8: 2585103.771 | K8: 2662656.884 | L8: 2742536.591 | M8: 2824812.688 | N8: 2909557.069 | O8: 2996843.781 | P8: 3086749.094 | Q8: 3179351.567 | R8: 3274732.114 | S8: 3372974.078 | T8: 3474163.3 | U8: 3578388.199 | V8: 3685739.845 | W8: 3796312.04 | X8: 3910201.401 | Y8: 4027507.444 | Z8: 4148332.667 | AA8: 4272782.647 | AB8: 4400966.126 | AC8: 4532995.11 | AD8: 4668984.963 | AE8: 4809054.512 | AF8: 4953326.148
A9: Úrok | C9: =IF($B$1>=(C$4-$B$4),-B6*$B$2,0) -> 3000000 | D9: 2936942.222 | E9: 2871992.711 | F9: 2805094.714 | G9: 2736189.778 | H9: 2665217.693 | I9: 2592116.446 | J9: 2516822.161 | K9: 2439269.048 | L9: 2359389.342 | M9: 2277113.244 | N9: 2192368.863 | O9: 2105082.151 | P9: 2015176.838 | Q9: 1922574.365 | R9: 1827193.818 | S9: 1728951.854 | T9: 1627762.632 | U9: 1523537.733 | V9: 1416186.087 | W9: 1305613.892 | X9: 1191724.531 | Y9: 1074418.488 | Z9: 953593.2652 | AA9: 829143.2852 | AB9: 700959.8058 | AC9: 568930.822 | AD9: 432940.9687 | AE9: 292871.4198 | AF9: 148599.7844
A12: =Zadání!A63 -> Biomasa
A13: Zůstatek | B13: =SUM(Odpisy!E9:E10)*$B$3 -> -80000000 | C13: =IF($B$1>=(C$4-$B$4),B13+C15,0) -> -77298074.07 | D13: -74515090.36 | E13: -71648617.14 | F13: -68696149.72 | G13: -65655108.28 | H13: -62522835.59 | I13: -59296594.73 | J13: -55973566.64 | K13: -52550847.71 | L13: -49025447.21 | M13: -45394284.69 | N13: -41654187.3 | O13: -37801886.99 | P13: -33834017.66 | Q13: -29747112.26 | R13: -25537599.7 | S13: -21201801.76 | T13: -16735929.88 | U13: -12136081.84 | V13: -7398238.365 | W13: -2518259.584 | X13: 2508118.561 | Y13: 7685288.049 | Z13: 13017772.62 | AA13: 18510231.73 | AB13: 24167464.62 | AC13: 29994414.49 | AD13: 35996172.85 | AE13: 42177983.97 | AF13: 48545249.42
A14: Anuita | C14: =IF($B$1>=(C$4-$B$4),PMT($B$2,$B$1,$B$6,0,0),0) -> 5101925.932 | D14: 5101925.932 | E14: 5101925.932 | F14: 5101925.932 | G14: 5101925.932 | H14: 5101925.932 | I14: 5101925.932 | J14: 5101925.932 | K14: 5101925.932 | L14: 5101925.932 | M14: 5101925.932 | N14: 5101925.932 | O14: 5101925.932 | P14: 5101925.932 | Q14: 5101925.932 | R14: 5101925.932 | S14: 5101925.932 | T14: 5101925.932 | U14: 5101925.932 | V14: 5101925.932 | W14: 5101925.932 | X14: 5101925.932 | Y14: 5101925.932 | Z14: 5101925.932 | AA14: 5101925.932 | AB14: 5101925.932 | AC14: 5101925.932 | AD14: 5101925.932 | AE14: 5101925.932 | AF14: 5101925.932
A15: Úmor | C15: =IF($B$1>=(C$4-$B$4),C14-C16,0) -> 2701925.932 | D15: 2782983.71 | E15: 2866473.221 | F15: 2952467.418 | G15: 3041041.44 | H15: 3132272.684 | I15: 3226240.864 | J15: 3323028.09 | K15: 3422718.933 | L15: 3525400.501 | M15: 3631162.516 | N15: 3740097.391 | O15: 3852300.313 | P15: 3967869.322 | Q15: 4086905.402 | R15: 4209512.564 | S15: 4335797.941 | T15: 4465871.879 | U15: 4599848.036 | V15: 4737843.477 | W15: 4879978.781 | X15: 5026378.145 | Y15: 5177169.489 | Z15: 5332484.574 | AA15: 5492459.111 | AB15: 5657232.884 | AC15: 5826949.871 | AD15: 6001758.367 | AE15: 6181811.118 | AF15: 6367265.451
A16: Úrok | C16: =IF($B$1>=(C$4-$B$4),-B13*$B$2,0) -> 2400000 | D16: 2318942.222 | E16: 2235452.711 | F16: 2149458.514 | G16: 2060884.492 | H16: 1969653.248 | I16: 1875685.068 | J16: 1778897.842 | K16: 1679206.999 | L16: 1576525.431 | M16: 1470763.416 | N16: 1361828.541 | O16: 1249625.619 | P16: 1134056.61 | Q16: 1015020.53 | R16: 892413.3679 | S16: 766127.9909 | T16: 636054.0527 | U16: 502077.8963 | V16: 364082.4553 | W16: 221947.1509 | X16: 75547.78752 | Y16: -75243.55682 | Z16: -230558.6415 | AA16: -390533.1787 | AB16: -555306.952 | AC16: -725023.9385 | AD16: -899832.4346 | AE16: -1079885.186 | AF16: -1265339.519
A19: =Zadání!A87 -> Uhlí
A20: Zůstatek | B20: =SUM(Odpisy!E14:E15)*$B$3 -> -85000000 | C20: =IF($B$1>=(C$4-$B$4),B20+C22,0) -> -82448074.07 | D20: -79819590.36 | E20: -77112252.14 | F20: -74323693.77 | G20: -71451478.65 | H20: -68493097.08 | I20: -65445964.06 | J20: -62307417.05 | K20: -59074713.63 | L20: -55745029.1 | M20: -52315454.04 | N20: -48782991.73 | O20: -45144555.55 | P20: -41396966.29 | Q20: -37536949.35 | R20: -33561131.89 | S20: -29466039.92 | T20: -25248095.18 | U20: -20903612.11 | V20: -16428794.54 | W20: -11819732.44 | X20: -7072398.484 | Y20: -2182644.506 | Z20: 2853802.091 | AA20: 8041342.085 | AB20: 13384508.28 | AC20: 18887969.46 | AD20: 24556534.48 | AE20: 30395156.44 | AF20: 36408937.07
A21: Anuita | C21: =IF($B$1>=(C$4-$B$4),PMT($B$2,$B$1,$B$6,0,0),0) -> 5101925.932 | D21: 5101925.932 | E21: 5101925.932 | F21: 5101925.932 | G21: 5101925.932 | H21: 5101925.932 | I21: 5101925.932 | J21: 5101925.932 | K21: 5101925.932 | L21: 5101925.932 | M21: 5101925.932 | N21: 5101925.932 | O21: 5101925.932 | P21: 5101925.932 | Q21: 5101925.932 | R21: 5101925.932 | S21: 5101925.932 | T21: 5101925.932 | U21: 5101925.932 | V21: 5101925.932 | W21: 5101925.932 | X21: 5101925.932 | Y21: 5101925.932 | Z21: 5101925.932 | AA21: 5101925.932 | AB21: 5101925.932 | AC21: 5101925.932 | AD21: 5101925.932 | AE21: 5101925.932 | AF21: 5101925.932
A22: Úmor | C22: =IF($B$1>=(C$4-$B$4),C21-C23,0) -> 2551925.932 | D22: 2628483.71 | E22: 2707338.221 | F22: 2788558.368 | G22: 2872215.119 | H22: 2958381.573 | I22: 3047133.02 | J22: 3138547.01 | K22: 3232703.421 | L22: 3329684.523 | M22: 3429575.059 | N22: 3532462.311 | O22: 3638436.18 | P22: 3747589.265 | Q22: 3860016.943 | R22: 3975817.452 | S22: 4095091.975 | T22: 4217944.734 | U22: 4344483.077 | V22: 4474817.569 | W22: 4609062.096 | X22: 4747333.959 | Y22: 4889753.978 | Z22: 5036446.597 | AA22: 5187539.995 | AB22: 5343166.195 | AC22: 5503461.18 | AD22: 5668565.016 | AE22: 5838621.966 | AF22: 6013780.625
A23: Úrok | C23: =IF($B$1>=(C$4-$B$4),-B20*$B$2,0) -> 2550000 | D23: 2473442.222 | E23: 2394587.711 | F23: 2313367.564 | G23: 2229710.813 | H23: 2143544.359 | I23: 2054792.912 | J23: 1963378.922 | K23: 1869222.511 | L23: 1772241.409 | M23: 1672350.873 | N23: 1569463.621 | O23: 1463489.752 | P23: 1354336.667 | Q23: 1241908.989 | R23: 1126108.48 | S23: 1006833.957 | T23: 883981.1975 | U23: 757442.8555 | V23: 627108.3632 | W23: 492863.8362 | X23: 354591.9733 | Y23: 212171.9545 | Z23: 65479.33519 | AA23: -85614.06272 | AB23: -241240.2626 | AC23: -401535.2484 | AD23: -566639.0838 | AE23: -736696.0343 | AF23: -911854.6933

Sheet Výpočty
A1: =Zadání!A1 -> Celková spotřeba tepla | B1: =Zadání!B1 -> 59208
A2: =Zadání!A41 -> Plyn
A3: =Zadání!A42 -> Průměrná výhřevnost | B3: =Zadání!B42 -> 0.03348
A4: =Zadání!A44 -> Emisní faktor | B4: =Zadání!B44 -> 0.2
A5: =Zadání!A45 -> Účinnost spalování | B5: =Zadání!B45 -> 0.91
A6: =Zadání!A49 -> m^3->MWh | B6: =Zadání!B49 -> 0.010607
A7: =Zadání!A46 -> Tepelná účinnost | B7: =Zadání!B46 -> 0.471
A8: =Zadání!A47 -> Elektrická účinnost | B8: =Zadání!B47 -> 0.437
A9: =Zadání!A50 -> Doba provozu kogenerační jednotky | B9: =Zadání!B50 -> 3000
A10: =Zadání!A51 -> Elektrický výkon | B10: =Zadání!B51 -> 2000
A11: =Zadání!A52 -> Tepelný výkon | B11: =Zadání!B52 -> 2154
A12: Vyrobeno elektřiny z kogenerace | B12: =B9*2*B10/1000 -> 12000
A13: Vyrobeno tepla z kogenerace | B13: =B11*2*B9/1000 -> 12924
B14: =B13*3.6 -> 46526.4
A15: Dodáno teplo z kogenerace | B15: =B14*(1-Zadání!$B$34)*(1-Zadání!$B$35) -> 34615.6416
A16: Dodá kotel | B16: =B1-B15 -> 24592.3584
A17: Vyrobí kotel | B17: =B16/((1-Zadání!$B$34)*(1-Zadání!$B$35)) -> 33054.24516
A18: Plyn na teplo kogenerace | B18: =B14/B3 -> 1389677.419
A19: Plyn na teplo kotel | B19: =B17/B3 -> 987283.3083
A20: Spotřeba plynu | B20: =B18/B5+B19/B7 -> 3623260.948
B21: =B20*B6 -> 38431.92888
A22: Množství CO2 | B22: =B21*B4 -> 7686.385776
A24: =Zadání!A62 -> Spoluspalování
A25: =Zadání!A68 -> Účinnost spalování | B25: =Zadání!B68 -> 0.91
A27: =Zadání!A70 -> Poměr spoluspalování (využití biomasy) | B27: =Zadání!B70 -> 0.4
A28: =Zadání!A63 -> Biomasa
A29: =Zadání!A64 -> Průměrná výhřevnost | B29: =Zadání!B64 -> 15.5
A30: =Zadání!A67 -> Emisní faktor | B30: =Zadání!B67 -> 0
A31: Biomasa na teplo | B31: =B1/B29*B27 -> 1527.948387
A32: Spotřeba biomasy | B32: =B31/(B25*(1-Zadání!$B$34)*(1-Zadání!$B$35)) -> 2256.806669
B33: =B32*B29/3.6 -> 9716.806491
A34: Množství CO2 | B34: =B33*B30 -> 0
A35: =Zadání!A71 -> Uhlí
A36: =Zadání!A72 -> Průměrná výhřevnost | B36: =Zadání!B72 -> 17
A37: =Zadání!A75 -> Emisní faktor | B37: =Zadání!B75 -> 0.36
A38: Uhlí na teplo | B38: =B1/B36*(1-B27) -> 2089.694118
A39: Spotřeba uhlí | B39: =B38/(B25*(1-Zadání!$B$34)*(1-Zadání!$B$35)) -> 3086.515003
B40: =B39*B36/3.6 -> 14575.20974
A41: Množství CO2 | B41: =B40*B37 -> 5247.075505
A43: =Zadání!A87 -> Uhlí
A44: =Zadání!A88 -> Průměrná výhřevnost | B44: =Zadání!B88 -> 24
A45: =Zadání!A91 -> Emisní faktor | B45: =Zadání!B91 -> 0.36
A46: =Zadání!A92 -> Účinnost spalování | B46: =Zadání!B92 -> 0.92
A47: Uhlí na teplo | B47: =B1/B44 -> 2467
A48: Spotřeba uhlí | B48: =B47/(B46*(1-Zadání!$B$34)*(1-Zadání!$B$35)) -> 3604.195886
B49: =B48*B44/3.6 -> 24027.97257
A50: Množství CO2 | B50: =B49*B45 -> 8650.070126

Sheet Výsledovka
A1: Roky | B1: 1 | C1: 2 | D1: 3 | E1: 4 | F1: 5 | G1: 6 | H1: 7 | I1: 8 | J1: 9 | K1: 10 | L1: 11 | M1: 12 | N1: 13 | O1: 14 | P1: 15 | Q1: 16 | R1: 17 | S1: 18 | T1: 19 | U1: 20 | V1: 21 | W1: 22 | X1: 23 | Y1: 24 | Z1: 25 | AA1: 26 | AB1: 27 | AC1: 28 | AD1: 29 | AE1: 30
A2: =Zadání!A41 -> Plyn
A3: Výnosy
A4: Prodej tepla | B4: =Zadání!$B$2*Zadání!$B$5*(1+Zadání!$B$9)^(Výsledovka!B$1-Výsledovka!$B$1)+Zadání!$B$3*Zadání!$B$6*(1+Zadání!$B$9)^(Výsledovka!B$1-Výsledovka!$B$1) -> 29500743 | C4: =Zadání!$B$2*Zadání!$B$5*(1+Zadání!$B$9)^(Výsledovka!C$1-Výsledovka!$B$1)+Zadání!$B$3*Zadání!$B$6*(1+Zadání!$B$9)^(Výsledovka!C$1-Výsledovka!$B$1) -> 29943254.14 | D4: =Zadání!$B$2*Zadání!$B$5*(1+Zadání!$B$9)^(Výsledovka!D$1-Výsledovka!$B$1)+Zadání!$B$3*Zadání!$B$6*(1+Zadání!$B$9)^(Výsledovka!D$1-Výsledovka!$B$1) -> 30392402.96 | E4: =Zadání!$B$2*Zadání!$B$5*(1+Zadání!$B$9)^(Výsledovka!E$1-Výsledovka!$B$1)+Zadání!$B$3*Zadání!$B$6*(1+Zadání!$B$9)^(Výsledovka!E$1-Výsledovka!$B$1) -> 30848289 | F4: =Zadání!$B$2*Zadání!$B$5*(1+Zadání!$B$9)^(Výsledovka!F$1-Výsledovka!$B$1)+Zadání!$B$3*Zadání!$B$6*(1+Zadání!$B$9)^(Výsledovka!F$1-Výsledovka!$B$1) -> 31311013.34 | G4: =Zadání!$B$2*Zadání!$B$5*(1+Zadání!$B$9)^(Výsledovka!G$1-Výsledovka!$B$1)+Zadání!$B$3*Zadání!$B$6*(1+Zadání!$B$9)^(Výsledovka!G$1-Výsledovka!$B$1) -> 31780678.54 | H4: =Zadání!$B$2*Zadání!$B$5*(1+Zadání!$B$9)^(Výsledovka!H$1-Výsledovka!$B$1)+Zadání!$B$3*Zadání!$B$6*(1+Zadání!$B$9)^(Výsledovka!H$1-Výsledovka!$B$1) -> 32257388.71 | I4: =Zadání!$B$2*Zadání!$B$5*(1+Zadání!$B$9)^(Výsledovka!I$1-Výsledovka!$B$1)+Zadání!$B$3*Zadání!$B$6*(1+Zadání!$B$9)^(Výsledovka!I$1-Výsledovka!$B$1) -> 32741249.55 | J4: =Zadání!$B$2*Zadání!$B$5*(1+Zadání!$B$9)^(Výsledovka!J$1-Výsledovka!$B$1)+Zadání!$B$3*Zadání!$B$6*(1+Zadání!$B$9)^(Výsledovka!J$1-Výsledovka!$B$1) -> 33232368.29 | K4: =Zadání!$B$2*Zadání!$B$5*(1+Zadání!$B$9)^(Výsledovka!K$1-Výsledovka!$B$1)+Zadání!$B$3*Zadání!$B$6*(1+Zadání!$B$9)^(Výsledovka!K$1-Výsledovka!$B$1) -> 33730853.81 | L4: =Zadání!$B$2*Zadání!$B$5*(1+Zadání!$B$9)^(Výsledovka!L$1-Výsledovka!$B$1)+Zadání!$B$3*Zadání!$B$6*(1+Zadání!$B$9)^(Výsledovka!L$1-Výsledovka!$B$1) -> 34236816.62 | M4: =Zadání!$B$2*Zadání!$B$5*(1+Zadání!$B$9)^(Výsledovka!M$1-Výsledovka!$B$1)+Zadání!$B$3*Zadání!$B$6*(1+Zadání!$B$9)^(Výsledovka!M$1-Výsledovka!$B$1) -> 34750368.87 | N4: =Zadání!$B$2*Zadání!$B$5*(1+Zadání!$B$9)^(Výsledovka!N$1-Výsledovka!$B$1)+Zadání!$B$3*Zadání!$B$6*(1+Zadání!$B$9)^(Výsledovka!N$1-Výsledovka!$B$1) -> 35271624.4 | O4: =Zadání!$B$2*Zadání!$B$5*(1+Zadání!$B$9)^(Výsledovka!O$1-Výsledovka!$B$1)+Zadání!$B$3*Zadání!$B$6*(1+Zadání!$B$9)^(Výsledovka!O$1-Výsledovka!$B$1) -> 35800698.77 | P4: =Zadání!$B$2*Zadání!$B$5*(1+Zadání!$B$9)^(Výsledovka!P$1-Výsledovka!$B$1)+Zadání!$B$3*Zadání!$B$6*(1+Zadání!$B$9)^(Výsledovka!P$1-Výsledovka!$B$1) -> 36337709.25 | Q4: =Zadání!$B$2*Zadání!$B$5*(1+Zadání!$B$9)^(Výsledovka!Q$1-Výsledovka!$B$1)+Zadání!$B$3*Zadání!$B$6*(1+Zadání!$B$9)^(Výsledovka!Q$1-Výsledovka!$B$1) -> 36882774.89 | R4: =Zadání!$B$2*Zadání!$B$5*(1+Zadání!$B$9)^(Výsledovka!R$1-Výsledovka!$B$1)+Zadání!$B$3*Zadání!$B$6*(1+Zadání!$B$9)^(Výsledovka!R$1-Výsledovka!$B$1) -> 37436016.51 | S4: =Zadání!$B$2*Zadání!$B$5*(1+Zadání!$B$9)^(Výsledovka!S$1-Výsledovka!$B$1)+Zadání!$B$3*Zadání!$B$6*(1+Zadání!$B$9)^(Výsledovka!S$1-Výsledovka!$B$1) -> 37997556.76 | T4: =Zadání!$B$2*Zadání!$B$5*(1+Zadání!$B$9)^(Výsledovka!T$1-Výsledovka!$B$1)+Zadání!$B$3*Zadání!$B$6*(1+Zadání!$B$9)^(Výsledovka!T$1-Výsledovka!$B$1) -> 38567520.11 | U4: =Zadání!$B$2*Zadání!$B$5*(1+Zadání!$B$9)^(Výsledovka!U$1-Výsledovka!$B$1)+Zadání!$B$3*Zadání!$B$6*(1+Zadání!$B$9)^(Výsledovka!U$1-Výsledovka!$B$1) -> 39146032.91 | V4: =Zadání!$B$2*Zadání!$B$5*(1+Zadání!$B$9)^(Výsledovka!V$1-Výsledovka!$B$1)+Zadání!$B$3*Zadání!$B$6*(1+Zadání!$B$9)^(Výsledovka!V$1-Výsledovka!$B$1) -> 39733223.41 | W4: =Zadání!$B$2*Zadání!$B$5*(1+Zadání!$B$9)^(Výsledovka!W$1-Výsledovka!$B$1)+Zadání!$B$3*Zadání!$B$6*(1+Zadání!$B$9)^(Výsledovka!W$1-Výsledovka!$B$1) -> 40329221.76 | X4: =Zadání!$B$2*Zadání!$B$5*(1+Zadání!$B$9)^(Výsledovka!X$1-Výsledovka!$B$1)+Zadání!$B$3*Zadání!$B$6*(1+Zadání!$B$9)^(Výsledovka!X$1-Výsledovka!$B$1) -> 40934160.08 | Y4: =Zadání!$B$2*Zadání!$B$5*(1+Zadání!$B$9)^(Výsledovka!Y$1-Výsledovka!$B$1)+Zadání!$B$3*Zadání!$B$6*(1+Zadání!$B$9)^(Výsledovka!Y$1-Výsledovka!$B$1) -> 41548172.49 | Z4: =Zadání!$B$2*Zadání!$B$5*(1+Zadání!$B$9)^(Výsledovka!Z$1-Výsledovka!$B$1)+Zadání!$B$3*Zadání!$B$6*(1+Zadání!$B$9)^(Výsledovka!Z$1-Výsledovka!$B$1) -> 42171395.07 | AA4: =Zadání!$B$2*Zadání!$B$5*(1+Zadání!$B$9)^(Výsledovka!AA$1-Výsledovka!$B$1)+Zadání!$B$3*Zadání!$B$6*(1+Zadání!$B$9)^(Výsledovka!AA$1-Výsledovka!$B$1) -> 42803966 | AB4: =Zadání!$B$2*Zadání!$B$5*(1+Zadání!$B$9)^(Výsledovka!AB$1-Výsledovka!$B$1)+Zadání!$B$3*Zadání!$B$6*(1+Zadání!$B$9)^(Výsledovka!AB$1-Výsledovka!$B$1) -> 43446025.49 | AC4: =Zadání!$B$2*Zadání!$B$5*(1+Zadání!$B$9)^(Výsledovka!AC$1-Výsledovka!$B$1)+Zadání!$B$3*Zadání!$B$6*(1+Zadání!$B$9)^(Výsledovka!AC$1-Výsledovka!$B$1) -> 44097715.87 | AD4: =Zadání!$B$2*Zadání!$B$5*(1+Zadání!$B$9)^(Výsledovka!AD$1-Výsledovka!$B$1)+Zadání!$B$3*Zadání!$B$6*(1+Zadání!$B$9)^(Výsledovka!AD$1-Výsledovka!$B$1) -> 44759181.61 | AE4: =Zadání!$B$2*Zadání!$B$5*(1+Zadání!$B$9)^(Výsledovka!AE$1-Výsledovka!$B$1)+Zadání!$B$3*Zadání!$B$6*(1+Zadání!$B$9)^(Výsledovka!AE$1-Výsledovka!$B$1) -> 45430569.33
A5: Prodej elektřiny | B5: =IF(Výpočty!$B$12>Zadání!$B$54,(Výpočty!$B$12-Zadání!$B$54)*Zadání!$B$39*(1+Zadání!$B$40)^Výsledovka!B1-Výsledovka!$B$1,0) -> 8570136.5 | C5: =IF(Výpočty!$B$12>Zadání!$B$54,(Výpočty!$B$12-Zadání!$B$54)*Zadání!$B$39*(1+Zadání!$B$40)^Výsledovka!C1-Výsledovka!$B$1,0) -> 8612987.187 | D5: =IF(Výpočty!$B$12>Zadání!$B$54,(Výpočty!$B$12-Zadání!$B$54)*Zadání!$B$39*(1+Zadání!$B$40)^Výsledovka!D1-Výsledovka!$B$1,0) -> 8656052.128 | E5: =IF(Výpočty!$B$12>Zadání!$B$54,(Výpočty!$B$12-Zadání!$B$54)*Zadání!$B$39*(1+Zadání!$B$40)^Výsledovka!E1-Výsledovka!$B$1,0) -> 8699332.394 | F5: =IF(Výpočty!$B$12>Zadání!$B$54,(Výpočty!$B$12-Zadání!$B$54)*Zadání!$B$39*(1+Zadání!$B$40)^Výsledovka!F1-Výsledovka!$B$1,0) -> 8742829.061 | G5: =IF(Výpočty!$B$12>Zadání!$B$54,(Výpočty!$B$12-Zadání!$B$54)*Zadání!$B$39*(1+Zadání!$B$40)^Výsledovka!G1-Výsledovka!$B$1,0) -> 8786543.211 | H5: =IF(Výpočty!$B$12>Zadání!$B$54,(Výpočty!$B$12-Zadání!$B$54)*Zadání!$B$39*(1+Zadání!$B$40)^Výsledovka!H1-Výsledovka!$B$1,0) -> 8830475.932 | I5: =IF(Výpočty!$B$12>Zadání!$B$54,(Výpočty!$B$12-Zadání!$B$54)*Zadání!$B$39*(1+Zadání!$B$40)^Výsledovka!I1-Výsledovka!$B$1,0) -> 8874628.317 | J5: =IF(Výpočty!$B$12>Zadání!$B$54,(Výpočty!$B$12-Zadání!$B$54)*Zadání!$B$39*(1+Zadání!$B$40)^Výsledovka!J1-Výsledovka!$B$1,0) -> 8919001.464 | K5: =IF(Výpočty!$B$12>Zadání!$B$54,(Výpočty!$B$12-Zadání!$B$54)*Zadání!$B$39*(1+Zadání!$B$40)^Výsledovka!K1-Výsledovka!$B$1,0) -> 8963596.476 | L5: =IF(Výpočty!$B$12>Zadání!$B$54,(Výpočty!$B$12-Zadání!$B$54)*Zadání!$B$39*(1+Zadání!$B$40)^Výsledovka!L1-Výsledovka!$B$1,0) -> 9008414.463 | M5: =IF(Výpočty!$B$12>Zadání!$B$54,(Výpočty!$B$12-Zadání!$B$54)*Zadání!$B$39*(1+Zadání!$B$40)^Výsledovka!M1-Výsledovka!$B$1,0) -> 9053456.541 | N5: =IF(Výpočty!$B$12>Zadání!$B$54,(Výpočty!$B$12-Zadání!$B$54)*Zadání!$B$39*(1+Zadání!$B$40)^Výsledovka!N1-Výsledovka!$B$1,0) -> 9098723.828 | O5: =IF(Výpočty!$B$12>Zadání!$B$54,(Výpočty!$B$12-Zadání!$B$54)*Zadání!$B$39*(1+Zadání!$B$40)^Výsledovka!O1-Výsledovka!$B$1,0) -> 9144217.453 | P5: =IF(Výpočty!$B$12>Zadání!$B$54,(Výpočty!$B$12-Zadání!$B$54)*Zadání!$B$39*(1+Zadání!$B$40)^Výsledovka!P1-Výsledovka!$B$1,0) -> 9189938.545 | Q5: =IF(Výpočty!$B$12>Zadání!$B$54,(Výpočty!$B$12-Zadání!$B$54)*Zadání!$B$39*(1+Zadání!$B$40)^Výsledovka!Q1-Výsledovka!$B$1,0) -> 9235888.243 | R5: =IF(Výpočty!$B$12>Zadání!$B$54,(Výpočty!$B$12-Zadání!$B$54)*Zadání!$B$39*(1+Zadání!$B$40)^Výsledovka!R1-Výsledovka!$B$1,0) -> 9282067.689 | S5: =IF(Výpočty!$B$12>Zadání!$B$54,(Výpočty!$B$12-Zadání!$B$54)*Zadání!$B$39*(1+Zadání!$B$40)^Výsledovka!S1-Výsledovka!$B$1,0) -> 9328478.032 | T5: =IF(Výpočty!$B$12>Zadání!$B$54,(Výpočty!$B$12-Zadání!$B$54)*Zadání!$B$39*(1+Zadání!$B$40)^Výsledovka!T1-Výsledovka!$B$1,0) -> 9375120.427 | U5: =IF(Výpočty!$B$12>Zadání!$B$54,(Výpočty!$B$12-Zadání!$B$54)*Zadání!$B$39*(1+Zadání!$B$40)^Výsledovka!U1-Výsledovka!$B$1,0) -> 9421996.034 | V5: =IF(Výpočty!$B$12>Zadání!$B$54,(Výpočty!$B$12-Zadání!$B$54)*Zadání!$B$39*(1+Zadání!$B$40)^Výsledovka!V1-Výsledovka!$B$1,0) -> 9469106.02 | W5: =IF(Výpočty!$B$12>Zadání!$B$54,(Výpočty!$B$12-Zadání!$B$54)*Zadání!$B$39*(1+Zadání!$B$40)^Výsledovka!W1-Výsledovka!$B$1,0) -> 9516451.555 | X5: =IF(Výpočty!$B$12>Zadání!$B$54,(Výpočty!$B$12-Zadání!$B$54)*Zadání!$B$39*(1+Zadání!$B$40)^Výsledovka!X1-Výsledovka!$B$1,0) -> 9564033.818 | Y5: =IF(Výpočty!$B$12>Zadání!$B$54,(Výpočty!$B$12-Zadání!$B$54)*Zadání!$B$39*(1+Zadání!$B$40)^Výsledovka!Y1-Výsledovka!$B$1,0) -> 9611853.992 | Z5: =IF(Výpočty!$B$12>Zadání!$B$54,(Výpočty!$B$12-Zadání!$B$54)*Zadání!$B$39*(1+Zadání!$B$40)^Výsledovka!Z1-Výsledovka!$B$1,0) -> 9659913.267 | AA5: =IF(Výpočty!$B$12>Zadání!$B$54,(Výpočty!$B$12-Zadání!$B$54)*Zadání!$B$39*(1+Zadání!$B$40)^Výsledovka!AA1-Výsledovka!$B$1,0) -> 9708212.838 | AB5: =IF(Výpočty!$B$12>Zadání!$B$54,(Výpočty!$B$12-Zadání!$B$54)*Zadání!$B$39*(1+Zadání!$B$40)^Výsledovka!AB1-Výsledovka!$B$1,0) -> 9756753.907 | AC5: =IF(Výpočty!$B$12>Zadání!$B$54,(Výpočty!$B$12-Zadání!$B$54)*Zadání!$B$39*(1+Zadání!$B$40)^Výsledovka!AC1-Výsledovka!$B$1,0) -> 9805537.682 | AD5: =IF(Výpočty!$B$12>Zadání!$B$54,(Výpočty!$B$12-Zadání!$B$54)*Zadání!$B$39*(1+Zadání!$B$40)^Výsledovka!AD1-Výsledovka!$B$1,0) -> 9854565.375 | AE5: =IF(Výpočty!$B$12>Zadání!$B$54,(Výpočty!$B$12-Zadání!$B$54)*Zadání!$B$39*(1+Zadání!$B$40)^Výsledovka!AE1-Výsledovka!$B$1,0) -> 9903838.207
A6: Náklady
A7: Palivo | B7: =-Výpočty!$B$21*3.6*Zadání!$B$43*(1+Zadání!$B$48)^(Výsledovka!B$1-Výsledovka!$B$1) -> -44890645.12 | C7: =-(1+(Zadání!$B$14*(Výsledovka!C1-Výsledovka!$B$1)))*Výpočty!$B$21*3.6*Zadání!$B$43*(1+Zadání!$B$48)^(Výsledovka!C$1-Výsledovka!$B$1) -> -45430230.67 | D7: =-(1+(Zadání!$B$14*(Výsledovka!D1-Výsledovka!$B$1)))*Výpočty!$B$21*3.6*Zadání!$B$43*(1+Zadání!$B$48)^(Výsledovka!D$1-Výsledovka!$B$1) -> -45976118.87 | E7: =-(1+(Zadání!$B$14*(Výsledovka!E1-Výsledovka!$B$1)))*Výpočty!$B$21*3.6*Zadání!$B$43*(1+Zadání!$B$48)^(Výsledovka!E$1-Výsledovka!$B$1) -> -46528381.82 | F7: =-(1+(Zadání!$B$14*(Výsledovka!F1-Výsledovka!$B$1)))*Výpočty!$B$21*3.6*Zadání!$B$43*(1+Zadání!$B$48)^(Výsledovka!F$1-Výsledovka!$B$1) -> -47087092.4 | G7: =-(1+(Zadání!$B$14*(Výsledovka!$F$1-Výsledovka!$B$1)+Zadání!$B$15*(Výsledovka!G1-Výsledovka!$F$1)))*Výpočty!$B$21*3.6*Zadání!$B$43*(1+Zadání!$B$48)^(Výsledovka!G$1-Výsledovka!$B$1) -> -47793865.92 | H7: =-(1+(Zadání!$B$14*(Výsledovka!$F$1-Výsledovka!$B$1)+Zadání!$B$15*(Výsledovka!H1-Výsledovka!$F$1)))*Výpočty!$B$21*3.6*Zadání!$B$43*(1+Zadání!$B$48)^(Výsledovka!H$1-Výsledovka!$B$1) -> -48510066.21 | I7: =-(1+(Zadání!$B$14*(Výsledovka!$F$1-Výsledovka!$B$1)+Zadání!$B$15*(Výsledovka!I1-Výsledovka!$F$1)))*Výpočty!$B$21*3.6*Zadání!$B$43*(1+Zadání!$B$48)^(Výsledovka!I$1-Výsledovka!$B$1) -> -49235811.11 | J7: =-(1+(Zadání!$B$14*(Výsledovka!$F$1-Výsledovka!$B$1)+Zadání!$B$15*(Výsledovka!J1-Výsledovka!$F$1)))*Výpočty!$B$21*3.6*Zadání!$B$43*(1+Zadání!$B$48)^(Výsledovka!J$1-Výsledovka!$B$1) -> -49971219.9 | K7: =-(1+(Zadání!$B$14*(Výsledovka!$F$1-Výsledovka!$B$1)+Zadání!$B$15*(Výsledovka!K1-Výsledovka!$F$1)))*Výpočty!$B$21*3.6*Zadání!$B$43*(1+Zadání!$B$48)^(Výsledovka!K$1-Výsledovka!$B$1) -> -50716413.28 | L7: =-(1+(Zadání!$B$14*(Výsledovka!$F$1-Výsledovka!$B$1)+Zadání!$B$15*(Výsledovka!L1-Výsledovka!$F$1)))*Výpočty!$B$21*3.6*Zadání!$B$43*(1+Zadání!$B$48)^(Výsledovka!L$1-Výsledovka!$B$1) -> -51471513.41 | M7: =-(1+(Zadání!$B$14*(Výsledovka!$F$1-Výsledovka!$B$1)+Zadání!$B$15*(Výsledovka!M1-Výsledovka!$F$1)))*Výpočty!$B$21*3.6*Zadání!$B$43*(1+Zadání!$B$48)^(Výsledovka!M$1-Výsledovka!$B$1) -> -52236643.91 | N7: =-(1+(Zadání!$B$14*(Výsledovka!$F$1-Výsledovka!$B$1)+Zadání!$B$15*(Výsledovka!N1-Výsledovka!$F$1)))*Výpočty!$B$21*3.6*Zadání!$B$43*(1+Zadání!$B$48)^(Výsledovka!N$1-Výsledovka!$B$1) -> -53011929.86 | O7: =-(1+(Zadání!$B$14*(Výsledovka!$F$1-Výsledovka!$B$1)+Zadání!$B$15*(Výsledovka!O1-Výsledovka!$F$1)))*Výpočty!$B$21*3.6*Zadání!$B$43*(1+Zadání!$B$48)^(Výsledovka!O$1-Výsledovka!$B$1) -> -53797497.87 | P7: =-(1+(Zadání!$B$14*(Výsledovka!$F$1-Výsledovka!$B$1)+Zadání!$B$15*(Výsledovka!P1-Výsledovka!$F$1)))*Výpočty!$B$21*3.6*Zadání!$B$43*(1+Zadání!$B$48)^(Výsledovka!P$1-Výsledovka!$B$1) -> -54593476.04 | Q7: =-(1+(Zadání!$B$14*(Výsledovka!$F$1-Výsledovka!$B$1)+Zadání!$B$15*(Výsledovka!$P$1-Výsledovka!$F$1)+Zadání!$B$16*(Výsledovka!Q1-Výsledovka!$P$1)))*Výpočty!$B$21*3.6*Zadání!$B$43*(1+Zadání!$B$48)^(Výsledovka!Q$1-Výsledovka!$B$1) -> -55530285.64 | R7: =-(1+(Zadání!$B$14*(Výsledovka!$F$1-Výsledovka!$B$1)+Zadání!$B$15*(Výsledovka!$P$1-Výsledovka!$F$1)+Zadání!$B$16*(Výsledovka!R1-Výsledovka!$P$1)))*Výpočty!$B$21*3.6*Zadání!$B$43*(1+Zadání!$B$48)^(Výsledovka!R$1-Výsledovka!$B$1) -> -56480372.09 | S7: =-(1+(Zadání!$B$14*(Výsledovka!$F$1-Výsledovka!$B$1)+Zadání!$B$15*(Výsledovka!$P$1-Výsledovka!$F$1)+Zadání!$B$16*(Výsledovka!S1-Výsledovka!$P$1)))*Výpočty!$B$21*3.6*Zadání!$B$43*(1+Zadání!$B$48)^(Výsledovka!S$1-Výsledovka!$B$1) -> -57443907.23 | T7: =-(1+(Zadání!$B$14*(Výsledovka!$F$1-Výsledovka!$B$1)+Zadání!$B$15*(Výsledovka!$P$1-Výsledovka!$F$1)+Zadání!$B$16*(Výsledovka!T1-Výsledovka!$P$1)))*Výpočty!$B$21*3.6*Zadání!$B$43*(1+Zadání!$B$48)^(Výsledovka!T$1-Výsledovka!$B$1) -> -58421065.04 | U7: =-(1+(Zadání!$B$14*(Výsledovka!$F$1-Výsledovka!$B$1)+Zadání!$B$15*(Výsledovka!$P$1-Výsledovka!$F$1)+Zadání!$B$16*(Výsledovka!U1-Výsledovka!$P$1)))*Výpočty!$B$21*3.6*Zadání!$B$43*(1+Zadání!$B$48)^(Výsledovka!U$1-Výsledovka!$B$1) -> -59412021.62 | V7: =-(1+(Zadání!$B$14*(Výsledovka!$F$1-Výsledovka!$B$1)+Zadání!$B$15*(Výsledovka!$P$1-Výsledovka!$F$1)+Zadání!$B$16*(Výsledovka!V1-Výsledovka!$P$1)))*Výpočty!$B$21*3.6*Zadání!$B$43*(1+Zadání!$B$48)^(Výsledovka!V$1-Výsledovka!$B$1) -> -60416955.22 | W7: =-(1+(Zadání!$B$14*(Výsledovka!$F$1-Výsledovka!$B$1)+Zadání!$B$15*(Výsledovka!$P$1-Výsledovka!$F$1)+Zadání!$B$16*(Výsledovka!W1-Výsledovka!$P$1)))*Výpočty!$B$21*3.6*Zadání!$B$43*(1+Zadání!$B$48)^(Výsledovka!W$1-Výsledovka!$B$1) -> -61436046.29 | X7: =-(1+(Zadání!$B$14*(Výsledovka!$F$1-Výsledovka!$B$1)+Zadání!$B$15*(Výsledovka!$P$1-Výsledovka!$F$1)+Zadání!$B$16*(Výsledovka!X1-Výsledovka!$P$1)))*Výpočty!$B$21*3.6*Zadání!$B$43*(1+Zadání!$B$48)^(Výsledovka!X$1-Výsledovka!$B$1) -> -62469477.49 | Y7: =-(1+(Zadání!$B$14*(Výsledovka!$F$1-Výsledovka!$B$1)+Zadání!$B$15*(Výsledovka!$P$1-Výsledovka!$F$1)+Zadání!$B$16*(Výsledovka!Y1-Výsledovka!$P$1)))*Výpočty!$B$21*3.6*Zadání!$B$43*(1+Zadání!$B$48)^(Výsledovka!Y$1-Výsledovka!$B$1) -> -63517433.71 | Z7: =-(1+(Zadání!$B$14*(Výsledovka!$F$1-Výsledovka!$B$1)+Zadání!$B$15*(Výsledovka!$P$1-Výsledovka!$F$1)+Zadání!$B$16*(Výsledovka!Z1-Výsledovka!$P$1)))*Výpočty!$B$21*3.6*Zadání!$B$43*(1+Zadání!$B$48)^(Výsledovka!Z$1-Výsledovka!$B$1) -> -64580102.1 | AA7: =-(1+(Zadání!$B$14*(Výsledovka!$F$1-Výsledovka!$B$1)+Zadání!$B$15*(Výsledovka!$P$1-Výsledovka!$F$1)+Zadání!$B$16*(Výsledovka!AA1-Výsledovka!$P$1)))*Výpočty!$B$21*3.6*Zadání!$B$43*(1+Zadání!$B$48)^(Výsledovka!AA$1-Výsledovka!$B$1) -> -65657672.12 | AB7: =-(1+(Zadání!$B$14*(Výsledovka!$F$1-Výsledovka!$B$1)+Zadání!$B$15*(Výsledovka!$P$1-Výsledovka!$F$1)+Zadání!$B$16*(Výsledovka!AB1-Výsledovka!$P$1)))*Výpočty!$B$21*3.6*Zadání!$B$43*(1+Zadání!$B$48)^(Výsledovka!AB$1-Výsledovka!$B$1) -> -66750335.53 | AC7: =-(1+(Zadání!$B$14*(Výsledovka!$F$1-Výsledovka!$B$1)+Zadání!$B$15*(Výsledovka!$P$1-Výsledovka!$F$1)+Zadání!$B$16*(Výsledovka!AC1-Výsledovka!$P$1)))*Výpočty!$B$21*3.6*Zadání!$B$43*(1+Zadání!$B$48)^(Výsledovka!AC$1-Výsledovka!$B$1) -> -67858286.43 | AD7: =-(1+(Zadání!$B$14*(Výsledovka!$F$1-Výsledovka!$B$1)+Zadání!$B$15*(Výsledovka!$P$1-Výsledovka!$F$1)+Zadání!$B$16*(Výsledovka!AD1-Výsledovka!$P$1)))*Výpočty!$B$21*3.6*Zadání!$B$43*(1+Zadání!$B$48)^(Výsledovka!AD$1-Výsledovka!$B$1) -> -68981721.33 | AE7: =-(1+(Zadání!$B$14*(Výsledovka!$F$1-Výsledovka!$B$1)+Zadání!$B$15*(Výsledovka!$P$1-Výsledovka!$F$1)+Zadání!$B$16*(Výsledovka!AE1-Výsledovka!$P$1)))*Výpočty!$B$21*3.6*Zadání!$B$43*(1+Zadání!$B$48)^(Výsledovka!AE$1-Výsledovka!$B$1) -> -70120839.09
A8: Elektřina | B8: =IF(Zadání!$B$54>Výpočty!$B$12,-Zadání!$B$4*(Zadání!$B$54-Výpočty!$B$12)*(1+Zadání!$B$8)^(Výsledovka!B$1-Výsledovka!$B$1),0) -> 0 | C8: =IF(Zadání!$B$54>Výpočty!$B$12,-Zadání!$B$4*(Zadání!$B$54-Výpočty!$B$12)*(1+Zadání!$B$8)^(Výsledovka!C$1-Výsledovka!$B$1),0) -> 0 | D8: =IF(Zadání!$B$54>Výpočty!$B$12,-Zadání!$B$4*(Zadání!$B$54-Výpočty!$B$12)*(1+Zadání!$B$8)^(Výsledovka!D$1-Výsledovka!$B$1),0) -> 0 | E8: =IF(Zadání!$B$54>Výpočty!$B$12,-Zadání!$B$4*(Zadání!$B$54-Výpočty!$B$12)*(1+Zadání!$B$8)^(Výsledovka!E$1-Výsledovka!$B$1),0) -> 0 | F8: =IF(Zadání!$B$54>Výpočty!$B$12,-Zadání!$B$4*(Zadání!$B$54-Výpočty!$B$12)*(1+Zadání!$B$8)^(Výsledovka!F$1-Výsledovka!$B$1),0) -> 0 | G8: =IF(Zadání!$B$54>Výpočty!$B$12,-Zadání!$B$4*(Zadání!$B$54-Výpočty!$B$12)*(1+Zadání!$B$8)^(Výsledovka!G$1-Výsledovka!$B$1),0) -> 0 | H8: =IF(Zadání!$B$54>Výpočty!$B$12,-Zadání!$B$4*(Zadání!$B$54-Výpočty!$B$12)*(1+Zadání!$B$8)^(Výsledovka!H$1-Výsledovka!$B$1),0) -> 0 | I8: =IF(Zadání!$B$54>Výpočty!$B$12,-Zadání!$B$4*(Zadání!$B$54-Výpočty!$B$12)*(1+Zadání!$B$8)^(Výsledovka!I$1-Výsledovka!$B$1),0) -> 0 | J8: =IF(Zadání!$B$54>Výpočty!$B$12,-Zadání!$B$4*(Zadání!$B$54-Výpočty!$B$12)*(1+Zadání!$B$8)^(Výsledovka!J$1-Výsledovka!$B$1),0) -> 0 | K8: =IF(Zadání!$B$54>Výpočty!$B$12,-Zadání!$B$4*(Zadání!$B$54-Výpočty!$B$12)*(1+Zadání!$B$8)^(Výsledovka!K$1-Výsledovka!$B$1),0) -> 0 | L8: =IF(Zadání!$B$54>Výpočty!$B$12,-Zadání!$B$4*(Zadání!$B$54-Výpočty!$B$12)*(1+Zadání!$B$8)^(Výsledovka!L$1-Výsledovka!$B$1),0) -> 0 | M8: =IF(Zadání!$B$54>Výpočty!$B$12,-Zadání!$B$4*(Zadání!$B$54-Výpočty!$B$12)*(1+Zadání!$B$8)^(Výsledovka!M$1-Výsledovka!$B$1),0) -> 0 | N8: =IF(Zadání!$B$54>Výpočty!$B$12,-Zadání!$B$4*(Zadání!$B$54-Výpočty!$B$12)*(1+Zadání!$B$8)^(Výsledovka!N$1-Výsledovka!$B$1),0) -> 0 | O8: =IF(Zadání!$B$54>Výpočty!$B$12,-Zadání!$B$4*(Zadání!$B$54-Výpočty!$B$12)*(1+Zadání!$B$8)^(Výsledovka!O$1-Výsledovka!$B$1),0) -> 0 | P8: =IF(Zadání!$B$54>Výpočty!$B$12,-Zadání!$B$4*(Zadání!$B$54-Výpočty!$B$12)*(1+Zadání!$B$8)^(Výsledovka!P$1-Výsledovka!$B$1),0) -> 0 | Q8: =IF(Zadání!$B$54>Výpočty!$B$12,-Zadání!$B$4*(Zadání!$B$54-Výpočty!$B$12)*(1+Zadání!$B$8)^(Výsledovka!Q$1-Výsledovka!$B$1),0) -> 0 | R8: =IF(Zadání!$B$54>Výpočty!$B$12,-Zadání!$B$4*(Zadání!$B$54-Výpočty!$B$12)*(1+Zadání!$B$8)^(Výsledovka!R$1-Výsledovka!$B$1),0) -> 0 | S8: =IF(Zadání!$B$54>Výpočty!$B$12,-Zadání!$B$4*(Zadání!$B$54-Výpočty!$B$12)*(1+Zadání!$B$8)^(Výsledovka!S$1-Výsledovka!$B$1),0) -> 0 | T8: =IF(Zadání!$B$54>Výpočty!$B$12,-Zadání!$B$4*(Zadání!$B$54-Výpočty!$B$12)*(1+Zadání!$B$8)^(Výsledovka!T$1-Výsledovka!$B$1),0) -> 0 | U8: =IF(Zadání!$B$54>Výpočty!$B$12,-Zadání!$B$4*(Zadání!$B$54-Výpočty!$B$12)*(1+Zadání!$B$8)^(Výsledovka!U$1-Výsledovka!$B$1),0) -> 0 | V8: =IF(Zadání!$B$54>Výpočty!$B$12,-Zadání!$B$4*(Zadání!$B$54-Výpočty!$B$12)*(1+Zadání!$B$8)^(Výsledovka!V$1-Výsledovka!$B$1),0) -> 0 | W8: =IF(Zadání!$B$54>Výpočty!$B$12,-Zadání!$B$4*(Zadání!$B$54-Výpočty!$B$12)*(1+Zadání!$B$8)^(Výsledovka!W$1-Výsledovka!$B$1),0) -> 0 | X8: =IF(Zadání!$B$54>Výpočty!$B$12,-Zadání!$B$4*(Zadání!$B$54-Výpočty!$B$12)*(1+Zadání!$B$8)^(Výsledovka!X$1-Výsledovka!$B$1),0) -> 0 | Y8: =IF(Zadání!$B$54>Výpočty!$B$12,-Zadání!$B$4*(Zadání!$B$54-Výpočty!$B$12)*(1+Zadání!$B$8)^(Výsledovka!Y$1-Výsledovka!$B$1),0) -> 0 | Z8: =IF(Zadání!$B$54>Výpočty!$B$12,-Zadání!$B$4*(Zadání!$B$54-Výpočty!$B$12)*(1+Zadání!$B$8)^(Výsledovka!Z$1-Výsledovka!$B$1),0) -> 0 | AA8: =IF(Zadání!$B$54>Výpočty!$B$12,-Zadání!$B$4*(Zadání!$B$54-Výpočty!$B$12)*(1+Zadání!$B$8)^(Výsledovka!AA$1-Výsledovka!$B$1),0) -> 0 | AB8: =IF(Zadání!$B$54>Výpočty!$B$12,-Zadání!$B$4*(Zadání!$B$54-Výpočty!$B$12)*(1+Zadání!$B$8)^(Výsledovka!AB$1-Výsledovka!$B$1),0) -> 0 | AC8: =IF(Zadání!$B$54>Výpočty!$B$12,-Zadání!$B$4*(Zadání!$B$54-Výpočty!$B$12)*(1+Zadání!$B$8)^(Výsledovka!AC$1-Výsledovka!$B$1),0) -> 0 | AD8: =IF(Zadání!$B$54>Výpočty!$B$12,-Zadání!$B$4*(Zadání!$B$54-Výpočty!$B$12)*(1+Zadání!$B$8)^(Výsledovka!AD$1-Výsledovka!$B$1),0) -> 0 | AE8: =IF(Zadání!$B$54>Výpočty!$B$12,-Zadání!$B$4*(Zadání!$B$54-Výpočty!$B$12)*(1+Zadání!$B$8)^(Výsledovka!AE$1-Výsledovka!$B$1),0) -> 0
A9: Povolenky | B9: =-Výpočty!$B$22*Zadání!$B$7*(1+Zadání!$B$10)^(Výsledovka!B$1-Výsledovka!$B$1) -> -1229821.724 | C9: =-(1+(Zadání!$B$14*(Výsledovka!C1-Výsledovka!$B$1)))*Výpočty!$B$22*Zadání!$B$7*(1+Zadání!$B$10)^(Výsledovka!C$1-Výsledovka!$B$1) -> -1244604.181 | D9: =-(1+(Zadání!$B$14*(Výsledovka!D1-Výsledovka!$B$1)))*Výpočty!$B$22*Zadání!$B$7*(1+Zadání!$B$10)^(Výsledovka!D$1-Výsledovka!$B$1) -> -1259559.305 | E9: =-(1+(Zadání!$B$14*(Výsledovka!E1-Výsledovka!$B$1)))*Výpočty!$B$22*Zadání!$B$7*(1+Zadání!$B$10)^(Výsledovka!E$1-Výsledovka!$B$1) -> -1274689.071 | F9: =-(1+(Zadání!$B$14*(Výsledovka!F1-Výsledovka!$B$1)))*Výpočty!$B$22*Zadání!$B$7*(1+Zadání!$B$10)^(Výsledovka!F$1-Výsledovka!$B$1) -> -1289995.477 | G9: =-(1+(Zadání!$B$14*(Výsledovka!$F$1-Výsledovka!$B$1)+Zadání!$B$15*(Výsledovka!G1-Výsledovka!$F$1)))*Výpočty!$B$22*Zadání!$B$7*(1+Zadání!$B$10)^(Výsledovka!G$1-Výsledovka!$B$1) -> -1309358.207 | H9: =-(1+(Zadání!$B$14*(Výsledovka!$F$1-Výsledovka!$B$1)+Zadání!$B$15*(Výsledovka!H1-Výsledovka!$F$1)))*Výpočty!$B$22*Zadání!$B$7*(1+Zadání!$B$10)^(Výsledovka!H$1-Výsledovka!$B$1) -> -1328979.192 | I9: =-(1+(Zadání!$B$14*(Výsledovka!$F$1-Výsledovka!$B$1)+Zadání!$B$15*(Výsledovka!I1-Výsledovka!$F$1)))*Výpočty!$B$22*Zadání!$B$7*(1+Zadání!$B$10)^(Výsledovka!I$1-Výsledovka!$B$1) -> -1348861.66 | J9: =-(1+(Zadání!$B$14*(Výsledovka!$F$1-Výsledovka!$B$1)+Zadání!$B$15*(Výsledovka!J1-Výsledovka!$F$1)))*Výpočty!$B$22*Zadání!$B$7*(1+Zadání!$B$10)^(Výsledovka!J$1-Výsledovka!$B$1) -> -1369008.88 | K9: =-(1+(Zadání!$B$14*(Výsledovka!$F$1-Výsledovka!$B$1)+Zadání!$B$15*(Výsledovka!K1-Výsledovka!$F$1)))*Výpočty!$B$22*Zadání!$B$7*(1+Zadání!$B$10)^(Výsledovka!K$1-Výsledovka!$B$1) -> -1389424.159 | L9: =-(1+(Zadání!$B$14*(Výsledovka!$F$1-Výsledovka!$B$1)+Zadání!$B$15*(Výsledovka!L1-Výsledovka!$F$1)))*Výpočty!$B$22*Zadání!$B$7*(1+Zadání!$B$10)^(Výsledovka!L$1-Výsledovka!$B$1) -> -1410110.842 | M9: =-(1+(Zadání!$B$14*(Výsledovka!$F$1-Výsledovka!$B$1)+Zadání!$B$15*(Výsledovka!M1-Výsledovka!$F$1)))*Výpočty!$B$22*Zadání!$B$7*(1+Zadání!$B$10)^(Výsledovka!M$1-Výsledovka!$B$1) -> -1431072.316 | N9: =-(1+(Zadání!$B$14*(Výsledovka!$F$1-Výsledovka!$B$1)+Zadání!$B$15*(Výsledovka!N1-Výsledovka!$F$1)))*Výpočty!$B$22*Zadání!$B$7*(1+Zadání!$B$10)^(Výsledovka!N$1-Výsledovka!$B$1) -> -1452312.009 | O9: =-(1+(Zadání!$B$14*(Výsledovka!$F$1-Výsledovka!$B$1)+Zadání!$B$15*(Výsledovka!O1-Výsledovka!$F$1)))*Výpočty!$B$22*Zadání!$B$7*(1+Zadání!$B$10)^(Výsledovka!O$1-Výsledovka!$B$1) -> -1473833.388 | P9: =-(1+(Zadání!$B$14*(Výsledovka!$F$1-Výsledovka!$B$1)+Zadání!$B$15*(Výsledovka!P1-Výsledovka!$F$1)))*Výpočty!$B$22*Zadání!$B$7*(1+Zadání!$B$10)^(Výsledovka!P$1-Výsledovka!$B$1) -> -1495639.964 | Q9: =-(1+(Zadání!$B$14*(Výsledovka!$F$1-Výsledovka!$B$1)+Zadání!$B$15*(Výsledovka!$P$1-Výsledovka!$F$1)+Zadání!$B$16*(Výsledovka!Q1-Výsledovka!$P$1)))*Výpočty!$B$22*Zadání!$B$7*(1+Zadání!$B$10)^(Výsledovka!Q$1-Výsledovka!$B$1) -> -1521304.75 | R9: =-(1+(Zadání!$B$14*(Výsledovka!$F$1-Výsledovka!$B$1)+Zadání!$B$15*(Výsledovka!$P$1-Výsledovka!$F$1)+Zadání!$B$16*(Výsledovka!R1-Výsledovka!$P$1)))*Výpočty!$B$22*Zadání!$B$7*(1+Zadání!$B$10)^(Výsledovka!R$1-Výsledovka!$B$1) -> -1547333.267 | S9: =-(1+(Zadání!$B$14*(Výsledovka!$F$1-Výsledovka!$B$1)+Zadání!$B$15*(Výsledovka!$P$1-Výsledovka!$F$1)+Zadání!$B$16*(Výsledovka!S1-Výsledovka!$P$1)))*Výpočty!$B$22*Zadání!$B$7*(1+Zadání!$B$10)^(Výsledovka!S$1-Výsledovka!$B$1) -> -1573730.225 | T9: =-(1+(Zadání!$B$14*(Výsledovka!$F$1-Výsledovka!$B$1)+Zadání!$B$15*(Výsledovka!$P$1-Výsledovka!$F$1)+Zadání!$B$16*(Výsledovka!T1-Výsledovka!$P$1)))*Výpočty!$B$22*Zadání!$B$7*(1+Zadání!$B$10)^(Výsledovka!T$1-Výsledovka!$B$1) -> -1600500.388 | U9: =-(1+(Zadání!$B$14*(Výsledovka!$F$1-Výsledovka!$B$1)+Zadání!$B$15*(Výsledovka!$P$1-Výsledovka!$F$1)+Zadání!$B$16*(Výsledovka!U1-Výsledovka!$P$1)))*Výpočty!$B$22*Zadání!$B$7*(1+Zadání!$B$10)^(Výsledovka!U$1-Výsledovka!$B$1) -> -1627648.582 | V9: =-(1+(Zadání!$B$14*(Výsledovka!$F$1-Výsledovka!$B$1)+Zadání!$B$15*(Výsledovka!$P$1-Výsledovka!$F$1)+Zadání!$B$16*(Výsledovka!V1-Výsledovka!$P$1)))*Výpočty!$B$22*Zadání!$B$7*(1+Zadání!$B$10)^(Výsledovka!V$1-Výsledovka!$B$1) -> -1655179.689 | W9: =-(1+(Zadání!$B$14*(Výsledovka!$F$1-Výsledovka!$B$1)+Zadání!$B$15*(Výsledovka!$P$1-Výsledovka!$F$1)+Zadání!$B$16*(Výsledovka!W1-Výsledovka!$P$1)))*Výpočty!$B$22*Zadání!$B$7*(1+Zadání!$B$10)^(Výsledovka!W$1-Výsledovka!$B$1) -> -1683098.654 | X9: =-(1+(Zadání!$B$14*(Výsledovka!$F$1-Výsledovka!$B$1)+Zadání!$B$15*(Výsledovka!$P$1-Výsledovka!$F$1)+Zadání!$B$16*(Výsledovka!X1-Výsledovka!$P$1)))*Výpočty!$B$22*Zadání!$B$7*(1+Zadání!$B$10)^(Výsledovka!X$1-Výsledovka!$B$1) -> -1711410.48 | Y9: =-(1+(Zadání!$B$14*(Výsledovka!$F$1-Výsledovka!$B$1)+Zadání!$B$15*(Výsledovka!$P$1-Výsledovka!$F$1)+Zadání!$B$16*(Výsledovka!Y1-Výsledovka!$P$1)))*Výpočty!$B$22*Zadání!$B$7*(1+Zadání!$B$10)^(Výsledovka!Y$1-Výsledovka!$B$1) -> -1740120.233 | Z9: =-(1+(Zadání!$B$14*(Výsledovka!$F$1-Výsledovka!$B$1)+Zadání!$B$15*(Výsledovka!$P$1-Výsledovka!$F$1)+Zadání!$B$16*(Výsledovka!Z1-Výsledovka!$P$1)))*Výpočty!$B$22*Zadání!$B$7*(1+Zadání!$B$10)^(Výsledovka!Z$1-Výsledovka!$B$1) -> -1769233.039 | AA9: =-(1+(Zadání!$B$14*(Výsledovka!$F$1-Výsledovka!$B$1)+Zadání!$B$15*(Výsledovka!$P$1-Výsledovka!$F$1)+Zadání!$B$16*(Výsledovka!AA1-Výsledovka!$P$1)))*Výpočty!$B$22*Zadání!$B$7*(1+Zadání!$B$10)^(Výsledovka!AA$1-Výsledovka!$B$1) -> -1798754.09 | AB9: =-(1+(Zadání!$B$14*(Výsledovka!$F$1-Výsledovka!$B$1)+Zadání!$B$15*(Výsledovka!$P$1-Výsledovka!$F$1)+Zadání!$B$16*(Výsledovka!AB1-Výsledovka!$P$1)))*Výpočty!$B$22*Zadání!$B$7*(1+Zadání!$B$10)^(Výsledovka!AB$1-Výsledovka!$B$1) -> -1828688.639 | AC9: =-(1+(Zadání!$B$14*(Výsledovka!$F$1-Výsledovka!$B$1)+Zadání!$B$15*(Výsledovka!$P$1-Výsledovka!$F$1)+Zadání!$B$16*(Výsledovka!AC1-Výsledovka!$P$1)))*Výpočty!$B$22*Zadání!$B$7*(1+Zadání!$B$10)^(Výsledovka!AC$1-Výsledovka!$B$1) -> -1859042.003 | AD9: =-(1+(Zadání!$B$14*(Výsledovka!$F$1-Výsledovka!$B$1)+Zadání!$B$15*(Výsledovka!$P$1-Výsledovka!$F$1)+Zadání!$B$16*(Výsledovka!AD1-Výsledovka!$P$1)))*Výpočty!$B$22*Zadání!$B$7*(1+Zadání!$B$10)^(Výsledovka!AD$1-Výsledovka!$B$1) -> -1889819.566 | AE9: =-(1+(Zadání!$B$14*(Výsledovka!$F$1-Výsledovka!$B$1)+Zadání!$B$15*(Výsledovka!$P$1-Výsledovka!$F$1)+Zadání!$B$16*(Výsledovka!AE1-Výsledovka!$P$1)))*Výpočty!$B$22*Zadání!$B$7*(1+Zadání!$B$10)^(Výsledovka!AE$1-Výsledovka!$B$1) -> -1921026.775
A10: Zaměstnanci | B10: =-Zadání!$B$18*12*Zadání!$B$19*(1+Zadání!$B$21)^(Výsledovka!B$1-Výsledovka!$B$1) -> -2400000 | C10: =-Zadání!$B$18*12*Zadání!$B$19*(1+Zadání!$B$21)^(Výsledovka!C$1-Výsledovka!$B$1) -> -2460000 | D10: =-Zadání!$B$18*12*Zadání!$B$19*(1+Zadání!$B$21)^(Výsledovka!D$1-Výsledovka!$B$1) -> -2521500 | E10: =-Zadání!$B$18*12*Zadání!$B$19*(1+Zadání!$B$21)^(Výsledovka!E$1-Výsledovka!$B$1) -> -2584537.5 | F10: =-Zadání!$B$18*12*Zadání!$B$19*(1+Zadání!$B$21)^(Výsledovka!F$1-Výsledovka!$B$1) -> -2649150.937 | G10: =-Zadání!$B$18*12*Zadání!$B$19*(1+Zadání!$B$21)^(Výsledovka!G$1-Výsledovka!$B$1) -> -2715379.711 | H10: =-Zadání!$B$18*12*Zadání!$B$19*(1+Zadání!$B$21)^(Výsledovka!H$1-Výsledovka!$B$1) -> -2783264.204 | I10: =-Zadání!$B$18*12*Zadání!$B$19*(1+Zadání!$B$21)^(Výsledovka!I$1-Výsledovka!$B$1) -> -2852845.809 | J10: =-Zadání!$B$18*12*Zadání!$B$19*(1+Zadání!$B$21)^(Výsledovka!J$1-Výsledovka!$B$1) -> -2924166.954 | K10: =-Zadání!$B$18*12*Zadání!$B$19*(1+Zadání!$B$21)^(Výsledovka!K$1-Výsledovka!$B$1) -> -2997271.128 | L10: =-Zadání!$B$18*12*Zadání!$B$19*(1+Zadání!$B$21)^(Výsledovka!L$1-Výsledovka!$B$1) -> -3072202.906 | M10: =-Zadání!$B$18*12*Zadání!$B$19*(1+Zadání!$B$21)^(Výsledovka!M$1-Výsledovka!$B$1) -> -3149007.979 | N10: =-Zadání!$B$18*12*Zadání!$B$19*(1+Zadání!$B$21)^(Výsledovka!N$1-Výsledovka!$B$1) -> -3227733.178 | O10: =-Zadání!$B$18*12*Zadání!$B$19*(1+Zadání!$B$21)^(Výsledovka!O$1-Výsledovka!$B$1) -> -3308426.508 | P10: =-Zadání!$B$18*12*Zadání!$B$19*(1+Zadání!$B$21)^(Výsledovka!P$1-Výsledovka!$B$1) -> -3391137.17 | Q10: =-Zadání!$B$18*12*Zadání!$B$19*(1+Zadání!$B$21)^(Výsledovka!Q$1-Výsledovka!$B$1) -> -3475915.6 | R10: =-Zadání!$B$18*12*Zadání!$B$19*(1+Zadání!$B$21)^(Výsledovka!R$1-Výsledovka!$B$1) -> -3562813.49 | S10: =-Zadání!$B$18*12*Zadání!$B$19*(1+Zadání!$B$21)^(Výsledovka!S$1-Výsledovka!$B$1) -> -3651883.827 | T10: =-Zadání!$B$18*12*Zadání!$B$19*(1+Zadání!$B$21)^(Výsledovka!T$1-Výsledovka!$B$1) -> -3743180.922 | U10: =-Zadání!$B$18*12*Zadání!$B$19*(1+Zadání!$B$21)^(Výsledovka!U$1-Výsledovka!$B$1) -> -3836760.446 | V10: =-Zadání!$B$18*12*Zadání!$B$19*(1+Zadání!$B$21)^(Výsledovka!V$1-Výsledovka!$B$1) -> -3932679.457 | W10: =-Zadání!$B$18*12*Zadání!$B$19*(1+Zadání!$B$21)^(Výsledovka!W$1-Výsledovka!$B$1) -> -4030996.443 | X10: =-Zadání!$B$18*12*Zadání!$B$19*(1+Zadání!$B$21)^(Výsledovka!X$1-Výsledovka!$B$1) -> -4131771.354 | Y10: =-Zadání!$B$18*12*Zadání!$B$19*(1+Zadání!$B$21)^(Výsledovka!Y$1-Výsledovka!$B$1) -> -4235065.638 | Z10: =-Zadání!$B$18*12*Zadání!$B$19*(1+Zadání!$B$21)^(Výsledovka!Z$1-Výsledovka!$B$1) -> -4340942.279 | AA10: =-Zadání!$B$18*12*Zadání!$B$19*(1+Zadání!$B$21)^(Výsledovka!AA$1-Výsledovka!$B$1) -> -4449465.836 | AB10: =-Zadání!$B$18*12*Zadání!$B$19*(1+Zadání!$B$21)^(Výsledovka!AB$1-Výsledovka!$B$1) -> -4560702.482 | AC10: =-Zadání!$B$18*12*Zadání!$B$19*(1+Zadání!$B$21)^(Výsledovka!AC$1-Výsledovka!$B$1) -> -4674720.044 | AD10: =-Zadání!$B$18*12*Zadání!$B$19*(1+Zadání!$B$21)^(Výsledovka!AD$1-Výsledovka!$B$1) -> -4791588.045 | AE10: =-Zadání!$B$18*12*Zadání!$B$19*(1+Zadání!$B$21)^(Výsledovka!AE$1-Výsledovka!$B$1) -> -4911377.746
A11: Pojištění | B11: =-Zadání!$C$60*Zadání!$B$22 -> -500000 | C11: =-Zadání!$C$60*Zadání!$B$22 -> -500000 | D11: =-Zadání!$C$60*Zadání!$B$22 -> -500000 | E11: =-Zadání!$C$60*Zadání!$B$22 -> -500000 | F11: =-Zadání!$C$60*Zadání!$B$22 -> -500000 | G11: =-Zadání!$C$60*Zadání!$B$22 -> -500000 | H11: =-Zadání!$C$60*Zadání!$B$22 -> -500000 | I11: =-Zadání!$C$60*Zadání!$B$22 -> -500000 | J11: =-Zadání!$C$60*Zadání!$B$22 -> -500000 | K11: =-Zadání!$C$60*Zadání!$B$22 -> -500000 | L11: =-Zadání!$C$60*Zadání!$B$22 -> -500000 | M11: =-Zadání!$C$60*Zadání!$B$22 -> -500000 | N11: =-Zadání!$C$60*Zadání!$B$22 -> -500000 | O11: =-Zadání!$C$60*Zadání!$B$22 -> -500000 | P11: =-Zadání!$C$60*Zadání!$B$22 -> -500000 | Q11: =-Zadání!$C$60*Zadání!$B$22 -> -500000 | R11: =-Zadání!$C$60*Zadání!$B$22 -> -500000 | S11: =-Zadání!$C$60*Zadání!$B$22 -> -500000 | T11: =-Zadání!$C$60*Zadání!$B$22 -> -500000 | U11: =-Zadání!$C$60*Zadání!$B$22 -> -500000 | V11: =-Zadání!$C$60*Zadání!$B$22 -> -500000 | W11: =-Zadání!$C$60*Zadání!$B$22 -> -500000 | X11: =-Zadání!$C$60*Zadání!$B$22 -> -500000 | Y11: =-Zadání!$C$60*Zadání!$B$22 -> -500000 | Z11: =-Zadání!$C$60*Zadání!$B$22 -> -500000 | AA11: =-Zadání!$C$60*Zadání!$B$22 -> -500000 | AB11: =-Zadání!$C$60*Zadání!$B$22 -> -500000 | AC11: =-Zadání!$C$60*Zadání!$B$22 -> -500000 | AD11: =-Zadání!$C$60*Zadání!$B$22 -> -500000 | AE11: =-Zadání!$C$60*Zadání!$B$22 -> -500000
A12: Náklady na provoz | B12: =-Zadání!$B$55*Zadání!$C$60 -> -2000000 | C12: =-Zadání!$B$55*Zadání!$C$60 -> -2000000 | D12: =-Zadání!$B$55*Zadání!$C$60 -> -2000000 | E12: =-Zadání!$B$55*Zadání!$C$60 -> -2000000 | F12: =-Zadání!$B$55*Zadání!$C$60 -> -2000000 | G12: =-Zadání!$B$55*Zadání!$C$60 -> -2000000 | H12: =-Zadání!$B$55*Zadání!$C$60 -> -2000000 | I12: =-Zadání!$B$55*Zadání!$C$60 -> -2000000 | J12: =-Zadání!$B$55*Zadání!$C$60 -> -2000000 | K12: =-Zadání!$B$55*Zadání!$C$60 -> -2000000 | L12: =-Zadání!$B$55*Zadání!$C$60 -> -2000000 | M12: =-Zadání!$B$55*Zadání!$C$60 -> -2000000 | N12: =-Zadání!$B$55*Zadání!$C$60 -> -2000000 | O12: =-Zadání!$B$55*Zadání!$C$60 -> -2000000 | P12: =-Zadání!$B$55*Zadání!$C$60 -> -2000000 | Q12: =-Zadání!$B$55*Zadání!$C$60 -> -2000000 | R12: =-Zadání!$B$55*Zadání!$C$60 -> -2000000 | S12: =-Zadání!$B$55*Zadání!$C$60 -> -2000000 | T12: =-Zadání!$B$55*Zadání!$C$60 -> -2000000 | U12: =-Zadání!$B$55*Zadání!$C$60 -> -2000000 | V12: =-Zadání!$B$55*Zadání!$C$60 -> -2000000 | W12: =-Zadání!$B$55*Zadání!$C$60 -> -2000000 | X12: =-Zadání!$B$55*Zadání!$C$60 -> -2000000 | Y12: =-Zadání!$B$55*Zadání!$C$60 -> -2000000 | Z12: =-Zadání!$B$55*Zadání!$C$60 -> -2000000 | AA12: =-Zadání!$B$55*Zadání!$C$60 -> -2000000 | AB12: =-Zadání!$B$55*Zadání!$C$60 -> -2000000 | AC12: =-Zadání!$B$55*Zadání!$C$60 -> -2000000 | AD12: =-Zadání!$B$55*Zadání!$C$60 -> -2000000 | AE12: =-Zadání!$B$55*Zadání!$C$60 -> -2000000
A13: Náklady na údržbu | B13: =-Zadání!$C$60*Zadání!$B$56 -> -1500000 | C13: =-Zadání!$C$60*Zadání!$B$56 -> -1500000 | D13: =-Zadání!$C$60*Zadání!$B$56 -> -1500000 | E13: =-Zadání!$C$60*Zadání!$B$56 -> -1500000 | F13: =-Zadání!$C$60*Zadání!$B$56 -> -1500000 | G13: =-Zadání!$C$60*Zadání!$B$56 -> -1500000 | H13: =-Zadání!$C$60*Zadání!$B$56 -> -1500000 | I13: =-Zadání!$C$60*Zadání!$B$56 -> -1500000 | J13: =-Zadání!$C$60*Zadání!$B$56 -> -1500000 | K13: =-Zadání!$C$60*Zadání!$B$56 -> -1500000 | L13: =-Zadání!$C$60*Zadání!$B$56 -> -1500000 | M13: =-Zadání!$C$60*Zadání!$B$56 -> -1500000 | N13: =-Zadání!$C$60*Zadání!$B$56 -> -1500000 | O13: =-Zadání!$C$60*Zadání!$B$56 -> -1500000 | P13: =-Zadání!$C$60*Zadání!$B$56 -> -1500000 | Q13: =-Zadání!$C$60*Zadání!$B$56 -> -1500000 | R13: =-Zadání!$C$60*Zadání!$B$56 -> -1500000 | S13: =-Zadání!$C$60*Zadání!$B$56 -> -1500000 | T13: =-Zadání!$C$60*Zadání!$B$56 -> -1500000 | U13: =-Zadání!$C$60*Zadání!$B$56 -> -1500000 | V13: =-Zadání!$C$60*Zadání!$B$56 -> -1500000 | W13: =-Zadání!$C$60*Zadání!$B$56 -> -1500000 | X13: =-Zadání!$C$60*Zadání!$B$56 -> -1500000 | Y13: =-Zadání!$C$60*Zadání!$B$56 -> -1500000 | Z13: =-Zadání!$C$60*Zadání!$B$56 -> -1500000 | AA13: =-Zadání!$C$60*Zadání!$B$56 -> -1500000 | AB13: =-Zadání!$C$60*Zadání!$B$56 -> -1500000 | AC13: =-Zadání!$C$60*Zadání!$B$56 -> -1500000 | AD13: =-Zadání!$C$60*Zadání!$B$56 -> -1500000 | AE13: =-Zadání!$C$60*Zadání!$B$56 -> -1500000
A14: Odpisy - lineární | B14: =-Odpisy!F5 -> -2564102.564 | C14: =-Odpisy!G5 -> -5128205.128 | D14: =-Odpisy!H5 -> -5128205.128 | E14: =-Odpisy!I5 -> -5128205.128 | F14: =-Odpisy!J5 -> -5128205.128 | G14: =-Odpisy!K5 -> -5128205.128 | H14: =-Odpisy!L5 -> -5128205.128 | I14: =-Odpisy!M5 -> -5128205.128 | J14: =-Odpisy!N5 -> -5128205.128 | K14: =-Odpisy!O5 -> -5128205.128 | L14: =-Odpisy!P5 -> -5128205.128 | M14: =-Odpisy!Q5 -> -5128205.128 | N14: =-Odpisy!R5 -> -5128205.128 | O14: =-Odpisy!S5 -> -5128205.128 | P14: =-Odpisy!T5 -> -5128205.128 | Q14: =-Odpisy!U5 -> -5128205.128 | R14: =-Odpisy!V5 -> -5128205.128 | S14: =-Odpisy!W5 -> -5128205.128 | T14: =-Odpisy!X5 -> -5128205.128 | U14: =-Odpisy!Y5 -> -5128205.128 | V14: =-Odpisy!Z5 -> 0 | W14: =-Odpisy!AA5 -> 0 | X14: =-Odpisy!AB5 -> 0 | Y14: =-Odpisy!AC5 -> 0 | Z14: =-Odpisy!AD5 -> 0 | AA14: =-Odpisy!AE5 -> 0 | AB14: =-Odpisy!AF5 -> 0 | AC14: =-Odpisy!AG5 -> 0 | AD14: =-Odpisy!AH5 -> 0 | AE14: =-Odpisy!AI5 -> 0
A16: Provozní výsledek hospodaření | B16: =SUM(B4:B14) -> -17013689.91 | C16: -19706798.65 | D16: -19836928.22 | E16: -19968192.12 | F16: -20100601.55 | G16: -20379587.22 | H16: -20662650.08 | I16: -20949845.84 | J16: -21241231.11 | K16: -21536863.41 | L16: -21836801.21 | M16: -22141103.92 | N16: -22449831.94 | O16: -22763046.67 | P16: -23080810.51 | Q16: -23537047.99 | R16: -24000639.77 | S16: -24471691.62 | T16: -24950310.94 | U16: -25436606.83 | V16: -20802484.94 | W16: -21304468.08 | X16: -21814465.42 | Y16: -22332593.1 | Z16: -22858969.08 | AA16: -23393713.21 | AB16: -23936947.25 | AC16: -24488794.93 | AD16: -25049381.95 | AE16: -25618836.07
A17: Úroky | B17: =-'Splátkový kalendář'!C9 -> -3000000 | C17: =-'Splátkový kalendář'!D9 -> -2936942.222 | D17: =-'Splátkový kalendář'!E9 -> -2871992.711 | E17: =-'Splátkový kalendář'!F9 -> -2805094.714 | F17: =-'Splátkový kalendář'!G9 -> -2736189.778 | G17: =-'Splátkový kalendář'!H9 -> -2665217.693 | H17: =-'Splátkový kalendář'!I9 -> -2592116.446 | I17: =-'Splátkový kalendář'!J9 -> -2516822.161 | J17: =-'Splátkový kalendář'!K9 -> -2439269.048 | K17: =-'Splátkový kalendář'!L9 -> -2359389.342 | L17: =-'Splátkový kalendář'!M9 -> -2277113.244 | M17: =-'Splátkový kalendář'!N9 -> -2192368.863 | N17: =-'Splátkový kalendář'!O9 -> -2105082.151 | O17: =-'Splátkový kalendář'!P9 -> -2015176.838 | P17: =-'Splátkový kalendář'!Q9 -> -1922574.365 | Q17: =-'Splátkový kalendář'!R9 -> -1827193.818 | R17: =-'Splátkový kalendář'!S9 -> -1728951.854 | S17: =-'Splátkový kalendář'!T9 -> -1627762.632 | T17: =-'Splátkový kalendář'!U9 -> -1523537.733 | U17: =-'Splátkový kalendář'!V9 -> -1416186.087 | V17: =-'Splátkový kalendář'!W9 -> -1305613.892 | W17: =-'Splátkový kalendář'!X9 -> -1191724.531 | X17: =-'Splátkový kalendář'!Y9 -> -1074418.488 | Y17: =-'Splátkový kalendář'!Z9 -> -953593.2652 | Z17: =-'Splátkový kalendář'!AA9 -> -829143.2852 | AA17: =-'Splátkový kalendář'!AB9 -> -700959.8058 | AB17: =-'Splátkový kalendář'!AC9 -> -568930.822 | AC17: =-'Splátkový kalendář'!AD9 -> -432940.9687 | AD17: =-'Splátkový kalendář'!AE9 -> -292871.4198 | AE17: =-'Splátkový kalendář'!AF9 -> -148599.7844
A18: Finanční výsledek hospodaření | B18: =B17 -> -3000000 | C18: -2936942.222 | D18: -2871992.711 | E18: -2805094.714 | F18: -2736189.778 | G18: -2665217.693 | H18: -2592116.446 | I18: -2516822.161 | J18: -2439269.048 | K18: -2359389.342 | L18: -2277113.244 | M18: -2192368.863 | N18: -2105082.151 | O18: -2015176.838 | P18: -1922574.365 | Q18: -1827193.818 | R18: -1728951.854 | S18: -1627762.632 | T18: -1523537.733 | U18: -1416186.087 | V18: -1305613.892 | W18: -1191724.531 | X18: -1074418.488 | Y18: -953593.2652 | Z18: -829143.2852 | AA18: -700959.8058 | AB18: -568930.822 | AC18: -432940.9687 | AD18: -292871.4198 | AE18: -148599.7844
A19: EBT | B19: =B18+B16 -> -20013689.91 | C19: =C18+C16 -> -22643740.87 | D19: -22708920.93 | E19: -22773286.83 | F19: -22836791.33 | G19: -23044804.91 | H19: -23254766.53 | I19: -23466668 | J19: -23680500.16 | K19: -23896252.75 | L19: -24113914.45 | M19: -24333472.78 | N19: -24554914.1 | O19: -24778223.51 | P19: -25003384.87 | Q19: -25364241.8 | R19: -25729591.62 | S19: -26099454.25 | T19: -26473848.68 | U19: -26852792.91 | V19: -22108098.83 | W19: -22496192.61 | X19: -22888883.91 | Y19: -23286186.37 | Z19: -23688112.36 | AA19: -24094673.01 | AB19: -24505878.07 | AC19: -24921735.9 | AD19: -25342253.37 | AE19: -25767435.86
A20: Daň z příjmů | B20: =IF(B19>0,(-B19*Zadání!$B$20),0) -> 0 | C20: =IF(C19>0,(-C19*Zadání!$B$20),0) -> 0 | D20: =IF(D19>0,(-D19*Zadání!$B$20),0) -> 0 | E20: =IF(E19>0,(-E19*Zadání!$B$20),0) -> 0 | F20: =IF(F19>0,(-F19*Zadání!$B$20),0) -> 0 | G20: =IF(G19>0,(-G19*Zadání!$B$20),0) -> 0 | H20: =IF(H19>0,(-H19*Zadání!$B$20),0) -> 0 | I20: =IF(I19>0,(-I19*Zadání!$B$20),0) -> 0 | J20: =IF(J19>0,(-J19*Zadání!$B$20),0) -> 0 | K20: =IF(K19>0,(-K19*Zadání!$B$20),0) -> 0 | L20: =IF(L19>0,(-L19*Zadání!$B$20),0) -> 0 | M20: =IF(M19>0,(-M19*Zadání!$B$20),0) -> 0 | N20: =IF(N19>0,(-N19*Zadání!$B$20),0) -> 0 | O20: =IF(O19>0,(-O19*Zadání!$B$20),0) -> 0 | P20: =IF(P19>0,(-P19*Zadání!$B$20),0) -> 0 | Q20: =IF(Q19>0,(-Q19*Zadání!$B$20),0) -> 0 | R20: =IF(R19>0,(-R19*Zadání!$B$20),0) -> 0 | S20: =IF(S19>0,(-S19*Zadání!$B$20),0) -> 0 | T20: =IF(T19>0,(-T19*Zadání!$B$20),0) -> 0 | U20: =IF(U19>0,(-U19*Zadání!$B$20),0) -> 0 | V20: =IF(V19>0,(-V19*Zadání!$B$20),0) -> 0 | W20: =IF(W19>0,(-W19*Zadání!$B$20),0) -> 0 | X20: =IF(X19>0,(-X19*Zadání!$B$20),0) -> 0 | Y20: =IF(Y19>0,(-Y19*Zadání!$B$20),0) -> 0 | Z20: =IF(Z19>0,(-Z19*Zadání!$B$20),0) -> 0 | AA20: =IF(AA19>0,(-AA19*Zadání!$B$20),0) -> 0 | AB20: =IF(AB19>0,(-AB19*Zadání!$B$20),0) -> 0 | AC20: =IF(AC19>0,(-AC19*Zadání!$B$20),0) -> 0 | AD20: =IF(AD19>0,(-AD19*Zadání!$B$20),0) -> 0 | AE20: =IF(AE19>0,(-AE19*Zadání!$B$20),0) -> 0
A21: Výsledek hospodaření za běžnou činnost | B21: =B19+B20 -> -20013689.91 | C21: -22643740.87 | D21: -22708920.93 | E21: -22773286.83 | F21: -22836791.33 | G21: -23044804.91 | H21: -23254766.53 | I21: -23466668 | J21: -23680500.16 | K21: -23896252.75 | L21: -24113914.45 | M21: -24333472.78 | N21: -24554914.1 | O21: -24778223.51 | P21: -25003384.87 | Q21: -25364241.8 | R21: -25729591.62 | S21: -26099454.25 | T21: -26473848.68 | U21: -26852792.91 | V21: -22108098.83 | W21: -22496192.61 | X21: -22888883.91 | Y21: -23286186.37 | Z21: -23688112.36 | AA21: -24094673.01 | AB21: -24505878.07 | AC21: -24921735.9 | AD21: -25342253.37 | AE21: -25767435.86
A23: =Zadání!A63 -> Biomasa
A24: Výnosy
A25: Prodej tepla | B25: =Zadání!$B$2*Zadání!$B$5*(1+Zadání!$B$9)^(Výsledovka!B$1-Výsledovka!$B$1)+Zadání!$B$3*Zadání!$B$6*(1+Zadání!$B$9)^(Výsledovka!B$1-Výsledovka!$B$1) -> 29500743 | C25: =Zadání!$B$2*Zadání!$B$5*(1+Zadání!$B$9)^(Výsledovka!C$1-Výsledovka!$B$1)+Zadání!$B$3*Zadání!$B$6*(1+Zadání!$B$9)^(Výsledovka!C$1-Výsledovka!$B$1) -> 29943254.14 | D25: =Zadání!$B$2*Zadání!$B$5*(1+Zadání!$B$9)^(Výsledovka!D$1-Výsledovka!$B$1)+Zadání!$B$3*Zadání!$B$6*(1+Zadání!$B$9)^(Výsledovka!D$1-Výsledovka!$B$1) -> 30392402.96 | E25: =Zadání!$B$2*Zadání!$B$5*(1+Zadání!$B$9)^(Výsledovka!E$1-Výsledovka!$B$1)+Zadání!$B$3*Zadání!$B$6*(1+Zadání!$B$9)^(Výsledovka!E$1-Výsledovka!$B$1) -> 30848289 | F25: =Zadání!$B$2*Zadání!$B$5*(1+Zadání!$B$9)^(Výsledovka!F$1-Výsledovka!$B$1)+Zadání!$B$3*Zadání!$B$6*(1+Zadání!$B$9)^(Výsledovka!F$1-Výsledovka!$B$1) -> 31311013.34 | G25: =Zadání!$B$2*Zadání!$B$5*(1+Zadání!$B$9)^(Výsledovka!G$1-Výsledovka!$B$1)+Zadání!$B$3*Zadání!$B$6*(1+Zadání!$B$9)^(Výsledovka!G$1-Výsledovka!$B$1) -> 31780678.54 | H25: =Zadání!$B$2*Zadání!$B$5*(1+Zadání!$B$9)^(Výsledovka!H$1-Výsledovka!$B$1)+Zadání!$B$3*Zadání!$B$6*(1+Zadání!$B$9)^(Výsledovka!H$1-Výsledovka!$B$1) -> 32257388.71 | I25: =Zadání!$B$2*Zadání!$B$5*(1+Zadání!$B$9)^(Výsledovka!I$1-Výsledovka!$B$1)+Zadání!$B$3*Zadání!$B$6*(1+Zadání!$B$9)^(Výsledovka!I$1-Výsledovka!$B$1) -> 32741249.55 | J25: =Zadání!$B$2*Zadání!$B$5*(1+Zadání!$B$9)^(Výsledovka!J$1-Výsledovka!$B$1)+Zadání!$B$3*Zadání!$B$6*(1+Zadání!$B$9)^(Výsledovka!J$1-Výsledovka!$B$1) -> 33232368.29 | K25: =Zadání!$B$2*Zadání!$B$5*(1+Zadání!$B$9)^(Výsledovka!K$1-Výsledovka!$B$1)+Zadání!$B$3*Zadání!$B$6*(1+Zadání!$B$9)^(Výsledovka!K$1-Výsledovka!$B$1) -> 33730853.81 | L25: =Zadání!$B$2*Zadání!$B$5*(1+Zadání!$B$9)^(Výsledovka!L$1-Výsledovka!$B$1)+Zadání!$B$3*Zadání!$B$6*(1+Zadání!$B$9)^(Výsledovka!L$1-Výsledovka!$B$1) -> 34236816.62 | M25: =Zadání!$B$2*Zadání!$B$5*(1+Zadání!$B$9)^(Výsledovka!M$1-Výsledovka!$B$1)+Zadání!$B$3*Zadání!$B$6*(1+Zadání!$B$9)^(Výsledovka!M$1-Výsledovka!$B$1) -> 34750368.87 | N25: =Zadání!$B$2*Zadání!$B$5*(1+Zadání!$B$9)^(Výsledovka!N$1-Výsledovka!$B$1)+Zadání!$B$3*Zadání!$B$6*(1+Zadání!$B$9)^(Výsledovka!N$1-Výsledovka!$B$1) -> 35271624.4 | O25: =Zadání!$B$2*Zadání!$B$5*(1+Zadání!$B$9)^(Výsledovka!O$1-Výsledovka!$B$1)+Zadání!$B$3*Zadání!$B$6*(1+Zadání!$B$9)^(Výsledovka!O$1-Výsledovka!$B$1) -> 35800698.77 | P25: =Zadání!$B$2*Zadání!$B$5*(1+Zadání!$B$9)^(Výsledovka!P$1-Výsledovka!$B$1)+Zadání!$B$3*Zadání!$B$6*(1+Zadání!$B$9)^(Výsledovka!P$1-Výsledovka!$B$1) -> 36337709.25 | Q25: =Zadání!$B$2*Zadání!$B$5*(1+Zadání!$B$9)^(Výsledovka!Q$1-Výsledovka!$B$1)+Zadání!$B$3*Zadání!$B$6*(1+Zadání!$B$9)^(Výsledovka!Q$1-Výsledovka!$B$1) -> 36882774.89 | R25: =Zadání!$B$2*Zadání!$B$5*(1+Zadání!$B$9)^(Výsledovka!R$1-Výsledovka!$B$1)+Zadání!$B$3*Zadání!$B$6*(1+Zadání!$B$9)^(Výsledovka!R$1-Výsledovka!$B$1) -> 37436016.51 | S25: =Zadání!$B$2*Zadání!$B$5*(1+Zadání!$B$9)^(Výsledovka!S$1-Výsledovka!$B$1)+Zadání!$B$3*Zadání!$B$6*(1+Zadání!$B$9)^(Výsledovka!S$1-Výsledovka!$B$1) -> 37997556.76 | T25: =Zadání!$B$2*Zadání!$B$5*(1+Zadání!$B$9)^(Výsledovka!T$1-Výsledovka!$B$1)+Zadání!$B$3*Zadání!$B$6*(1+Zadání!$B$9)^(Výsledovka!T$1-Výsledovka!$B$1) -> 38567520.11 | U25: =Zadání!$B$2*Zadání!$B$5*(1+Zadání!$B$9)^(Výsledovka!U$1-Výsledovka!$B$1)+Zadání!$B$3*Zadání!$B$6*(1+Zadání!$B$9)^(Výsledovka!U$1-Výsledovka!$B$1) -> 39146032.91 | V25: =Zadání!$B$2*Zadání!$B$5*(1+Zadání!$B$9)^(Výsledovka!V$1-Výsledovka!$B$1)+Zadání!$B$3*Zadání!$B$6*(1+Zadání!$B$9)^(Výsledovka!V$1-Výsledovka!$B$1) -> 39733223.41 | W25: =Zadání!$B$2*Zadání!$B$5*(1+Zadání!$B$9)^(Výsledovka!W$1-Výsledovka!$B$1)+Zadání!$B$3*Zadání!$B$6*(1+Zadání!$B$9)^(Výsledovka!W$1-Výsledovka!$B$1) -> 40329221.76 | X25: =Zadání!$B$2*Zadání!$B$5*(1+Zadání!$B$9)^(Výsledovka!X$1-Výsledovka!$B$1)+Zadání!$B$3*Zadání!$B$6*(1+Zadání!$B$9)^(Výsledovka!X$1-Výsledovka!$B$1) -> 40934160.08 | Y25: =Zadání!$B$2*Zadání!$B$5*(1+Zadání!$B$9)^(Výsledovka!Y$1-Výsledovka!$B$1)+Zadání!$B$3*Zadání!$B$6*(1+Zadání!$B$9)^(Výsledovka!Y$1-Výsledovka!$B$1) -> 41548172.49 | Z25: =Zadání!$B$2*Zadání!$B$5*(1+Zadání!$B$9)^(Výsledovka!Z$1-Výsledovka!$B$1)+Zadání!$B$3*Zadání!$B$6*(1+Zadání!$B$9)^(Výsledovka!Z$1-Výsledovka!$B$1) -> 42171395.07 | AA25: =Zadání!$B$2*Zadání!$B$5*(1+Zadání!$B$9)^(Výsledovka!AA$1-Výsledovka!$B$1)+Zadání!$B$3*Zadání!$B$6*(1+Zadání!$B$9)^(Výsledovka!AA$1-Výsledovka!$B$1) -> 42803966 | AB25: =Zadání!$B$2*Zadání!$B$5*(1+Zadání!$B$9)^(Výsledovka!AB$1-Výsledovka!$B$1)+Zadání!$B$3*Zadání!$B$6*(1+Zadání!$B$9)^(Výsledovka!AB$1-Výsledovka!$B$1) -> 43446025.49 | AC25: =Zadání!$B$2*Zadání!$B$5*(1+Zadání!$B$9)^(Výsledovka!AC$1-Výsledovka!$B$1)+Zadání!$B$3*Zadání!$B$6*(1+Zadání!$B$9)^(Výsledovka!AC$1-Výsledovka!$B$1) -> 44097715.87 | AD25: =Zadání!$B$2*Zadání!$B$5*(1+Zadání!$B$9)^(Výsledovka!AD$1-Výsledovka!$B$1)+Zadání!$B$3*Zadání!$B$6*(1+Zadání!$B$9)^(Výsledovka!AD$1-Výsledovka!$B$1) -> 44759181.61 | AE25: =Zadání!$B$2*Zadání!$B$5*(1+Zadání!$B$9)^(Výsledovka!AE$1-Výsledovka!$B$1)+Zadání!$B$3*Zadání!$B$6*(1+Zadání!$B$9)^(Výsledovka!AE$1-Výsledovka!$B$1) -> 45430569.33
A26: Prodej elektřiny | B26: =IF(Zadání!$B$79>Zadání!$B$78,(Zadání!$B$79-Zadání!$B$78)*Zadání!$B$39*(1+Zadání!$B$40)^(Výsledovka!B1-Výsledovka!$B$1),0) -> 0 | C26: =IF(Zadání!$B$79>Zadání!$B$78,(Zadání!$B$79-Zadání!$B$78)*Zadání!$B$39*(1+Zadání!$B$40)^(Výsledovka!C1-Výsledovka!$B$1),0) -> 0 | D26: =IF(Zadání!$B$79>Zadání!$B$78,(Zadání!$B$79-Zadání!$B$78)*Zadání!$B$39*(1+Zadání!$B$40)^(Výsledovka!D1-Výsledovka!$B$1),0) -> 0 | E26: =IF(Zadání!$B$79>Zadání!$B$78,(Zadání!$B$79-Zadání!$B$78)*Zadání!$B$39*(1+Zadání!$B$40)^(Výsledovka!E1-Výsledovka!$B$1),0) -> 0 | F26: =IF(Zadání!$B$79>Zadání!$B$78,(Zadání!$B$79-Zadání!$B$78)*Zadání!$B$39*(1+Zadání!$B$40)^(Výsledovka!F1-Výsledovka!$B$1),0) -> 0 | G26: =IF(Zadání!$B$79>Zadání!$B$78,(Zadání!$B$79-Zadání!$B$78)*Zadání!$B$39*(1+Zadání!$B$40)^(Výsledovka!G1-Výsledovka!$B$1),0) -> 0 | H26: =IF(Zadání!$B$79>Zadání!$B$78,(Zadání!$B$79-Zadání!$B$78)*Zadání!$B$39*(1+Zadání!$B$40)^(Výsledovka!H1-Výsledovka!$B$1),0) -> 0 | I26: =IF(Zadání!$B$79>Zadání!$B$78,(Zadání!$B$79-Zadání!$B$78)*Zadání!$B$39*(1+Zadání!$B$40)^(Výsledovka!I1-Výsledovka!$B$1),0) -> 0 | J26: =IF(Zadání!$B$79>Zadání!$B$78,(Zadání!$B$79-Zadání!$B$78)*Zadání!$B$39*(1+Zadání!$B$40)^(Výsledovka!J1-Výsledovka!$B$1),0) -> 0 | K26: =IF(Zadání!$B$79>Zadání!$B$78,(Zadání!$B$79-Zadání!$B$78)*Zadání!$B$39*(1+Zadání!$B$40)^(Výsledovka!K1-Výsledovka!$B$1),0) -> 0 | L26: =IF(Zadání!$B$79>Zadání!$B$78,(Zadání!$B$79-Zadání!$B$78)*Zadání!$B$39*(1+Zadání!$B$40)^(Výsledovka!L1-Výsledovka!$B$1),0) -> 0 | M26: =IF(Zadání!$B$79>Zadání!$B$78,(Zadání!$B$79-Zadání!$B$78)*Zadání!$B$39*(1+Zadání!$B$40)^(Výsledovka!M1-Výsledovka!$B$1),0) -> 0 | N26: =IF(Zadání!$B$79>Zadání!$B$78,(Zadání!$B$79-Zadání!$B$78)*Zadání!$B$39*(1+Zadání!$B$40)^(Výsledovka!N1-Výsledovka!$B$1),0) -> 0 | O26: =IF(Zadání!$B$79>Zadání!$B$78,(Zadání!$B$79-Zadání!$B$78)*Zadání!$B$39*(1+Zadání!$B$40)^(Výsledovka!O1-Výsledovka!$B$1),0) -> 0 | P26: =IF(Zadání!$B$79>Zadání!$B$78,(Zadání!$B$79-Zadání!$B$78)*Zadání!$B$39*(1+Zadání!$B$40)^(Výsledovka!P1-Výsledovka!$B$1),0) -> 0 | Q26: =IF(Zadání!$B$79>Zadání!$B$78,(Zadání!$B$79-Zadání!$B$78)*Zadání!$B$39*(1+Zadání!$B$40)^(Výsledovka!Q1-Výsledovka!$B$1),0) -> 0 | R26: =IF(Zadání!$B$79>Zadání!$B$78,(Zadání!$B$79-Zadání!$B$78)*Zadání!$B$39*(1+Zadání!$B$40)^(Výsledovka!R1-Výsledovka!$B$1),0) -> 0 | S26: =IF(Zadání!$B$79>Zadání!$B$78,(Zadání!$B$79-Zadání!$B$78)*Zadání!$B$39*(1+Zadání!$B$40)^(Výsledovka!S1-Výsledovka!$B$1),0) -> 0 | T26: =IF(Zadání!$B$79>Zadání!$B$78,(Zadání!$B$79-Zadání!$B$78)*Zadání!$B$39*(1+Zadání!$B$40)^(Výsledovka!T1-Výsledovka!$B$1),0) -> 0 | U26: =IF(Zadání!$B$79>Zadání!$B$78,(Zadání!$B$79-Zadání!$B$78)*Zadání!$B$39*(1+Zadání!$B$40)^(Výsledovka!U1-Výsledovka!$B$1),0) -> 0 | V26: =IF(Zadání!$B$79>Zadání!$B$78,(Zadání!$B$79-Zadání!$B$78)*Zadání!$B$39*(1+Zadání!$B$40)^(Výsledovka!V1-Výsledovka!$B$1),0) -> 0 | W26: =IF(Zadání!$B$79>Zadání!$B$78,(Zadání!$B$79-Zadání!$B$78)*Zadání!$B$39*(1+Zadání!$B$40)^(Výsledovka!W1-Výsledovka!$B$1),0) -> 0 | X26: =IF(Zadání!$B$79>Zadání!$B$78,(Zadání!$B$79-Zadání!$B$78)*Zadání!$B$39*(1+Zadání!$B$40)^(Výsledovka!X1-Výsledovka!$B$1),0) -> 0 | Y26: =IF(Zadání!$B$79>Zadání!$B$78,(Zadání!$B$79-Zadání!$B$78)*Zadání!$B$39*(1+Zadání!$B$40)^(Výsledovka!Y1-Výsledovka!$B$1),0) -> 0 | Z26: =IF(Zadání!$B$79>Zadání!$B$78,(Zadání!$B$79-Zadání!$B$78)*Zadání!$B$39*(1+Zadání!$B$40)^(Výsledovka!Z1-Výsledovka!$B$1),0) -> 0 | AA26: =IF(Zadání!$B$79>Zadání!$B$78,(Zadání!$B$79-Zadání!$B$78)*Zadání!$B$39*(1+Zadání!$B$40)^(Výsledovka!AA1-Výsledovka!$B$1),0) -> 0 | AB26: =IF(Zadání!$B$79>Zadání!$B$78,(Zadání!$B$79-Zadání!$B$78)*Zadání!$B$39*(1+Zadání!$B$40)^(Výsledovka!AB1-Výsledovka!$B$1),0) -> 0 | AC26: =IF(Zadání!$B$79>Zadání!$B$78,(Zadání!$B$79-Zadání!$B$78)*Zadání!$B$39*(1+Zadání!$B$40)^(Výsledovka!AC1-Výsledovka!$B$1),0) -> 0 | AD26: =IF(Zadání!$B$79>Zadání!$B$78,(Zadání!$B$79-Zadání!$B$78)*Zadání!$B$39*(1+Zadání!$B$40)^(Výsledovka!AD1-Výsledovka!$B$1),0) -> 0 | AE26: =IF(Zadání!$B$79>Zadání!$B$78,(Zadání!$B$79-Zadání!$B$78)*Zadání!$B$39*(1+Zadání!$B$40)^(Výsledovka!AE1-Výsledovka!$B$1),0) -> 0
A27: Náklady
A28: Palivo | B28: =-Výpočty!$B$33*3.6*Zadání!$B$65*(1+Zadání!$B$69)^(Výsledovka!B$1-Výsledovka!$B$1)-Výpočty!$B$40*3.6*Zadání!$B$73*(1+Zadání!$B$76)^(Výsledovka!B$1-Výsledovka!$B$1) -> -9619638.426 | C28: =-(1+(Zadání!$B$14*(Výsledovka!C1-Výsledovka!$B$1)))*Výpočty!$B$33*3.6*Zadání!$B$65*(1+Zadání!$B$69)^(Výsledovka!C$1-Výsledovka!$B$1)-(1+(Zadání!$B$14*(Výsledovka!C1-Výsledovka!$B$1)))*Výpočty!$B$40*3.6*Zadání!$B$73*(1+Zadání!$B$76)^(Výsledovka!C$1-Výsledovka!$B$1) -> -9807119.932 | D28: =-(1+(Zadání!$B$14*(Výsledovka!D1-Výsledovka!$B$1)))*Výpočty!$B$33*3.6*Zadání!$B$65*(1+Zadání!$B$69)^(Výsledovka!D$1-Výsledovka!$B$1)-(1+(Zadání!$B$14*(Výsledovka!D1-Výsledovka!$B$1)))*Výpočty!$B$40*3.6*Zadání!$B$73*(1+Zadání!$B$76)^(Výsledovka!D$1-Výsledovka!$B$1) -> -9998275.86 | E28: =-(1+(Zadání!$B$14*(Výsledovka!E1-Výsledovka!$B$1)))*Výpočty!$B$33*3.6*Zadání!$B$65*(1+Zadání!$B$69)^(Výsledovka!E$1-Výsledovka!$B$1)-(1+(Zadání!$B$14*(Výsledovka!E1-Výsledovka!$B$1)))*Výpočty!$B$40*3.6*Zadání!$B$73*(1+Zadání!$B$76)^(Výsledovka!E$1-Výsledovka!$B$1) -> -10193178.79 | F28: =-(1+(Zadání!$B$14*(Výsledovka!F1-Výsledovka!$B$1)))*Výpočty!$B$33*3.6*Zadání!$B$65*(1+Zadání!$B$69)^(Výsledovka!F$1-Výsledovka!$B$1)-(1+(Zadání!$B$14*(Výsledovka!F1-Výsledovka!$B$1)))*Výpočty!$B$40*3.6*Zadání!$B$73*(1+Zadání!$B$76)^(Výsledovka!F$1-Výsledovka!$B$1) -> -10391902.74 | G28: =-(1+(Zadání!$B$14*(Výsledovka!$F$1-Výsledovka!$B$1)+Zadání!$B$15*(Výsledovka!G1-Výsledovka!$F$1)))*Výpočty!$B$33*3.6*Zadání!$B$65*(1+Zadání!$B$69)^(Výsledovka!G$1-Výsledovka!$B$1)-(1+(Zadání!$B$14*(Výsledovka!$F$1-Výsledovka!$B$1)+Zadání!$B$15*(Výsledovka!G1-Výsledovka!$F$1)))*Výpočty!$B$40*3.6*Zadání!$B$73*(1+Zadání!$B$76)^(Výsledovka!G$1-Výsledovka!$B$1) -> -10625992.1 | H28: =-(1+(Zadání!$B$14*(Výsledovka!$F$1-Výsledovka!$B$1)+Zadání!$B$15*(Výsledovka!H1-Výsledovka!$F$1)))*Výpočty!$B$33*3.6*Zadání!$B$65*(1+Zadání!$B$69)^(Výsledovka!H$1-Výsledovka!$B$1)-(1+(Zadání!$B$14*(Výsledovka!$F$1-Výsledovka!$B$1)+Zadání!$B$15*(Výsledovka!H1-Výsledovka!$F$1)))*Výpočty!$B$40*3.6*Zadání!$B$73*(1+Zadání!$B$76)^(Výsledovka!H$1-Výsledovka!$B$1) -> -10865155.46 | I28: =-(1+(Zadání!$B$14*(Výsledovka!$F$1-Výsledovka!$B$1)+Zadání!$B$15*(Výsledovka!I1-Výsledovka!$F$1)))*Výpočty!$B$33*3.6*Zadání!$B$65*(1+Zadání!$B$69)^(Výsledovka!I$1-Výsledovka!$B$1)-(1+(Zadání!$B$14*(Výsledovka!$F$1-Výsledovka!$B$1)+Zadání!$B$15*(Výsledovka!I1-Výsledovka!$F$1)))*Výpočty!$B$40*3.6*Zadání!$B$73*(1+Zadání!$B$76)^(Výsledovka!I$1-Výsledovka!$B$1) -> -11109500.83 | J28: =-(1+(Zadání!$B$14*(Výsledovka!$F$1-Výsledovka!$B$1)+Zadání!$B$15*(Výsledovka!J1-Výsledovka!$F$1)))*Výpočty!$B$33*3.6*Zadání!$B$65*(1+Zadání!$B$69)^(Výsledovka!J$1-Výsledovka!$B$1)-(1+(Zadání!$B$14*(Výsledovka!$F$1-Výsledovka!$B$1)+Zadání!$B$15*(Výsledovka!J1-Výsledovka!$F$1)))*Výpočty!$B$40*3.6*Zadání!$B$73*(1+Zadání!$B$76)^(Výsledovka!J$1-Výsledovka!$B$1) -> -11359138.47 | K28: =-(1+(Zadání!$B$14*(Výsledovka!$F$1-Výsledovka!$B$1)+Zadání!$B$15*(Výsledovka!K1-Výsledovka!$F$1)))*Výpočty!$B$33*3.6*Zadání!$B$65*(1+Zadání!$B$69)^(Výsledovka!K$1-Výsledovka!$B$1)-(1+(Zadání!$B$14*(Výsledovka!$F$1-Výsledovka!$B$1)+Zadání!$B$15*(Výsledovka!K1-Výsledovka!$F$1)))*Výpočty!$B$40*3.6*Zadání!$B$73*(1+Zadání!$B$76)^(Výsledovka!K$1-Výsledovka!$B$1) -> -11614180.99 | L28: =-(1+(Zadání!$B$14*(Výsledovka!$F$1-Výsledovka!$B$1)+Zadání!$B$15*(Výsledovka!L1-Výsledovka!$F$1)))*Výpočty!$B$33*3.6*Zadání!$B$65*(1+Zadání!$B$69)^(Výsledovka!L$1-Výsledovka!$B$1)-(1+(Zadání!$B$14*(Výsledovka!$F$1-Výsledovka!$B$1)+Zadání!$B$15*(Výsledovka!L1-Výsledovka!$F$1)))*Výpočty!$B$40*3.6*Zadání!$B$73*(1+Zadání!$B$76)^(Výsledovka!L$1-Výsledovka!$B$1) -> -11874743.35 | M28: =-(1+(Zadání!$B$14*(Výsledovka!$F$1-Výsledovka!$B$1)+Zadání!$B$15*(Výsledovka!M1-Výsledovka!$F$1)))*Výpočty!$B$33*3.6*Zadání!$B$65*(1+Zadání!$B$69)^(Výsledovka!M$1-Výsledovka!$B$1)-(1+(Zadání!$B$14*(Výsledovka!$F$1-Výsledovka!$B$1)+Zadání!$B$15*(Výsledovka!M1-Výsledovka!$F$1)))*Výpočty!$B$40*3.6*Zadání!$B$73*(1+Zadání!$B$76)^(Výsledovka!M$1-Výsledovka!$B$1) -> -12140942.98 | N28: =-(1+(Zadání!$B$14*(Výsledovka!$F$1-Výsledovka!$B$1)+Zadání!$B$15*(Výsledovka!N1-Výsledovka!$F$1)))*Výpočty!$B$33*3.6*Zadání!$B$65*(1+Zadání!$B$69)^(Výsledovka!N$1-Výsledovka!$B$1)-(1+(Zadání!$B$14*(Výsledovka!$F$1-Výsledovka!$B$1)+Zadání!$B$15*(Výsledovka!N1-Výsledovka!$F$1)))*Výpočty!$B$40*3.6*Zadání!$B$73*(1+Zadání!$B$76)^(Výsledovka!N$1-Výsledovka!$B$1) -> -12412899.73 | O28: =-(1+(Zadání!$B$14*(Výsledovka!$F$1-Výsledovka!$B$1)+Zadání!$B$15*(Výsledovka!O1-Výsledovka!$F$1)))*Výpočty!$B$33*3.6*Zadání!$B$65*(1+Zadání!$B$69)^(Výsledovka!O$1-Výsledovka!$B$1)-(1+(Zadání!$B$14*(Výsledovka!$F$1-Výsledovka!$B$1)+Zadání!$B$15*(Výsledovka!O1-Výsledovka!$F$1)))*Výpočty!$B$40*3.6*Zadání!$B$73*(1+Zadání!$B$76)^(Výsledovka!O$1-Výsledovka!$B$1) -> -12690736.04 | P28: =-(1+(Zadání!$B$14*(Výsledovka!$F$1-Výsledovka!$B$1)+Zadání!$B$15*(Výsledovka!P1-Výsledovka!$F$1)))*Výpočty!$B$33*3.6*Zadání!$B$65*(1+Zadání!$B$69)^(Výsledovka!P$1-Výsledovka!$B$1)-(1+(Zadání!$B$14*(Výsledovka!$F$1-Výsledovka!$B$1)+Zadání!$B$15*(Výsledovka!P1-Výsledovka!$F$1)))*Výpočty!$B$40*3.6*Zadání!$B$73*(1+Zadání!$B$76)^(Výsledovka!P$1-Výsledovka!$B$1) -> -12974576.9 | Q28: =-(1+(Zadání!$B$14*(Výsledovka!$F$1-Výsledovka!$B$1)+Zadání!$B$15*(Výsledovka!$P$1-Výsledovka!$F$1)+Zadání!$B$16*(Výsledovka!Q1-Výsledovka!$P$1)))*Výpočty!$B$33*3.6*Zadání!$B$65*(1+Zadání!$B$69)^(Výsledovka!Q$1-Výsledovka!$B$1)-(1+(Zadání!$B$14*(Výsledovka!$F$1-Výsledovka!$B$1)+Zadání!$B$15*(Výsledovka!Q1-Výsledovka!$F$1)+Zadání!$B$16*(Výsledovka!Q1-Výsledovka!$P$1)))*Výpočty!$B$40*3.6*Zadání!$B$73*(1+Zadání!$B$76)^(Výsledovka!Q$1-Výsledovka!$B$1) -> -13327524.38 | R28: =-(1+(Zadání!$B$14*(Výsledovka!$F$1-Výsledovka!$B$1)+Zadání!$B$15*(Výsledovka!$P$1-Výsledovka!$F$1)+Zadání!$B$16*(Výsledovka!R1-Výsledovka!$P$1)))*Výpočty!$B$33*3.6*Zadání!$B$65*(1+Zadání!$B$69)^(Výsledovka!R$1-Výsledovka!$B$1)-(1+(Zadání!$B$14*(Výsledovka!$F$1-Výsledovka!$B$1)+Zadání!$B$15*(Výsledovka!R1-Výsledovka!$F$1)+Zadání!$B$16*(Výsledovka!R1-Výsledovka!$P$1)))*Výpočty!$B$40*3.6*Zadání!$B$73*(1+Zadání!$B$76)^(Výsledovka!R$1-Výsledovka!$B$1) -> -13689100.29 | S28: =-(1+(Zadání!$B$14*(Výsledovka!$F$1-Výsledovka!$B$1)+Zadání!$B$15*(Výsledovka!$P$1-Výsledovka!$F$1)+Zadání!$B$16*(Výsledovka!S1-Výsledovka!$P$1)))*Výpočty!$B$33*3.6*Zadání!$B$65*(1+Zadání!$B$69)^(Výsledovka!S$1-Výsledovka!$B$1)-(1+(Zadání!$B$14*(Výsledovka!$F$1-Výsledovka!$B$1)+Zadání!$B$15*(Výsledovka!S1-Výsledovka!$F$1)+Zadání!$B$16*(Výsledovka!S1-Výsledovka!$P$1)))*Výpočty!$B$40*3.6*Zadání!$B$73*(1+Zadání!$B$76)^(Výsledovka!S$1-Výsledovka!$B$1) -> -14059505.22 | T28: =-(1+(Zadání!$B$14*(Výsledovka!$F$1-Výsledovka!$B$1)+Zadání!$B$15*(Výsledovka!$P$1-Výsledovka!$F$1)+Zadání!$B$16*(Výsledovka!T1-Výsledovka!$P$1)))*Výpočty!$B$33*3.6*Zadání!$B$65*(1+Zadání!$B$69)^(Výsledovka!T$1-Výsledovka!$B$1)-(1+(Zadání!$B$14*(Výsledovka!$F$1-Výsledovka!$B$1)+Zadání!$B$15*(Výsledovka!T1-Výsledovka!$F$1)+Zadání!$B$16*(Výsledovka!T1-Výsledovka!$P$1)))*Výpočty!$B$40*3.6*Zadání!$B$73*(1+Zadání!$B$76)^(Výsledovka!T$1-Výsledovka!$B$1) -> -14438944.33 | U28: =-(1+(Zadání!$B$14*(Výsledovka!$F$1-Výsledovka!$B$1)+Zadání!$B$15*(Výsledovka!$P$1-Výsledovka!$F$1)+Zadání!$B$16*(Výsledovka!U1-Výsledovka!$P$1)))*Výpočty!$B$33*3.6*Zadání!$B$65*(1+Zadání!$B$69)^(Výsledovka!U$1-Výsledovka!$B$1)-(1+(Zadání!$B$14*(Výsledovka!$F$1-Výsledovka!$B$1)+Zadání!$B$15*(Výsledovka!U1-Výsledovka!$F$1)+Zadání!$B$16*(Výsledovka!U1-Výsledovka!$P$1)))*Výpočty!$B$40*3.6*Zadání!$B$73*(1+Zadání!$B$76)^(Výsledovka!U$1-Výsledovka!$B$1) -> -14827627.41 | V28: =-(1+(Zadání!$B$14*(Výsledovka!$F$1-Výsledovka!$B$1)+Zadání!$B$15*(Výsledovka!$P$1-Výsledovka!$F$1)+Zadání!$B$16*(Výsledovka!V1-Výsledovka!$P$1)))*Výpočty!$B$33*3.6*Zadání!$B$65*(1+Zadání!$B$69)^(Výsledovka!V$1-Výsledovka!$B$1)-(1+(Zadání!$B$14*(Výsledovka!$F$1-Výsledovka!$B$1)+Zadání!$B$15*(Výsledovka!V1-Výsledovka!$F$1)+Zadání!$B$16*(Výsledovka!V1-Výsledovka!$P$1)))*Výpočty!$B$40*3.6*Zadání!$B$73*(1+Zadání!$B$76)^(Výsledovka!V$1-Výsledovka!$B$1) -> -15225769 | W28: =-(1+(Zadání!$B$14*(Výsledovka!$F$1-Výsledovka!$B$1)+Zadání!$B$15*(Výsledovka!$P$1-Výsledovka!$F$1)+Zadání!$B$16*(Výsledovka!W1-Výsledovka!$P$1)))*Výpočty!$B$33*3.6*Zadání!$B$65*(1+Zadání!$B$69)^(Výsledovka!W$1-Výsledovka!$B$1)-(1+(Zadání!$B$14*(Výsledovka!$F$1-Výsledovka!$B$1)+Zadání!$B$15*(Výsledovka!W1-Výsledovka!$F$1)+Zadání!$B$16*(Výsledovka!W1-Výsledovka!$P$1)))*Výpočty!$B$40*3.6*Zadání!$B$73*(1+Zadání!$B$76)^(Výsledovka!W$1-Výsledovka!$B$1) -> -15633588.49 | X28: =-(1+(Zadání!$B$14*(Výsledovka!$F$1-Výsledovka!$B$1)+Zadání!$B$15*(Výsledovka!$P$1-Výsledovka!$F$1)+Zadání!$B$16*(Výsledovka!X1-Výsledovka!$P$1)))*Výpočty!$B$33*3.6*Zadání!$B$65*(1+Zadání!$B$69)^(Výsledovka!X$1-Výsledovka!$B$1)-(1+(Zadání!$B$14*(Výsledovka!$F$1-Výsledovka!$B$1)+Zadání!$B$15*(Výsledovka!X1-Výsledovka!$F$1)+Zadání!$B$16*(Výsledovka!X1-Výsledovka!$P$1)))*Výpočty!$B$40*3.6*Zadání!$B$73*(1+Zadání!$B$76)^(Výsledovka!X$1-Výsledovka!$B$1) -> -16051310.21 | Y28: =-(1+(Zadání!$B$14*(Výsledovka!$F$1-Výsledovka!$B$1)+Zadání!$B$15*(Výsledovka!$P$1-Výsledovka!$F$1)+Zadání!$B$16*(Výsledovka!Y1-Výsledovka!$P$1)))*Výpočty!$B$33*3.6*Zadání!$B$65*(1+Zadání!$B$69)^(Výsledovka!Y$1-Výsledovka!$B$1)-(1+(Zadání!$B$14*(Výsledovka!$F$1-Výsledovka!$B$1)+Zadání!$B$15*(Výsledovka!Y1-Výsledovka!$F$1)+Zadání!$B$16*(Výsledovka!Y1-Výsledovka!$P$1)))*Výpočty!$B$40*3.6*Zadání!$B$73*(1+Zadání!$B$76)^(Výsledovka!Y$1-Výsledovka!$B$1) -> -16479163.59 | Z28: =-(1+(Zadání!$B$14*(Výsledovka!$F$1-Výsledovka!$B$1)+Zadání!$B$15*(Výsledovka!$P$1-Výsledovka!$F$1)+Zadání!$B$16*(Výsledovka!Z1-Výsledovka!$P$1)))*Výpočty!$B$33*3.6*Zadání!$B$65*(1+Zadání!$B$69)^(Výsledovka!Z$1-Výsledovka!$B$1)-(1+(Zadání!$B$14*(Výsledovka!$F$1-Výsledovka!$B$1)+Zadání!$B$15*(Výsledovka!Z1-Výsledovka!$F$1)+Zadání!$B$16*(Výsledovka!Z1-Výsledovka!$P$1)))*Výpočty!$B$40*3.6*Zadání!$B$73*(1+Zadání!$B$76)^(Výsledovka!Z$1-Výsledovka!$B$1) -> -16917383.22 | AA28: =-(1+(Zadání!$B$14*(Výsledovka!$F$1-Výsledovka!$B$1)+Zadání!$B$15*(Výsledovka!$P$1-Výsledovka!$F$1)+Zadání!$B$16*(Výsledovka!AA1-Výsledovka!$P$1)))*Výpočty!$B$33*3.6*Zadání!$B$65*(1+Zadání!$B$69)^(Výsledovka!AA$1-Výsledovka!$B$1)-(1+(Zadání!$B$14*(Výsledovka!$F$1-Výsledovka!$B$1)+Zadání!$B$15*(Výsledovka!AA1-Výsledovka!$F$1)+Zadání!$B$16*(Výsledovka!AA1-Výsledovka!$P$1)))*Výpočty!$B$40*3.6*Zadání!$B$73*(1+Zadání!$B$76)^(Výsledovka!AA$1-Výsledovka!$B$1) -> -17366208.99 | AB28: =-(1+(Zadání!$B$14*(Výsledovka!$F$1-Výsledovka!$B$1)+Zadání!$B$15*(Výsledovka!$P$1-Výsledovka!$F$1)+Zadání!$B$16*(Výsledovka!AB1-Výsledovka!$P$1)))*Výpočty!$B$33*3.6*Zadání!$B$65*(1+Zadání!$B$69)^(Výsledovka!AB$1-Výsledovka!$B$1)-(1+(Zadání!$B$14*(Výsledovka!$F$1-Výsledovka!$B$1)+Zadání!$B$15*(Výsledovka!AB1-Výsledovka!$F$1)+Zadání!$B$16*(Výsledovka!AB1-Výsledovka!$P$1)))*Výpočty!$B$40*3.6*Zadání!$B$73*(1+Zadání!$B$76)^(Výsledovka!AB$1-Výsledovka!$B$1) -> -17825886.2 | AC28: =-(1+(Zadání!$B$14*(Výsledovka!$F$1-Výsledovka!$B$1)+Zadání!$B$15*(Výsledovka!$P$1-Výsledovka!$F$1)+Zadání!$B$16*(Výsledovka!AC1-Výsledovka!$P$1)))*Výpočty!$B$33*3.6*Zadání!$B$65*(1+Zadání!$B$69)^(Výsledovka!AC$1-Výsledovka!$B$1)-(1+(Zadání!$B$14*(Výsledovka!$F$1-Výsledovka!$B$1)+Zadání!$B$15*(Výsledovka!AC1-Výsledovka!$F$1)+Zadání!$B$16*(Výsledovka!AC1-Výsledovka!$P$1)))*Výpočty!$B$40*3.6*Zadání!$B$73*(1+Zadání!$B$76)^(Výsledovka!AC$1-Výsledovka!$B$1) -> -18296665.7 | AD28: =-(1+(Zadání!$B$14*(Výsledovka!$F$1-Výsledovka!$B$1)+Zadání!$B$15*(Výsledovka!$P$1-Výsledovka!$F$1)+Zadání!$B$16*(Výsledovka!AD1-Výsledovka!$P$1)))*Výpočty!$B$33*3.6*Zadání!$B$65*(1+Zadání!$B$69)^(Výsledovka!AD$1-Výsledovka!$B$1)-(1+(Zadání!$B$14*(Výsledovka!$F$1-Výsledovka!$B$1)+Zadání!$B$15*(Výsledovka!AD1-Výsledovka!$F$1)+Zadání!$B$16*(Výsledovka!AD1-Výsledovka!$P$1)))*Výpočty!$B$40*3.6*Zadání!$B$73*(1+Zadání!$B$76)^(Výsledovka!AD$1-Výsledovka!$B$1) -> -18778803.99 | AE28: =-(1+(Zadání!$B$14*(Výsledovka!$F$1-Výsledovka!$B$1)+Zadání!$B$15*(Výsledovka!$P$1-Výsledovka!$F$1)+Zadání!$B$16*(Výsledovka!AE1-Výsledovka!$P$1)))*Výpočty!$B$33*3.6*Zadání!$B$65*(1+Zadání!$B$69)^(Výsledovka!AE$1-Výsledovka!$B$1)-(1+(Zadání!$B$14*(Výsledovka!$F$1-Výsledovka!$B$1)+Zadání!$B$15*(Výsledovka!AE1-Výsledovka!$F$1)+Zadání!$B$16*(Výsledovka!AE1-Výsledovka!$P$1)))*Výpočty!$B$40*3.6*Zadání!$B$73*(1+Zadání!$B$76)^(Výsledovka!AE$1-Výsledovka!$B$1) -> -19272563.34
A29: Doprava | B29: =-Výpočty!$B$32*Zadání!$B$70*Zadání!$B$66*(1+Zadání!$B$11)^(Výsledovka!B1-Výsledovka!$B$1)-Výpočty!$B$39*(1-Zadání!$B$70)*Zadání!$B$74*(1+Zadání!$B$11)^(Výsledovka!B1-Výsledovka!$B$1) -> -381599.457 | C29: =-(1+(Zadání!$B$14*(Výsledovka!C1-Výsledovka!$B$1)))*Výpočty!$B$32*Zadání!$B$70*Zadání!$B$66*(1+Zadání!$B$11)^(Výsledovka!C1-Výsledovka!$B$1)-(1+(Zadání!$B$14*(Výsledovka!C1-Výsledovka!$B$1)))*Výpočty!$B$39*(1-Zadání!$B$70)*Zadání!$B$74*(1+Zadání!$B$11)^(Výsledovka!C1-Výsledovka!$B$1) -> -386186.2825 | D29: =-(1+(Zadání!$B$14*(Výsledovka!D1-Výsledovka!$B$1)))*Výpočty!$B$32*Zadání!$B$70*Zadání!$B$66*(1+Zadání!$B$11)^(Výsledovka!D1-Výsledovka!$B$1)-(1+(Zadání!$B$14*(Výsledovka!D1-Výsledovka!$B$1)))*Výpočty!$B$39*(1-Zadání!$B$70)*Zadání!$B$74*(1+Zadání!$B$11)^(Výsledovka!D1-Výsledovka!$B$1) -> -390826.6846 | E29: =-(1+(Zadání!$B$14*(Výsledovka!E1-Výsledovka!$B$1)))*Výpočty!$B$32*Zadání!$B$70*Zadání!$B$66*(1+Zadání!$B$11)^(Výsledovka!E1-Výsledovka!$B$1)-(1+(Zadání!$B$14*(Výsledovka!E1-Výsledovka!$B$1)))*Výpočty!$B$39*(1-Zadání!$B$70)*Zadání!$B$74*(1+Zadání!$B$11)^(Výsledovka!E1-Výsledovka!$B$1) -> -395521.276 | F29: =-(1+(Zadání!$B$14*(Výsledovka!F1-Výsledovka!$B$1)))*Výpočty!$B$32*Zadání!$B$70*Zadání!$B$66*(1+Zadání!$B$11)^(Výsledovka!F1-Výsledovka!$B$1)-(1+(Zadání!$B$14*(Výsledovka!F1-Výsledovka!$B$1)))*Výpočty!$B$39*(1-Zadání!$B$70)*Zadání!$B$74*(1+Zadání!$B$11)^(Výsledovka!F1-Výsledovka!$B$1) -> -400270.6766 | G29: =-(1+(Zadání!$B$14*(Výsledovka!$F$1-Výsledovka!$B$1)+Zadání!$B$15*(Výsledovka!G1-Výsledovka!$F$1)))*Výpočty!$B$32*Zadání!$B$70*Zadání!$B$66*(1+Zadání!$B$11)^(Výsledovka!G1-Výsledovka!$B$1)-(1+(Zadání!$B$14*(Výsledovka!$F$1-Výsledovka!$B$1)+Zadání!$B$15*(Výsledovka!G1-Výsledovka!$F$1)))*Výpočty!$B$39*(1-Zadání!$B$70)*Zadání!$B$74*(1+Zadání!$B$11)^(Výsledovka!G1-Výsledovka!$B$1) -> -406278.7077 | H29: =-(1+(Zadání!$B$14*(Výsledovka!$F$1-Výsledovka!$B$1)+Zadání!$B$15*(Výsledovka!H1-Výsledovka!$F$1)))*Výpočty!$B$32*Zadání!$B$70*Zadání!$B$66*(1+Zadání!$B$11)^(Výsledovka!H1-Výsledovka!$B$1)-(1+(Zadání!$B$14*(Výsledovka!$F$1-Výsledovka!$B$1)+Zadání!$B$15*(Výsledovka!H1-Výsledovka!$F$1)))*Výpočty!$B$39*(1-Zadání!$B$70)*Zadání!$B$74*(1+Zadání!$B$11)^(Výsledovka!H1-Výsledovka!$B$1) -> -412366.8723 | I29: =-(1+(Zadání!$B$14*(Výsledovka!$F$1-Výsledovka!$B$1)+Zadání!$B$15*(Výsledovka!I1-Výsledovka!$F$1)))*Výpočty!$B$32*Zadání!$B$70*Zadání!$B$66*(1+Zadání!$B$11)^(Výsledovka!I1-Výsledovka!$B$1)-(1+(Zadání!$B$14*(Výsledovka!$F$1-Výsledovka!$B$1)+Zadání!$B$15*(Výsledovka!I1-Výsledovka!$F$1)))*Výpočty!$B$39*(1-Zadání!$B$70)*Zadání!$B$74*(1+Zadání!$B$11)^(Výsledovka!I1-Výsledovka!$B$1) -> -418536.1724 | J29: =-(1+(Zadání!$B$14*(Výsledovka!$F$1-Výsledovka!$B$1)+Zadání!$B$15*(Výsledovka!J1-Výsledovka!$F$1)))*Výpočty!$B$32*Zadání!$B$70*Zadání!$B$66*(1+Zadání!$B$11)^(Výsledovka!J1-Výsledovka!$B$1)-(1+(Zadání!$B$14*(Výsledovka!$F$1-Výsledovka!$B$1)+Zadání!$B$15*(Výsledovka!J1-Výsledovka!$F$1)))*Výpočty!$B$39*(1-Zadání!$B$70)*Zadání!$B$74*(1+Zadání!$B$11)^(Výsledovka!J1-Výsledovka!$B$1) -> -424787.6218 | K29: =-(1+(Zadání!$B$14*(Výsledovka!$F$1-Výsledovka!$B$1)+Zadání!$B$15*(Výsledovka!K1-Výsledovka!$F$1)))*Výpočty!$B$32*Zadání!$B$70*Zadání!$B$66*(1+Zadání!$B$11)^(Výsledovka!K1-Výsledovka!$B$1)-(1+(Zadání!$B$14*(Výsledovka!$F$1-Výsledovka!$B$1)+Zadání!$B$15*(Výsledovka!K1-Výsledovka!$F$1)))*Výpočty!$B$39*(1-Zadání!$B$70)*Zadání!$B$74*(1+Zadání!$B$11)^(Výsledovka!K1-Výsledovka!$B$1) -> -431122.2465 | L29: =-(1+(Zadání!$B$14*(Výsledovka!$F$1-Výsledovka!$B$1)+Zadání!$B$15*(Výsledovka!L1-Výsledovka!$F$1)))*Výpočty!$B$32*Zadání!$B$70*Zadání!$B$66*(1+Zadání!$B$11)^(Výsledovka!L1-Výsledovka!$B$1)-(1+(Zadání!$B$14*(Výsledovka!$F$1-Výsledovka!$B$1)+Zadání!$B$15*(Výsledovka!L1-Výsledovka!$F$1)))*Výpočty!$B$39*(1-Zadání!$B$70)*Zadání!$B$74*(1+Zadání!$B$11)^(Výsledovka!L1-Výsledovka!$B$1) -> -437541.085 | M29: =-(1+(Zadání!$B$14*(Výsledovka!$F$1-Výsledovka!$B$1)+Zadání!$B$15*(Výsledovka!M1-Výsledovka!$F$1)))*Výpočty!$B$32*Zadání!$B$70*Zadání!$B$66*(1+Zadání!$B$11)^(Výsledovka!M1-Výsledovka!$B$1)-(1+(Zadání!$B$14*(Výsledovka!$F$1-Výsledovka!$B$1)+Zadání!$B$15*(Výsledovka!M1-Výsledovka!$F$1)))*Výpočty!$B$39*(1-Zadání!$B$70)*Zadání!$B$74*(1+Zadání!$B$11)^(Výsledovka!M1-Výsledovka!$B$1) -> -444045.188 | N29: =-(1+(Zadání!$B$14*(Výsledovka!$F$1-Výsledovka!$B$1)+Zadání!$B$15*(Výsledovka!N1-Výsledovka!$F$1)))*Výpočty!$B$32*Zadání!$B$70*Zadání!$B$66*(1+Zadání!$B$11)^(Výsledovka!N1-Výsledovka!$B$1)-(1+(Zadání!$B$14*(Výsledovka!$F$1-Výsledovka!$B$1)+Zadání!$B$15*(Výsledovka!N1-Výsledovka!$F$1)))*Výpočty!$B$39*(1-Zadání!$B$70)*Zadání!$B$74*(1+Zadání!$B$11)^(Výsledovka!N1-Výsledovka!$B$1) -> -450635.619 | O29: =-(1+(Zadání!$B$14*(Výsledovka!$F$1-Výsledovka!$B$1)+Zadání!$B$15*(Výsledovka!O1-Výsledovka!$F$1)))*Výpočty!$B$32*Zadání!$B$70*Zadání!$B$66*(1+Zadání!$B$11)^(Výsledovka!O1-Výsledovka!$B$1)-(1+(Zadání!$B$14*(Výsledovka!$F$1-Výsledovka!$B$1)+Zadání!$B$15*(Výsledovka!O1-Výsledovka!$F$1)))*Výpočty!$B$39*(1-Zadání!$B$70)*Zadání!$B$74*(1+Zadání!$B$11)^(Výsledovka!O1-Výsledovka!$B$1) -> -457313.4541 | P29: =-(1+(Zadání!$B$14*(Výsledovka!$F$1-Výsledovka!$B$1)+Zadání!$B$15*(Výsledovka!P1-Výsledovka!$F$1)))*Výpočty!$B$32*Zadání!$B$70*Zadání!$B$66*(1+Zadání!$B$11)^(Výsledovka!P1-Výsledovka!$B$1)-(1+(Zadání!$B$14*(Výsledovka!$F$1-Výsledovka!$B$1)+Zadání!$B$15*(Výsledovka!P1-Výsledovka!$F$1)))*Výpočty!$B$39*(1-Zadání!$B$70)*Zadání!$B$74*(1+Zadání!$B$11)^(Výsledovka!P1-Výsledovka!$B$1) -> -464079.7823 | Q29: =-(1+(Zadání!$B$14*(Výsledovka!$F$1-Výsledovka!$B$1)+Zadání!$B$15*(Výsledovka!$P$1-Výsledovka!$F$1)+Zadání!$B$16*(Výsledovka!Q1-Výsledovka!$P$1)))*Výpočty!$B$32*Zadání!$B$70*Zadání!$B$66*(1+Zadání!$B$11)^(Výsledovka!Q1-Výsledovka!$B$1)-(1+(Zadání!$B$14*(Výsledovka!$F$1-Výsledovka!$B$1)+Zadání!$B$15*(Výsledovka!$P$1-Výsledovka!$F$1)+Zadání!$B$16*(Výsledovka!Q1-Výsledovka!$P$1)))*Výpočty!$B$39*(1-Zadání!$B$70)*Zadání!$B$74*(1+Zadání!$B$11)^(Výsledovka!Q1-Výsledovka!$B$1) -> -472043.2686 | R29: =-(1+(Zadání!$B$14*(Výsledovka!$F$1-Výsledovka!$B$1)+Zadání!$B$15*(Výsledovka!$P$1-Výsledovka!$F$1)+Zadání!$B$16*(Výsledovka!R1-Výsledovka!$P$1)))*Výpočty!$B$32*Zadání!$B$70*Zadání!$B$66*(1+Zadání!$B$11)^(Výsledovka!R1-Výsledovka!$B$1)-(1+(Zadání!$B$14*(Výsledovka!$F$1-Výsledovka!$B$1)+Zadání!$B$15*(Výsledovka!$P$1-Výsledovka!$F$1)+Zadání!$B$16*(Výsledovka!R1-Výsledovka!$P$1)))*Výpočty!$B$39*(1-Zadání!$B$70)*Zadání!$B$74*(1+Zadání!$B$11)^(Výsledovka!R1-Výsledovka!$B$1) -> -480119.6166 | S29: =-(1+(Zadání!$B$14*(Výsledovka!$F$1-Výsledovka!$B$1)+Zadání!$B$15*(Výsledovka!$P$1-Výsledovka!$F$1)+Zadání!$B$16*(Výsledovka!S1-Výsledovka!$P$1)))*Výpočty!$B$32*Zadání!$B$70*Zadání!$B$66*(1+Zadání!$B$11)^(Výsledovka!S1-Výsledovka!$B$1)-(1+(Zadání!$B$14*(Výsledovka!$F$1-Výsledovka!$B$1)+Zadání!$B$15*(Výsledovka!$P$1-Výsledovka!$F$1)+Zadání!$B$16*(Výsledovka!S1-Výsledovka!$P$1)))*Výpočty!$B$39*(1-Zadání!$B$70)*Zadání!$B$74*(1+Zadání!$B$11)^(Výsledovka!S1-Výsledovka!$B$1) -> -488310.2872 | T29: =-(1+(Zadání!$B$14*(Výsledovka!$F$1-Výsledovka!$B$1)+Zadání!$B$15*(Výsledovka!$P$1-Výsledovka!$F$1)+Zadání!$B$16*(Výsledovka!T1-Výsledovka!$P$1)))*Výpočty!$B$32*Zadání!$B$70*Zadání!$B$66*(1+Zadání!$B$11)^(Výsledovka!T1-Výsledovka!$B$1)-(1+(Zadání!$B$14*(Výsledovka!$F$1-Výsledovka!$B$1)+Zadání!$B$15*(Výsledovka!$P$1-Výsledovka!$F$1)+Zadání!$B$16*(Výsledovka!T1-Výsledovka!$P$1)))*Výpočty!$B$39*(1-Zadání!$B$70)*Zadání!$B$74*(1+Zadání!$B$11)^(Výsledovka!T1-Výsledovka!$B$1) -> -496616.7593 | U29: =-(1+(Zadání!$B$14*(Výsledovka!$F$1-Výsledovka!$B$1)+Zadání!$B$15*(Výsledovka!$P$1-Výsledovka!$F$1)+Zadání!$B$16*(Výsledovka!U1-Výsledovka!$P$1)))*Výpočty!$B$32*Zadání!$B$70*Zadání!$B$66*(1+Zadání!$B$11)^(Výsledovka!U1-Výsledovka!$B$1)-(1+(Zadání!$B$14*(Výsledovka!$F$1-Výsledovka!$B$1)+Zadání!$B$15*(Výsledovka!$P$1-Výsledovka!$F$1)+Zadání!$B$16*(Výsledovka!U1-Výsledovka!$P$1)))*Výpočty!$B$39*(1-Zadání!$B$70)*Zadání!$B$74*(1+Zadání!$B$11)^(Výsledovka!U1-Výsledovka!$B$1) -> -505040.5298 | V29: =-(1+(Zadání!$B$14*(Výsledovka!$F$1-Výsledovka!$B$1)+Zadání!$B$15*(Výsledovka!$P$1-Výsledovka!$F$1)+Zadání!$B$16*(Výsledovka!V1-Výsledovka!$P$1)))*Výpočty!$B$32*Zadání!$B$70*Zadání!$B$66*(1+Zadání!$B$11)^(Výsledovka!V1-Výsledovka!$B$1)-(1+(Zadání!$B$14*(Výsledovka!$F$1-Výsledovka!$B$1)+Zadání!$B$15*(Výsledovka!$P$1-Výsledovka!$F$1)+Zadání!$B$16*(Výsledovka!V1-Výsledovka!$P$1)))*Výpočty!$B$39*(1-Zadání!$B$70)*Zadání!$B$74*(1+Zadání!$B$11)^(Výsledovka!V1-Výsledovka!$B$1) -> -513583.114 | W29: =-(1+(Zadání!$B$14*(Výsledovka!$F$1-Výsledovka!$B$1)+Zadání!$B$15*(Výsledovka!$P$1-Výsledovka!$F$1)+Zadání!$B$16*(Výsledovka!W1-Výsledovka!$P$1)))*Výpočty!$B$32*Zadání!$B$70*Zadání!$B$66*(1+Zadání!$B$11)^(Výsledovka!W1-Výsledovka!$B$1)-(1+(Zadání!$B$14*(Výsledovka!$F$1-Výsledovka!$B$1)+Zadání!$B$15*(Výsledovka!$P$1-Výsledovka!$F$1)+Zadání!$B$16*(Výsledovka!W1-Výsledovka!$P$1)))*Výpočty!$B$39*(1-Zadání!$B$70)*Zadání!$B$74*(1+Zadání!$B$11)^(Výsledovka!W1-Výsledovka!$B$1) -> -522246.0458 | X29: =-(1+(Zadání!$B$14*(Výsledovka!$F$1-Výsledovka!$B$1)+Zadání!$B$15*(Výsledovka!$P$1-Výsledovka!$F$1)+Zadání!$B$16*(Výsledovka!X1-Výsledovka!$P$1)))*Výpočty!$B$32*Zadání!$B$70*Zadání!$B$66*(1+Zadání!$B$11)^(Výsledovka!X1-Výsledovka!$B$1)-(1+(Zadání!$B$14*(Výsledovka!$F$1-Výsledovka!$B$1)+Zadání!$B$15*(Výsledovka!$P$1-Výsledovka!$F$1)+Zadání!$B$16*(Výsledovka!X1-Výsledovka!$P$1)))*Výpočty!$B$39*(1-Zadání!$B$70)*Zadání!$B$74*(1+Zadání!$B$11)^(Výsledovka!X1-Výsledovka!$B$1) -> -531030.878 | Y29: =-(1+(Zadání!$B$14*(Výsledovka!$F$1-Výsledovka!$B$1)+Zadání!$B$15*(Výsledovka!$P$1-Výsledovka!$F$1)+Zadání!$B$16*(Výsledovka!Y1-Výsledovka!$P$1)))*Výpočty!$B$32*Zadání!$B$70*Zadání!$B$66*(1+Zadání!$B$11)^(Výsledovka!Y1-Výsledovka!$B$1)-(1+(Zadání!$B$14*(Výsledovka!$F$1-Výsledovka!$B$1)+Zadání!$B$15*(Výsledovka!$P$1-Výsledovka!$F$1)+Zadání!$B$16*(Výsledovka!Y1-Výsledovka!$P$1)))*Výpočty!$B$39*(1-Zadání!$B$70)*Zadání!$B$74*(1+Zadání!$B$11)^(Výsledovka!Y1-Výsledovka!$B$1) -> -539939.1822 | Z29: =-(1+(Zadání!$B$14*(Výsledovka!$F$1-Výsledovka!$B$1)+Zadání!$B$15*(Výsledovka!$P$1-Výsledovka!$F$1)+Zadání!$B$16*(Výsledovka!Z1-Výsledovka!$P$1)))*Výpočty!$B$32*Zadání!$B$70*Zadání!$B$66*(1+Zadání!$B$11)^(Výsledovka!Z1-Výsledovka!$B$1)-(1+(Zadání!$B$14*(Výsledovka!$F$1-Výsledovka!$B$1)+Zadání!$B$15*(Výsledovka!$P$1-Výsledovka!$F$1)+Zadání!$B$16*(Výsledovka!Z1-Výsledovka!$P$1)))*Výpočty!$B$39*(1-Zadání!$B$70)*Zadání!$B$74*(1+Zadání!$B$11)^(Výsledovka!Z1-Výsledovka!$B$1) -> -548972.5494 | AA29: =-(1+(Zadání!$B$14*(Výsledovka!$F$1-Výsledovka!$B$1)+Zadání!$B$15*(Výsledovka!$P$1-Výsledovka!$F$1)+Zadání!$B$16*(Výsledovka!AA1-Výsledovka!$P$1)))*Výpočty!$B$32*Zadání!$B$70*Zadání!$B$66*(1+Zadání!$B$11)^(Výsledovka!AA1-Výsledovka!$B$1)-(1+(Zadání!$B$14*(Výsledovka!$F$1-Výsledovka!$B$1)+Zadání!$B$15*(Výsledovka!$P$1-Výsledovka!$F$1)+Zadání!$B$16*(Výsledovka!AA1-Výsledovka!$P$1)))*Výpočty!$B$39*(1-Zadání!$B$70)*Zadání!$B$74*(1+Zadání!$B$11)^(Výsledovka!AA1-Výsledovka!$B$1) -> -558132.5901 | AB29: =-(1+(Zadání!$B$14*(Výsledovka!$F$1-Výsledovka!$B$1)+Zadání!$B$15*(Výsledovka!$P$1-Výsledovka!$F$1)+Zadání!$B$16*(Výsledovka!AB1-Výsledovka!$P$1)))*Výpočty!$B$32*Zadání!$B$70*Zadání!$B$66*(1+Zadání!$B$11)^(Výsledovka!AB1-Výsledovka!$B$1)-(1+(Zadání!$B$14*(Výsledovka!$F$1-Výsledovka!$B$1)+Zadání!$B$15*(Výsledovka!$P$1-Výsledovka!$F$1)+Zadání!$B$16*(Výsledovka!AB1-Výsledovka!$P$1)))*Výpočty!$B$39*(1-Zadání!$B$70)*Zadání!$B$74*(1+Zadání!$B$11)^(Výsledovka!AB1-Výsledovka!$B$1) -> -567420.9343 | AC29: =-(1+(Zadání!$B$14*(Výsledovka!$F$1-Výsledovka!$B$1)+Zadání!$B$15*(Výsledovka!$P$1-Výsledovka!$F$1)+Zadání!$B$16*(Výsledovka!AC1-Výsledovka!$P$1)))*Výpočty!$B$32*Zadání!$B$70*Zadání!$B$66*(1+Zadání!$B$11)^(Výsledovka!AC1-Výsledovka!$B$1)-(1+(Zadání!$B$14*(Výsledovka!$F$1-Výsledovka!$B$1)+Zadání!$B$15*(Výsledovka!$P$1-Výsledovka!$F$1)+Zadání!$B$16*(Výsledovka!AC1-Výsledovka!$P$1)))*Výpočty!$B$39*(1-Zadání!$B$70)*Zadání!$B$74*(1+Zadání!$B$11)^(Výsledovka!AC1-Výsledovka!$B$1) -> -576839.2321 | AD29: =-(1+(Zadání!$B$14*(Výsledovka!$F$1-Výsledovka!$B$1)+Zadání!$B$15*(Výsledovka!$P$1-Výsledovka!$F$1)+Zadání!$B$16*(Výsledovka!AD1-Výsledovka!$P$1)))*Výpočty!$B$32*Zadání!$B$70*Zadání!$B$66*(1+Zadání!$B$11)^(Výsledovka!AD1-Výsledovka!$B$1)-(1+(Zadání!$B$14*(Výsledovka!$F$1-Výsledovka!$B$1)+Zadání!$B$15*(Výsledovka!$P$1-Výsledovka!$F$1)+Zadání!$B$16*(Výsledovka!AD1-Výsledovka!$P$1)))*Výpočty!$B$39*(1-Zadání!$B$70)*Zadání!$B$74*(1+Zadání!$B$11)^(Výsledovka!AD1-Výsledovka!$B$1) -> -586389.1538 | AE29: =-(1+(Zadání!$B$14*(Výsledovka!$F$1-Výsledovka!$B$1)+Zadání!$B$15*(Výsledovka!$P$1-Výsledovka!$F$1)+Zadání!$B$16*(Výsledovka!AE1-Výsledovka!$P$1)))*Výpočty!$B$32*Zadání!$B$70*Zadání!$B$66*(1+Zadání!$B$11)^(Výsledovka!AE1-Výsledovka!$B$1)-(1+(Zadání!$B$14*(Výsledovka!$F$1-Výsledovka!$B$1)+Zadání!$B$15*(Výsledovka!$P$1-Výsledovka!$F$1)+Zadání!$B$16*(Výsledovka!AE1-Výsledovka!$P$1)))*Výpočty!$B$39*(1-Zadání!$B$70)*Zadání!$B$74*(1+Zadání!$B$11)^(Výsledovka!AE1-Výsledovka!$B$1) -> -596072.39
A30: Elektřina | B30: =IF(Zadání!$B$78>Zadání!$B$79,-Zadání!$B$4*(Zadání!$B$78-Zadání!$B$79)*(1+Zadání!$B$8)^(Výsledovka!B$1-Výsledovka!$B$1),0) -> 0 | C30: =IF(Zadání!$B$78>Zadání!$B$79,-Zadání!$B$4*(Zadání!$B$78-Zadání!$B$79)*(1+Zadání!$B$8)^(Výsledovka!C$1-Výsledovka!$B$1),0) -> 0 | D30: =IF(Zadání!$B$78>Zadání!$B$79,-Zadání!$B$4*(Zadání!$B$78-Zadání!$B$79)*(1+Zadání!$B$8)^(Výsledovka!D$1-Výsledovka!$B$1),0) -> 0 | E30: =IF(Zadání!$B$78>Zadání!$B$79,-Zadání!$B$4*(Zadání!$B$78-Zadání!$B$79)*(1+Zadání!$B$8)^(Výsledovka!E$1-Výsledovka!$B$1),0) -> 0 | F30: =IF(Zadání!$B$78>Zadání!$B$79,-Zadání!$B$4*(Zadání!$B$78-Zadání!$B$79)*(1+Zadání!$B$8)^(Výsledovka!F$1-Výsledovka!$B$1),0) -> 0 | G30: =IF(Zadání!$B$78>Zadání!$B$79,-Zadání!$B$4*(Zadání!$B$78-Zadání!$B$79)*(1+Zadání!$B$8)^(Výsledovka!G$1-Výsledovka!$B$1),0) -> 0 | H30: =IF(Zadání!$B$78>Zadání!$B$79,-Zadání!$B$4*(Zadání!$B$78-Zadání!$B$79)*(1+Zadání!$B$8)^(Výsledovka!H$1-Výsledovka!$B$1),0) -> 0 | I30: =IF(Zadání!$B$78>Zadání!$B$79,-Zadání!$B$4*(Zadání!$B$78-Zadání!$B$79)*(1+Zadání!$B$8)^(Výsledovka!I$1-Výsledovka!$B$1),0) -> 0 | J30: =IF(Zadání!$B$78>Zadání!$B$79,-Zadání!$B$4*(Zadání!$B$78-Zadání!$B$79)*(1+Zadání!$B$8)^(Výsledovka!J$1-Výsledovka!$B$1),0) -> 0 | K30: =IF(Zadání!$B$78>Zadání!$B$79,-Zadání!$B$4*(Zadání!$B$78-Zadání!$B$79)*(1+Zadání!$B$8)^(Výsledovka!K$1-Výsledovka!$B$1),0) -> 0 | L30: =IF(Zadání!$B$78>Zadání!$B$79,-Zadání!$B$4*(Zadání!$B$78-Zadání!$B$79)*(1+Zadání!$B$8)^(Výsledovka!L$1-Výsledovka!$B$1),0) -> 0 | M30: =IF(Zadání!$B$78>Zadání!$B$79,-Zadání!$B$4*(Zadání!$B$78-Zadání!$B$79)*(1+Zadání!$B$8)^(Výsledovka!M$1-Výsledovka!$B$1),0) -> 0 | N30: =IF(Zadání!$B$78>Zadání!$B$79,-Zadání!$B$4*(Zadání!$B$78-Zadání!$B$79)*(1+Zadání!$B$8)^(Výsledovka!N$1-Výsledovka!$B$1),0) -> 0 | O30: =IF(Zadání!$B$78>Zadání!$B$79,-Zadání!$B$4*(Zadání!$B$78-Zadání!$B$79)*(1+Zadání!$B$8)^(Výsledovka!O$1-Výsledovka!$B$1),0) -> 0 | P30: =IF(Zadání!$B$78>Zadání!$B$79,-Zadání!$B$4*(Zadání!$B$78-Zadání!$B$79)*(1+Zadání!$B$8)^(Výsledovka!P$1-Výsledovka!$B$1),0) -> 0 | Q30: =IF(Zadání!$B$78>Zadání!$B$79,-Zadání!$B$4*(Zadání!$B$78-Zadání!$B$79)*(1+Zadání!$B$8)^(Výsledovka!Q$1-Výsledovka!$B$1),0) -> 0 | R30: =IF(Zadání!$B$78>Zadání!$B$79,-Zadání!$B$4*(Zadání!$B$78-Zadání!$B$79)*(1+Zadání!$B$8)^(Výsledovka!R$1-Výsledovka!$B$1),0) -> 0 | S30: =IF(Zadání!$B$78>Zadání!$B$79,-Zadání!$B$4*(Zadání!$B$78-Zadání!$B$79)*(1+Zadání!$B$8)^(Výsledovka!S$1-Výsledovka!$B$1),0) -> 0 | T30: =IF(Zadání!$B$78>Zadání!$B$79,-Zadání!$B$4*(Zadání!$B$78-Zadání!$B$79)*(1+Zadání!$B$8)^(Výsledovka!T$1-Výsledovka!$B$1),0) -> 0 | U30: =IF(Zadání!$B$78>Zadání!$B$79,-Zadání!$B$4*(Zadání!$B$78-Zadání!$B$79)*(1+Zadání!$B$8)^(Výsledovka!U$1-Výsledovka!$B$1),0) -> 0 | V30: =IF(Zadání!$B$78>Zadání!$B$79,-Zadání!$B$4*(Zadání!$B$78-Zadání!$B$79)*(1+Zadání!$B$8)^(Výsledovka!V$1-Výsledovka!$B$1),0) -> 0 | W30: =IF(Zadání!$B$78>Zadání!$B$79,-Zadání!$B$4*(Zadání!$B$78-Zadání!$B$79)*(1+Zadání!$B$8)^(Výsledovka!W$1-Výsledovka!$B$1),0) -> 0 | X30: =IF(Zadání!$B$78>Zadání!$B$79,-Zadání!$B$4*(Zadání!$B$78-Zadání!$B$79)*(1+Zadání!$B$8)^(Výsledovka!X$1-Výsledovka!$B$1),0) -> 0 | Y30: =IF(Zadání!$B$78>Zadání!$B$79,-Zadání!$B$4*(Zadání!$B$78-Zadání!$B$79)*(1+Zadání!$B$8)^(Výsledovka!Y$1-Výsledovka!$B$1),0) -> 0 | Z30: =IF(Zadání!$B$78>Zadání!$B$79,-Zadání!$B$4*(Zadání!$B$78-Zadání!$B$79)*(1+Zadání!$B$8)^(Výsledovka!Z$1-Výsledovka!$B$1),0) -> 0 | AA30: =IF(Zadání!$B$78>Zadání!$B$79,-Zadání!$B$4*(Zadání!$B$78-Zadání!$B$79)*(1+Zadání!$B$8)^(Výsledovka!AA$1-Výsledovka!$B$1),0) -> 0 | AB30: =IF(Zadání!$B$78>Zadání!$B$79,-Zadání!$B$4*(Zadání!$B$78-Zadání!$B$79)*(1+Zadání!$B$8)^(Výsledovka!AB$1-Výsledovka!$B$1),0) -> 0 | AC30: =IF(Zadání!$B$78>Zadání!$B$79,-Zadání!$B$4*(Zadání!$B$78-Zadání!$B$79)*(1+Zadání!$B$8)^(Výsledovka!AC$1-Výsledovka!$B$1),0) -> 0 | AD30: =IF(Zadání!$B$78>Zadání!$B$79,-Zadání!$B$4*(Zadání!$B$78-Zadání!$B$79)*(1+Zadání!$B$8)^(Výsledovka!AD$1-Výsledovka!$B$1),0) -> 0 | AE30: =IF(Zadání!$B$78>Zadání!$B$79,-Zadání!$B$4*(Zadání!$B$78-Zadání!$B$79)*(1+Zadání!$B$8)^(Výsledovka!AE$1-Výsledovka!$B$1),0) -> 0
A31: Povolenky | B31: =-Výpočty!$B$41*Zadání!$B$7*(1+Zadání!$B$10)^(Výsledovka!B$1-Výsledovka!$B$1) -> -839532.0808 | C31: =-(1+(Zadání!$B$14*(Výsledovka!C1-Výsledovka!$B$1)))*Výpočty!$B$41*Zadání!$B$7*(1+Zadání!$B$10)^(Výsledovka!C$1-Výsledovka!$B$1) -> -849623.2564 | D31: =-(1+(Zadání!$B$14*(Výsledovka!D1-Výsledovka!$B$1)))*Výpočty!$B$41*Zadání!$B$7*(1+Zadání!$B$10)^(Výsledovka!D$1-Výsledovka!$B$1) -> -859832.3023 | E31: =-(1+(Zadání!$B$14*(Výsledovka!E1-Výsledovka!$B$1)))*Výpočty!$B$41*Zadání!$B$7*(1+Zadání!$B$10)^(Výsledovka!E$1-Výsledovka!$B$1) -> -870160.5669 | F31: =-(1+(Zadání!$B$14*(Výsledovka!F1-Výsledovka!$B$1)))*Výpočty!$B$41*Zadání!$B$7*(1+Zadání!$B$10)^(Výsledovka!F$1-Výsledovka!$B$1) -> -880609.4134 | G31: =-(1+(Zadání!$B$14*(Výsledovka!$F$1-Výsledovka!$B$1)+Zadání!$B$15*(Výsledovka!G1-Výsledovka!$F$1)))*Výpočty!$B$41*Zadání!$B$7*(1+Zadání!$B$10)^(Výsledovka!G$1-Výsledovka!$B$1) -> -893827.2908 | H31: =-(1+(Zadání!$B$14*(Výsledovka!$F$1-Výsledovka!$B$1)+Zadání!$B$15*(Výsledovka!H1-Výsledovka!$F$1)))*Výpočty!$B$41*Zadání!$B$7*(1+Zadání!$B$10)^(Výsledovka!H$1-Výsledovka!$B$1) -> -907221.4648 | I31: =-(1+(Zadání!$B$14*(Výsledovka!$F$1-Výsledovka!$B$1)+Zadání!$B$15*(Výsledovka!I1-Výsledovka!$F$1)))*Výpočty!$B$41*Zadání!$B$7*(1+Zadání!$B$10)^(Výsledovka!I$1-Výsledovka!$B$1) -> -920794.1396 | J31: =-(1+(Zadání!$B$14*(Výsledovka!$F$1-Výsledovka!$B$1)+Zadání!$B$15*(Výsledovka!J1-Výsledovka!$F$1)))*Výpočty!$B$41*Zadání!$B$7*(1+Zadání!$B$10)^(Výsledovka!J$1-Výsledovka!$B$1) -> -934547.5457 | K31: =-(1+(Zadání!$B$14*(Výsledovka!$F$1-Výsledovka!$B$1)+Zadání!$B$15*(Výsledovka!K1-Výsledovka!$F$1)))*Výpočty!$B$41*Zadání!$B$7*(1+Zadání!$B$10)^(Výsledovka!K$1-Výsledovka!$B$1) -> -948483.9405 | L31: =-(1+(Zadání!$B$14*(Výsledovka!$F$1-Výsledovka!$B$1)+Zadání!$B$15*(Výsledovka!L1-Výsledovka!$F$1)))*Výpočty!$B$41*Zadání!$B$7*(1+Zadání!$B$10)^(Výsledovka!L$1-Výsledovka!$B$1) -> -962605.6085 | M31: =-(1+(Zadání!$B$14*(Výsledovka!$F$1-Výsledovka!$B$1)+Zadání!$B$15*(Výsledovka!M1-Výsledovka!$F$1)))*Výpočty!$B$41*Zadání!$B$7*(1+Zadání!$B$10)^(Výsledovka!M$1-Výsledovka!$B$1) -> -976914.8614 | N31: =-(1+(Zadání!$B$14*(Výsledovka!$F$1-Výsledovka!$B$1)+Zadání!$B$15*(Výsledovka!N1-Výsledovka!$F$1)))*Výpočty!$B$41*Zadání!$B$7*(1+Zadání!$B$10)^(Výsledovka!N$1-Výsledovka!$B$1) -> -991414.0389 | O31: =-(1+(Zadání!$B$14*(Výsledovka!$F$1-Výsledovka!$B$1)+Zadání!$B$15*(Výsledovka!O1-Výsledovka!$F$1)))*Výpočty!$B$41*Zadání!$B$7*(1+Zadání!$B$10)^(Výsledovka!O$1-Výsledovka!$B$1) -> -1006105.508 | P31: =-(1+(Zadání!$B$14*(Výsledovka!$F$1-Výsledovka!$B$1)+Zadání!$B$15*(Výsledovka!P1-Výsledovka!$F$1)))*Výpočty!$B$41*Zadání!$B$7*(1+Zadání!$B$10)^(Výsledovka!P$1-Výsledovka!$B$1) -> -1020991.666 | Q31: =-(1+(Zadání!$B$14*(Výsledovka!$F$1-Výsledovka!$B$1)+Zadání!$B$15*(Výsledovka!$P$1-Výsledovka!$F$1)+Zadání!$B$16*(Výsledovka!Q1-Výsledovka!$P$1)))*Výpočty!$B$41*Zadání!$B$7*(1+Zadání!$B$10)^(Výsledovka!Q$1-Výsledovka!$B$1) -> -1038511.613 | R31: =-(1+(Zadání!$B$14*(Výsledovka!$F$1-Výsledovka!$B$1)+Zadání!$B$15*(Výsledovka!$P$1-Výsledovka!$F$1)+Zadání!$B$16*(Výsledovka!R1-Výsledovka!$P$1)))*Výpočty!$B$41*Zadání!$B$7*(1+Zadání!$B$10)^(Výsledovka!R$1-Výsledovka!$B$1) -> -1056279.859 | S31: =-(1+(Zadání!$B$14*(Výsledovka!$F$1-Výsledovka!$B$1)+Zadání!$B$15*(Výsledovka!$P$1-Výsledovka!$F$1)+Zadání!$B$16*(Výsledovka!S1-Výsledovka!$P$1)))*Výpočty!$B$41*Zadání!$B$7*(1+Zadání!$B$10)^(Výsledovka!S$1-Výsledovka!$B$1) -> -1074299.619 | T31: =-(1+(Zadání!$B$14*(Výsledovka!$F$1-Výsledovka!$B$1)+Zadání!$B$15*(Výsledovka!$P$1-Výsledovka!$F$1)+Zadání!$B$16*(Výsledovka!T1-Výsledovka!$P$1)))*Výpočty!$B$41*Zadání!$B$7*(1+Zadání!$B$10)^(Výsledovka!T$1-Výsledovka!$B$1) -> -1092574.147 | U31: =-(1+(Zadání!$B$14*(Výsledovka!$F$1-Výsledovka!$B$1)+Zadání!$B$15*(Výsledovka!$P$1-Výsledovka!$F$1)+Zadání!$B$16*(Výsledovka!U1-Výsledovka!$P$1)))*Výpočty!$B$41*Zadání!$B$7*(1+Zadání!$B$10)^(Výsledovka!U$1-Výsledovka!$B$1) -> -1111106.735 | V31: =-(1+(Zadání!$B$14*(Výsledovka!$F$1-Výsledovka!$B$1)+Zadání!$B$15*(Výsledovka!$P$1-Výsledovka!$F$1)+Zadání!$B$16*(Výsledovka!V1-Výsledovka!$P$1)))*Výpočty!$B$41*Zadání!$B$7*(1+Zadání!$B$10)^(Výsledovka!V$1-Výsledovka!$B$1) -> -1129900.718 | W31: =-(1+(Zadání!$B$14*(Výsledovka!$F$1-Výsledovka!$B$1)+Zadání!$B$15*(Výsledovka!$P$1-Výsledovka!$F$1)+Zadání!$B$16*(Výsledovka!W1-Výsledovka!$P$1)))*Výpočty!$B$41*Zadání!$B$7*(1+Zadání!$B$10)^(Výsledovka!W$1-Výsledovka!$B$1) -> -1148959.469 | X31: =-(1+(Zadání!$B$14*(Výsledovka!$F$1-Výsledovka!$B$1)+Zadání!$B$15*(Výsledovka!$P$1-Výsledovka!$F$1)+Zadání!$B$16*(Výsledovka!X1-Výsledovka!$P$1)))*Výpočty!$B$41*Zadání!$B$7*(1+Zadání!$B$10)^(Výsledovka!X$1-Výsledovka!$B$1) -> -1168286.405 | Y31: =-(1+(Zadání!$B$14*(Výsledovka!$F$1-Výsledovka!$B$1)+Zadání!$B$15*(Výsledovka!$P$1-Výsledovka!$F$1)+Zadání!$B$16*(Výsledovka!Y1-Výsledovka!$P$1)))*Výpočty!$B$41*Zadání!$B$7*(1+Zadání!$B$10)^(Výsledovka!Y$1-Výsledovka!$B$1) -> -1187884.985 | Z31: =-(1+(Zadání!$B$14*(Výsledovka!$F$1-Výsledovka!$B$1)+Zadání!$B$15*(Výsledovka!$P$1-Výsledovka!$F$1)+Zadání!$B$16*(Výsledovka!Z1-Výsledovka!$P$1)))*Výpočty!$B$41*Zadání!$B$7*(1+Zadání!$B$10)^(Výsledovka!Z$1-Výsledovka!$B$1) -> -1207758.707 | AA31: =-(1+(Zadání!$B$14*(Výsledovka!$F$1-Výsledovka!$B$1)+Zadání!$B$15*(Výsledovka!$P$1-Výsledovka!$F$1)+Zadání!$B$16*(Výsledovka!AA1-Výsledovka!$P$1)))*Výpočty!$B$41*Zadání!$B$7*(1+Zadání!$B$10)^(Výsledovka!AA$1-Výsledovka!$B$1) -> -1227911.115 | AB31: =-(1+(Zadání!$B$14*(Výsledovka!$F$1-Výsledovka!$B$1)+Zadání!$B$15*(Výsledovka!$P$1-Výsledovka!$F$1)+Zadání!$B$16*(Výsledovka!AB1-Výsledovka!$P$1)))*Výpočty!$B$41*Zadání!$B$7*(1+Zadání!$B$10)^(Výsledovka!AB$1-Výsledovka!$B$1) -> -1248345.795 | AC31: =-(1+(Zadání!$B$14*(Výsledovka!$F$1-Výsledovka!$B$1)+Zadání!$B$15*(Výsledovka!$P$1-Výsledovka!$F$1)+Zadání!$B$16*(Výsledovka!AC1-Výsledovka!$P$1)))*Výpočty!$B$41*Zadání!$B$7*(1+Zadání!$B$10)^(Výsledovka!AC$1-Výsledovka!$B$1) -> -1269066.378 | AD31: =-(1+(Zadání!$B$14*(Výsledovka!$F$1-Výsledovka!$B$1)+Zadání!$B$15*(Výsledovka!$P$1-Výsledovka!$F$1)+Zadání!$B$16*(Výsledovka!AD1-Výsledovka!$P$1)))*Výpočty!$B$41*Zadání!$B$7*(1+Zadání!$B$10)^(Výsledovka!AD$1-Výsledovka!$B$1) -> -1290076.538 | AE31: =-(1+(Zadání!$B$14*(Výsledovka!$F$1-Výsledovka!$B$1)+Zadání!$B$15*(Výsledovka!$P$1-Výsledovka!$F$1)+Zadání!$B$16*(Výsledovka!AE1-Výsledovka!$P$1)))*Výpočty!$B$41*Zadání!$B$7*(1+Zadání!$B$10)^(Výsledovka!AE$1-Výsledovka!$B$1) -> -1311379.995
A32: Zaměstnanci | B32: =-Zadání!$B$18*12*Zadání!$B$19*(1+Zadání!$B$21)^(Výsledovka!B$1-Výsledovka!$B$1) -> -2400000 | C32: =-Zadání!$B$18*12*Zadání!$B$19*(1+Zadání!$B$21)^(Výsledovka!C$1-Výsledovka!$B$1) -> -2460000 | D32: =-Zadání!$B$18*12*Zadání!$B$19*(1+Zadání!$B$21)^(Výsledovka!D$1-Výsledovka!$B$1) -> -2521500 | E32: =-Zadání!$B$18*12*Zadání!$B$19*(1+Zadání!$B$21)^(Výsledovka!E$1-Výsledovka!$B$1) -> -2584537.5 | F32: =-Zadání!$B$18*12*Zadání!$B$19*(1+Zadání!$B$21)^(Výsledovka!F$1-Výsledovka!$B$1) -> -2649150.937 | G32: =-Zadání!$B$18*12*Zadání!$B$19*(1+Zadání!$B$21)^(Výsledovka!G$1-Výsledovka!$B$1) -> -2715379.711 | H32: =-Zadání!$B$18*12*Zadání!$B$19*(1+Zadání!$B$21)^(Výsledovka!H$1-Výsledovka!$B$1) -> -2783264.204 | I32: =-Zadání!$B$18*12*Zadání!$B$19*(1+Zadání!$B$21)^(Výsledovka!I$1-Výsledovka!$B$1) -> -2852845.809 | J32: =-Zadání!$B$18*12*Zadání!$B$19*(1+Zadání!$B$21)^(Výsledovka!J$1-Výsledovka!$B$1) -> -2924166.954 | K32: =-Zadání!$B$18*12*Zadání!$B$19*(1+Zadání!$B$21)^(Výsledovka!K$1-Výsledovka!$B$1) -> -2997271.128 | L32: =-Zadání!$B$18*12*Zadání!$B$19*(1+Zadání!$B$21)^(Výsledovka!L$1-Výsledovka!$B$1) -> -3072202.906 | M32: =-Zadání!$B$18*12*Zadání!$B$19*(1+Zadání!$B$21)^(Výsledovka!M$1-Výsledovka!$B$1) -> -3149007.979 | N32: =-Zadání!$B$18*12*Zadání!$B$19*(1+Zadání!$B$21)^(Výsledovka!N$1-Výsledovka!$B$1) -> -3227733.178 | O32: =-Zadání!$B$18*12*Zadání!$B$19*(1+Zadání!$B$21)^(Výsledovka!O$1-Výsledovka!$B$1) -> -3308426.508 | P32: =-Zadání!$B$18*12*Zadání!$B$19*(1+Zadání!$B$21)^(Výsledovka!P$1-Výsledovka!$B$1) -> -3391137.17 | Q32: =-Zadání!$B$18*12*Zadání!$B$19*(1+Zadání!$B$21)^(Výsledovka!Q$1-Výsledovka!$B$1) -> -3475915.6 | R32: =-Zadání!$B$18*12*Zadání!$B$19*(1+Zadání!$B$21)^(Výsledovka!R$1-Výsledovka!$B$1) -> -3562813.49 | S32: =-Zadání!$B$18*12*Zadání!$B$19*(1+Zadání!$B$21)^(Výsledovka!S$1-Výsledovka!$B$1) -> -3651883.827 | T32: =-Zadání!$B$18*12*Zadání!$B$19*(1+Zadání!$B$21)^(Výsledovka!T$1-Výsledovka!$B$1) -> -3743180.922 | U32: =-Zadání!$B$18*12*Zadání!$B$19*(1+Zadání!$B$21)^(Výsledovka!U$1-Výsledovka!$B$1) -> -3836760.446 | V32: =-Zadání!$B$18*12*Zadání!$B$19*(1+Zadání!$B$21)^(Výsledovka!V$1-Výsledovka!$B$1) -> -3932679.457 | W32: =-Zadání!$B$18*12*Zadání!$B$19*(1+Zadání!$B$21)^(Výsledovka!W$1-Výsledovka!$B$1) -> -4030996.443 | X32: =-Zadání!$B$18*12*Zadání!$B$19*(1+Zadání!$B$21)^(Výsledovka!X$1-Výsledovka!$B$1) -> -4131771.354 | Y32: =-Zadání!$B$18*12*Zadání!$B$19*(1+Zadání!$B$21)^(Výsledovka!Y$1-Výsledovka!$B$1) -> -4235065.638 | Z32: =-Zadání!$B$18*12*Zadání!$B$19*(1+Zadání!$B$21)^(Výsledovka!Z$1-Výsledovka!$B$1) -> -4340942.279 | AA32: =-Zadání!$B$18*12*Zadání!$B$19*(1+Zadání!$B$21)^(Výsledovka!AA$1-Výsledovka!$B$1) -> -4449465.836 | AB32: =-Zadání!$B$18*12*Zadání!$B$19*(1+Zadání!$B$21)^(Výsledovka!AB$1-Výsledovka!$B$1) -> -4560702.482 | AC32: =-Zadání!$B$18*12*Zadání!$B$19*(1+Zadání!$B$21)^(Výsledovka!AC$1-Výsledovka!$B$1) -> -4674720.044 | AD32: =-Zadání!$B$18*12*Zadání!$B$19*(1+Zadání!$B$21)^(Výsledovka!AD$1-Výsledovka!$B$1) -> -4791588.045 | AE32: =-Zadání!$B$18*12*Zadání!$B$19*(1+Zadání!$B$21)^(Výsledovka!AE$1-Výsledovka!$B$1) -> -4911377.746
A33: Pojištění | B33: =-Zadání!$C$85*Zadání!$B$22 -> -400000 | C33: =-Zadání!$C$85*Zadání!$B$22 -> -400000 | D33: =-Zadání!$C$85*Zadání!$B$22 -> -400000 | E33: =-Zadání!$C$85*Zadání!$B$22 -> -400000 | F33: =-Zadání!$C$85*Zadání!$B$22 -> -400000 | G33: =-Zadání!$C$85*Zadání!$B$22 -> -400000 | H33: =-Zadání!$C$85*Zadání!$B$22 -> -400000 | I33: =-Zadání!$C$85*Zadání!$B$22 -> -400000 | J33: =-Zadání!$C$85*Zadání!$B$22 -> -400000 | K33: =-Zadání!$C$85*Zadání!$B$22 -> -400000 | L33: =-Zadání!$C$85*Zadání!$B$22 -> -400000 | M33: =-Zadání!$C$85*Zadání!$B$22 -> -400000 | N33: =-Zadání!$C$85*Zadání!$B$22 -> -400000 | O33: =-Zadání!$C$85*Zadání!$B$22 -> -400000 | P33: =-Zadání!$C$85*Zadání!$B$22 -> -400000 | Q33: =-Zadání!$C$85*Zadání!$B$22 -> -400000 | R33: =-Zadání!$C$85*Zadání!$B$22 -> -400000 | S33: =-Zadání!$C$85*Zadání!$B$22 -> -400000 | T33: =-Zadání!$C$85*Zadání!$B$22 -> -400000 | U33: =-Zadání!$C$85*Zadání!$B$22 -> -400000 | V33: =-Zadání!$C$85*Zadání!$B$22 -> -400000 | W33: =-Zadání!$C$85*Zadání!$B$22 -> -400000 | X33: =-Zadání!$C$85*Zadání!$B$22 -> -400000 | Y33: =-Zadání!$C$85*Zadání!$B$22 -> -400000 | Z33: =-Zadání!$C$85*Zadání!$B$22 -> -400000 | AA33: =-Zadání!$C$85*Zadání!$B$22 -> -400000 | AB33: =-Zadání!$C$85*Zadání!$B$22 -> -400000 | AC33: =-Zadání!$C$85*Zadání!$B$22 -> -400000 | AD33: =-Zadání!$C$85*Zadání!$B$22 -> -400000 | AE33: =-Zadání!$C$85*Zadání!$B$22 -> -400000
A34: Náklady na provoz | B34: =-Zadání!$B$55*Zadání!$C$85 -> -1600000 | C34: =-Zadání!$B$55*Zadání!$C$85 -> -1600000 | D34: =-Zadání!$B$55*Zadání!$C$85 -> -1600000 | E34: =-Zadání!$B$55*Zadání!$C$85 -> -1600000 | F34: =-Zadání!$B$55*Zadání!$C$85 -> -1600000 | G34: =-Zadání!$B$55*Zadání!$C$85 -> -1600000 | H34: =-Zadání!$B$55*Zadání!$C$85 -> -1600000 | I34: =-Zadání!$B$55*Zadání!$C$85 -> -1600000 | J34: =-Zadání!$B$55*Zadání!$C$85 -> -1600000 | K34: =-Zadání!$B$55*Zadání!$C$85 -> -1600000 | L34: =-Zadání!$B$55*Zadání!$C$85 -> -1600000 | M34: =-Zadání!$B$55*Zadání!$C$85 -> -1600000 | N34: =-Zadání!$B$55*Zadání!$C$85 -> -1600000 | O34: =-Zadání!$B$55*Zadání!$C$85 -> -1600000 | P34: =-Zadání!$B$55*Zadání!$C$85 -> -1600000 | Q34: =-Zadání!$B$55*Zadání!$C$85 -> -1600000 | R34: =-Zadání!$B$55*Zadání!$C$85 -> -1600000 | S34: =-Zadání!$B$55*Zadání!$C$85 -> -1600000 | T34: =-Zadání!$B$55*Zadání!$C$85 -> -1600000 | U34: =-Zadání!$B$55*Zadání!$C$85 -> -1600000 | V34: =-Zadání!$B$55*Zadání!$C$85 -> -1600000 | W34: =-Zadání!$B$55*Zadání!$C$85 -> -1600000 | X34: =-Zadání!$B$55*Zadání!$C$85 -> -1600000 | Y34: =-Zadání!$B$55*Zadání!$C$85 -> -1600000 | Z34: =-Zadání!$B$55*Zadání!$C$85 -> -1600000 | AA34: =-Zadání!$B$55*Zadání!$C$85 -> -1600000 | AB34: =-Zadání!$B$55*Zadání!$C$85 -> -1600000 | AC34: =-Zadání!$B$55*Zadání!$C$85 -> -1600000 | AD34: =-Zadání!$B$55*Zadání!$C$85 -> -1600000 | AE34: =-Zadání!$B$55*Zadání!$C$85 -> -1600000
A35: Náklady na údržbu | B35: =-Zadání!$C$85*Zadání!$B$56 -> -1200000 | C35: =-Zadání!$C$85*Zadání!$B$56 -> -1200000 | D35: =-Zadání!$C$85*Zadání!$B$56 -> -1200000 | E35: =-Zadání!$C$85*Zadání!$B$56 -> -1200000 | F35: =-Zadání!$C$85*Zadání!$B$56 -> -1200000 | G35: =-Zadání!$C$85*Zadání!$B$56 -> -1200000 | H35: =-Zadání!$C$85*Zadání!$B$56 -> -1200000 | I35: =-Zadání!$C$85*Zadání!$B$56 -> -1200000 | J35: =-Zadání!$C$85*Zadání!$B$56 -> -1200000 | K35: =-Zadání!$C$85*Zadání!$B$56 -> -1200000 | L35: =-Zadání!$C$85*Zadání!$B$56 -> -1200000 | M35: =-Zadání!$C$85*Zadání!$B$56 -> -1200000 | N35: =-Zadání!$C$85*Zadání!$B$56 -> -1200000 | O35: =-Zadání!$C$85*Zadání!$B$56 -> -1200000 | P35: =-Zadání!$C$85*Zadání!$B$56 -> -1200000 | Q35: =-Zadání!$C$85*Zadání!$B$56 -> -1200000 | R35: =-Zadání!$C$85*Zadání!$B$56 -> -1200000 | S35: =-Zadání!$C$85*Zadání!$B$56 -> -1200000 | T35: =-Zadání!$C$85*Zadání!$B$56 -> -1200000 | U35: =-Zadání!$C$85*Zadání!$B$56 -> -1200000 | V35: =-Zadání!$C$85*Zadání!$B$56 -> -1200000 | W35: =-Zadání!$C$85*Zadání!$B$56 -> -1200000 | X35: =-Zadání!$C$85*Zadání!$B$56 -> -1200000 | Y35: =-Zadání!$C$85*Zadání!$B$56 -> -1200000 | Z35: =-Zadání!$C$85*Zadání!$B$56 -> -1200000 | AA35: =-Zadání!$C$85*Zadání!$B$56 -> -1200000 | AB35: =-Zadání!$C$85*Zadání!$B$56 -> -1200000 | AC35: =-Zadání!$C$85*Zadání!$B$56 -> -1200000 | AD35: =-Zadání!$C$85*Zadání!$B$56 -> -1200000 | AE35: =-Zadání!$C$85*Zadání!$B$56 -> -1200000
A36: Odpisy - lineární | B36: =-Odpisy!F10 -> -2051282.051 | C36: =-Odpisy!G10 -> -4102564.103 | D36: =-Odpisy!H10 -> -4102564.103 | E36: =-Odpisy!I10 -> -4102564.103 | F36: =-Odpisy!J10 -> -4102564.103 | G36: =-Odpisy!K10 -> -4102564.103 | H36: =-Odpisy!L10 -> -4102564.103 | I36: =-Odpisy!M10 -> -4102564.103 | J36: =-Odpisy!N10 -> -4102564.103 | K36: =-Odpisy!O10 -> -4102564.103 | L36: =-Odpisy!P10 -> -4102564.103 | M36: =-Odpisy!Q10 -> -4102564.103 | N36: =-Odpisy!R10 -> -4102564.103 | O36: =-Odpisy!S10 -> -4102564.103 | P36: =-Odpisy!T10 -> -4102564.103 | Q36: =-Odpisy!U10 -> -4102564.103 | R36: =-Odpisy!V10 -> -4102564.103 | S36: =-Odpisy!W10 -> -4102564.103 | T36: =-Odpisy!X10 -> -4102564.103 | U36: =-Odpisy!Y10 -> -4102564.103 | V36: =-Odpisy!Z10 -> 0 | W36: =-Odpisy!AA10 -> 0 | X36: =-Odpisy!AB10 -> 0 | Y36: =-Odpisy!AC10 -> 0 | Z36: =-Odpisy!AD10 -> 0 | AA36: =-Odpisy!AE10 -> 0 | AB36: =-Odpisy!AF10 -> 0 | AC36: =-Odpisy!AG10 -> 0 | AD36: =-Odpisy!AH10 -> 0 | AE36: =-Odpisy!AI10 -> 0
A38: Provozní výsledek hospodaření | B38: =SUM(B25:B36) -> 11008690.98 | C38: 9137760.572 | D38: 9319404.008 | E38: 9502326.768 | F38: 9686515.466 | G38: 9836636.628 | H38: 9986816.609 | I38: 10137008.49 | J38: 10287163.59 | K38: 10437231.41 | L38: 10587159.56 | M38: 10736893.76 | N38: 10886377.73 | O38: 11035553.15 | P38: 11184359.63 | Q38: 11266215.92 | R38: 11345139.16 | S38: 11420993.71 | T38: 11493639.85 | U38: 11562933.69 | V38: 15731291.12 | W38: 15793431.31 | X38: 15851761.23 | Y38: 15906119.09 | Z38: 15956338.32 | AA38: 16002247.47 | AB38: 16043670.08 | AC38: 16080424.52 | AD38: 16112323.89 | AE38: 16139175.87
A39: Úroky | B39: =-'Splátkový kalendář'!C16 -> -2400000 | C39: =-'Splátkový kalendář'!D16 -> -2318942.222 | D39: =-'Splátkový kalendář'!E16 -> -2235452.711 | E39: =-'Splátkový kalendář'!F16 -> -2149458.514 | F39: =-'Splátkový kalendář'!G16 -> -2060884.492 | G39: =-'Splátkový kalendář'!H16 -> -1969653.248 | H39: =-'Splátkový kalendář'!I16 -> -1875685.068 | I39: =-'Splátkový kalendář'!J16 -> -1778897.842 | J39: =-'Splátkový kalendář'!K16 -> -1679206.999 | K39: =-'Splátkový kalendář'!L16 -> -1576525.431 | L39: =-'Splátkový kalendář'!M16 -> -1470763.416 | M39: =-'Splátkový kalendář'!N16 -> -1361828.541 | N39: =-'Splátkový kalendář'!O16 -> -1249625.619 | O39: =-'Splátkový kalendář'!P16 -> -1134056.61 | P39: =-'Splátkový kalendář'!Q16 -> -1015020.53 | Q39: =-'Splátkový kalendář'!R16 -> -892413.3679 | R39: =-'Splátkový kalendář'!S16 -> -766127.9909 | S39: =-'Splátkový kalendář'!T16 -> -636054.0527 | T39: =-'Splátkový kalendář'!U16 -> -502077.8963 | U39: =-'Splátkový kalendář'!V16 -> -364082.4553 | V39: =-'Splátkový kalendář'!W16 -> -221947.1509 | W39: =-'Splátkový kalendář'!X16 -> -75547.78752 | X39: =-'Splátkový kalendář'!Y16 -> 75243.55682 | Y39: =-'Splátkový kalendář'!Z16 -> 230558.6415 | Z39: =-'Splátkový kalendář'!AA16 -> 390533.1787 | AA39: =-'Splátkový kalendář'!AB16 -> 555306.952 | AB39: =-'Splátkový kalendář'!AC16 -> 725023.9385 | AC39: =-'Splátkový kalendář'!AD16 -> 899832.4346 | AD39: =-'Splátkový kalendář'!AE16 -> 1079885.186 | AE39: =-'Splátkový kalendář'!AF16 -> 1265339.519
A40: Finanční výsledek hospodaření | B40: =B39 -> -2400000 | C40: -2318942.222 | D40: -2235452.711 | E40: -2149458.514 | F40: -2060884.492 | G40: -1969653.248 | H40: -1875685.068 | I40: -1778897.842 | J40: -1679206.999 | K40: -1576525.431 | L40: -1470763.416 | M40: -1361828.541 | N40: -1249625.619 | O40: -1134056.61 | P40: -1015020.53 | Q40: -892413.3679 | R40: -766127.9909 | S40: -636054.0527 | T40: -502077.8963 | U40: -364082.4553 | V40: -221947.1509 | W40: -75547.78752 | X40: 75243.55682 | Y40: 230558.6415 | Z40: 390533.1787 | AA40: 555306.952 | AB40: 725023.9385 | AC40: 899832.4346 | AD40: 1079885.186 | AE40: 1265339.519
A41: EBT | B41: =B40+B38 -> 8608690.985 | C41: =C40+C38 -> 6818818.35 | D41: 7083951.297 | E41: 7352868.254 | F41: 7625630.975 | G41: 7866983.38 | H41: 8111131.541 | I41: 8358110.65 | J41: 8607956.593 | K41: 8860705.977 | L41: 9116396.148 | M41: 9375065.222 | N41: 9636752.11 | O41: 9901496.543 | P41: 10169339.1 | Q41: 10373802.55 | R41: 10579011.17 | S41: 10784939.65 | T41: 10991561.95 | U41: 11198851.23 | V41: 15509343.97 | W41: 15717883.53 | X41: 15927004.79 | Y41: 16136677.73 | Z41: 16346871.5 | AA41: 16557554.42 | AB41: 16768694.01 | AC41: 16980256.95 | AD41: 17192209.07 | AE41: 17404515.39
A42: Daň z příjmů | B42: =IF(B41>0,(-B41*Zadání!$B$20),0) -> -1635651.287 | C42: =IF(C41>0,(-C41*Zadání!$B$20),0) -> -1295575.486 | D42: =IF(D41>0,(-D41*Zadání!$B$20),0) -> -1345950.746 | E42: =IF(E41>0,(-E41*Zadání!$B$20),0) -> -1397044.968 | F42: =IF(F41>0,(-F41*Zadání!$B$20),0) -> -1448869.885 | G42: =IF(G41>0,(-G41*Zadání!$B$20),0) -> -1494726.842 | H42: =IF(H41>0,(-H41*Zadání!$B$20),0) -> -1541114.993 | I42: =IF(I41>0,(-I41*Zadání!$B$20),0) -> -1588041.023 | J42: =IF(J41>0,(-J41*Zadání!$B$20),0) -> -1635511.753 | K42: =IF(K41>0,(-K41*Zadání!$B$20),0) -> -1683534.136 | L42: =IF(L41>0,(-L41*Zadání!$B$20),0) -> -1732115.268 | M42: =IF(M41>0,(-M41*Zadání!$B$20),0) -> -1781262.392 | N42: =IF(N41>0,(-N41*Zadání!$B$20),0) -> -1830982.901 | O42: =IF(O41>0,(-O41*Zadání!$B$20),0) -> -1881284.343 | P42: =IF(P41>0,(-P41*Zadání!$B$20),0) -> -1932174.429 | Q42: =IF(Q41>0,(-Q41*Zadání!$B$20),0) -> -1971022.485 | R42: =IF(R41>0,(-R41*Zadání!$B$20),0) -> -2010012.122 | S42: =IF(S41>0,(-S41*Zadání!$B$20),0) -> -2049138.534 | T42: =IF(T41>0,(-T41*Zadání!$B$20),0) -> -2088396.771 | U42: =IF(U41>0,(-U41*Zadání!$B$20),0) -> -2127781.734 | V42: =IF(V41>0,(-V41*Zadání!$B$20),0) -> -2946775.353 | W42: =IF(W41>0,(-W41*Zadání!$B$20),0) -> -2986397.87 | X42: =IF(X41>0,(-X41*Zadání!$B$20),0) -> -3026130.91 | Y42: =IF(Y41>0,(-Y41*Zadání!$B$20),0) -> -3065968.769 | Z42: =IF(Z41>0,(-Z41*Zadání!$B$20),0) -> -3105905.584 | AA42: =IF(AA41>0,(-AA41*Zadání!$B$20),0) -> -3145935.34 | AB42: =IF(AB41>0,(-AB41*Zadání!$B$20),0) -> -3186051.863 | AC42: =IF(AC41>0,(-AC41*Zadání!$B$20),0) -> -3226248.82 | AD42: =IF(AD41>0,(-AD41*Zadání!$B$20),0) -> -3266519.724 | AE42: =IF(AE41>0,(-AE41*Zadání!$B$20),0) -> -3306857.923
A43: Výsledek hospodaření za běžnou činnost | B43: =B41+B42 -> 6973039.698 | C43: 5523242.863 | D43: 5738000.551 | E43: 5955823.286 | F43: 6176761.09 | G43: 6372256.538 | H43: 6570016.548 | I43: 6770069.626 | J43: 6972444.841 | K43: 7177171.841 | L43: 7384280.88 | M43: 7593802.83 | N43: 7805769.209 | O43: 8020212.2 | P43: 8237164.673 | Q43: 8402780.069 | R43: 8568999.045 | S43: 8735801.118 | T43: 8903165.183 | U43: 9071069.499 | V43: 12562568.61 | W43: 12731485.66 | X43: 12900873.88 | Y43: 13070708.96 | Z43: 13240965.91 | AA43: 13411619.08 | AB43: 13582642.15 | AC43: 13754008.13 | AD43: 13925689.35 | AE43: 14097657.46
A45: =Zadání!A87 -> Uhlí
A46: Výnosy
A47: Prodej tepla | B47: =Zadání!$B$2*Zadání!$B$5*(1+Zadání!$B$9)^(Výsledovka!B$1-Výsledovka!$B$1)+Zadání!$B$3*Zadání!$B$6*(1+Zadání!$B$9)^(Výsledovka!B$1-Výsledovka!$B$1) -> 29500743 | C47: =Zadání!$B$2*Zadání!$B$5*(1+Zadání!$B$9)^(Výsledovka!C$1-Výsledovka!$B$1)+Zadání!$B$3*Zadání!$B$6*(1+Zadání!$B$9)^(Výsledovka!C$1-Výsledovka!$B$1) -> 29943254.14 | D47: =Zadání!$B$2*Zadání!$B$5*(1+Zadání!$B$9)^(Výsledovka!D$1-Výsledovka!$B$1)+Zadání!$B$3*Zadání!$B$6*(1+Zadání!$B$9)^(Výsledovka!D$1-Výsledovka!$B$1) -> 30392402.96 | E47: =Zadání!$B$2*Zadání!$B$5*(1+Zadání!$B$9)^(Výsledovka!E$1-Výsledovka!$B$1)+Zadání!$B$3*Zadání!$B$6*(1+Zadání!$B$9)^(Výsledovka!E$1-Výsledovka!$B$1) -> 30848289 | F47: =Zadání!$B$2*Zadání!$B$5*(1+Zadání!$B$9)^(Výsledovka!F$1-Výsledovka!$B$1)+Zadání!$B$3*Zadání!$B$6*(1+Zadání!$B$9)^(Výsledovka!F$1-Výsledovka!$B$1) -> 31311013.34 | G47: =Zadání!$B$2*Zadání!$B$5*(1+Zadání!$B$9)^(Výsledovka!G$1-Výsledovka!$B$1)+Zadání!$B$3*Zadání!$B$6*(1+Zadání!$B$9)^(Výsledovka!G$1-Výsledovka!$B$1) -> 31780678.54 | H47: =Zadání!$B$2*Zadání!$B$5*(1+Zadání!$B$9)^(Výsledovka!H$1-Výsledovka!$B$1)+Zadání!$B$3*Zadání!$B$6*(1+Zadání!$B$9)^(Výsledovka!H$1-Výsledovka!$B$1) -> 32257388.71 | I47: =Zadání!$B$2*Zadání!$B$5*(1+Zadání!$B$9)^(Výsledovka!I$1-Výsledovka!$B$1)+Zadání!$B$3*Zadání!$B$6*(1+Zadání!$B$9)^(Výsledovka!I$1-Výsledovka!$B$1) -> 32741249.55 | J47: =Zadání!$B$2*Zadání!$B$5*(1+Zadání!$B$9)^(Výsledovka!J$1-Výsledovka!$B$1)+Zadání!$B$3*Zadání!$B$6*(1+Zadání!$B$9)^(Výsledovka!J$1-Výsledovka!$B$1) -> 33232368.29 | K47: =Zadání!$B$2*Zadání!$B$5*(1+Zadání!$B$9)^(Výsledovka!K$1-Výsledovka!$B$1)+Zadání!$B$3*Zadání!$B$6*(1+Zadání!$B$9)^(Výsledovka!K$1-Výsledovka!$B$1) -> 33730853.81 | L47: =Zadání!$B$2*Zadání!$B$5*(1+Zadání!$B$9)^(Výsledovka!L$1-Výsledovka!$B$1)+Zadání!$B$3*Zadání!$B$6*(1+Zadání!$B$9)^(Výsledovka!L$1-Výsledovka!$B$1) -> 34236816.62 | M47: =Zadání!$B$2*Zadání!$B$5*(1+Zadání!$B$9)^(Výsledovka!M$1-Výsledovka!$B$1)+Zadání!$B$3*Zadání!$B$6*(1+Zadání!$B$9)^(Výsledovka!M$1-Výsledovka!$B$1) -> 34750368.87 | N47: =Zadání!$B$2*Zadání!$B$5*(1+Zadání!$B$9)^(Výsledovka!N$1-Výsledovka!$B$1)+Zadání!$B$3*Zadání!$B$6*(1+Zadání!$B$9)^(Výsledovka!N$1-Výsledovka!$B$1) -> 35271624.4 | O47: =Zadání!$B$2*Zadání!$B$5*(1+Zadání!$B$9)^(Výsledovka!O$1-Výsledovka!$B$1)+Zadání!$B$3*Zadání!$B$6*(1+Zadání!$B$9)^(Výsledovka!O$1-Výsledovka!$B$1) -> 35800698.77 | P47: =Zadání!$B$2*Zadání!$B$5*(1+Zadání!$B$9)^(Výsledovka!P$1-Výsledovka!$B$1)+Zadání!$B$3*Zadání!$B$6*(1+Zadání!$B$9)^(Výsledovka!P$1-Výsledovka!$B$1) -> 36337709.25 | Q47: =Zadání!$B$2*Zadání!$B$5*(1+Zadání!$B$9)^(Výsledovka!Q$1-Výsledovka!$B$1)+Zadání!$B$3*Zadání!$B$6*(1+Zadání!$B$9)^(Výsledovka!Q$1-Výsledovka!$B$1) -> 36882774.89 | R47: =Zadání!$B$2*Zadání!$B$5*(1+Zadání!$B$9)^(Výsledovka!R$1-Výsledovka!$B$1)+Zadání!$B$3*Zadání!$B$6*(1+Zadání!$B$9)^(Výsledovka!R$1-Výsledovka!$B$1) -> 37436016.51 | S47: =Zadání!$B$2*Zadání!$B$5*(1+Zadání!$B$9)^(Výsledovka!S$1-Výsledovka!$B$1)+Zadání!$B$3*Zadání!$B$6*(1+Zadání!$B$9)^(Výsledovka!S$1-Výsledovka!$B$1) -> 37997556.76 | T47: =Zadání!$B$2*Zadání!$B$5*(1+Zadání!$B$9)^(Výsledovka!T$1-Výsledovka!$B$1)+Zadání!$B$3*Zadání!$B$6*(1+Zadání!$B$9)^(Výsledovka!T$1-Výsledovka!$B$1) -> 38567520.11 | U47: =Zadání!$B$2*Zadání!$B$5*(1+Zadání!$B$9)^(Výsledovka!U$1-Výsledovka!$B$1)+Zadání!$B$3*Zadání!$B$6*(1+Zadání!$B$9)^(Výsledovka!U$1-Výsledovka!$B$1) -> 39146032.91 | V47: =Zadání!$B$2*Zadání!$B$5*(1+Zadání!$B$9)^(Výsledovka!V$1-Výsledovka!$B$1)+Zadání!$B$3*Zadání!$B$6*(1+Zadání!$B$9)^(Výsledovka!V$1-Výsledovka!$B$1) -> 39733223.41 | W47: =Zadání!$B$2*Zadání!$B$5*(1+Zadání!$B$9)^(Výsledovka!W$1-Výsledovka!$B$1)+Zadání!$B$3*Zadání!$B$6*(1+Zadání!$B$9)^(Výsledovka!W$1-Výsledovka!$B$1) -> 40329221.76 | X47: =Zadání!$B$2*Zadání!$B$5*(1+Zadání!$B$9)^(Výsledovka!X$1-Výsledovka!$B$1)+Zadání!$B$3*Zadání!$B$6*(1+Zadání!$B$9)^(Výsledovka!X$1-Výsledovka!$B$1) -> 40934160.08 | Y47: =Zadání!$B$2*Zadání!$B$5*(1+Zadání!$B$9)^(Výsledovka!Y$1-Výsledovka!$B$1)+Zadání!$B$3*Zadání!$B$6*(1+Zadání!$B$9)^(Výsledovka!Y$1-Výsledovka!$B$1) -> 41548172.49 | Z47: =Zadání!$B$2*Zadání!$B$5*(1+Zadání!$B$9)^(Výsledovka!Z$1-Výsledovka!$B$1)+Zadání!$B$3*Zadání!$B$6*(1+Zadání!$B$9)^(Výsledovka!Z$1-Výsledovka!$B$1) -> 42171395.07 | AA47: =Zadání!$B$2*Zadání!$B$5*(1+Zadání!$B$9)^(Výsledovka!AA$1-Výsledovka!$B$1)+Zadání!$B$3*Zadání!$B$6*(1+Zadání!$B$9)^(Výsledovka!AA$1-Výsledovka!$B$1) -> 42803966 | AB47: =Zadání!$B$2*Zadání!$B$5*(1+Zadání!$B$9)^(Výsledovka!AB$1-Výsledovka!$B$1)+Zadání!$B$3*Zadání!$B$6*(1+Zadání!$B$9)^(Výsledovka!AB$1-Výsledovka!$B$1) -> 43446025.49 | AC47: =Zadání!$B$2*Zadání!$B$5*(1+Zadání!$B$9)^(Výsledovka!AC$1-Výsledovka!$B$1)+Zadání!$B$3*Zadání!$B$6*(1+Zadání!$B$9)^(Výsledovka!AC$1-Výsledovka!$B$1) -> 44097715.87 | AD47: =Zadání!$B$2*Zadání!$B$5*(1+Zadání!$B$9)^(Výsledovka!AD$1-Výsledovka!$B$1)+Zadání!$B$3*Zadání!$B$6*(1+Zadání!$B$9)^(Výsledovka!AD$1-Výsledovka!$B$1) -> 44759181.61 | AE47: =Zadání!$B$2*Zadání!$B$5*(1+Zadání!$B$9)^(Výsledovka!AE$1-Výsledovka!$B$1)+Zadání!$B$3*Zadání!$B$6*(1+Zadání!$B$9)^(Výsledovka!AE$1-Výsledovka!$B$1) -> 45430569.33
A48: Prodej elektřiny | B48: =IF(Zadání!$B$96>Zadání!$B$95,(Zadání!$B$96-Zadání!$B$95)*Zadání!$B$39*(1+Zadání!$B$40)^(Výsledovka!B1-Výsledovka!$B$1),0) -> 0 | C48: =IF(Zadání!$B$96>Zadání!$B$95,(Zadání!$B$96-Zadání!$B$95)*Zadání!$B$39*(1+Zadání!$B$40)^(Výsledovka!C1-Výsledovka!$B$1),0) -> 0 | D48: =IF(Zadání!$B$96>Zadání!$B$95,(Zadání!$B$96-Zadání!$B$95)*Zadání!$B$39*(1+Zadání!$B$40)^(Výsledovka!D1-Výsledovka!$B$1),0) -> 0 | E48: =IF(Zadání!$B$96>Zadání!$B$95,(Zadání!$B$96-Zadání!$B$95)*Zadání!$B$39*(1+Zadání!$B$40)^(Výsledovka!E1-Výsledovka!$B$1),0) -> 0 | F48: =IF(Zadání!$B$96>Zadání!$B$95,(Zadání!$B$96-Zadání!$B$95)*Zadání!$B$39*(1+Zadání!$B$40)^(Výsledovka!F1-Výsledovka!$B$1),0) -> 0 | G48: =IF(Zadání!$B$96>Zadání!$B$95,(Zadání!$B$96-Zadání!$B$95)*Zadání!$B$39*(1+Zadání!$B$40)^(Výsledovka!G1-Výsledovka!$B$1),0) -> 0 | H48: =IF(Zadání!$B$96>Zadání!$B$95,(Zadání!$B$96-Zadání!$B$95)*Zadání!$B$39*(1+Zadání!$B$40)^(Výsledovka!H1-Výsledovka!$B$1),0) -> 0 | I48: =IF(Zadání!$B$96>Zadání!$B$95,(Zadání!$B$96-Zadání!$B$95)*Zadání!$B$39*(1+Zadání!$B$40)^(Výsledovka!I1-Výsledovka!$B$1),0) -> 0 | J48: =IF(Zadání!$B$96>Zadání!$B$95,(Zadání!$B$96-Zadání!$B$95)*Zadání!$B$39*(1+Zadání!$B$40)^(Výsledovka!J1-Výsledovka!$B$1),0) -> 0 | K48: =IF(Zadání!$B$96>Zadání!$B$95,(Zadání!$B$96-Zadání!$B$95)*Zadání!$B$39*(1+Zadání!$B$40)^(Výsledovka!K1-Výsledovka!$B$1),0) -> 0 | L48: =IF(Zadání!$B$96>Zadání!$B$95,(Zadání!$B$96-Zadání!$B$95)*Zadání!$B$39*(1+Zadání!$B$40)^(Výsledovka!L1-Výsledovka!$B$1),0) -> 0 | M48: =IF(Zadání!$B$96>Zadání!$B$95,(Zadání!$B$96-Zadání!$B$95)*Zadání!$B$39*(1+Zadání!$B$40)^(Výsledovka!M1-Výsledovka!$B$1),0) -> 0 | N48: =IF(Zadání!$B$96>Zadání!$B$95,(Zadání!$B$96-Zadání!$B$95)*Zadání!$B$39*(1+Zadání!$B$40)^(Výsledovka!N1-Výsledovka!$B$1),0) -> 0 | O48: =IF(Zadání!$B$96>Zadání!$B$95,(Zadání!$B$96-Zadání!$B$95)*Zadání!$B$39*(1+Zadání!$B$40)^(Výsledovka!O1-Výsledovka!$B$1),0) -> 0 | P48: =IF(Zadání!$B$96>Zadání!$B$95,(Zadání!$B$96-Zadání!$B$95)*Zadání!$B$39*(1+Zadání!$B$40)^(Výsledovka!P1-Výsledovka!$B$1),0) -> 0 | Q48: =IF(Zadání!$B$96>Zadání!$B$95,(Zadání!$B$96-Zadání!$B$95)*Zadání!$B$39*(1+Zadání!$B$40)^(Výsledovka!Q1-Výsledovka!$B$1),0) -> 0 | R48: =IF(Zadání!$B$96>Zadání!$B$95,(Zadání!$B$96-Zadání!$B$95)*Zadání!$B$39*(1+Zadání!$B$40)^(Výsledovka!R1-Výsledovka!$B$1),0) -> 0 | S48: =IF(Zadání!$B$96>Zadání!$B$95,(Zadání!$B$96-Zadání!$B$95)*Zadání!$B$39*(1+Zadání!$B$40)^(Výsledovka!S1-Výsledovka!$B$1),0) -> 0 | T48: =IF(Zadání!$B$96>Zadání!$B$95,(Zadání!$B$96-Zadání!$B$95)*Zadání!$B$39*(1+Zadání!$B$40)^(Výsledovka!T1-Výsledovka!$B$1),0) -> 0 | U48: =IF(Zadání!$B$96>Zadání!$B$95,(Zadání!$B$96-Zadání!$B$95)*Zadání!$B$39*(1+Zadání!$B$40)^(Výsledovka!U1-Výsledovka!$B$1),0) -> 0 | V48: =IF(Zadání!$B$96>Zadání!$B$95,(Zadání!$B$96-Zadání!$B$95)*Zadání!$B$39*(1+Zadání!$B$40)^(Výsledovka!V1-Výsledovka!$B$1),0) -> 0 | W48: =IF(Zadání!$B$96>Zadání!$B$95,(Zadání!$B$96-Zadání!$B$95)*Zadání!$B$39*(1+Zadání!$B$40)^(Výsledovka!W1-Výsledovka!$B$1),0) -> 0 | X48: =IF(Zadání!$B$96>Zadání!$B$95,(Zadání!$B$96-Zadání!$B$95)*Zadání!$B$39*(1+Zadání!$B$40)^(Výsledovka!X1-Výsledovka!$B$1),0) -> 0 | Y48: =IF(Zadání!$B$96>Zadání!$B$95,(Zadání!$B$96-Zadání!$B$95)*Zadání!$B$39*(1+Zadání!$B$40)^(Výsledovka!Y1-Výsledovka!$B$1),0) -> 0 | Z48: =IF(Zadání!$B$96>Zadání!$B$95,(Zadání!$B$96-Zadání!$B$95)*Zadání!$B$39*(1+Zadání!$B$40)^(Výsledovka!Z1-Výsledovka!$B$1),0) -> 0 | AA48: =IF(Zadání!$B$96>Zadání!$B$95,(Zadání!$B$96-Zadání!$B$95)*Zadání!$B$39*(1+Zadání!$B$40)^(Výsledovka!AA1-Výsledovka!$B$1),0) -> 0 | AB48: =IF(Zadání!$B$96>Zadání!$B$95,(Zadání!$B$96-Zadání!$B$95)*Zadání!$B$39*(1+Zadání!$B$40)^(Výsledovka!AB1-Výsledovka!$B$1),0) -> 0 | AC48: =IF(Zadání!$B$96>Zadání!$B$95,(Zadání!$B$96-Zadání!$B$95)*Zadání!$B$39*(1+Zadání!$B$40)^(Výsledovka!AC1-Výsledovka!$B$1),0) -> 0 | AD48: =IF(Zadání!$B$96>Zadání!$B$95,(Zadání!$B$96-Zadání!$B$95)*Zadání!$B$39*(1+Zadání!$B$40)^(Výsledovka!AD1-Výsledovka!$B$1),0) -> 0 | AE48: =IF(Zadání!$B$96>Zadání!$B$95,(Zadání!$B$96-Zadání!$B$95)*Zadání!$B$39*(1+Zadání!$B$40)^(Výsledovka!AE1-Výsledovka!$B$1),0) -> 0
A49: Náklady
A50: Palivo | B50: =-Výpočty!$B$49*3.6*Zadání!$B$89*(1+Zadání!$B$93)^(Výsledovka!B$1-Výsledovka!$B$1) -> -9921630.435 | C50: =-(1+(Zadání!$B$14*(Výsledovka!C1-Výsledovka!$B$1)))*Výpočty!$B$49*3.6*Zadání!$B$89*(1+Zadání!$B$93)^(Výsledovka!C$1-Výsledovka!$B$1) -> -10140303.17 | D50: =-(1+(Zadání!$B$14*(Výsledovka!D1-Výsledovka!$B$1)))*Výpočty!$B$49*3.6*Zadání!$B$89*(1+Zadání!$B$93)^(Výsledovka!D$1-Výsledovka!$B$1) -> -10363754.16 | E50: =-(1+(Zadání!$B$14*(Výsledovka!E1-Výsledovka!$B$1)))*Výpočty!$B$49*3.6*Zadání!$B$89*(1+Zadání!$B$93)^(Výsledovka!E$1-Výsledovka!$B$1) -> -10592087.07 | F50: =-(1+(Zadání!$B$14*(Výsledovka!F1-Výsledovka!$B$1)))*Výpočty!$B$49*3.6*Zadání!$B$89*(1+Zadání!$B$93)^(Výsledovka!F$1-Výsledovka!$B$1) -> -10825407.8 | G50: =-(1+(Zadání!$B$14*(Výsledovka!$F$1-Výsledovka!$B$1)+Zadání!$B$15*(Výsledovka!G1-Výsledovka!$F$1)))*Výpočty!$B$49*3.6*Zadání!$B$89*(1+Zadání!$B$93)^(Výsledovka!G$1-Výsledovka!$B$1) -> -11096687.36 | H50: =-(1+(Zadání!$B$14*(Výsledovka!$F$1-Výsledovka!$B$1)+Zadání!$B$15*(Výsledovka!H1-Výsledovka!$F$1)))*Výpočty!$B$49*3.6*Zadání!$B$89*(1+Zadání!$B$93)^(Výsledovka!H$1-Výsledovka!$B$1) -> -11374487.95 | I50: =-(1+(Zadání!$B$14*(Výsledovka!$F$1-Výsledovka!$B$1)+Zadání!$B$15*(Výsledovka!I1-Výsledovka!$F$1)))*Výpočty!$B$49*3.6*Zadání!$B$89*(1+Zadání!$B$93)^(Výsledovka!I$1-Výsledovka!$B$1) -> -11658961.88 | J50: =-(1+(Zadání!$B$14*(Výsledovka!$F$1-Výsledovka!$B$1)+Zadání!$B$15*(Výsledovka!J1-Výsledovka!$F$1)))*Výpočty!$B$49*3.6*Zadání!$B$89*(1+Zadání!$B$93)^(Výsledovka!J$1-Výsledovka!$B$1) -> -11950264.97 | K50: =-(1+(Zadání!$B$14*(Výsledovka!$F$1-Výsledovka!$B$1)+Zadání!$B$15*(Výsledovka!K1-Výsledovka!$F$1)))*Výpočty!$B$49*3.6*Zadání!$B$89*(1+Zadání!$B$93)^(Výsledovka!K$1-Výsledovka!$B$1) -> -12248556.61 | L50: =-(1+(Zadání!$B$14*(Výsledovka!$F$1-Výsledovka!$B$1)+Zadání!$B$15*(Výsledovka!L1-Výsledovka!$F$1)))*Výpočty!$B$49*3.6*Zadání!$B$89*(1+Zadání!$B$93)^(Výsledovka!L$1-Výsledovka!$B$1) -> -12553999.8 | M50: =-(1+(Zadání!$B$14*(Výsledovka!$F$1-Výsledovka!$B$1)+Zadání!$B$15*(Výsledovka!M1-Výsledovka!$F$1)))*Výpočty!$B$49*3.6*Zadání!$B$89*(1+Zadání!$B$93)^(Výsledovka!M$1-Výsledovka!$B$1) -> -12866761.3 | N50: =-(1+(Zadání!$B$14*(Výsledovka!$F$1-Výsledovka!$B$1)+Zadání!$B$15*(Výsledovka!N1-Výsledovka!$F$1)))*Výpočty!$B$49*3.6*Zadání!$B$89*(1+Zadání!$B$93)^(Výsledovka!N$1-Výsledovka!$B$1) -> -13187011.65 | O50: =-(1+(Zadání!$B$14*(Výsledovka!$F$1-Výsledovka!$B$1)+Zadání!$B$15*(Výsledovka!O1-Výsledovka!$F$1)))*Výpočty!$B$49*3.6*Zadání!$B$89*(1+Zadání!$B$93)^(Výsledovka!O$1-Výsledovka!$B$1) -> -13514925.32 | P50: =-(1+(Zadání!$B$14*(Výsledovka!$F$1-Výsledovka!$B$1)+Zadání!$B$15*(Výsledovka!P1-Výsledovka!$F$1)))*Výpočty!$B$49*3.6*Zadání!$B$89*(1+Zadání!$B$93)^(Výsledovka!P$1-Výsledovka!$B$1) -> -13850680.73 | Q50: =-(1+(Zadání!$B$14*(Výsledovka!$F$1-Výsledovka!$B$1)+Zadání!$B$15*(Výsledovka!$P$1-Výsledovka!$F$1)+Zadání!$B$16*(Výsledovka!Q1-Výsledovka!$P$1)))*Výpočty!$B$49*3.6*Zadání!$B$89*(1+Zadání!$B$93)^(Výsledovka!Q$1-Výsledovka!$B$1) -> -14227843.41 | R50: =-(1+(Zadání!$B$14*(Výsledovka!$F$1-Výsledovka!$B$1)+Zadání!$B$15*(Výsledovka!$P$1-Výsledovka!$F$1)+Zadání!$B$16*(Výsledovka!R1-Výsledovka!$P$1)))*Výpočty!$B$49*3.6*Zadání!$B$89*(1+Zadání!$B$93)^(Výsledovka!R$1-Výsledovka!$B$1) -> -14614552.32 | S50: =-(1+(Zadání!$B$14*(Výsledovka!$F$1-Výsledovka!$B$1)+Zadání!$B$15*(Výsledovka!$P$1-Výsledovka!$F$1)+Zadání!$B$16*(Výsledovka!S1-Výsledovka!$P$1)))*Výpočty!$B$49*3.6*Zadání!$B$89*(1+Zadání!$B$93)^(Výsledovka!S$1-Výsledovka!$B$1) -> -15011038.45 | T50: =-(1+(Zadání!$B$14*(Výsledovka!$F$1-Výsledovka!$B$1)+Zadání!$B$15*(Výsledovka!$P$1-Výsledovka!$F$1)+Zadání!$B$16*(Výsledovka!T1-Výsledovka!$P$1)))*Výpočty!$B$49*3.6*Zadání!$B$89*(1+Zadání!$B$93)^(Výsledovka!T$1-Výsledovka!$B$1) -> -15417538.2 | U50: =-(1+(Zadání!$B$14*(Výsledovka!$F$1-Výsledovka!$B$1)+Zadání!$B$15*(Výsledovka!$P$1-Výsledovka!$F$1)+Zadání!$B$16*(Výsledovka!U1-Výsledovka!$P$1)))*Výpočty!$B$49*3.6*Zadání!$B$89*(1+Zadání!$B$93)^(Výsledovka!U$1-Výsledovka!$B$1) -> -15834293.53 | V50: =-(1+(Zadání!$B$14*(Výsledovka!$F$1-Výsledovka!$B$1)+Zadání!$B$15*(Výsledovka!$P$1-Výsledovka!$F$1)+Zadání!$B$16*(Výsledovka!V1-Výsledovka!$P$1)))*Výpočty!$B$49*3.6*Zadání!$B$89*(1+Zadání!$B$93)^(Výsledovka!V$1-Výsledovka!$B$1) -> -16261552.06 | W50: =-(1+(Zadání!$B$14*(Výsledovka!$F$1-Výsledovka!$B$1)+Zadání!$B$15*(Výsledovka!$P$1-Výsledovka!$F$1)+Zadání!$B$16*(Výsledovka!W1-Výsledovka!$P$1)))*Výpočty!$B$49*3.6*Zadání!$B$89*(1+Zadání!$B$93)^(Výsledovka!W$1-Výsledovka!$B$1) -> -16699567.21 | X50: =-(1+(Zadání!$B$14*(Výsledovka!$F$1-Výsledovka!$B$1)+Zadání!$B$15*(Výsledovka!$P$1-Výsledovka!$F$1)+Zadání!$B$16*(Výsledovka!X1-Výsledovka!$P$1)))*Výpočty!$B$49*3.6*Zadání!$B$89*(1+Zadání!$B$93)^(Výsledovka!X$1-Výsledovka!$B$1) -> -17148598.35 | Y50: =-(1+(Zadání!$B$14*(Výsledovka!$F$1-Výsledovka!$B$1)+Zadání!$B$15*(Výsledovka!$P$1-Výsledovka!$F$1)+Zadání!$B$16*(Výsledovka!Y1-Výsledovka!$P$1)))*Výpočty!$B$49*3.6*Zadání!$B$89*(1+Zadání!$B$93)^(Výsledovka!Y$1-Výsledovka!$B$1) -> -17608910.9 | Z50: =-(1+(Zadání!$B$14*(Výsledovka!$F$1-Výsledovka!$B$1)+Zadání!$B$15*(Výsledovka!$P$1-Výsledovka!$F$1)+Zadání!$B$16*(Výsledovka!Z1-Výsledovka!$P$1)))*Výpočty!$B$49*3.6*Zadání!$B$89*(1+Zadání!$B$93)^(Výsledovka!Z$1-Výsledovka!$B$1) -> -18080776.52 | AA50: =-(1+(Zadání!$B$14*(Výsledovka!$F$1-Výsledovka!$B$1)+Zadání!$B$15*(Výsledovka!$P$1-Výsledovka!$F$1)+Zadání!$B$16*(Výsledovka!AA1-Výsledovka!$P$1)))*Výpočty!$B$49*3.6*Zadání!$B$89*(1+Zadání!$B$93)^(Výsledovka!AA$1-Výsledovka!$B$1) -> -18564473.2 | AB50: =-(1+(Zadání!$B$14*(Výsledovka!$F$1-Výsledovka!$B$1)+Zadání!$B$15*(Výsledovka!$P$1-Výsledovka!$F$1)+Zadání!$B$16*(Výsledovka!AB1-Výsledovka!$P$1)))*Výpočty!$B$49*3.6*Zadání!$B$89*(1+Zadání!$B$93)^(Výsledovka!AB$1-Výsledovka!$B$1) -> -19060285.44 | AC50: =-(1+(Zadání!$B$14*(Výsledovka!$F$1-Výsledovka!$B$1)+Zadání!$B$15*(Výsledovka!$P$1-Výsledovka!$F$1)+Zadání!$B$16*(Výsledovka!AC1-Výsledovka!$P$1)))*Výpočty!$B$49*3.6*Zadání!$B$89*(1+Zadání!$B$93)^(Výsledovka!AC$1-Výsledovka!$B$1) -> -19568504.37 | AD50: =-(1+(Zadání!$B$14*(Výsledovka!$F$1-Výsledovka!$B$1)+Zadání!$B$15*(Výsledovka!$P$1-Výsledovka!$F$1)+Zadání!$B$16*(Výsledovka!AD1-Výsledovka!$P$1)))*Výpočty!$B$49*3.6*Zadání!$B$89*(1+Zadání!$B$93)^(Výsledovka!AD$1-Výsledovka!$B$1) -> -20089427.95 | AE50: =-(1+(Zadání!$B$14*(Výsledovka!$F$1-Výsledovka!$B$1)+Zadání!$B$15*(Výsledovka!$P$1-Výsledovka!$F$1)+Zadání!$B$16*(Výsledovka!AE1-Výsledovka!$P$1)))*Výpočty!$B$49*3.6*Zadání!$B$89*(1+Zadání!$B$93)^(Výsledovka!AE$1-Výsledovka!$B$1) -> -20623361.07
A51: Doprava | B51: =-Výpočty!$B$48*Zadání!$B$90*(1+Zadání!$B$11)^(Výsledovka!B1-Výsledovka!$B$1) -> -7208391.772 | C51: =-(1+(Zadání!$B$14*(Výsledovka!C1-Výsledovka!$B$1)))*Výpočty!$B$48*Zadání!$B$90*(1+Zadání!$B$11)^(Výsledovka!C1-Výsledovka!$B$1) -> -7295036.641 | D51: =-(1+(Zadání!$B$14*(Výsledovka!D1-Výsledovka!$B$1)))*Výpočty!$B$48*Zadání!$B$90*(1+Zadání!$B$11)^(Výsledovka!D1-Výsledovka!$B$1) -> -7382693.568 | E51: =-(1+(Zadání!$B$14*(Výsledovka!E1-Výsledovka!$B$1)))*Výpočty!$B$48*Zadání!$B$90*(1+Zadání!$B$11)^(Výsledovka!E1-Výsledovka!$B$1) -> -7471374.13 | F51: =-(1+(Zadání!$B$14*(Výsledovka!F1-Výsledovka!$B$1)))*Výpočty!$B$48*Zadání!$B$90*(1+Zadání!$B$11)^(Výsledovka!F1-Výsledovka!$B$1) -> -7561090.035 | G51: =-(1+(Zadání!$B$14*(Výsledovka!$F$1-Výsledovka!$B$1)+Zadání!$B$15*(Výsledovka!G1-Výsledovka!$F$1)))*Výpočty!$B$48*Zadání!$B$90*(1+Zadání!$B$11)^(Výsledovka!G1-Výsledovka!$B$1) -> -7674581.396 | H51: =-(1+(Zadání!$B$14*(Výsledovka!$F$1-Výsledovka!$B$1)+Zadání!$B$15*(Výsledovka!H1-Výsledovka!$F$1)))*Výpočty!$B$48*Zadání!$B$90*(1+Zadání!$B$11)^(Výsledovka!H1-Výsledovka!$B$1) -> -7789586.475 | I51: =-(1+(Zadání!$B$14*(Výsledovka!$F$1-Výsledovka!$B$1)+Zadání!$B$15*(Výsledovka!I1-Výsledovka!$F$1)))*Výpočty!$B$48*Zadání!$B$90*(1+Zadání!$B$11)^(Výsledovka!I1-Výsledovka!$B$1) -> -7906124.198 | J51: =-(1+(Zadání!$B$14*(Výsledovka!$F$1-Výsledovka!$B$1)+Zadání!$B$15*(Výsledovka!J1-Výsledovka!$F$1)))*Výpočty!$B$48*Zadání!$B$90*(1+Zadání!$B$11)^(Výsledovka!J1-Výsledovka!$B$1) -> -8024213.717 | K51: =-(1+(Zadání!$B$14*(Výsledovka!$F$1-Výsledovka!$B$1)+Zadání!$B$15*(Výsledovka!K1-Výsledovka!$F$1)))*Výpočty!$B$48*Zadání!$B$90*(1+Zadání!$B$11)^(Výsledovka!K1-Výsledovka!$B$1) -> -8143874.414 | L51: =-(1+(Zadání!$B$14*(Výsledovka!$F$1-Výsledovka!$B$1)+Zadání!$B$15*(Výsledovka!L1-Výsledovka!$F$1)))*Výpočty!$B$48*Zadání!$B$90*(1+Zadání!$B$11)^(Výsledovka!L1-Výsledovka!$B$1) -> -8265125.903 | M51: =-(1+(Zadání!$B$14*(Výsledovka!$F$1-Výsledovka!$B$1)+Zadání!$B$15*(Výsledovka!M1-Výsledovka!$F$1)))*Výpočty!$B$48*Zadání!$B$90*(1+Zadání!$B$11)^(Výsledovka!M1-Výsledovka!$B$1) -> -8387988.035 | N51: =-(1+(Zadání!$B$14*(Výsledovka!$F$1-Výsledovka!$B$1)+Zadání!$B$15*(Výsledovka!N1-Výsledovka!$F$1)))*Výpočty!$B$48*Zadání!$B$90*(1+Zadání!$B$11)^(Výsledovka!N1-Výsledovka!$B$1) -> -8512480.897 | O51: =-(1+(Zadání!$B$14*(Výsledovka!$F$1-Výsledovka!$B$1)+Zadání!$B$15*(Výsledovka!O1-Výsledovka!$F$1)))*Výpočty!$B$48*Zadání!$B$90*(1+Zadání!$B$11)^(Výsledovka!O1-Výsledovka!$B$1) -> -8638624.817 | P51: =-(1+(Zadání!$B$14*(Výsledovka!$F$1-Výsledovka!$B$1)+Zadání!$B$15*(Výsledovka!P1-Výsledovka!$F$1)))*Výpočty!$B$48*Zadání!$B$90*(1+Zadání!$B$11)^(Výsledovka!P1-Výsledovka!$B$1) -> -8766440.367 | Q51: =-(1+(Zadání!$B$14*(Výsledovka!$F$1-Výsledovka!$B$1)+Zadání!$B$15*(Výsledovka!$P$1-Výsledovka!$F$1)+Zadání!$B$16*(Výsledovka!Q1-Výsledovka!$P$1)))*Výpočty!$B$48*Zadání!$B$90*(1+Zadání!$B$11)^(Výsledovka!Q1-Výsledovka!$B$1) -> -8916870.164 | R51: =-(1+(Zadání!$B$14*(Výsledovka!$F$1-Výsledovka!$B$1)+Zadání!$B$15*(Výsledovka!$P$1-Výsledovka!$F$1)+Zadání!$B$16*(Výsledovka!R1-Výsledovka!$P$1)))*Výpočty!$B$48*Zadání!$B$90*(1+Zadání!$B$11)^(Výsledovka!R1-Výsledovka!$B$1) -> -9069431.913 | S51: =-(1+(Zadání!$B$14*(Výsledovka!$F$1-Výsledovka!$B$1)+Zadání!$B$15*(Výsledovka!$P$1-Výsledovka!$F$1)+Zadání!$B$16*(Výsledovka!S1-Výsledovka!$P$1)))*Výpočty!$B$48*Zadání!$B$90*(1+Zadání!$B$11)^(Výsledovka!S1-Výsledovka!$B$1) -> -9224153.209 | T51: =-(1+(Zadání!$B$14*(Výsledovka!$F$1-Výsledovka!$B$1)+Zadání!$B$15*(Výsledovka!$P$1-Výsledovka!$F$1)+Zadání!$B$16*(Výsledovka!T1-Výsledovka!$P$1)))*Výpočty!$B$48*Zadání!$B$90*(1+Zadání!$B$11)^(Výsledovka!T1-Výsledovka!$B$1) -> -9381061.988 | U51: =-(1+(Zadání!$B$14*(Výsledovka!$F$1-Výsledovka!$B$1)+Zadání!$B$15*(Výsledovka!$P$1-Výsledovka!$F$1)+Zadání!$B$16*(Výsledovka!U1-Výsledovka!$P$1)))*Výpočty!$B$48*Zadání!$B$90*(1+Zadání!$B$11)^(Výsledovka!U1-Výsledovka!$B$1) -> -9540186.528 | V51: =-(1+(Zadání!$B$14*(Výsledovka!$F$1-Výsledovka!$B$1)+Zadání!$B$15*(Výsledovka!$P$1-Výsledovka!$F$1)+Zadání!$B$16*(Výsledovka!V1-Výsledovka!$P$1)))*Výpočty!$B$48*Zadání!$B$90*(1+Zadání!$B$11)^(Výsledovka!V1-Výsledovka!$B$1) -> -9701555.452 | W51: =-(1+(Zadání!$B$14*(Výsledovka!$F$1-Výsledovka!$B$1)+Zadání!$B$15*(Výsledovka!$P$1-Výsledovka!$F$1)+Zadání!$B$16*(Výsledovka!W1-Výsledovka!$P$1)))*Výpočty!$B$48*Zadání!$B$90*(1+Zadání!$B$11)^(Výsledovka!W1-Výsledovka!$B$1) -> -9865197.736 | X51: =-(1+(Zadání!$B$14*(Výsledovka!$F$1-Výsledovka!$B$1)+Zadání!$B$15*(Výsledovka!$P$1-Výsledovka!$F$1)+Zadání!$B$16*(Výsledovka!X1-Výsledovka!$P$1)))*Výpočty!$B$48*Zadání!$B$90*(1+Zadání!$B$11)^(Výsledovka!X1-Výsledovka!$B$1) -> -10031142.71 | Y51: =-(1+(Zadání!$B$14*(Výsledovka!$F$1-Výsledovka!$B$1)+Zadání!$B$15*(Výsledovka!$P$1-Výsledovka!$F$1)+Zadání!$B$16*(Výsledovka!Y1-Výsledovka!$P$1)))*Výpočty!$B$48*Zadání!$B$90*(1+Zadání!$B$11)^(Výsledovka!Y1-Výsledovka!$B$1) -> -10199420.06 | Z51: =-(1+(Zadání!$B$14*(Výsledovka!$F$1-Výsledovka!$B$1)+Zadání!$B$15*(Výsledovka!$P$1-Výsledovka!$F$1)+Zadání!$B$16*(Výsledovka!Z1-Výsledovka!$P$1)))*Výpočty!$B$48*Zadání!$B$90*(1+Zadání!$B$11)^(Výsledovka!Z1-Výsledovka!$B$1) -> -10370059.85 | AA51: =-(1+(Zadání!$B$14*(Výsledovka!$F$1-Výsledovka!$B$1)+Zadání!$B$15*(Výsledovka!$P$1-Výsledovka!$F$1)+Zadání!$B$16*(Výsledovka!AA1-Výsledovka!$P$1)))*Výpočty!$B$48*Zadání!$B$90*(1+Zadání!$B$11)^(Výsledovka!AA1-Výsledovka!$B$1) -> -10543092.49 | AB51: =-(1+(Zadání!$B$14*(Výsledovka!$F$1-Výsledovka!$B$1)+Zadání!$B$15*(Výsledovka!$P$1-Výsledovka!$F$1)+Zadání!$B$16*(Výsledovka!AB1-Výsledovka!$P$1)))*Výpočty!$B$48*Zadání!$B$90*(1+Zadání!$B$11)^(Výsledovka!AB1-Výsledovka!$B$1) -> -10718548.78 | AC51: =-(1+(Zadání!$B$14*(Výsledovka!$F$1-Výsledovka!$B$1)+Zadání!$B$15*(Výsledovka!$P$1-Výsledovka!$F$1)+Zadání!$B$16*(Výsledovka!AC1-Výsledovka!$P$1)))*Výpočty!$B$48*Zadání!$B$90*(1+Zadání!$B$11)^(Výsledovka!AC1-Výsledovka!$B$1) -> -10896459.88 | AD51: =-(1+(Zadání!$B$14*(Výsledovka!$F$1-Výsledovka!$B$1)+Zadání!$B$15*(Výsledovka!$P$1-Výsledovka!$F$1)+Zadání!$B$16*(Výsledovka!AD1-Výsledovka!$P$1)))*Výpočty!$B$48*Zadání!$B$90*(1+Zadání!$B$11)^(Výsledovka!AD1-Výsledovka!$B$1) -> -11076857.35 | AE51: =-(1+(Zadání!$B$14*(Výsledovka!$F$1-Výsledovka!$B$1)+Zadání!$B$15*(Výsledovka!$P$1-Výsledovka!$F$1)+Zadání!$B$16*(Výsledovka!AE1-Výsledovka!$P$1)))*Výpočty!$B$48*Zadání!$B$90*(1+Zadání!$B$11)^(Výsledovka!AE1-Výsledovka!$B$1) -> -11259773.13
A52: Elektřina | B52: =IF(Zadání!$B$95>Zadání!$B$96,-Zadání!$B$4*(Zadání!$B$95-Zadání!$B$96)*(1+Zadání!$B$8)^(Výsledovka!B$1-Výsledovka!$B$1),0) -> 0 | C52: =IF(Zadání!$B$95>Zadání!$B$96,-Zadání!$B$4*(Zadání!$B$95-Zadání!$B$96)*(1+Zadání!$B$8)^(Výsledovka!C$1-Výsledovka!$B$1),0) -> 0 | D52: =IF(Zadání!$B$95>Zadání!$B$96,-Zadání!$B$4*(Zadání!$B$95-Zadání!$B$96)*(1+Zadání!$B$8)^(Výsledovka!D$1-Výsledovka!$B$1),0) -> 0 | E52: =IF(Zadání!$B$95>Zadání!$B$96,-Zadání!$B$4*(Zadání!$B$95-Zadání!$B$96)*(1+Zadání!$B$8)^(Výsledovka!E$1-Výsledovka!$B$1),0) -> 0 | F52: =IF(Zadání!$B$95>Zadání!$B$96,-Zadání!$B$4*(Zadání!$B$95-Zadání!$B$96)*(1+Zadání!$B$8)^(Výsledovka!F$1-Výsledovka!$B$1),0) -> 0 | G52: =IF(Zadání!$B$95>Zadání!$B$96,-Zadání!$B$4*(Zadání!$B$95-Zadání!$B$96)*(1+Zadání!$B$8)^(Výsledovka!G$1-Výsledovka!$B$1),0) -> 0 | H52: =IF(Zadání!$B$95>Zadání!$B$96,-Zadání!$B$4*(Zadání!$B$95-Zadání!$B$96)*(1+Zadání!$B$8)^(Výsledovka!H$1-Výsledovka!$B$1),0) -> 0 | I52: =IF(Zadání!$B$95>Zadání!$B$96,-Zadání!$B$4*(Zadání!$B$95-Zadání!$B$96)*(1+Zadání!$B$8)^(Výsledovka!I$1-Výsledovka!$B$1),0) -> 0 | J52: =IF(Zadání!$B$95>Zadání!$B$96,-Zadání!$B$4*(Zadání!$B$95-Zadání!$B$96)*(1+Zadání!$B$8)^(Výsledovka!J$1-Výsledovka!$B$1),0) -> 0 | K52: =IF(Zadání!$B$95>Zadání!$B$96,-Zadání!$B$4*(Zadání!$B$95-Zadání!$B$96)*(1+Zadání!$B$8)^(Výsledovka!K$1-Výsledovka!$B$1),0) -> 0 | L52: =IF(Zadání!$B$95>Zadání!$B$96,-Zadání!$B$4*(Zadání!$B$95-Zadání!$B$96)*(1+Zadání!$B$8)^(Výsledovka!L$1-Výsledovka!$B$1),0) -> 0 | M52: =IF(Zadání!$B$95>Zadání!$B$96,-Zadání!$B$4*(Zadání!$B$95-Zadání!$B$96)*(1+Zadání!$B$8)^(Výsledovka!M$1-Výsledovka!$B$1),0) -> 0 | N52: =IF(Zadání!$B$95>Zadání!$B$96,-Zadání!$B$4*(Zadání!$B$95-Zadání!$B$96)*(1+Zadání!$B$8)^(Výsledovka!N$1-Výsledovka!$B$1),0) -> 0 | O52: =IF(Zadání!$B$95>Zadání!$B$96,-Zadání!$B$4*(Zadání!$B$95-Zadání!$B$96)*(1+Zadání!$B$8)^(Výsledovka!O$1-Výsledovka!$B$1),0) -> 0 | P52: =IF(Zadání!$B$95>Zadání!$B$96,-Zadání!$B$4*(Zadání!$B$95-Zadání!$B$96)*(1+Zadání!$B$8)^(Výsledovka!P$1-Výsledovka!$B$1),0) -> 0 | Q52: =IF(Zadání!$B$95>Zadání!$B$96,-Zadání!$B$4*(Zadání!$B$95-Zadání!$B$96)*(1+Zadání!$B$8)^(Výsledovka!Q$1-Výsledovka!$B$1),0) -> 0 | R52: =IF(Zadání!$B$95>Zadání!$B$96,-Zadání!$B$4*(Zadání!$B$95-Zadání!$B$96)*(1+Zadání!$B$8)^(Výsledovka!R$1-Výsledovka!$B$1),0) -> 0 | S52: =IF(Zadání!$B$95>Zadání!$B$96,-Zadání!$B$4*(Zadání!$B$95-Zadání!$B$96)*(1+Zadání!$B$8)^(Výsledovka!S$1-Výsledovka!$B$1),0) -> 0 | T52: =IF(Zadání!$B$95>Zadání!$B$96,-Zadání!$B$4*(Zadání!$B$95-Zadání!$B$96)*(1+Zadání!$B$8)^(Výsledovka!T$1-Výsledovka!$B$1),0) -> 0 | U52: =IF(Zadání!$B$95>Zadání!$B$96,-Zadání!$B$4*(Zadání!$B$95-Zadání!$B$96)*(1+Zadání!$B$8)^(Výsledovka!U$1-Výsledovka!$B$1),0) -> 0 | V52: =IF(Zadání!$B$95>Zadání!$B$96,-Zadání!$B$4*(Zadání!$B$95-Zadání!$B$96)*(1+Zadání!$B$8)^(Výsledovka!V$1-Výsledovka!$B$1),0) -> 0 | W52: =IF(Zadání!$B$95>Zadání!$B$96,-Zadání!$B$4*(Zadání!$B$95-Zadání!$B$96)*(1+Zadání!$B$8)^(Výsledovka!W$1-Výsledovka!$B$1),0) -> 0 | X52: =IF(Zadání!$B$95>Zadání!$B$96,-Zadání!$B$4*(Zadání!$B$95-Zadání!$B$96)*(1+Zadání!$B$8)^(Výsledovka!X$1-Výsledovka!$B$1),0) -> 0 | Y52: =IF(Zadání!$B$95>Zadání!$B$96,-Zadání!$B$4*(Zadání!$B$95-Zadání!$B$96)*(1+Zadání!$B$8)^(Výsledovka!Y$1-Výsledovka!$B$1),0) -> 0 | Z52: =IF(Zadání!$B$95>Zadání!$B$96,-Zadání!$B$4*(Zadání!$B$95-Zadání!$B$96)*(1+Zadání!$B$8)^(Výsledovka!Z$1-Výsledovka!$B$1),0) -> 0 | AA52: =IF(Zadání!$B$95>Zadání!$B$96,-Zadání!$B$4*(Zadání!$B$95-Zadání!$B$96)*(1+Zadání!$B$8)^(Výsledovka!AA$1-Výsledovka!$B$1),0) -> 0 | AB52: =IF(Zadání!$B$95>Zadání!$B$96,-Zadání!$B$4*(Zadání!$B$95-Zadání!$B$96)*(1+Zadání!$B$8)^(Výsledovka!AB$1-Výsledovka!$B$1),0) -> 0 | AC52: =IF(Zadání!$B$95>Zadání!$B$96,-Zadání!$B$4*(Zadání!$B$95-Zadání!$B$96)*(1+Zadání!$B$8)^(Výsledovka!AC$1-Výsledovka!$B$1),0) -> 0 | AD52: =IF(Zadání!$B$95>Zadání!$B$96,-Zadání!$B$4*(Zadání!$B$95-Zadání!$B$96)*(1+Zadání!$B$8)^(Výsledovka!AD$1-Výsledovka!$B$1),0) -> 0 | AE52: =IF(Zadání!$B$95>Zadání!$B$96,-Zadání!$B$4*(Zadání!$B$95-Zadání!$B$96)*(1+Zadání!$B$8)^(Výsledovka!AE$1-Výsledovka!$B$1),0) -> 0
A53: Povolenky | B53: =-Výpočty!$B$50*Zadání!$B$7*(1+Zadání!$B$10)^(Výsledovka!B$1-Výsledovka!$B$1) -> -1384011.22 | C53: =-(1+(Zadání!$B$14*(Výsledovka!C1-Výsledovka!$B$1)))*Výpočty!$B$50*Zadání!$B$7*(1+Zadání!$B$10)^(Výsledovka!C$1-Výsledovka!$B$1) -> -1400647.035 | D53: =-(1+(Zadání!$B$14*(Výsledovka!D1-Výsledovka!$B$1)))*Výpočty!$B$50*Zadání!$B$7*(1+Zadání!$B$10)^(Výsledovka!D$1-Výsledovka!$B$1) -> -1417477.165 | E53: =-(1+(Zadání!$B$14*(Výsledovka!E1-Výsledovka!$B$1)))*Výpočty!$B$50*Zadání!$B$7*(1+Zadání!$B$10)^(Výsledovka!E$1-Výsledovka!$B$1) -> -1434503.833 | F53: =-(1+(Zadání!$B$14*(Výsledovka!F1-Výsledovka!$B$1)))*Výpočty!$B$50*Zadání!$B$7*(1+Zadání!$B$10)^(Výsledovka!F$1-Výsledovka!$B$1) -> -1451729.287 | G53: =-(1+(Zadání!$B$14*(Výsledovka!$F$1-Výsledovka!$B$1)+Zadání!$B$15*(Výsledovka!G1-Výsledovka!$F$1)))*Výpočty!$B$50*Zadání!$B$7*(1+Zadání!$B$10)^(Výsledovka!G$1-Výsledovka!$B$1) -> -1473519.628 | H53: =-(1+(Zadání!$B$14*(Výsledovka!$F$1-Výsledovka!$B$1)+Zadání!$B$15*(Výsledovka!H1-Výsledovka!$F$1)))*Výpočty!$B$50*Zadání!$B$7*(1+Zadání!$B$10)^(Výsledovka!H$1-Výsledovka!$B$1) -> -1495600.603 | I53: =-(1+(Zadání!$B$14*(Výsledovka!$F$1-Výsledovka!$B$1)+Zadání!$B$15*(Výsledovka!I1-Výsledovka!$F$1)))*Výpočty!$B$50*Zadání!$B$7*(1+Zadání!$B$10)^(Výsledovka!I$1-Výsledovka!$B$1) -> -1517975.846 | J53: =-(1+(Zadání!$B$14*(Výsledovka!$F$1-Výsledovka!$B$1)+Zadání!$B$15*(Výsledovka!J1-Výsledovka!$F$1)))*Výpočty!$B$50*Zadání!$B$7*(1+Zadání!$B$10)^(Výsledovka!J$1-Výsledovka!$B$1) -> -1540649.034 | K53: =-(1+(Zadání!$B$14*(Výsledovka!$F$1-Výsledovka!$B$1)+Zadání!$B$15*(Výsledovka!K1-Výsledovka!$F$1)))*Výpočty!$B$50*Zadání!$B$7*(1+Zadání!$B$10)^(Výsledovka!K$1-Výsledovka!$B$1) -> -1563623.887 | L53: =-(1+(Zadání!$B$14*(Výsledovka!$F$1-Výsledovka!$B$1)+Zadání!$B$15*(Výsledovka!L1-Výsledovka!$F$1)))*Výpočty!$B$50*Zadání!$B$7*(1+Zadání!$B$10)^(Výsledovka!L$1-Výsledovka!$B$1) -> -1586904.173 | M53: =-(1+(Zadání!$B$14*(Výsledovka!$F$1-Výsledovka!$B$1)+Zadání!$B$15*(Výsledovka!M1-Výsledovka!$F$1)))*Výpočty!$B$50*Zadání!$B$7*(1+Zadání!$B$10)^(Výsledovka!M$1-Výsledovka!$B$1) -> -1610493.703 | N53: =-(1+(Zadání!$B$14*(Výsledovka!$F$1-Výsledovka!$B$1)+Zadání!$B$15*(Výsledovka!N1-Výsledovka!$F$1)))*Výpočty!$B$50*Zadání!$B$7*(1+Zadání!$B$10)^(Výsledovka!N$1-Výsledovka!$B$1) -> -1634396.332 | O53: =-(1+(Zadání!$B$14*(Výsledovka!$F$1-Výsledovka!$B$1)+Zadání!$B$15*(Výsledovka!O1-Výsledovka!$F$1)))*Výpočty!$B$50*Zadání!$B$7*(1+Zadání!$B$10)^(Výsledovka!O$1-Výsledovka!$B$1) -> -1658615.965 | P53: =-(1+(Zadání!$B$14*(Výsledovka!$F$1-Výsledovka!$B$1)+Zadání!$B$15*(Výsledovka!P1-Výsledovka!$F$1)))*Výpočty!$B$50*Zadání!$B$7*(1+Zadání!$B$10)^(Výsledovka!P$1-Výsledovka!$B$1) -> -1683156.551 | Q53: =-(1+(Zadání!$B$14*(Výsledovka!$F$1-Výsledovka!$B$1)+Zadání!$B$15*(Výsledovka!$P$1-Výsledovka!$F$1)+Zadání!$B$16*(Výsledovka!Q1-Výsledovka!$P$1)))*Výpočty!$B$50*Zadání!$B$7*(1+Zadání!$B$10)^(Výsledovka!Q$1-Výsledovka!$B$1) -> -1712039.071 | R53: =-(1+(Zadání!$B$14*(Výsledovka!$F$1-Výsledovka!$B$1)+Zadání!$B$15*(Výsledovka!$P$1-Výsledovka!$F$1)+Zadání!$B$16*(Výsledovka!R1-Výsledovka!$P$1)))*Výpočty!$B$50*Zadání!$B$7*(1+Zadání!$B$10)^(Výsledovka!R$1-Výsledovka!$B$1) -> -1741330.927 | S53: =-(1+(Zadání!$B$14*(Výsledovka!$F$1-Výsledovka!$B$1)+Zadání!$B$15*(Výsledovka!$P$1-Výsledovka!$F$1)+Zadání!$B$16*(Výsledovka!S1-Výsledovka!$P$1)))*Výpočty!$B$50*Zadání!$B$7*(1+Zadání!$B$10)^(Výsledovka!S$1-Výsledovka!$B$1) -> -1771037.416 | T53: =-(1+(Zadání!$B$14*(Výsledovka!$F$1-Výsledovka!$B$1)+Zadání!$B$15*(Výsledovka!$P$1-Výsledovka!$F$1)+Zadání!$B$16*(Výsledovka!T1-Výsledovka!$P$1)))*Výpočty!$B$50*Zadání!$B$7*(1+Zadání!$B$10)^(Výsledovka!T$1-Výsledovka!$B$1) -> -1801163.902 | U53: =-(1+(Zadání!$B$14*(Výsledovka!$F$1-Výsledovka!$B$1)+Zadání!$B$15*(Výsledovka!$P$1-Výsledovka!$F$1)+Zadání!$B$16*(Výsledovka!U1-Výsledovka!$P$1)))*Výpočty!$B$50*Zadání!$B$7*(1+Zadání!$B$10)^(Výsledovka!U$1-Výsledovka!$B$1) -> -1831715.813 | V53: =-(1+(Zadání!$B$14*(Výsledovka!$F$1-Výsledovka!$B$1)+Zadání!$B$15*(Výsledovka!$P$1-Výsledovka!$F$1)+Zadání!$B$16*(Výsledovka!V1-Výsledovka!$P$1)))*Výpočty!$B$50*Zadání!$B$7*(1+Zadání!$B$10)^(Výsledovka!V$1-Výsledovka!$B$1) -> -1862698.647 | W53: =-(1+(Zadání!$B$14*(Výsledovka!$F$1-Výsledovka!$B$1)+Zadání!$B$15*(Výsledovka!$P$1-Výsledovka!$F$1)+Zadání!$B$16*(Výsledovka!W1-Výsledovka!$P$1)))*Výpočty!$B$50*Zadání!$B$7*(1+Zadání!$B$10)^(Výsledovka!W$1-Výsledovka!$B$1) -> -1894117.965 | X53: =-(1+(Zadání!$B$14*(Výsledovka!$F$1-Výsledovka!$B$1)+Zadání!$B$15*(Výsledovka!$P$1-Výsledovka!$F$1)+Zadání!$B$16*(Výsledovka!X1-Výsledovka!$P$1)))*Výpočty!$B$50*Zadání!$B$7*(1+Zadání!$B$10)^(Výsledovka!X$1-Výsledovka!$B$1) -> -1925979.4 | Y53: =-(1+(Zadání!$B$14*(Výsledovka!$F$1-Výsledovka!$B$1)+Zadání!$B$15*(Výsledovka!$P$1-Výsledovka!$F$1)+Zadání!$B$16*(Výsledovka!Y1-Výsledovka!$P$1)))*Výpočty!$B$50*Zadání!$B$7*(1+Zadání!$B$10)^(Výsledovka!Y$1-Výsledovka!$B$1) -> -1958288.652 | Z53: =-(1+(Zadání!$B$14*(Výsledovka!$F$1-Výsledovka!$B$1)+Zadání!$B$15*(Výsledovka!$P$1-Výsledovka!$F$1)+Zadání!$B$16*(Výsledovka!Z1-Výsledovka!$P$1)))*Výpočty!$B$50*Zadání!$B$7*(1+Zadání!$B$10)^(Výsledovka!Z$1-Výsledovka!$B$1) -> -1991051.491 | AA53: =-(1+(Zadání!$B$14*(Výsledovka!$F$1-Výsledovka!$B$1)+Zadání!$B$15*(Výsledovka!$P$1-Výsledovka!$F$1)+Zadání!$B$16*(Výsledovka!AA1-Výsledovka!$P$1)))*Výpočty!$B$50*Zadání!$B$7*(1+Zadání!$B$10)^(Výsledovka!AA$1-Výsledovka!$B$1) -> -2024273.758 | AB53: =-(1+(Zadání!$B$14*(Výsledovka!$F$1-Výsledovka!$B$1)+Zadání!$B$15*(Výsledovka!$P$1-Výsledovka!$F$1)+Zadání!$B$16*(Výsledovka!AB1-Výsledovka!$P$1)))*Výpočty!$B$50*Zadání!$B$7*(1+Zadání!$B$10)^(Výsledovka!AB$1-Výsledovka!$B$1) -> -2057961.365 | AC53: =-(1+(Zadání!$B$14*(Výsledovka!$F$1-Výsledovka!$B$1)+Zadání!$B$15*(Výsledovka!$P$1-Výsledovka!$F$1)+Zadání!$B$16*(Výsledovka!AC1-Výsledovka!$P$1)))*Výpočty!$B$50*Zadání!$B$7*(1+Zadání!$B$10)^(Výsledovka!AC$1-Výsledovka!$B$1) -> -2092120.297 | AD53: =-(1+(Zadání!$B$14*(Výsledovka!$F$1-Výsledovka!$B$1)+Zadání!$B$15*(Výsledovka!$P$1-Výsledovka!$F$1)+Zadání!$B$16*(Výsledovka!AD1-Výsledovka!$P$1)))*Výpočty!$B$50*Zadání!$B$7*(1+Zadání!$B$10)^(Výsledovka!AD$1-Výsledovka!$B$1) -> -2126756.612 | AE53: =-(1+(Zadání!$B$14*(Výsledovka!$F$1-Výsledovka!$B$1)+Zadání!$B$15*(Výsledovka!$P$1-Výsledovka!$F$1)+Zadání!$B$16*(Výsledovka!AE1-Výsledovka!$P$1)))*Výpočty!$B$50*Zadání!$B$7*(1+Zadání!$B$10)^(Výsledovka!AE$1-Výsledovka!$B$1) -> -2161876.44
A54: Zaměstnanci | B54: =-Zadání!$B$18*12*Zadání!$B$19*(1+Zadání!$B$21)^(Výsledovka!B$1-Výsledovka!$B$1) -> -2400000 | C54: =-Zadání!$B$18*12*Zadání!$B$19*(1+Zadání!$B$21)^(Výsledovka!C$1-Výsledovka!$B$1) -> -2460000 | D54: =-Zadání!$B$18*12*Zadání!$B$19*(1+Zadání!$B$21)^(Výsledovka!D$1-Výsledovka!$B$1) -> -2521500 | E54: =-Zadání!$B$18*12*Zadání!$B$19*(1+Zadání!$B$21)^(Výsledovka!E$1-Výsledovka!$B$1) -> -2584537.5 | F54: =-Zadání!$B$18*12*Zadání!$B$19*(1+Zadání!$B$21)^(Výsledovka!F$1-Výsledovka!$B$1) -> -2649150.937 | G54: =-Zadání!$B$18*12*Zadání!$B$19*(1+Zadání!$B$21)^(Výsledovka!G$1-Výsledovka!$B$1) -> -2715379.711 | H54: =-Zadání!$B$18*12*Zadání!$B$19*(1+Zadání!$B$21)^(Výsledovka!H$1-Výsledovka!$B$1) -> -2783264.204 | I54: =-Zadání!$B$18*12*Zadání!$B$19*(1+Zadání!$B$21)^(Výsledovka!I$1-Výsledovka!$B$1) -> -2852845.809 | J54: =-Zadání!$B$18*12*Zadání!$B$19*(1+Zadání!$B$21)^(Výsledovka!J$1-Výsledovka!$B$1) -> -2924166.954 | K54: =-Zadání!$B$18*12*Zadání!$B$19*(1+Zadání!$B$21)^(Výsledovka!K$1-Výsledovka!$B$1) -> -2997271.128 | L54: =-Zadání!$B$18*12*Zadání!$B$19*(1+Zadání!$B$21)^(Výsledovka!L$1-Výsledovka!$B$1) -> -3072202.906 | M54: =-Zadání!$B$18*12*Zadání!$B$19*(1+Zadání!$B$21)^(Výsledovka!M$1-Výsledovka!$B$1) -> -3149007.979 | N54: =-Zadání!$B$18*12*Zadání!$B$19*(1+Zadání!$B$21)^(Výsledovka!N$1-Výsledovka!$B$1) -> -3227733.178 | O54: =-Zadání!$B$18*12*Zadání!$B$19*(1+Zadání!$B$21)^(Výsledovka!O$1-Výsledovka!$B$1) -> -3308426.508 | P54: =-Zadání!$B$18*12*Zadání!$B$19*(1+Zadání!$B$21)^(Výsledovka!P$1-Výsledovka!$B$1) -> -3391137.17 | Q54: =-Zadání!$B$18*12*Zadání!$B$19*(1+Zadání!$B$21)^(Výsledovka!Q$1-Výsledovka!$B$1) -> -3475915.6 | R54: =-Zadání!$B$18*12*Zadání!$B$19*(1+Zadání!$B$21)^(Výsledovka!R$1-Výsledovka!$B$1) -> -3562813.49 | S54: =-Zadání!$B$18*12*Zadání!$B$19*(1+Zadání!$B$21)^(Výsledovka!S$1-Výsledovka!$B$1) -> -3651883.827 | T54: =-Zadání!$B$18*12*Zadání!$B$19*(1+Zadání!$B$21)^(Výsledovka!T$1-Výsledovka!$B$1) -> -3743180.922 | U54: =-Zadání!$B$18*12*Zadání!$B$19*(1+Zadání!$B$21)^(Výsledovka!U$1-Výsledovka!$B$1) -> -3836760.446 | V54: =-Zadání!$B$18*12*Zadání!$B$19*(1+Zadání!$B$21)^(Výsledovka!V$1-Výsledovka!$B$1) -> -3932679.457 | W54: =-Zadání!$B$18*12*Zadání!$B$19*(1+Zadání!$B$21)^(Výsledovka!W$1-Výsledovka!$B$1) -> -4030996.443 | X54: =-Zadání!$B$18*12*Zadání!$B$19*(1+Zadání!$B$21)^(Výsledovka!X$1-Výsledovka!$B$1) -> -4131771.354 | Y54: =-Zadání!$B$18*12*Zadání!$B$19*(1+Zadání!$B$21)^(Výsledovka!Y$1-Výsledovka!$B$1) -> -4235065.638 | Z54: =-Zadání!$B$18*12*Zadání!$B$19*(1+Zadání!$B$21)^(Výsledovka!Z$1-Výsledovka!$B$1) -> -4340942.279 | AA54: =-Zadání!$B$18*12*Zadání!$B$19*(1+Zadání!$B$21)^(Výsledovka!AA$1-Výsledovka!$B$1) -> -4449465.836 | AB54: =-Zadání!$B$18*12*Zadání!$B$19*(1+Zadání!$B$21)^(Výsledovka!AB$1-Výsledovka!$B$1) -> -4560702.482 | AC54: =-Zadání!$B$18*12*Zadání!$B$19*(1+Zadání!$B$21)^(Výsledovka!AC$1-Výsledovka!$B$1) -> -4674720.044 | AD54: =-Zadání!$B$18*12*Zadání!$B$19*(1+Zadání!$B$21)^(Výsledovka!AD$1-Výsledovka!$B$1) -> -4791588.045 | AE54: =-Zadání!$B$18*12*Zadání!$B$19*(1+Zadání!$B$21)^(Výsledovka!AE$1-Výsledovka!$B$1) -> -4911377.746
A55: Pojištění | B55: =-Zadání!$C$102*Zadání!$B$22 -> -425000 | C55: =-Zadání!$C$102*Zadání!$B$22 -> -425000 | D55: =-Zadání!$C$102*Zadání!$B$22 -> -425000 | E55: =-Zadání!$C$102*Zadání!$B$22 -> -425000 | F55: =-Zadání!$C$102*Zadání!$B$22 -> -425000 | G55: =-Zadání!$C$102*Zadání!$B$22 -> -425000 | H55: =-Zadání!$C$102*Zadání!$B$22 -> -425000 | I55: =-Zadání!$C$102*Zadání!$B$22 -> -425000 | J55: =-Zadání!$C$102*Zadání!$B$22 -> -425000 | K55: =-Zadání!$C$102*Zadání!$B$22 -> -425000 | L55: =-Zadání!$C$102*Zadání!$B$22 -> -425000 | M55: =-Zadání!$C$102*Zadání!$B$22 -> -425000 | N55: =-Zadání!$C$102*Zadání!$B$22 -> -425000 | O55: =-Zadání!$C$102*Zadání!$B$22 -> -425000 | P55: =-Zadání!$C$102*Zadání!$B$22 -> -425000 | Q55: =-Zadání!$C$102*Zadání!$B$22 -> -425000 | R55: =-Zadání!$C$102*Zadání!$B$22 -> -425000 | S55: =-Zadání!$C$102*Zadání!$B$22 -> -425000 | T55: =-Zadání!$C$102*Zadání!$B$22 -> -425000 | U55: =-Zadání!$C$102*Zadání!$B$22 -> -425000 | V55: =-Zadání!$C$102*Zadání!$B$22 -> -425000 | W55: =-Zadání!$C$102*Zadání!$B$22 -> -425000 | X55: =-Zadání!$C$102*Zadání!$B$22 -> -425000 | Y55: =-Zadání!$C$102*Zadání!$B$22 -> -425000 | Z55: =-Zadání!$C$102*Zadání!$B$22 -> -425000 | AA55: =-Zadání!$C$102*Zadání!$B$22 -> -425000 | AB55: =-Zadání!$C$102*Zadání!$B$22 -> -425000 | AC55: =-Zadání!$C$102*Zadání!$B$22 -> -425000 | AD55: =-Zadání!$C$102*Zadání!$B$22 -> -425000 | AE55: =-Zadání!$C$102*Zadání!$B$22 -> -425000
A56: Náklady na provoz | B56: =-Zadání!$B$97*Zadání!$C$102 -> -2550000 | C56: =-Zadání!$B$97*Zadání!$C$102 -> -2550000 | D56: =-Zadání!$B$97*Zadání!$C$102 -> -2550000 | E56: =-Zadání!$B$97*Zadání!$C$102 -> -2550000 | F56: =-Zadání!$B$97*Zadání!$C$102 -> -2550000 | G56: =-Zadání!$B$97*Zadání!$C$102 -> -2550000 | H56: =-Zadání!$B$97*Zadání!$C$102 -> -2550000 | I56: =-Zadání!$B$97*Zadání!$C$102 -> -2550000 | J56: =-Zadání!$B$97*Zadání!$C$102 -> -2550000 | K56: =-Zadání!$B$97*Zadání!$C$102 -> -2550000 | L56: =-Zadání!$B$97*Zadání!$C$102 -> -2550000 | M56: =-Zadání!$B$97*Zadání!$C$102 -> -2550000 | N56: =-Zadání!$B$97*Zadání!$C$102 -> -2550000 | O56: =-Zadání!$B$97*Zadání!$C$102 -> -2550000 | P56: =-Zadání!$B$97*Zadání!$C$102 -> -2550000 | Q56: =-Zadání!$B$97*Zadání!$C$102 -> -2550000 | R56: =-Zadání!$B$97*Zadání!$C$102 -> -2550000 | S56: =-Zadání!$B$97*Zadání!$C$102 -> -2550000 | T56: =-Zadání!$B$97*Zadání!$C$102 -> -2550000 | U56: =-Zadání!$B$97*Zadání!$C$102 -> -2550000 | V56: =-Zadání!$B$97*Zadání!$C$102 -> -2550000 | W56: =-Zadání!$B$97*Zadání!$C$102 -> -2550000 | X56: =-Zadání!$B$97*Zadání!$C$102 -> -2550000 | Y56: =-Zadání!$B$97*Zadání!$C$102 -> -2550000 | Z56: =-Zadání!$B$97*Zadání!$C$102 -> -2550000 | AA56: =-Zadání!$B$97*Zadání!$C$102 -> -2550000 | AB56: =-Zadání!$B$97*Zadání!$C$102 -> -2550000 | AC56: =-Zadání!$B$97*Zadání!$C$102 -> -2550000 | AD56: =-Zadání!$B$97*Zadání!$C$102 -> -2550000 | AE56: =-Zadání!$B$97*Zadání!$C$102 -> -2550000
A57: Náklady na údržbu | B57: =-Zadání!$C$102*Zadání!$B$98 -> -1275000 | C57: =-Zadání!$C$102*Zadání!$B$98 -> -1275000 | D57: =-Zadání!$C$102*Zadání!$B$98 -> -1275000 | E57: =-Zadání!$C$102*Zadání!$B$98 -> -1275000 | F57: =-Zadání!$C$102*Zadání!$B$98 -> -1275000 | G57: =-Zadání!$C$102*Zadání!$B$98 -> -1275000 | H57: =-Zadání!$C$102*Zadání!$B$98 -> -1275000 | I57: =-Zadání!$C$102*Zadání!$B$98 -> -1275000 | J57: =-Zadání!$C$102*Zadání!$B$98 -> -1275000 | K57: =-Zadání!$C$102*Zadání!$B$98 -> -1275000 | L57: =-Zadání!$C$102*Zadání!$B$98 -> -1275000 | M57: =-Zadání!$C$102*Zadání!$B$98 -> -1275000 | N57: =-Zadání!$C$102*Zadání!$B$98 -> -1275000 | O57: =-Zadání!$C$102*Zadání!$B$98 -> -1275000 | P57: =-Zadání!$C$102*Zadání!$B$98 -> -1275000 | Q57: =-Zadání!$C$102*Zadání!$B$98 -> -1275000 | R57: =-Zadání!$C$102*Zadání!$B$98 -> -1275000 | S57: =-Zadání!$C$102*Zadání!$B$98 -> -1275000 | T57: =-Zadání!$C$102*Zadání!$B$98 -> -1275000 | U57: =-Zadání!$C$102*Zadání!$B$98 -> -1275000 | V57: =-Zadání!$C$102*Zadání!$B$98 -> -1275000 | W57: =-Zadání!$C$102*Zadání!$B$98 -> -1275000 | X57: =-Zadání!$C$102*Zadání!$B$98 -> -1275000 | Y57: =-Zadání!$C$102*Zadání!$B$98 -> -1275000 | Z57: =-Zadání!$C$102*Zadání!$B$98 -> -1275000 | AA57: =-Zadání!$C$102*Zadání!$B$98 -> -1275000 | AB57: =-Zadání!$C$102*Zadání!$B$98 -> -1275000 | AC57: =-Zadání!$C$102*Zadání!$B$98 -> -1275000 | AD57: =-Zadání!$C$102*Zadání!$B$98 -> -1275000 | AE57: =-Zadání!$C$102*Zadání!$B$98 -> -1275000
A58: Odpisy - lineární | B58: =-Odpisy!F15 -> -2179487.179 | C58: =-Odpisy!G15 -> -4358974.359 | D58: =-Odpisy!H15 -> -4358974.359 | E58: =-Odpisy!I15 -> -4358974.359 | F58: =-Odpisy!J15 -> -4358974.359 | G58: =-Odpisy!K15 -> -4358974.359 | H58: =-Odpisy!L15 -> -4358974.359 | I58: =-Odpisy!M15 -> -4358974.359 | J58: =-Odpisy!N15 -> -4358974.359 | K58: =-Odpisy!O15 -> -4358974.359 | L58: =-Odpisy!P15 -> -4358974.359 | M58: =-Odpisy!Q15 -> -4358974.359 | N58: =-Odpisy!R15 -> -4358974.359 | O58: =-Odpisy!S15 -> -4358974.359 | P58: =-Odpisy!T15 -> -4358974.359 | Q58: =-Odpisy!U15 -> -4358974.359 | R58: =-Odpisy!V15 -> -4358974.359 | S58: =-Odpisy!W15 -> -4358974.359 | T58: =-Odpisy!X15 -> -4358974.359 | U58: =-Odpisy!Y15 -> -4358974.359 | V58: =-Odpisy!Z15 -> 0 | W58: =-Odpisy!AA15 -> 0 | X58: =-Odpisy!AB15 -> 0 | Y58: =-Odpisy!AC15 -> 0 | Z58: =-Odpisy!AD15 -> 0 | AA58: =-Odpisy!AE15 -> 0 | AB58: =-Odpisy!AF15 -> 0 | AC58: =-Odpisy!AG15 -> 0 | AD58: =-Odpisy!AH15 -> 0 | AE58: =-Odpisy!AI15 -> 0
A60: Provozní výsledek hospodaření | B60: =SUM(B47:B58) -> 2157222.394 | C60: =SUM(C47:C58) -> 38292.94044 | D60: 98003.70327 | E60: 156812.1071 | F60: 214660.9218 | G60: 211536.0813 | H60: 205475.1278 | I60: 196367.4553 | J60: 184099.2524 | K60: 168553.4189 | L60: 149609.4798 | M60: 127143.4976 | N60: 101027.9821 | O60: 71131.79822 | P60: 37320.07118 | Q60: -58867.71358 | R60: -161086.4959 | S60: -269530.5014 | T60: -384399.2654 | U60: -505897.7675 | V60: 3724737.789 | W60: 3589342.4 | X60: 3446668.27 | Y60: 3296487.227 | Z60: 3138564.929 | AA60: 2972660.713 | AB60: 2798527.428 | AC60: 2615911.278 | AD60: 2424551.652 | AE60: 2224180.953
A61: Úroky | B61: =-'Splátkový kalendář'!C23 -> -2550000 | C61: =-'Splátkový kalendář'!D23 -> -2473442.222 | D61: =-'Splátkový kalendář'!E23 -> -2394587.711 | E61: =-'Splátkový kalendář'!F23 -> -2313367.564 | F61: =-'Splátkový kalendář'!G23 -> -2229710.813 | G61: =-'Splátkový kalendář'!H23 -> -2143544.359 | H61: =-'Splátkový kalendář'!I23 -> -2054792.912 | I61: =-'Splátkový kalendář'!J23 -> -1963378.922 | J61: =-'Splátkový kalendář'!K23 -> -1869222.511 | K61: =-'Splátkový kalendář'!L23 -> -1772241.409 | L61: =-'Splátkový kalendář'!M23 -> -1672350.873 | M61: =-'Splátkový kalendář'!N23 -> -1569463.621 | N61: =-'Splátkový kalendář'!O23 -> -1463489.752 | O61: =-'Splátkový kalendář'!P23 -> -1354336.667 | P61: =-'Splátkový kalendář'!Q23 -> -1241908.989 | Q61: =-'Splátkový kalendář'!R23 -> -1126108.48 | R61: =-'Splátkový kalendář'!S23 -> -1006833.957 | S61: =-'Splátkový kalendář'!T23 -> -883981.1975 | T61: =-'Splátkový kalendář'!U23 -> -757442.8555 | U61: =-'Splátkový kalendář'!V23 -> -627108.3632 | V61: =-'Splátkový kalendář'!W23 -> -492863.8362 | W61: =-'Splátkový kalendář'!X23 -> -354591.9733 | X61: =-'Splátkový kalendář'!Y23 -> -212171.9545 | Y61: =-'Splátkový kalendář'!Z23 -> -65479.33519 | Z61: =-'Splátkový kalendář'!AA23 -> 85614.06272 | AA61: =-'Splátkový kalendář'!AB23 -> 241240.2626 | AB61: =-'Splátkový kalendář'!AC23 -> 401535.2484 | AC61: =-'Splátkový kalendář'!AD23 -> 566639.0838 | AD61: =-'Splátkový kalendář'!AE23 -> 736696.0343 | AE61: =-'Splátkový kalendář'!AF23 -> 911854.6933
A62: Finanční výsledek hospodaření | B62: =B61 -> -2550000 | C62: =C61 -> -2473442.222 | D62: =D61 -> -2394587.711 | E62: =E61 -> -2313367.564 | F62: =F61 -> -2229710.813 | G62: =G61 -> -2143544.359 | H62: =H61 -> -2054792.912 | I62: =I61 -> -1963378.922 | J62: =J61 -> -1869222.511 | K62: =K61 -> -1772241.409 | L62: =L61 -> -1672350.873 | M62: =M61 -> -1569463.621 | N62: =N61 -> -1463489.752 | O62: =O61 -> -1354336.667 | P62: =P61 -> -1241908.989 | Q62: =Q61 -> -1126108.48 | R62: =R61 -> -1006833.957 | S62: =S61 -> -883981.1975 | T62: =T61 -> -757442.8555 | U62: =U61 -> -627108.3632 | V62: =V61 -> -492863.8362 | W62: =W61 -> -354591.9733 | X62: =X61 -> -212171.9545 | Y62: =Y61 -> -65479.33519 | Z62: =Z61 -> 85614.06272 | AA62: =AA61 -> 241240.2626 | AB62: =AB61 -> 401535.2484 | AC62: =AC61 -> 566639.0838 | AD62: =AD61 -> 736696.0343 | AE62: =AE61 -> 911854.6933
A63: EBT | B63: =B62+B60 -> -392777.6063 | C63: =C62+C60 -> -2435149.282 | D63: -2296584.007 | E63: -2156555.457 | F63: -2015049.891 | G63: -1932008.278 | H63: -1849317.785 | I63: -1767011.466 | J63: -1685123.259 | K63: -1603687.99 | L63: -1522741.393 | M63: -1442320.124 | N63: -1362461.77 | O63: -1283204.868 | P63: -1204588.917 | Q63: -1184976.194 | R63: -1167920.453 | S63: -1153511.699 | T63: -1141842.121 | U63: -1133006.131 | V63: 3231873.953 | W63: 3234750.427 | X63: 3234496.315 | Y63: 3231007.891 | Z63: 3224178.992 | AA63: 3213900.976 | AB63: 3200062.677 | AC63: 3182550.362 | AD63: 3161247.686 | AE63: 3136035.646
A64: Daň z příjmů | B64: =IF(B63>0,(-B63*Zadání!$B$20),0) -> 0 | C64: =IF(C63>0,(-C63*Zadání!$B$20),0) -> 0 | D64: =IF(D63>0,(-D63*Zadání!$B$20),0) -> 0 | E64: =IF(E63>0,(-E63*Zadání!$B$20),0) -> 0 | F64: =IF(F63>0,(-F63*Zadání!$B$20),0) -> 0 | G64: =IF(G63>0,(-G63*Zadání!$B$20),0) -> 0 | H64: =IF(H63>0,(-H63*Zadání!$B$20),0) -> 0 | I64: =IF(I63>0,(-I63*Zadání!$B$20),0) -> 0 | J64: =IF(J63>0,(-J63*Zadání!$B$20),0) -> 0 | K64: =IF(K63>0,(-K63*Zadání!$B$20),0) -> 0 | L64: =IF(L63>0,(-L63*Zadání!$B$20),0) -> 0 | M64: =IF(M63>0,(-M63*Zadání!$B$20),0) -> 0 | N64: =IF(N63>0,(-N63*Zadání!$B$20),0) -> 0 | O64: =IF(O63>0,(-O63*Zadání!$B$20),0) -> 0 | P64: =IF(P63>0,(-P63*Zadání!$B$20),0) -> 0 | Q64: =IF(Q63>0,(-Q63*Zadání!$B$20),0) -> 0 | R64: =IF(R63>0,(-R63*Zadání!$B$20),0) -> 0 | S64: =IF(S63>0,(-S63*Zadání!$B$20),0) -> 0 | T64: =IF(T63>0,(-T63*Zadání!$B$20),0) -> 0 | U64: =IF(U63>0,(-U63*Zadání!$B$20),0) -> 0 | V64: =IF(V63>0,(-V63*Zadání!$B$20),0) -> -614056.051 | W64: =IF(W63>0,(-W63*Zadání!$B$20),0) -> -614602.5811 | X64: =IF(X63>0,(-X63*Zadání!$B$20),0) -> -614554.2999 | Y64: =IF(Y63>0,(-Y63*Zadání!$B$20),0) -> -613891.4994 | Z64: =IF(Z63>0,(-Z63*Zadání!$B$20),0) -> -612594.0085 | AA64: =IF(AA63>0,(-AA63*Zadání!$B$20),0) -> -610641.1854 | AB64: =IF(AB63>0,(-AB63*Zadání!$B$20),0) -> -608011.9086 | AC64: =IF(AC63>0,(-AC63*Zadání!$B$20),0) -> -604684.5688 | AD64: =IF(AD63>0,(-AD63*Zadání!$B$20),0) -> -600637.0604 | AE64: =IF(AE63>0,(-AE63*Zadání!$B$20),0) -> -595846.7727
A65: Výsledek hospodaření za běžnou činnost | B65: =B63+B64 -> -392777.6063 | C65: -2435149.282 | D65: -2296584.007 | E65: -2156555.457 | F65: -2015049.891 | G65: -1932008.278 | H65: -1849317.785 | I65: -1767011.466 | J65: -1685123.259 | K65: -1603687.99 | L65: -1522741.393 | M65: -1442320.124 | N65: -1362461.77 | O65: -1283204.868 | P65: -1204588.917 | Q65: -1184976.194 | R65: -1167920.453 | S65: -1153511.699 | T65: -1141842.121 | U65: -1133006.131 | V65: 2617817.902 | W65: 2620147.846 | X65: 2619942.015 | Y65: 2617116.392 | Z65: 2611584.984 | AA65: 2603259.79 | AB65: 2592050.768 | AC65: 2577865.793 | AD65: 2560610.626 | AE65: 2540188.873

Sheet Cash Flow
A1: Roky | B1: 0 | C1: 1 | D1: 2 | E1: 3 | F1: 4 | G1: 5 | H1: 6 | I1: 7 | J1: 8 | K1: 9 | L1: 10 | M1: 11 | N1: 12 | O1: 13 | P1: 14 | Q1: 15 | R1: 16 | S1: 17 | T1: 18 | U1: 19 | V1: 20 | W1: 21 | X1: 22 | Y1: 23 | Z1: 24 | AA1: 25 | AB1: 26 | AC1: 27 | AD1: 28 | AE1: 29 | AF1: 30
A2: =Zadání!A41 -> Plyn
A3: Výsledek hospodaření za běžnou činnost | B3: 0 | C3: =Výsledovka!B21 -> -20013689.91 | D3: =Výsledovka!C21 -> -22643740.87 | E3: =Výsledovka!D21 -> -22708920.93 | F3: =Výsledovka!E21 -> -22773286.83 | G3: =Výsledovka!F21 -> -22836791.33 | H3: =Výsledovka!G21 -> -23044804.91 | I3: =Výsledovka!H21 -> -23254766.53 | J3: =Výsledovka!I21 -> -23466668 | K3: =Výsledovka!J21 -> -23680500.16 | L3: =Výsledovka!K21 -> -23896252.75 | M3: =Výsledovka!L21 -> -24113914.45 | N3: =Výsledovka!M21 -> -24333472.78 | O3: =Výsledovka!N21 -> -24554914.1 | P3: =Výsledovka!O21 -> -24778223.51 | Q3: =Výsledovka!P21 -> -25003384.87 | R3: =Výsledovka!Q21 -> -25364241.8 | S3: =Výsledovka!R21 -> -25729591.62 | T3: =Výsledovka!S21 -> -26099454.25 | U3: =Výsledovka!T21 -> -26473848.68 | V3: =Výsledovka!U21 -> -26852792.91 | W3: =Výsledovka!V21 -> -22108098.83 | X3: =Výsledovka!W21 -> -22496192.61 | Y3: =Výsledovka!X21 -> -22888883.91 | Z3: =Výsledovka!Y21 -> -23286186.37 | AA3: =Výsledovka!Z21 -> -23688112.36 | AB3: =Výsledovka!AA21 -> -24094673.01 | AC3: =Výsledovka!AB21 -> -24505878.07 | AD3: =Výsledovka!AC21 -> -24921735.9 | AE3: =Výsledovka!AD21 -> -25342253.37 | AF3: =Výsledovka!AE21 -> -25767435.86
A4: Odpisy | B4: 0 | C4: =Odpisy!F5 -> 2564102.564 | D4: =Odpisy!G5 -> 5128205.128 | E4: =Odpisy!H5 -> 5128205.128 | F4: =Odpisy!I5 -> 5128205.128 | G4: =Odpisy!J5 -> 5128205.128 | H4: =Odpisy!K5 -> 5128205.128 | I4: =Odpisy!L5 -> 5128205.128 | J4: =Odpisy!M5 -> 5128205.128 | K4: =Odpisy!N5 -> 5128205.128 | L4: =Odpisy!O5 -> 5128205.128 | M4: =Odpisy!P5 -> 5128205.128 | N4: =Odpisy!Q5 -> 5128205.128 | O4: =Odpisy!R5 -> 5128205.128 | P4: =Odpisy!S5 -> 5128205.128 | Q4: =Odpisy!T5 -> 5128205.128 | R4: =Odpisy!U5 -> 5128205.128 | S4: =Odpisy!V5 -> 5128205.128 | T4: =Odpisy!W5 -> 5128205.128 | U4: =Odpisy!X5 -> 5128205.128 | V4: =Odpisy!Y5 -> 5128205.128 | W4: =Odpisy!Z5 -> 0 | X4: =Odpisy!AA5 -> 0 | Y4: =Odpisy!AB5 -> 0 | Z4: =Odpisy!AC5 -> 0 | AA4: =Odpisy!AD5 -> 0 | AB4: =Odpisy!AE5 -> 0 | AC4: =Odpisy!AF5 -> 0 | AD4: =Odpisy!AG5 -> 0 | AE4: =Odpisy!AH5 -> 0 | AF4: =Odpisy!AI5 -> 0
A5: Daňová ztráta | B5: 0 | C5: =IF(Výsledovka!B19<0,Výsledovka!B19*Zadání!$B$20,0) -> -3802601.082 | D5: =IF(Výsledovka!C19<0,Výsledovka!C19*Zadání!$B$20,0) -> -4302310.766 | E5: =IF(Výsledovka!D19<0,Výsledovka!D19*Zadání!$B$20,0) -> -4314694.977 | F5: =IF(Výsledovka!E19<0,Výsledovka!E19*Zadání!$B$20,0) -> -4326924.498 | G5: =IF(Výsledovka!F19<0,Výsledovka!F19*Zadání!$B$20,0) -> -4338990.352 | H5: =IF(Výsledovka!G19<0,Výsledovka!G19*Zadání!$B$20,0) -> -4378512.934 | I5: =IF(Výsledovka!H19<0,Výsledovka!H19*Zadání!$B$20,0) -> -4418405.64 | J5: =IF(Výsledovka!I19<0,Výsledovka!I19*Zadání!$B$20,0) -> -4458666.92 | K5: =IF(Výsledovka!J19<0,Výsledovka!J19*Zadání!$B$20,0) -> -4499295.029 | L5: =IF(Výsledovka!K19<0,Výsledovka!K19*Zadání!$B$20,0) -> -4540288.023 | M5: =IF(Výsledovka!L19<0,Výsledovka!L19*Zadání!$B$20,0) -> -4581643.746 | N5: =IF(Výsledovka!M19<0,Výsledovka!M19*Zadání!$B$20,0) -> -4623359.829 | O5: =IF(Výsledovka!N19<0,Výsledovka!N19*Zadání!$B$20,0) -> -4665433.678 | P5: =IF(Výsledovka!O19<0,Výsledovka!O19*Zadání!$B$20,0) -> -4707862.466 | Q5: =IF(Výsledovka!P19<0,Výsledovka!P19*Zadání!$B$20,0) -> -4750643.126 | R5: =IF(Výsledovka!Q19<0,Výsledovka!Q19*Zadání!$B$20,0) -> -4819205.943 | S5: =IF(Výsledovka!R19<0,Výsledovka!R19*Zadání!$B$20,0) -> -4888622.409 | T5: =IF(Výsledovka!S19<0,Výsledovka!S19*Zadání!$B$20,0) -> -4958896.308 | U5: =IF(Výsledovka!T19<0,Výsledovka!T19*Zadání!$B$20,0) -> -5030031.248 | V5: =IF(Výsledovka!U19<0,Výsledovka!U19*Zadání!$B$20,0) -> -5102030.654 | W5: =IF(Výsledovka!V19<0,Výsledovka!V19*Zadání!$B$20,0) -> -4200538.778 | X5: =IF(Výsledovka!W19<0,Výsledovka!W19*Zadání!$B$20,0) -> -4274276.595 | Y5: =IF(Výsledovka!X19<0,Výsledovka!X19*Zadání!$B$20,0) -> -4348887.943 | Z5: =IF(Výsledovka!Y19<0,Výsledovka!Y19*Zadání!$B$20,0) -> -4424375.409 | AA5: =IF(Výsledovka!Z19<0,Výsledovka!Z19*Zadání!$B$20,0) -> -4500741.349 | AB5: =IF(Výsledovka!AA19<0,Výsledovka!AA19*Zadání!$B$20,0) -> -4577987.872 | AC5: =IF(Výsledovka!AB19<0,Výsledovka!AB19*Zadání!$B$20,0) -> -4656116.834 | AD5: =IF(Výsledovka!AC19<0,Výsledovka!AC19*Zadání!$B$20,0) -> -4735129.82 | AE5: =IF(Výsledovka!AD19<0,Výsledovka!AD19*Zadání!$B$20,0) -> -4815028.141 | AF5: =IF(Výsledovka!AE19<0,Výsledovka!AE19*Zadání!$B$20,0) -> -4895812.813
A6: Cash flow z provozní činnosti | B6: =B3+B4-B5 -> 0 | C6: =C3+C4-C5 -> -13646986.26 | D6: =D3+D4-D5 -> -13213224.98 | E6: -13266020.83 | F6: -13318157.21 | G6: -13369595.85 | H6: -13538086.85 | I6: -13708155.76 | J6: -13879795.95 | K6: -14053000 | L6: -14227759.6 | M6: -14404065.58 | N6: -14581907.83 | O6: -14761275.29 | P6: -14942155.91 | Q6: -15124536.62 | R6: -15416830.73 | S6: -15712764.09 | T6: -16012352.82 | U6: -16315612.3 | V6: -16622557.13 | W6: -17907560.05 | X6: -18221916.01 | Y6: -18539995.97 | Z6: -18861810.96 | AA6: -19187371.01 | AB6: -19516685.14 | AC6: -19849761.24 | AD6: -20186606.08 | AE6: -20527225.23 | AF6: -20871623.04
A7: Úmor | B7: 0 | C7: =-'Splátkový kalendář'!C8 -> -2101925.932 | D7: =-'Splátkový kalendář'!D8 -> -2164983.71 | E7: =-'Splátkový kalendář'!E8 -> -2229933.221 | F7: =-'Splátkový kalendář'!F8 -> -2296831.218 | G7: =-'Splátkový kalendář'!G8 -> -2365736.154 | H7: =-'Splátkový kalendář'!H8 -> -2436708.239 | I7: =-'Splátkový kalendář'!I8 -> -2509809.486 | J7: =-'Splátkový kalendář'!J8 -> -2585103.771 | K7: =-'Splátkový kalendář'!K8 -> -2662656.884 | L7: =-'Splátkový kalendář'!L8 -> -2742536.591 | M7: =-'Splátkový kalendář'!M8 -> -2824812.688 | N7: =-'Splátkový kalendář'!N8 -> -2909557.069 | O7: =-'Splátkový kalendář'!O8 -> -2996843.781 | P7: =-'Splátkový kalendář'!P8 -> -3086749.094 | Q7: =-'Splátkový kalendář'!Q8 -> -3179351.567 | R7: =-'Splátkový kalendář'!R8 -> -3274732.114 | S7: =-'Splátkový kalendář'!S8 -> -3372974.078 | T7: =-'Splátkový kalendář'!T8 -> -3474163.3 | U7: =-'Splátkový kalendář'!U8 -> -3578388.199 | V7: =-'Splátkový kalendář'!V8 -> -3685739.845 | W7: =-'Splátkový kalendář'!W8 -> -3796312.04 | X7: =-'Splátkový kalendář'!X8 -> -3910201.401 | Y7: =-'Splátkový kalendář'!Y8 -> -4027507.444 | Z7: =-'Splátkový kalendář'!Z8 -> -4148332.667 | AA7: =-'Splátkový kalendář'!AA8 -> -4272782.647 | AB7: =-'Splátkový kalendář'!AB8 -> -4400966.126 | AC7: =-'Splátkový kalendář'!AC8 -> -4532995.11 | AD7: =-'Splátkový kalendář'!AD8 -> -4668984.963 | AE7: =-'Splátkový kalendář'!AE8 -> -4809054.512 | AF7: =-'Splátkový kalendář'!AF8 -> -4953326.148
A8: Investice | B8: =-Zadání!C60 -> -100000000 | C8: 0 | D8: 0 | E8: 0 | F8: 0 | G8: 0 | H8: 0 | I8: 0 | J8: 0 | K8: 0 | L8: 0 | M8: 0 | N8: 0 | O8: 0 | P8: 0 | Q8: 0 | R8: 0 | S8: 0 | T8: 0 | U8: 0 | V8: 0 | W8: 0 | X8: 0 | Y8: 0 | Z8: 0 | AA8: 0 | AB8: 0 | AC8: 0 | AD8: 0 | AE8: 0 | AF8: 0
A9: CFO | B9: =B7+B6+B8 -> -100000000 | C9: =C7+C6+C8 -> -15748912.19 | D9: =D7+D6+D8 -> -15378208.69 | E9: -15495954.05 | F9: -15614988.42 | G9: -15735332 | H9: -15974795.09 | I9: -16217965.25 | J9: -16464899.72 | K9: -16715656.88 | L9: -16970296.19 | M9: -17228878.27 | N9: -17491464.9 | O9: -17758119.07 | P9: -18028905.01 | Q9: -18303888.19 | R9: -18691562.85 | S9: -19085738.17 | T9: -19486516.12 | U9: -19894000.5 | V9: -20308296.98 | W9: -21703872.09 | X9: -22132117.41 | Y9: -22567503.41 | Z9: -23010143.62 | AA9: -23460153.66 | AB9: -23917651.27 | AC9: -24382756.35 | AD9: -24855591.04 | AE9: -25336279.75 | AF9: -25824949.19
A10: FCFF | B10: =B8 -> -100000000 | C10: =C9+('Splátkový kalendář'!C9*(1-Zadání!$B$20))-C8-C7 -> -11216986.26 | D10: =D9+('Splátkový kalendář'!D9*(1-Zadání!$B$20))-D8-D7 -> -10834301.78 | E10: =E9+('Splátkový kalendář'!E9*(1-Zadání!$B$20))-E8-E7 -> -10939706.73 | F10: =F9+('Splátkový kalendář'!F9*(1-Zadání!$B$20))-F8-F7 -> -11046030.49 | G10: =G9+('Splátkový kalendář'!G9*(1-Zadání!$B$20))-G8-G7 -> -11153282.13 | H10: =H9+('Splátkový kalendář'!H9*(1-Zadání!$B$20))-H8-H7 -> -11379260.52 | I10: =I9+('Splátkový kalendář'!I9*(1-Zadání!$B$20))-I8-I7 -> -11608541.44 | J10: =J9+('Splátkový kalendář'!J9*(1-Zadání!$B$20))-J8-J7 -> -11841170 | K10: =K9+('Splátkový kalendář'!K9*(1-Zadání!$B$20))-K8-K7 -> -12077192.07 | L10: =L9+('Splátkový kalendář'!L9*(1-Zadání!$B$20))-L8-L7 -> -12316654.23 | M10: =M9+('Splátkový kalendář'!M9*(1-Zadání!$B$20))-M8-M7 -> -12559603.85 | N10: =N9+('Splátkový kalendář'!N9*(1-Zadání!$B$20))-N8-N7 -> -12806089.05 | O10: =O9+('Splátkový kalendář'!O9*(1-Zadání!$B$20))-O8-O7 -> -13056158.75 | P10: =P9+('Splátkový kalendář'!P9*(1-Zadání!$B$20))-P8-P7 -> -13309862.67 | Q10: =Q9+('Splátkový kalendář'!Q9*(1-Zadání!$B$20))-Q8-Q7 -> -13567251.38 | R10: =R9+('Splátkový kalendář'!R9*(1-Zadání!$B$20))-R8-R7 -> -13936803.74 | S10: =S9+('Splátkový kalendář'!S9*(1-Zadání!$B$20))-S8-S7 -> -14312313.09 | T10: =T9+('Splátkový kalendář'!T9*(1-Zadání!$B$20))-T8-T7 -> -14693865.08 | U10: =U9+('Splátkový kalendář'!U9*(1-Zadání!$B$20))-U8-U7 -> -15081546.74 | V10: =V9+('Splátkový kalendář'!V9*(1-Zadání!$B$20))-V8-V7 -> -15475446.4 | W10: =W9+('Splátkový kalendář'!W9*(1-Zadání!$B$20))-W8-W7 -> -16850012.8 | X10: =X9+('Splátkový kalendář'!X9*(1-Zadání!$B$20))-X8-X7 -> -17256619.14 | Y10: =Y9+('Splátkový kalendář'!Y9*(1-Zadání!$B$20))-Y8-Y7 -> -17669716.99 | Z10: =Z9+('Splátkový kalendář'!Z9*(1-Zadání!$B$20))-Z8-Z7 -> -18089400.41 | AA10: =AA9+('Splátkový kalendář'!AA9*(1-Zadání!$B$20))-AA8-AA7 -> -18515764.95 | AB10: =AB9+('Splátkový kalendář'!AB9*(1-Zadání!$B$20))-AB8-AB7 -> -18948907.7 | AC10: =AC9+('Splátkový kalendář'!AC9*(1-Zadání!$B$20))-AC8-AC7 -> -19388927.27 | AD10: =AD9+('Splátkový kalendář'!AD9*(1-Zadání!$B$20))-AD8-AD7 -> -19835923.89 | AE10: =AE9+('Splátkový kalendář'!AE9*(1-Zadání!$B$20))-AE8-AE7 -> -20289999.38 | AF10: =AF9+('Splátkový kalendář'!AF9*(1-Zadání!$B$20))-AF8-AF7 -> -20751257.22
A11: NPV | B11: =NPV(Zadání!$B$27,'Cash Flow'!C10:AF10)+'Cash Flow'!B8 -> -305557843.6
A12: IRR | B12: =IRR(B10:AF10) -> 
A13: FCFE | B13: =B9*(1-Zadání!$B$31) -> 0 | C13: =C10+(-'Splátkový kalendář'!C9*(1-Zadání!$B$20))+C7 -> -15748912.19 | D13: =D10+(-'Splátkový kalendář'!D9*(1-Zadání!$B$20))+D7 -> -15378208.69 | E13: =E10+(-'Splátkový kalendář'!E9*(1-Zadání!$B$20))+E7 -> -15495954.05 | F13: =F10+(-'Splátkový kalendář'!F9*(1-Zadání!$B$20))+F7 -> -15614988.42 | G13: =G10+(-'Splátkový kalendář'!G9*(1-Zadání!$B$20))+G7 -> -15735332 | H13: =H10+(-'Splátkový kalendář'!H9*(1-Zadání!$B$20))+H7 -> -15974795.09 | I13: =I10+(-'Splátkový kalendář'!I9*(1-Zadání!$B$20))+I7 -> -16217965.25 | J13: =J10+(-'Splátkový kalendář'!J9*(1-Zadání!$B$20))+J7 -> -16464899.72 | K13: =K10+(-'Splátkový kalendář'!K9*(1-Zadání!$B$20))+K7 -> -16715656.88 | L13: =L10+(-'Splátkový kalendář'!L9*(1-Zadání!$B$20))+L7 -> -16970296.19 | M13: =M10+(-'Splátkový kalendář'!M9*(1-Zadání!$B$20))+M7 -> -17228878.27 | N13: =N10+(-'Splátkový kalendář'!N9*(1-Zadání!$B$20))+N7 -> -17491464.9 | O13: =O10+(-'Splátkový kalendář'!O9*(1-Zadání!$B$20))+O7 -> -17758119.07 | P13: =P10+(-'Splátkový kalendář'!P9*(1-Zadání!$B$20))+P7 -> -18028905.01 | Q13: =Q10+(-'Splátkový kalendář'!Q9*(1-Zadání!$B$20))+Q7 -> -18303888.19 | R13: =R10+(-'Splátkový kalendář'!R9*(1-Zadání!$B$20))+R7 -> -18691562.85 | S13: =S10+(-'Splátkový kalendář'!S9*(1-Zadání!$B$20))+S7 -> -19085738.17 | T13: =T10+(-'Splátkový kalendář'!T9*(1-Zadání!$B$20))+T7 -> -19486516.12 | U13: =U10+(-'Splátkový kalendář'!U9*(1-Zadání!$B$20))+U7 -> -19894000.5 | V13: =V10+(-'Splátkový kalendář'!V9*(1-Zadání!$B$20))+V7 -> -20308296.98 | W13: =W10+(-'Splátkový kalendář'!W9*(1-Zadání!$B$20))+W7 -> -21703872.09 | X13: =X10+(-'Splátkový kalendář'!X9*(1-Zadání!$B$20))+X7 -> -22132117.41 | Y13: =Y10+(-'Splátkový kalendář'!Y9*(1-Zadání!$B$20))+Y7 -> -22567503.41 | Z13: =Z10+(-'Splátkový kalendář'!Z9*(1-Zadání!$B$20))+Z7 -> -23010143.62 | AA13: =AA10+(-'Splátkový kalendář'!AA9*(1-Zadání!$B$20))+AA7 -> -23460153.66 | AB13: =AB10+(-'Splátkový kalendář'!AB9*(1-Zadání!$B$20))+AB7 -> -23917651.27 | AC13: =AC10+(-'Splátkový kalendář'!AC9*(1-Zadání!$B$20))+AC7 -> -24382756.35 | AD13: =AD10+(-'Splátkový kalendář'!AD9*(1-Zadání!$B$20))+AD7 -> -24855591.04 | AE13: =AE10+(-'Splátkový kalendář'!AE9*(1-Zadání!$B$20))+AE7 -> -25336279.75 | AF13: =AF10+(-'Splátkový kalendář'!AF9*(1-Zadání!$B$20))+AF7 -> -25824949.19
A14: NPV | B14: =NPV(Zadání!$B$25,'Cash Flow'!C13:AF13)+B13 -> -220403690.1
A15: IRR | B15: =IRR(B13:AF13) -> 
A17: =Zadání!A63 -> Biomasa
A18: Výsledek hospodaření za běžnou činnost | B18: 0 | C18: =Výsledovka!B43 -> 6973039.698 | D18: =Výsledovka!C43 -> 5523242.863 | E18: =Výsledovka!D43 -> 5738000.551 | F18: =Výsledovka!E43 -> 5955823.286 | G18: =Výsledovka!F43 -> 6176761.09 | H18: =Výsledovka!G43 -> 6372256.538 | I18: =Výsledovka!H43 -> 6570016.548 | J18: =Výsledovka!I43 -> 6770069.626 | K18: =Výsledovka!J43 -> 6972444.841 | L18: =Výsledovka!K43 -> 7177171.841 | M18: =Výsledovka!L43 -> 7384280.88 | N18: =Výsledovka!M43 -> 7593802.83 | O18: =Výsledovka!N43 -> 7805769.209 | P18: =Výsledovka!O43 -> 8020212.2 | Q18: =Výsledovka!P43 -> 8237164.673 | R18: =Výsledovka!Q43 -> 8402780.069 | S18: =Výsledovka!R43 -> 8568999.045 | T18: =Výsledovka!S43 -> 8735801.118 | U18: =Výsledovka!T43 -> 8903165.183 | V18: =Výsledovka!U43 -> 9071069.499 | W18: =Výsledovka!V43 -> 12562568.61 | X18: =Výsledovka!W43 -> 12731485.66 | Y18: =Výsledovka!X43 -> 12900873.88 | Z18: =Výsledovka!Y43 -> 13070708.96 | AA18: =Výsledovka!Z43 -> 13240965.91 | AB18: =Výsledovka!AA43 -> 13411619.08 | AC18: =Výsledovka!AB43 -> 13582642.15 | AD18: =Výsledovka!AC43 -> 13754008.13 | AE18: =Výsledovka!AD43 -> 13925689.35 | AF18: =Výsledovka!AE43 -> 14097657.46
A19: Odpisy | B19: 0 | C19: =Odpisy!F10 -> 2051282.051 | D19: =Odpisy!G10 -> 4102564.103 | E19: =Odpisy!H10 -> 4102564.103 | F19: =Odpisy!I10 -> 4102564.103 | G19: =Odpisy!J10 -> 4102564.103 | H19: =Odpisy!K10 -> 4102564.103 | I19: =Odpisy!L10 -> 4102564.103 | J19: =Odpisy!M10 -> 4102564.103 | K19: =Odpisy!N10 -> 4102564.103 | L19: =Odpisy!O10 -> 4102564.103 | M19: =Odpisy!P10 -> 4102564.103 | N19: =Odpisy!Q10 -> 4102564.103 | O19: =Odpisy!R10 -> 4102564.103 | P19: =Odpisy!S10 -> 4102564.103 | Q19: =Odpisy!T10 -> 4102564.103 | R19: =Odpisy!U10 -> 4102564.103 | S19: =Odpisy!V10 -> 4102564.103 | T19: =Odpisy!W10 -> 4102564.103 | U19: =Odpisy!X10 -> 4102564.103 | V19: =Odpisy!Y10 -> 4102564.103 | W19: =Odpisy!Z10 -> 0 | X19: =Odpisy!AA10 -> 0 | Y19: =Odpisy!AB10 -> 0 | Z19: =Odpisy!AC10 -> 0 | AA19: =Odpisy!AD10 -> 0 | AB19: =Odpisy!AE10 -> 0 | AC19: =Odpisy!AF10 -> 0 | AD19: =Odpisy!AG10 -> 0 | AE19: =Odpisy!AH10 -> 0 | AF19: =Odpisy!AI10 -> 0
A20: Daňová ztráta | B20: 0 | C20: =IF(Výsledovka!B41<0,Výsledovka!B41*Zadání!$B$20,0) -> 0 | D20: =IF(Výsledovka!C41<0,Výsledovka!C41*Zadání!$B$20,0) -> 0 | E20: =IF(Výsledovka!D41<0,Výsledovka!D41*Zadání!$B$20,0) -> 0 | F20: =IF(Výsledovka!E41<0,Výsledovka!E41*Zadání!$B$20,0) -> 0 | G20: =IF(Výsledovka!F41<0,Výsledovka!F41*Zadání!$B$20,0) -> 0 | H20: =IF(Výsledovka!G41<0,Výsledovka!G41*Zadání!$B$20,0) -> 0 | I20: =IF(Výsledovka!H41<0,Výsledovka!H41*Zadání!$B$20,0) -> 0 | J20: =IF(Výsledovka!I41<0,Výsledovka!I41*Zadání!$B$20,0) -> 0 | K20: =IF(Výsledovka!J41<0,Výsledovka!J41*Zadání!$B$20,0) -> 0 | L20: =IF(Výsledovka!K41<0,Výsledovka!K41*Zadání!$B$20,0) -> 0 | M20: =IF(Výsledovka!L41<0,Výsledovka!L41*Zadání!$B$20,0) -> 0 | N20: =IF(Výsledovka!M41<0,Výsledovka!M41*Zadání!$B$20,0) -> 0 | O20: =IF(Výsledovka!N41<0,Výsledovka!N41*Zadání!$B$20,0) -> 0 | P20: =IF(Výsledovka!O41<0,Výsledovka!O41*Zadání!$B$20,0) -> 0 | Q20: =IF(Výsledovka!P41<0,Výsledovka!P41*Zadání!$B$20,0) -> 0 | R20: =IF(Výsledovka!Q41<0,Výsledovka!Q41*Zadání!$B$20,0) -> 0 | S20: =IF(Výsledovka!R41<0,Výsledovka!R41*Zadání!$B$20,0) -> 0 | T20: =IF(Výsledovka!S41<0,Výsledovka!S41*Zadání!$B$20,0) -> 0 | U20: =IF(Výsledovka!T41<0,Výsledovka!T41*Zadání!$B$20,0) -> 0 | V20: =IF(Výsledovka!U41<0,Výsledovka!U41*Zadání!$B$20,0) -> 0 | W20: =IF(Výsledovka!V41<0,Výsledovka!V41*Zadání!$B$20,0) -> 0 | X20: =IF(Výsledovka!W41<0,Výsledovka!W41*Zadání!$B$20,0) -> 0 | Y20: =IF(Výsledovka!X41<0,Výsledovka!X41*Zadání!$B$20,0) -> 0 | Z20: =IF(Výsledovka!Y41<0,Výsledovka!Y41*Zadání!$B$20,0) -> 0 | AA20: =IF(Výsledovka!Z41<0,Výsledovka!Z41*Zadání!$B$20,0) -> 0 | AB20: =IF(Výsledovka!AA41<0,Výsledovka!AA41*Zadání!$B$20,0) -> 0 | AC20: =IF(Výsledovka!AB41<0,Výsledovka!AB41*Zadání!$B$20,0) -> 0 | AD20: =IF(Výsledovka!AC41<0,Výsledovka!AC41*Zadání!$B$20,0) -> 0 | AE20: =IF(Výsledovka!AD41<0,Výsledovka!AD41*Zadání!$B$20,0) -> 0 | AF20: =IF(Výsledovka!AE41<0,Výsledovka!AE41*Zadání!$B$20,0) -> 0
A21: Cash flow z provozní činnosti | B21: 0 | C21: =C18+C19-C20 -> 9024321.749 | D21: =D18+D19-D20 -> 9625806.966 | E21: 9840564.653 | F21: 10058387.39 | G21: 10279325.19 | H21: 10474820.64 | I21: 10672580.65 | J21: 10872633.73 | K21: 11075008.94 | L21: 11279735.94 | M21: 11486844.98 | N21: 11696366.93 | O21: 11908333.31 | P21: 12122776.3 | Q21: 12339728.78 | R21: 12505344.17 | S21: 12671563.15 | T21: 12838365.22 | U21: 13005729.29 | V21: 13173633.6 | W21: 12562568.61 | X21: 12731485.66 | Y21: 12900873.88 | Z21: 13070708.96 | AA21: 13240965.91 | AB21: 13411619.08 | AC21: 13582642.15 | AD21: 13754008.13 | AE21: 13925689.35 | AF21: 14097657.46
A22: Úmor | B22: 0 | C22: =-'Splátkový kalendář'!C15 -> -2701925.932 | D22: =-'Splátkový kalendář'!D15 -> -2782983.71 | E22: =-'Splátkový kalendář'!E15 -> -2866473.221 | F22: =-'Splátkový kalendář'!F15 -> -2952467.418 | G22: =-'Splátkový kalendář'!G15 -> -3041041.44 | H22: =-'Splátkový kalendář'!H15 -> -3132272.684 | I22: =-'Splátkový kalendář'!I15 -> -3226240.864 | J22: =-'Splátkový kalendář'!J15 -> -3323028.09 | K22: =-'Splátkový kalendář'!K15 -> -3422718.933 | L22: =-'Splátkový kalendář'!L15 -> -3525400.501 | M22: =-'Splátkový kalendář'!M15 -> -3631162.516 | N22: =-'Splátkový kalendář'!N15 -> -3740097.391 | O22: =-'Splátkový kalendář'!O15 -> -3852300.313 | P22: =-'Splátkový kalendář'!P15 -> -3967869.322 | Q22: =-'Splátkový kalendář'!Q15 -> -4086905.402 | R22: =-'Splátkový kalendář'!R15 -> -4209512.564 | S22: =-'Splátkový kalendář'!S15 -> -4335797.941 | T22: =-'Splátkový kalendář'!T15 -> -4465871.879 | U22: =-'Splátkový kalendář'!U15 -> -4599848.036 | V22: =-'Splátkový kalendář'!V15 -> -4737843.477 | W22: =-'Splátkový kalendář'!W15 -> -4879978.781 | X22: =-'Splátkový kalendář'!X15 -> -5026378.145 | Y22: =-'Splátkový kalendář'!Y15 -> -5177169.489 | Z22: =-'Splátkový kalendář'!Z15 -> -5332484.574 | AA22: =-'Splátkový kalendář'!AA15 -> -5492459.111 | AB22: =-'Splátkový kalendář'!AB15 -> -5657232.884 | AC22: =-'Splátkový kalendář'!AC15 -> -5826949.871 | AD22: =-'Splátkový kalendář'!AD15 -> -6001758.367 | AE22: =-'Splátkový kalendář'!AE15 -> -6181811.118 | AF22: =-'Splátkový kalendář'!AF15 -> -6367265.451
A23: Investice | B23: =-Zadání!C85 -> -80000000 | C23: 0 | D23: 0 | E23: 0 | F23: 0 | G23: 0 | H23: 0 | I23: 0 | J23: 0 | K23: 0 | L23: 0 | M23: 0 | N23: 0 | O23: 0 | P23: 0 | Q23: 0 | R23: 0 | S23: 0 | T23: 0 | U23: 0 | V23: 0 | W23: 0 | X23: 0 | Y23: 0 | Z23: 0 | AA23: 0 | AB23: 0 | AC23: 0 | AD23: 0 | AE23: 0 | AF23: 0
A24: CFO | B24: =B22+B21+B23 -> -80000000 | C24: =C22+C21+C23 -> 6322395.817 | D24: =D22+D21+D23 -> 6842823.256 | E24: =E22+E21+E23 -> 6974091.432 | F24: =F22+F21+F23 -> 7105919.971 | G24: =G22+G21+G23 -> 7238283.752 | H24: =H22+H21+H23 -> 7342547.957 | I24: =I22+I21+I23 -> 7446339.787 | J24: =J22+J21+J23 -> 7549605.639 | K24: =K22+K21+K23 -> 7652290.01 | L24: =L22+L21+L23 -> 7754335.443 | M24: =M22+M21+M23 -> 7855682.466 | N24: =N22+N21+N23 -> 7956269.541 | O24: =O22+O21+O23 -> 8056032.999 | P24: =P22+P21+P23 -> 8154906.98 | Q24: =Q22+Q21+Q23 -> 8252823.373 | R24: =R22+R21+R23 -> 8295831.607 | S24: =S22+S21+S23 -> 8335765.206 | T24: =T22+T21+T23 -> 8372493.342 | U24: =U22+U21+U23 -> 8405881.25 | V24: =V22+V21+V23 -> 8435790.125 | W24: =W22+W21+W23 -> 7682589.831 | X24: =X22+X21+X23 -> 7705107.511 | Y24: =Y22+Y21+Y23 -> 7723704.392 | Z24: =Z22+Z21+Z23 -> 7738224.388 | AA24: =AA22+AA21+AA23 -> 7748506.801 | AB24: =AB22+AB21+AB23 -> 7754386.198 | AC24: =AC22+AC21+AC23 -> 7755692.281 | AD24: =AD22+AD21+AD23 -> 7752249.763 | AE24: =AE22+AE21+AE23 -> 7743878.23 | AF24: =AF22+AF21+AF23 -> 7730392.011
A25: FCFF | B25: =B23 -> -80000000 | C25: =C24+('Splátkový kalendář'!C16*(1-Zadání!$B$20))-C23-C22 -> 10968321.75 | D25: =D24+('Splátkový kalendář'!D16*(1-Zadání!$B$20))-D23-D22 -> 11504150.17 | E25: =E24+('Splátkový kalendář'!E16*(1-Zadání!$B$20))-E23-E22 -> 11651281.35 | F25: =F24+('Splátkový kalendář'!F16*(1-Zadání!$B$20))-F23-F22 -> 11799448.78 | G25: =G24+('Splátkový kalendář'!G16*(1-Zadání!$B$20))-G23-G22 -> 11948641.63 | H25: =H24+('Splátkový kalendář'!H16*(1-Zadání!$B$20))-H23-H22 -> 12070239.77 | I25: =I24+('Splátkový kalendář'!I16*(1-Zadání!$B$20))-I23-I22 -> 12191885.56 | J25: =J24+('Splátkový kalendář'!J16*(1-Zadání!$B$20))-J23-J22 -> 12313540.98 | K25: =K24+('Splátkový kalendář'!K16*(1-Zadání!$B$20))-K23-K22 -> 12435166.61 | L25: =L24+('Splátkový kalendář'!L16*(1-Zadání!$B$20))-L23-L22 -> 12556721.54 | M25: =M24+('Splátkový kalendář'!M16*(1-Zadání!$B$20))-M23-M22 -> 12678163.35 | N25: =N24+('Splátkový kalendář'!N16*(1-Zadání!$B$20))-N23-N22 -> 12799448.05 | O25: =O24+('Splátkový kalendář'!O16*(1-Zadání!$B$20))-O23-O22 -> 12920530.06 | P25: =P24+('Splátkový kalendář'!P16*(1-Zadání!$B$20))-P23-P22 -> 13041362.16 | Q25: =Q24+('Splátkový kalendář'!Q16*(1-Zadání!$B$20))-Q23-Q22 -> 13161895.4 | R25: =R24+('Splátkový kalendář'!R16*(1-Zadání!$B$20))-R23-R22 -> 13228199 | S25: =S24+('Splátkový kalendář'!S16*(1-Zadání!$B$20))-S23-S22 -> 13292126.82 | T25: =T24+('Splátkový kalendář'!T16*(1-Zadání!$B$20))-T23-T22 -> 13353569 | U25: =U24+('Splátkový kalendář'!U16*(1-Zadání!$B$20))-U23-U22 -> 13412412.38 | V25: =V24+('Splátkový kalendář'!V16*(1-Zadání!$B$20))-V23-V22 -> 13468540.39 | W25: =W24+('Splátkový kalendář'!W16*(1-Zadání!$B$20))-W23-W22 -> 12742345.8 | X25: =X24+('Splátkový kalendář'!X16*(1-Zadání!$B$20))-X23-X22 -> 12792679.36 | Y25: =Y24+('Splátkový kalendář'!Y16*(1-Zadání!$B$20))-Y23-Y22 -> 12839926.6 | Z25: =Z24+('Splátkový kalendář'!Z16*(1-Zadání!$B$20))-Z23-Z22 -> 12883956.46 | AA25: =AA24+('Splátkový kalendář'!AA16*(1-Zadání!$B$20))-AA23-AA22 -> 12924634.04 | AB25: =AB24+('Splátkový kalendář'!AB16*(1-Zadání!$B$20))-AB23-AB22 -> 12961820.45 | AC25: =AC24+('Splátkový kalendář'!AC16*(1-Zadání!$B$20))-AC23-AC22 -> 12995372.76 | AD25: =AD24+('Splátkový kalendář'!AD16*(1-Zadání!$B$20))-AD23-AD22 -> 13025143.86 | AE25: =AE24+('Splátkový kalendář'!AE16*(1-Zadání!$B$20))-AE23-AE22 -> 13050982.35 | AF25: =AF24+('Splátkový kalendář'!AF16*(1-Zadání!$B$20))-AF23-AF22 -> 13072732.45
A26: NPV | B26: =NPV(Zadání!$B$27,'Cash Flow'!C25:AF25)+'Cash Flow'!B23 -> 110086969.2
A27: IRR | B27: =IRR(B25:AF25) -> 0.148416359
A28: FCFE | B28: =B24*(1-Zadání!$B$31) -> 0 | C28: =C25+(-'Splátkový kalendář'!C16*(1-Zadání!$B$20))+C22 -> 6322395.817 | D28: =D25+(-'Splátkový kalendář'!D16*(1-Zadání!$B$20))+D22 -> 6842823.256 | E28: =E25+(-'Splátkový kalendář'!E16*(1-Zadání!$B$20))+E22 -> 6974091.432 | F28: =F25+(-'Splátkový kalendář'!F16*(1-Zadání!$B$20))+F22 -> 7105919.971 | G28: =G25+(-'Splátkový kalendář'!G16*(1-Zadání!$B$20))+G22 -> 7238283.752 | H28: =H25+(-'Splátkový kalendář'!H16*(1-Zadání!$B$20))+H22 -> 7342547.957 | I28: =I25+(-'Splátkový kalendář'!I16*(1-Zadání!$B$20))+I22 -> 7446339.787 | J28: =J25+(-'Splátkový kalendář'!J16*(1-Zadání!$B$20))+J22 -> 7549605.639 | K28: =K25+(-'Splátkový kalendář'!K16*(1-Zadání!$B$20))+K22 -> 7652290.01 | L28: =L25+(-'Splátkový kalendář'!L16*(1-Zadání!$B$20))+L22 -> 7754335.443 | M28: =M25+(-'Splátkový kalendář'!M16*(1-Zadání!$B$20))+M22 -> 7855682.466 | N28: =N25+(-'Splátkový kalendář'!N16*(1-Zadání!$B$20))+N22 -> 7956269.541 | O28: =O25+(-'Splátkový kalendář'!O16*(1-Zadání!$B$20))+O22 -> 8056032.999 | P28: =P25+(-'Splátkový kalendář'!P16*(1-Zadání!$B$20))+P22 -> 8154906.98 | Q28: =Q25+(-'Splátkový kalendář'!Q16*(1-Zadání!$B$20))+Q22 -> 8252823.373 | R28: =R25+(-'Splátkový kalendář'!R16*(1-Zadání!$B$20))+R22 -> 8295831.607 | S28: =S25+(-'Splátkový kalendář'!S16*(1-Zadání!$B$20))+S22 -> 8335765.206 | T28: =T25+(-'Splátkový kalendář'!T16*(1-Zadání!$B$20))+T22 -> 8372493.342 | U28: =U25+(-'Splátkový kalendář'!U16*(1-Zadání!$B$20))+U22 -> 8405881.25 | V28: =V25+(-'Splátkový kalendář'!V16*(1-Zadání!$B$20))+V22 -> 8435790.125 | W28: =W25+(-'Splátkový kalendář'!W16*(1-Zadání!$B$20))+W22 -> 7682589.831 | X28: =X25+(-'Splátkový kalendář'!X16*(1-Zadání!$B$20))+X22 -> 7705107.511 | Y28: =Y25+(-'Splátkový kalendář'!Y16*(1-Zadání!$B$20))+Y22 -> 7723704.392 | Z28: =Z25+(-'Splátkový kalendář'!Z16*(1-Zadání!$B$20))+Z22 -> 7738224.388 | AA28: =AA25+(-'Splátkový kalendář'!AA16*(1-Zadání!$B$20))+AA22 -> 7748506.801 | AB28: =AB25+(-'Splátkový kalendář'!AB16*(1-Zadání!$B$20))+AB22 -> 7754386.198 | AC28: =AC25+(-'Splátkový kalendář'!AC16*(1-Zadání!$B$20))+AC22 -> 7755692.281 | AD28: =AD25+(-'Splátkový kalendář'!AD16*(1-Zadání!$B$20))+AD22 -> 7752249.763 | AE28: =AE25+(-'Splátkový kalendář'!AE16*(1-Zadání!$B$20))+AE22 -> 7743878.23 | AF28: =AF25+(-'Splátkový kalendář'!AF16*(1-Zadání!$B$20))+AF22 -> 7730392.011
A29: NPV | B29: =NPV(Zadání!$B$25,'Cash Flow'!C28:AF28)+B28 -> 93410891.78
A30: IRR | B30: =IRR(B28:AF28) -> 
A33: =Zadání!A87 -> Uhlí
A34: Výsledek hospodaření za běžnou činnost | C34: =Výsledovka!B65 -> -392777.6063 | D34: =Výsledovka!C65 -> -2435149.282 | E34: =Výsledovka!D65 -> -2296584.007 | F34: =Výsledovka!E65 -> -2156555.457 | G34: =Výsledovka!F65 -> -2015049.891 | H34: =Výsledovka!G65 -> -1932008.278 | I34: =Výsledovka!H65 -> -1849317.785 | J34: =Výsledovka!I65 -> -1767011.466 | K34: =Výsledovka!J65 -> -1685123.259 | L34: =Výsledovka!K65 -> -1603687.99 | M34: =Výsledovka!L65 -> -1522741.393 | N34: =Výsledovka!M65 -> -1442320.124 | O34: =Výsledovka!N65 -> -1362461.77 | P34: =Výsledovka!O65 -> -1283204.868 | Q34: =Výsledovka!P65 -> -1204588.917 | R34: =Výsledovka!Q65 -> -1184976.194 | S34: =Výsledovka!R65 -> -1167920.453 | T34: =Výsledovka!S65 -> -1153511.699 | U34: =Výsledovka!T65 -> -1141842.121 | V34: =Výsledovka!U65 -> -1133006.131 | W34: =Výsledovka!V65 -> 2617817.902 | X34: =Výsledovka!W65 -> 2620147.846 | Y34: =Výsledovka!X65 -> 2619942.015 | Z34: =Výsledovka!Y65 -> 2617116.392 | AA34: =Výsledovka!Z65 -> 2611584.984 | AB34: =Výsledovka!AA65 -> 2603259.79 | AC34: =Výsledovka!AB65 -> 2592050.768 | AD34: =Výsledovka!AC65 -> 2577865.793 | AE34: =Výsledovka!AD65 -> 2560610.626 | AF34: =Výsledovka!AE65 -> 2540188.873
A35: Odpisy | C35: =Odpisy!F15 -> 2179487.179 | D35: =Odpisy!G15 -> 4358974.359 | E35: =Odpisy!H15 -> 4358974.359 | F35: =Odpisy!I15 -> 4358974.359 | G35: =Odpisy!J15 -> 4358974.359 | H35: =Odpisy!K15 -> 4358974.359 | I35: =Odpisy!L15 -> 4358974.359 | J35: =Odpisy!M15 -> 4358974.359 | K35: =Odpisy!N15 -> 4358974.359 | L35: =Odpisy!O15 -> 4358974.359 | M35: =Odpisy!P15 -> 4358974.359 | N35: =Odpisy!Q15 -> 4358974.359 | O35: =Odpisy!R15 -> 4358974.359 | P35: =Odpisy!S15 -> 4358974.359 | Q35: =Odpisy!T15 -> 4358974.359 | R35: =Odpisy!U15 -> 4358974.359 | S35: =Odpisy!V15 -> 4358974.359 | T35: =Odpisy!W15 -> 4358974.359 | U35: =Odpisy!X15 -> 4358974.359 | V35: =Odpisy!Y15 -> 4358974.359 | W35: =Odpisy!Z15 -> 0 | X35: =Odpisy!AA15 -> 0 | Y35: =Odpisy!AB15 -> 0 | Z35: =Odpisy!AC15 -> 0 | AA35: =Odpisy!AD15 -> 0 | AB35: =Odpisy!AE15 -> 0 | AC35: =Odpisy!AF15 -> 0 | AD35: =Odpisy!AG15 -> 0 | AE35: =Odpisy!AH15 -> 0 | AF35: =Odpisy!AI15 -> 0
A36: Daňová ztráta | B36: 0 | C36: =IF(Výsledovka!B63<0,Výsledovka!B63*Zadání!$B$20,0) -> -74627.7452 | D36: =IF(Výsledovka!C63<0,Výsledovka!C63*Zadání!$B$20,0) -> -462678.3635 | E36: =IF(Výsledovka!D63<0,Výsledovka!D63*Zadání!$B$20,0) -> -436350.9614 | F36: =IF(Výsledovka!E63<0,Výsledovka!E63*Zadání!$B$20,0) -> -409745.5368 | G36: =IF(Výsledovka!F63<0,Výsledovka!F63*Zadání!$B$20,0) -> -382859.4793 | H36: =IF(Výsledovka!G63<0,Výsledovka!G63*Zadání!$B$20,0) -> -367081.5729 | I36: =IF(Výsledovka!H63<0,Výsledovka!H63*Zadání!$B$20,0) -> -351370.3791 | J36: =IF(Výsledovka!I63<0,Výsledovka!I63*Zadání!$B$20,0) -> -335732.1786 | K36: =IF(Výsledovka!J63<0,Výsledovka!J63*Zadání!$B$20,0) -> -320173.4192 | L36: =IF(Výsledovka!K63<0,Výsledovka!K63*Zadání!$B$20,0) -> -304700.7181 | M36: =IF(Výsledovka!L63<0,Výsledovka!L63*Zadání!$B$20,0) -> -289320.8647 | N36: =IF(Výsledovka!M63<0,Výsledovka!M63*Zadání!$B$20,0) -> -274040.8235 | O36: =IF(Výsledovka!N63<0,Výsledovka!N63*Zadání!$B$20,0) -> -258867.7363 | P36: =IF(Výsledovka!O63<0,Výsledovka!O63*Zadání!$B$20,0) -> -243808.925 | Q36: =IF(Výsledovka!P63<0,Výsledovka!P63*Zadání!$B$20,0) -> -228871.8943 | R36: =IF(Výsledovka!Q63<0,Výsledovka!Q63*Zadání!$B$20,0) -> -225145.4768 | S36: =IF(Výsledovka!R63<0,Výsledovka!R63*Zadání!$B$20,0) -> -221904.886 | T36: =IF(Výsledovka!S63<0,Výsledovka!S63*Zadání!$B$20,0) -> -219167.2228 | U36: =IF(Výsledovka!T63<0,Výsledovka!T63*Zadání!$B$20,0) -> -216950.003 | V36: =IF(Výsledovka!U63<0,Výsledovka!U63*Zadání!$B$20,0) -> -215271.1648 | W36: =IF(Výsledovka!V63<0,Výsledovka!V63*Zadání!$B$20,0) -> 0 | X36: =IF(Výsledovka!W63<0,Výsledovka!W63*Zadání!$B$20,0) -> 0 | Y36: =IF(Výsledovka!X63<0,Výsledovka!X63*Zadání!$B$20,0) -> 0 | Z36: =IF(Výsledovka!Y63<0,Výsledovka!Y63*Zadání!$B$20,0) -> 0 | AA36: =IF(Výsledovka!Z63<0,Výsledovka!Z63*Zadání!$B$20,0) -> 0 | AB36: =IF(Výsledovka!AA63<0,Výsledovka!AA63*Zadání!$B$20,0) -> 0 | AC36: =IF(Výsledovka!AB63<0,Výsledovka!AB63*Zadání!$B$20,0) -> 0 | AD36: =IF(Výsledovka!AC63<0,Výsledovka!AC63*Zadání!$B$20,0) -> 0 | AE36: =IF(Výsledovka!AD63<0,Výsledovka!AD63*Zadání!$B$20,0) -> 0 | AF36: =IF(Výsledovka!AE63<0,Výsledovka!AE63*Zadání!$B$20,0) -> 0
A37: Cash flow z provozní činnosti | B37: 0 | C37: =C34+C35-C36 -> 1861337.318 | D37: =D34+D35-D36 -> 2386503.441 | E37: =E34+E35-E36 -> 2498741.313 | F37: =F34+F35-F36 -> 2612164.439 | G37: =G34+G35-G36 -> 2726783.947 | H37: =H34+H35-H36 -> 2794047.654 | I37: =I34+I35-I36 -> 2861026.954 | J37: =J34+J35-J36 -> 2927695.071 | K37: =K34+K35-K36 -> 2994024.519 | L37: =L34+L35-L36 -> 3059987.087 | M37: =M34+M35-M36 -> 3125553.83 | N37: =N34+N35-N36 -> 3190695.059 | O37: =O34+O35-O36 -> 3255380.325 | P37: =P34+P35-P36 -> 3319578.416 | Q37: =Q34+Q35-Q36 -> 3383257.336 | R37: =R34+R35-R36 -> 3399143.642 | S37: =S34+S35-S36 -> 3412958.792 | T37: =T34+T35-T36 -> 3424629.883 | U37: =U34+U35-U36 -> 3434082.241 | V37: =V34+V35-V36 -> 3441239.393 | W37: =W34+W35-W36 -> 2617817.902 | X37: =X34+X35-X36 -> 2620147.846 | Y37: =Y34+Y35-Y36 -> 2619942.015 | Z37: =Z34+Z35-Z36 -> 2617116.392 | AA37: =AA34+AA35-AA36 -> 2611584.984 | AB37: =AB34+AB35-AB36 -> 2603259.79 | AC37: =AC34+AC35-AC36 -> 2592050.768 | AD37: =AD34+AD35-AD36 -> 2577865.793 | AE37: =AE34+AE35-AE36 -> 2560610.626 | AF37: =AF34+AF35-AF36 -> 2540188.873
A38: Úmor | C38: =-'Splátkový kalendář'!C22 -> -2551925.932 | D38: =-'Splátkový kalendář'!D22 -> -2628483.71 | E38: =-'Splátkový kalendář'!E22 -> -2707338.221 | F38: =-'Splátkový kalendář'!F22 -> -2788558.368 | G38: =-'Splátkový kalendář'!G22 -> -2872215.119 | H38: =-'Splátkový kalendář'!H22 -> -2958381.573 | I38: =-'Splátkový kalendář'!I22 -> -3047133.02 | J38: =-'Splátkový kalendář'!J22 -> -3138547.01 | K38: =-'Splátkový kalendář'!K22 -> -3232703.421 | L38: =-'Splátkový kalendář'!L22 -> -3329684.523 | M38: =-'Splátkový kalendář'!M22 -> -3429575.059 | N38: =-'Splátkový kalendář'!N22 -> -3532462.311 | O38: =-'Splátkový kalendář'!O22 -> -3638436.18 | P38: =-'Splátkový kalendář'!P22 -> -3747589.265 | Q38: =-'Splátkový kalendář'!Q22 -> -3860016.943 | R38: =-'Splátkový kalendář'!R22 -> -3975817.452 | S38: =-'Splátkový kalendář'!S22 -> -4095091.975 | T38: =-'Splátkový kalendář'!T22 -> -4217944.734 | U38: =-'Splátkový kalendář'!U22 -> -4344483.077 | V38: =-'Splátkový kalendář'!V22 -> -4474817.569 | W38: =-'Splátkový kalendář'!W22 -> -4609062.096 | X38: =-'Splátkový kalendář'!X22 -> -4747333.959 | Y38: =-'Splátkový kalendář'!Y22 -> -4889753.978 | Z38: =-'Splátkový kalendář'!Z22 -> -5036446.597 | AA38: =-'Splátkový kalendář'!AA22 -> -5187539.995 | AB38: =-'Splátkový kalendář'!AB22 -> -5343166.195 | AC38: =-'Splátkový kalendář'!AC22 -> -5503461.18 | AD38: =-'Splátkový kalendář'!AD22 -> -5668565.016 | AE38: =-'Splátkový kalendář'!AE22 -> -5838621.966 | AF38: =-'Splátkový kalendář'!AF22 -> -6013780.625
A39: Investice | B39: =-Zadání!C102 -> -85000000
A40: CFO | B40: =B38+B37+B39 -> -85000000 | C40: =C38+C37+C39 -> -690588.6137 | D40: =D38+D37+D39 -> -241980.2691 | E40: =E38+E37+E39 -> -208596.9084 | F40: =F38+F37+F39 -> -176393.9291 | G40: =G38+G37+G39 -> -145431.1719 | H40: =H38+H37+H39 -> -164333.9189 | I40: =I38+I37+I39 -> -186106.0662 | J40: =J38+J37+J39 -> -210851.9391 | K40: =K38+K37+K39 -> -238678.9014 | L40: =L38+L37+L39 -> -269697.4361 | M40: =M38+M37+M39 -> -304021.2285 | N40: =N38+N37+N39 -> -341767.2519 | O40: =O38+O37+O39 -> -383055.8546 | P40: =P38+P37+P39 -> -428010.8498 | Q40: =Q38+Q37+Q39 -> -476759.6075 | R40: =R38+R37+R39 -> -576673.8098 | S40: =S38+S37+S39 -> -682133.183 | T40: =T38+T37+T39 -> -793314.8517 | U40: =U38+U37+U39 -> -910400.8354 | V40: =V38+V37+V39 -> -1033578.176 | W40: =W38+W37+W39 -> -1991244.194 | X40: =X38+X37+X39 -> -2127186.113 | Y40: =Y38+Y37+Y39 -> -2269811.962 | Z40: =Z38+Z37+Z39 -> -2419330.205 | AA40: =AA38+AA37+AA39 -> -2575955.011 | AB40: =AB38+AB37+AB39 -> -2739906.404 | AC40: =AC38+AC37+AC39 -> -2911410.412 | AD40: =AD38+AD37+AD39 -> -3090699.223 | AE40: =AE38+AE37+AE39 -> -3278011.341 | AF40: =AF38+AF37+AF39 -> -3473591.752
A41: FCFF | B41: =B39 -> -85000000 | C41: =C40+('Splátkový kalendář'!C23*(1-Zadání!$B$20))-C39-C38 -> 3926837.318 | D41: =D40+('Splátkový kalendář'!D23*(1-Zadání!$B$20))-D39-D38 -> 4389991.641 | E41: =E40+('Splátkový kalendář'!E23*(1-Zadání!$B$20))-E39-E38 -> 4438357.359 | F41: =F40+('Splátkový kalendář'!F23*(1-Zadání!$B$20))-F39-F38 -> 4485992.166 | G41: =G40+('Splátkový kalendář'!G23*(1-Zadání!$B$20))-G39-G38 -> 4532849.706 | H41: =H40+('Splátkový kalendář'!H23*(1-Zadání!$B$20))-H39-H38 -> 4530318.585 | I41: =I40+('Splátkový kalendář'!I23*(1-Zadání!$B$20))-I39-I38 -> 4525409.213 | J41: =J40+('Splátkový kalendář'!J23*(1-Zadání!$B$20))-J39-J38 -> 4518031.998 | K41: =K40+('Splátkový kalendář'!K23*(1-Zadání!$B$20))-K39-K38 -> 4508094.753 | L41: =L40+('Splátkový kalendář'!L23*(1-Zadání!$B$20))-L39-L38 -> 4495502.628 | M41: =M40+('Splátkový kalendář'!M23*(1-Zadání!$B$20))-M39-M38 -> 4480158.038 | N41: =N40+('Splátkový kalendář'!N23*(1-Zadání!$B$20))-N39-N38 -> 4461960.592 | O41: =O40+('Splátkový kalendář'!O23*(1-Zadání!$B$20))-O39-O38 -> 4440807.024 | P41: =P40+('Splátkový kalendář'!P23*(1-Zadání!$B$20))-P39-P38 -> 4416591.116 | Q41: =Q40+('Splátkový kalendář'!Q23*(1-Zadání!$B$20))-Q39-Q38 -> 4389203.617 | R41: =R40+('Splátkový kalendář'!R23*(1-Zadání!$B$20))-R39-R38 -> 4311291.511 | S41: =S40+('Splátkový kalendář'!S23*(1-Zadání!$B$20))-S39-S38 -> 4228494.297 | T41: =T40+('Splátkový kalendář'!T23*(1-Zadání!$B$20))-T39-T38 -> 4140654.653 | U41: =U40+('Splátkový kalendář'!U23*(1-Zadání!$B$20))-U39-U38 -> 4047610.954 | V41: =V40+('Splátkový kalendář'!V23*(1-Zadání!$B$20))-V39-V38 -> 3949197.167 | W41: =W40+('Splátkový kalendář'!W23*(1-Zadání!$B$20))-W39-W38 -> 3017037.609 | X41: =X40+('Splátkový kalendář'!X23*(1-Zadání!$B$20))-X39-X38 -> 2907367.344 | Y41: =Y40+('Splátkový kalendář'!Y23*(1-Zadání!$B$20))-Y39-Y38 -> 2791801.299 | Z41: =Z40+('Splátkový kalendář'!Z23*(1-Zadání!$B$20))-Z39-Z38 -> 2670154.654 | AA41: =AA40+('Splátkový kalendář'!AA23*(1-Zadání!$B$20))-AA39-AA38 -> 2542237.593 | AB41: =AB40+('Splátkový kalendář'!AB23*(1-Zadání!$B$20))-AB39-AB38 -> 2407855.178 | AC41: =AC40+('Splátkový kalendář'!AC23*(1-Zadání!$B$20))-AC39-AC38 -> 2266807.217 | AD41: =AD40+('Splátkový kalendář'!AD23*(1-Zadání!$B$20))-AD39-AD38 -> 2118888.135 | AE41: =AE40+('Splátkový kalendář'!AE23*(1-Zadání!$B$20))-AE39-AE38 -> 1963886.838 | AF41: =AF40+('Splátkový kalendář'!AF23*(1-Zadání!$B$20))-AF39-AF38 -> 1801586.572
A42: NPV | B42: =NPV(Zadání!$B$27,'Cash Flow'!C41:AF41)+'Cash Flow'!B39 -> -23543437.81
A43: IRR | B43: =IRR(B41:AF41) -> 0.02132689721
A44: FCFE | B44: =B40*(1-Zadání!$B$31) -> 0 | C44: =C41+(-'Splátkový kalendář'!C23*(1-Zadání!$B$20))+C38 -> -690588.6137 | D44: =D41+(-'Splátkový kalendář'!D23*(1-Zadání!$B$20))+D38 -> -241980.2691 | E44: =E41+(-'Splátkový kalendář'!E23*(1-Zadání!$B$20))+E38 -> -208596.9084 | F44: =F41+(-'Splátkový kalendář'!F23*(1-Zadání!$B$20))+F38 -> -176393.9291 | G44: =G41+(-'Splátkový kalendář'!G23*(1-Zadání!$B$20))+G38 -> -145431.1719 | H44: =H41+(-'Splátkový kalendář'!H23*(1-Zadání!$B$20))+H38 -> -164333.9189 | I44: =I41+(-'Splátkový kalendář'!I23*(1-Zadání!$B$20))+I38 -> -186106.0662 | J44: =J41+(-'Splátkový kalendář'!J23*(1-Zadání!$B$20))+J38 -> -210851.9391 | K44: =K41+(-'Splátkový kalendář'!K23*(1-Zadání!$B$20))+K38 -> -238678.9014 | L44: =L41+(-'Splátkový kalendář'!L23*(1-Zadání!$B$20))+L38 -> -269697.4361 | M44: =M41+(-'Splátkový kalendář'!M23*(1-Zadání!$B$20))+M38 -> -304021.2285 | N44: =N41+(-'Splátkový kalendář'!N23*(1-Zadání!$B$20))+N38 -> -341767.2519 | O44: =O41+(-'Splátkový kalendář'!O23*(1-Zadání!$B$20))+O38 -> -383055.8546 | P44: =P41+(-'Splátkový kalendář'!P23*(1-Zadání!$B$20))+P38 -> -428010.8498 | Q44: =Q41+(-'Splátkový kalendář'!Q23*(1-Zadání!$B$20))+Q38 -> -476759.6075 | R44: =R41+(-'Splátkový kalendář'!R23*(1-Zadání!$B$20))+R38 -> -576673.8098 | S44: =S41+(-'Splátkový kalendář'!S23*(1-Zadání!$B$20))+S38 -> -682133.183 | T44: =T41+(-'Splátkový kalendář'!T23*(1-Zadání!$B$20))+T38 -> -793314.8517 | U44: =U41+(-'Splátkový kalendář'!U23*(1-Zadání!$B$20))+U38 -> -910400.8354 | V44: =V41+(-'Splátkový kalendář'!V23*(1-Zadání!$B$20))+V38 -> -1033578.176 | W44: =W41+(-'Splátkový kalendář'!W23*(1-Zadání!$B$20))+W38 -> -1991244.194 | X44: =X41+(-'Splátkový kalendář'!X23*(1-Zadání!$B$20))+X38 -> -2127186.113 | Y44: =Y41+(-'Splátkový kalendář'!Y23*(1-Zadání!$B$20))+Y38 -> -2269811.962 | Z44: =Z41+(-'Splátkový kalendář'!Z23*(1-Zadání!$B$20))+Z38 -> -2419330.205 | AA44: =AA41+(-'Splátkový kalendář'!AA23*(1-Zadání!$B$20))+AA38 -> -2575955.011 | AB44: =AB41+(-'Splátkový kalendář'!AB23*(1-Zadání!$B$20))+AB38 -> -2739906.404 | AC44: =AC41+(-'Splátkový kalendář'!AC23*(1-Zadání!$B$20))+AC38 -> -2911410.412 | AD44: =AD41+(-'Splátkový kalendář'!AD23*(1-Zadání!$B$20))+AD38 -> -3090699.223 | AE44: =AE41+(-'Splátkový kalendář'!AE23*(1-Zadání!$B$20))+AE38 -> -3278011.341 | AF44: =AF41+(-'Splátkový kalendář'!AF23*(1-Zadání!$B$20))+AF38 -> -3473591.752
A45: NPV | B45: =NPV(Zadání!$B$25,'Cash Flow'!C44:AF44)+B44 -> -8552805.526
A46: IRR | B46: =IRR(B44:AF44) -> 
A54: =A2 -> Plyn | B54: =-$B$9 -> 100000000 | C54: =-$B$9 -> 100000000 | D54: =-$B$9 -> 100000000 | E54: 100000000 | F54: 100000000 | G54: 100000000 | H54: 100000000 | I54: 100000000 | J54: 100000000 | K54: 100000000 | L54: 100000000 | M54: 100000000 | N54: 100000000 | O54: 100000000 | P54: 100000000 | Q54: 100000000 | R54: 100000000 | S54: 100000000 | T54: 100000000 | U54: 100000000 | V54: 100000000 | W54: 100000000 | X54: 100000000 | Y54: 100000000 | Z54: 100000000 | AA54: 100000000 | AB54: 100000000 | AC54: 100000000 | AD54: 100000000 | AE54: 100000000 | AF54: 100000000
B55: =-$B$9*(1-Zadání!$B$31) -> 0 | C55: =-$B$9*(1-Zadání!$B$31) -> 0 | D55: =-$B$9*(1-Zadání!$B$31) -> 0 | E55: =-$B$9*(1-Zadání!$B$31) -> 0 | F55: =-$B$9*(1-Zadání!$B$31) -> 0 | G55: =-$B$9*(1-Zadání!$B$31) -> 0 | H55: =-$B$9*(1-Zadání!$B$31) -> 0 | I55: =-$B$9*(1-Zadání!$B$31) -> 0 | J55: =-$B$9*(1-Zadání!$B$31) -> 0 | K55: =-$B$9*(1-Zadání!$B$31) -> 0 | L55: =-$B$9*(1-Zadání!$B$31) -> 0 | M55: =-$B$9*(1-Zadání!$B$31) -> 0 | N55: =-$B$9*(1-Zadání!$B$31) -> 0 | O55: =-$B$9*(1-Zadání!$B$31) -> 0 | P55: =-$B$9*(1-Zadání!$B$31) -> 0 | Q55: =-$B$9*(1-Zadání!$B$31) -> 0 | R55: =-$B$9*(1-Zadání!$B$31) -> 0 | S55: =-$B$9*(1-Zadání!$B$31) -> 0 | T55: =-$B$9*(1-Zadání!$B$31) -> 0 | U55: =-$B$9*(1-Zadání!$B$31) -> 0 | V55: =-$B$9*(1-Zadání!$B$31) -> 0 | W55: =-$B$9*(1-Zadání!$B$31) -> 0 | X55: =-$B$9*(1-Zadání!$B$31) -> 0 | Y55: =-$B$9*(1-Zadání!$B$31) -> 0 | Z55: =-$B$9*(1-Zadání!$B$31) -> 0 | AA55: =-$B$9*(1-Zadání!$B$31) -> 0 | AB55: =-$B$9*(1-Zadání!$B$31) -> 0 | AC55: =-$B$9*(1-Zadání!$B$31) -> 0 | AD55: =-$B$9*(1-Zadání!$B$31) -> 0 | AE55: =-$B$9*(1-Zadání!$B$31) -> 0 | AF55: =-$B$9*(1-Zadání!$B$31) -> 0
A56: =A10 -> FCFF | B56: =B10 -> -100000000 | C56: -11216986.26 | D56: -10834301.78 | E56: -10939706.73 | F56: -11046030.49 | G56: -11153282.13 | H56: -11379260.52 | I56: -11608541.44 | J56: -11841170 | K56: -12077192.07 | L56: -12316654.23 | M56: -12559603.85 | N56: -12806089.05 | O56: -13056158.75 | P56: -13309862.67 | Q56: -13567251.38 | R56: -13936803.74 | S56: -14312313.09 | T56: -14693865.08 | U56: -15081546.74 | V56: -15475446.4 | W56: -16850012.8 | X56: -17256619.14 | Y56: -17669716.99 | Z56: -18089400.41 | AA56: -18515764.95 | AB56: -18948907.7 | AC56: -19388927.27 | AD56: -19835923.89 | AE56: -20289999.38 | AF56: -20751257.22
A57: DFCFF | B57: =B56 -> -100000000 | C57: =C56/(1+Zadání!$B$27)^('Cash Flow'!C1-'Cash Flow'!$B$1) -> -10676743.06 | D57: =D56/(1+Zadání!$B$27)^('Cash Flow'!D1-'Cash Flow'!$B$1) -> -9815809.818 | E57: =E56/(1+Zadání!$B$27)^('Cash Flow'!E1-'Cash Flow'!$B$1) -> -9433948.265 | F57: =F56/(1+Zadání!$B$27)^('Cash Flow'!F1-'Cash Flow'!$B$1) -> -9066854.61 | G57: =G56/(1+Zadání!$B$27)^('Cash Flow'!G1-'Cash Flow'!$B$1) -> -8713962.881 | H57: =H56/(1+Zadání!$B$27)^('Cash Flow'!H1-'Cash Flow'!$B$1) -> -8462324.241 | I57: =I56/(1+Zadání!$B$27)^('Cash Flow'!I1-'Cash Flow'!$B$1) -> -8217049.074 | J57: =J56/(1+Zadání!$B$27)^('Cash Flow'!J1-'Cash Flow'!$B$1) -> -7978025.949 | K57: =K56/(1+Zadání!$B$27)^('Cash Flow'!K1-'Cash Flow'!$B$1) -> -7745142.363 | L57: =L56/(1+Zadání!$B$27)^('Cash Flow'!L1-'Cash Flow'!$B$1) -> -7518285.003 | M57: =M56/(1+Zadání!$B$27)^('Cash Flow'!M1-'Cash Flow'!$B$1) -> -7297339.977 | N57: =N56/(1+Zadání!$B$27)^('Cash Flow'!N1-'Cash Flow'!$B$1) -> -7082193.033 | O57: =O56/(1+Zadání!$B$27)^('Cash Flow'!O1-'Cash Flow'!$B$1) -> -6872729.765 | P57: =P56/(1+Zadání!$B$27)^('Cash Flow'!P1-'Cash Flow'!$B$1) -> -6668835.796 | Q57: =Q56/(1+Zadání!$B$27)^('Cash Flow'!Q1-'Cash Flow'!$B$1) -> -6470396.951 | R57: =R56/(1+Zadání!$B$27)^('Cash Flow'!R1-'Cash Flow'!$B$1) -> -6326519.352 | S57: =S56/(1+Zadání!$B$27)^('Cash Flow'!S1-'Cash Flow'!$B$1) -> -6184065.602 | T57: =T56/(1+Zadání!$B$27)^('Cash Flow'!T1-'Cash Flow'!$B$1) -> -6043143.561 | U57: =U56/(1+Zadání!$B$27)^('Cash Flow'!U1-'Cash Flow'!$B$1) -> -5903850.498 | V57: =V56/(1+Zadání!$B$27)^('Cash Flow'!V1-'Cash Flow'!$B$1) -> -5766273.746 | W57: =W56/(1+Zadání!$B$27)^('Cash Flow'!W1-'Cash Flow'!$B$1) -> -5976059.452 | X57: =X56/(1+Zadání!$B$27)^('Cash Flow'!X1-'Cash Flow'!$B$1) -> -5825497.121 | Y57: =Y56/(1+Zadání!$B$27)^('Cash Flow'!Y1-'Cash Flow'!$B$1) -> -5677661.218 | Z57: =Z56/(1+Zadání!$B$27)^('Cash Flow'!Z1-'Cash Flow'!$B$1) -> -5532566.679 | AA57: =AA56/(1+Zadání!$B$27)^('Cash Flow'!AA1-'Cash Flow'!$B$1) -> -5390223.18 | AB57: =AB56/(1+Zadání!$B$27)^('Cash Flow'!AB1-'Cash Flow'!$B$1) -> -5250635.519 | AC57: =AC56/(1+Zadání!$B$27)^('Cash Flow'!AC1-'Cash Flow'!$B$1) -> -5113803.982 | AD57: =AD56/(1+Zadání!$B$27)^('Cash Flow'!AD1-'Cash Flow'!$B$1) -> -4979724.682 | AE57: =AE56/(1+Zadání!$B$27)^('Cash Flow'!AE1-'Cash Flow'!$B$1) -> -4848389.882 | AF57: =AF56/(1+Zadání!$B$27)^('Cash Flow'!AF1-'Cash Flow'!$B$1) -> -4719788.303
A58: KDFCFF | B58: =B57 -> -100000000 | C58: =B58+C57 -> -110676743.1 | D58: =C58+D57 -> -120492552.9 | E58: -129926501.1 | F58: -138993355.8 | G58: -147707318.6 | H58: -156169642.9 | I58: -164386692 | J58: -172364717.9 | K58: -180109860.3 | L58: -187628145.3 | M58: -194925485.2 | N58: -202007678.3 | O58: -208880408 | P58: -215549243.8 | Q58: -222019640.8 | R58: -228346160.1 | S58: -234530225.7 | T58: -240573369.3 | U58: -246477219.8 | V58: -252243493.5 | W58: -258219553 | X58: -264045050.1 | Y58: -269722711.3 | Z58: -275255278 | AA58: -280645501.2 | AB58: -285896136.7 | AC58: -291009940.7 | AD58: -295989665.4 | AE58: -300838055.3 | AF58: -305557843.6
A59: =A13 -> FCFE | B59: =B13 -> 0 | C59: -15748912.19 | D59: -15378208.69 | E59: -15495954.05 | F59: -15614988.42 | G59: -15735332 | H59: -15974795.09 | I59: -16217965.25 | J59: -16464899.72 | K59: -16715656.88 | L59: -16970296.19 | M59: -17228878.27 | N59: -17491464.9 | O59: -17758119.07 | P59: -18028905.01 | Q59: -18303888.19 | R59: -18691562.85 | S59: -19085738.17 | T59: -19486516.12 | U59: -19894000.5 | V59: -20308296.98 | W59: -21703872.09 | X59: -22132117.41 | Y59: -22567503.41 | Z59: -23010143.62 | AA59: -23460153.66 | AB59: -23917651.27 | AC59: -24382756.35 | AD59: -24855591.04 | AE59: -25336279.75 | AF59: -25824949.19
A60: DFCFE | B60: =B59 -> 0 | C60: =C59/(1+Zadání!$B$25)^('Cash Flow'!C1-'Cash Flow'!$B$1) -> -14718609.53 | D60: =D59/(1+Zadání!$B$25)^('Cash Flow'!D1-'Cash Flow'!$B$1) -> -13431923.04 | E60: =E59/(1+Zadání!$B$25)^('Cash Flow'!E1-'Cash Flow'!$B$1) -> -12649314.39 | F60: =F59/(1+Zadání!$B$25)^('Cash Flow'!F1-'Cash Flow'!$B$1) -> -11912599.91 | G60: =G59/(1+Zadání!$B$25)^('Cash Flow'!G1-'Cash Flow'!$B$1) -> -11219074.25 | H60: =H59/(1+Zadání!$B$25)^('Cash Flow'!H1-'Cash Flow'!$B$1) -> -10644680.49 | I60: =I59/(1+Zadání!$B$25)^('Cash Flow'!I1-'Cash Flow'!$B$1) -> -10099733.67 | J60: =J59/(1+Zadání!$B$25)^('Cash Flow'!J1-'Cash Flow'!$B$1) -> -9582721.545 | K60: =K59/(1+Zadání!$B$25)^('Cash Flow'!K1-'Cash Flow'!$B$1) -> -9092209.807 | L60: =L59/(1+Zadání!$B$25)^('Cash Flow'!L1-'Cash Flow'!$B$1) -> -8626838.056 | M60: =M59/(1+Zadání!$B$25)^('Cash Flow'!M1-'Cash Flow'!$B$1) -> -8185315.954 | N60: =N59/(1+Zadání!$B$25)^('Cash Flow'!N1-'Cash Flow'!$B$1) -> -7766419.598 | O60: =O59/(1+Zadání!$B$25)^('Cash Flow'!O1-'Cash Flow'!$B$1) -> -7368988.075 | P60: =P59/(1+Zadání!$B$25)^('Cash Flow'!P1-'Cash Flow'!$B$1) -> -6991920.198 | Q60: =Q59/(1+Zadání!$B$25)^('Cash Flow'!Q1-'Cash Flow'!$B$1) -> -6634171.417 | R60: =R59/(1+Zadání!$B$25)^('Cash Flow'!R1-'Cash Flow'!$B$1) -> -6331479.023 | S60: =S59/(1+Zadání!$B$25)^('Cash Flow'!S1-'Cash Flow'!$B$1) -> -6042055.926 | T60: =T59/(1+Zadání!$B$25)^('Cash Flow'!T1-'Cash Flow'!$B$1) -> -5765356.973 | U60: =U59/(1+Zadání!$B$25)^('Cash Flow'!U1-'Cash Flow'!$B$1) -> -5500856.915 | V60: =V59/(1+Zadání!$B$25)^('Cash Flow'!V1-'Cash Flow'!$B$1) -> -5248049.854 | W60: =W59/(1+Zadání!$B$25)^('Cash Flow'!W1-'Cash Flow'!$B$1) -> -5241769.144 | X60: =X59/(1+Zadání!$B$25)^('Cash Flow'!X1-'Cash Flow'!$B$1) -> -4995510.273 | Y60: =Y59/(1+Zadání!$B$25)^('Cash Flow'!Y1-'Cash Flow'!$B$1) -> -4760544.509 | Z60: =Z59/(1+Zadání!$B$25)^('Cash Flow'!Z1-'Cash Flow'!$B$1) -> -4536372.04 | AA60: =AA59/(1+Zadání!$B$25)^('Cash Flow'!AA1-'Cash Flow'!$B$1) -> -4322514.017 | AB60: =AB59/(1+Zadání!$B$25)^('Cash Flow'!AB1-'Cash Flow'!$B$1) -> -4118511.752 | AC60: =AC59/(1+Zadání!$B$25)^('Cash Flow'!AC1-'Cash Flow'!$B$1) -> -3923925.935 | AD60: =AD59/(1+Zadání!$B$25)^('Cash Flow'!AD1-'Cash Flow'!$B$1) -> -3738335.884 | AE60: =AE59/(1+Zadání!$B$25)^('Cash Flow'!AE1-'Cash Flow'!$B$1) -> -3561338.812 | AF60: =AF59/(1+Zadání!$B$25)^('Cash Flow'!AF1-'Cash Flow'!$B$1) -> -3392549.126
A61: KDFCFE | B61: =B60 -> 0 | C61: =B61+C60 -> -14718609.53 | D61: =C61+D60 -> -28150532.56 | E61: =D61+E60 -> -40799846.95 | F61: =E61+F60 -> -52712446.86 | G61: =F61+G60 -> -63931521.11 | H61: =G61+H60 -> -74576201.59 | I61: =H61+I60 -> -84675935.26 | J61: =I61+J60 -> -94258656.81 | K61: =J61+K60 -> -103350866.6 | L61: =K61+L60 -> -111977704.7 | M61: =L61+M60 -> -120163020.6 | N61: =M61+N60 -> -127929440.2 | O61: =N61+O60 -> -135298428.3 | P61: =O61+P60 -> -142290348.5 | Q61: =P61+Q60 -> -148924519.9 | R61: =Q61+R60 -> -155255998.9 | S61: =R61+S60 -> -161298054.9 | T61: =S61+T60 -> -167063411.8 | U61: =T61+U60 -> -172564268.8 | V61: =U61+V60 -> -177812318.6 | W61: =V61+W60 -> -183054087.7 | X61: =W61+X60 -> -188049598 | Y61: =X61+Y60 -> -192810142.5 | Z61: =Y61+Z60 -> -197346514.6 | AA61: =Z61+AA60 -> -201669028.6 | AB61: =AA61+AB60 -> -205787540.3 | AC61: =AB61+AC60 -> -209711466.3 | AD61: =AC61+AD60 -> -213449802.2 | AE61: =AD61+AE60 -> -217011141 | AF61: =AE61+AF60 -> -220403690.1
A63: =A17 -> Biomasa | B63: =-$B$24 -> 80000000 | C63: =-$B$24 -> 80000000 | D63: 80000000 | E63: 80000000 | F63: 80000000 | G63: 80000000 | H63: 80000000 | I63: 80000000 | J63: 80000000 | K63: 80000000 | L63: 80000000 | M63: 80000000 | N63: 80000000 | O63: 80000000 | P63: 80000000 | Q63: 80000000 | R63: 80000000 | S63: 80000000 | T63: 80000000 | U63: 80000000 | V63: 80000000 | W63: 80000000 | X63: 80000000 | Y63: 80000000 | Z63: 80000000 | AA63: 80000000 | AB63: 80000000 | AC63: 80000000 | AD63: 80000000 | AE63: 80000000 | AF63: 80000000
B64: =-$B$24*(1-Zadání!$B$31) -> 0 | C64: =-$B$24*(1-Zadání!$B$31) -> 0 | D64: =-$B$24*(1-Zadání!$B$31) -> 0 | E64: =-$B$24*(1-Zadání!$B$31) -> 0 | F64: =-$B$24*(1-Zadání!$B$31) -> 0 | G64: =-$B$24*(1-Zadání!$B$31) -> 0 | H64: =-$B$24*(1-Zadání!$B$31) -> 0 | I64: =-$B$24*(1-Zadání!$B$31) -> 0 | J64: =-$B$24*(1-Zadání!$B$31) -> 0 | K64: =-$B$24*(1-Zadání!$B$31) -> 0 | L64: =-$B$24*(1-Zadání!$B$31) -> 0 | M64: =-$B$24*(1-Zadání!$B$31) -> 0 | N64: =-$B$24*(1-Zadání!$B$31) -> 0 | O64: =-$B$24*(1-Zadání!$B$31) -> 0 | P64: =-$B$24*(1-Zadání!$B$31) -> 0 | Q64: =-$B$24*(1-Zadání!$B$31) -> 0 | R64: =-$B$24*(1-Zadání!$B$31) -> 0 | S64: =-$B$24*(1-Zadání!$B$31) -> 0 | T64: =-$B$24*(1-Zadání!$B$31) -> 0 | U64: =-$B$24*(1-Zadání!$B$31) -> 0 | V64: =-$B$24*(1-Zadání!$B$31) -> 0 | W64: =-$B$24*(1-Zadání!$B$31) -> 0 | X64: =-$B$24*(1-Zadání!$B$31) -> 0 | Y64: =-$B$24*(1-Zadání!$B$31) -> 0 | Z64: =-$B$24*(1-Zadání!$B$31) -> 0 | AA64: =-$B$24*(1-Zadání!$B$31) -> 0 | AB64: =-$B$24*(1-Zadání!$B$31) -> 0 | AC64: =-$B$24*(1-Zadání!$B$31) -> 0 | AD64: =-$B$24*(1-Zadání!$B$31) -> 0 | AE64: =-$B$24*(1-Zadání!$B$31) -> 0 | AF64: =-$B$24*(1-Zadání!$B$31) -> 0
A65: =A25 -> FCFF | B65: -80000000 | C65: =C25 -> 10968321.75 | D65: 11504150.17 | E65: 11651281.35 | F65: 11799448.78 | G65: 11948641.63 | H65: 12070239.77 | I65: 12191885.56 | J65: 12313540.98 | K65: 12435166.61 | L65: 12556721.54 | M65: 12678163.35 | N65: 12799448.05 | O65: 12920530.06 | P65: 13041362.16 | Q65: 13161895.4 | R65: 13228199 | S65: 13292126.82 | T65: 13353569 | U65: 13412412.38 | V65: 13468540.39 | W65: 12742345.8 | X65: 12792679.36 | Y65: 12839926.6 | Z65: 12883956.46 | AA65: 12924634.04 | AB65: 12961820.45 | AC65: 12995372.76 | AD65: 13025143.86 | AE65: 13050982.35 | AF65: 13072732.45
A66: DFCFF | B66: =B65 -> -80000000 | C66: =C65/(1+Zadání!$B$27)^('Cash Flow'!C1-'Cash Flow'!$B$1) -> 10440054.97 | D66: =D65/(1+Zadání!$B$27)^('Cash Flow'!D1-'Cash Flow'!$B$1) -> 10422688.28 | E66: =E65/(1+Zadání!$B$27)^('Cash Flow'!E1-'Cash Flow'!$B$1) -> 10047580.63 | F66: =F65/(1+Zadání!$B$27)^('Cash Flow'!F1-'Cash Flow'!$B$1) -> 9685278.954 | G66: =G65/(1+Zadání!$B$27)^('Cash Flow'!G1-'Cash Flow'!$B$1) -> 9335370.384 | H66: =H65/(1+Zadání!$B$27)^('Cash Flow'!H1-'Cash Flow'!$B$1) -> 8976179.288 | I66: =I65/(1+Zadání!$B$27)^('Cash Flow'!I1-'Cash Flow'!$B$1) -> 8629966.345 | J66: =J65/(1+Zadání!$B$27)^('Cash Flow'!J1-'Cash Flow'!$B$1) -> 8296287.398 | K66: =K65/(1+Zadání!$B$27)^('Cash Flow'!K1-'Cash Flow'!$B$1) -> 7974712.597 | L66: =L65/(1+Zadání!$B$27)^('Cash Flow'!L1-'Cash Flow'!$B$1) -> 7664825.973 | M66: =M65/(1+Zadání!$B$27)^('Cash Flow'!M1-'Cash Flow'!$B$1) -> 7366225.03 | N66: =N65/(1+Zadání!$B$27)^('Cash Flow'!N1-'Cash Flow'!$B$1) -> 7078520.341 | O66: =O65/(1+Zadání!$B$27)^('Cash Flow'!O1-'Cash Flow'!$B$1) -> 6801335.161 | P66: =P65/(1+Zadání!$B$27)^('Cash Flow'!P1-'Cash Flow'!$B$1) -> 6534305.042 | Q66: =Q65/(1+Zadání!$B$27)^('Cash Flow'!Q1-'Cash Flow'!$B$1) -> 6277077.464 | R66: =R65/(1+Zadání!$B$27)^('Cash Flow'!R1-'Cash Flow'!$B$1) -> 6004852.943 | S66: =S65/(1+Zadání!$B$27)^('Cash Flow'!S1-'Cash Flow'!$B$1) -> 5743263.423 | T66: =T65/(1+Zadání!$B$27)^('Cash Flow'!T1-'Cash Flow'!$B$1) -> 5491920.205 | U66: =U65/(1+Zadání!$B$27)^('Cash Flow'!U1-'Cash Flow'!$B$1) -> 5250448.041 | V66: =V65/(1+Zadání!$B$27)^('Cash Flow'!V1-'Cash Flow'!$B$1) -> 5018484.691 | W66: =W65/(1+Zadání!$B$27)^('Cash Flow'!W1-'Cash Flow'!$B$1) -> 4519226.008 | X66: =X65/(1+Zadání!$B$27)^('Cash Flow'!X1-'Cash Flow'!$B$1) -> 4318558.356 | Y66: =Y65/(1+Zadání!$B$27)^('Cash Flow'!Y1-'Cash Flow'!$B$1) -> 4125745.383 | Z66: =Z65/(1+Zadání!$B$27)^('Cash Flow'!Z1-'Cash Flow'!$B$1) -> 3940503.643 | AA66: =AA65/(1+Zadání!$B$27)^('Cash Flow'!AA1-'Cash Flow'!$B$1) -> 3762559.211 | AB66: =AB65/(1+Zadání!$B$27)^('Cash Flow'!AB1-'Cash Flow'!$B$1) -> 3591647.389 | AC66: =AC65/(1+Zadání!$B$27)^('Cash Flow'!AC1-'Cash Flow'!$B$1) -> 3427512.417 | AD66: =AD65/(1+Zadání!$B$27)^('Cash Flow'!AD1-'Cash Flow'!$B$1) -> 3269907.2 | AE66: =AE65/(1+Zadání!$B$27)^('Cash Flow'!AE1-'Cash Flow'!$B$1) -> 3118593.036 | AF66: =AF65/(1+Zadání!$B$27)^('Cash Flow'!AF1-'Cash Flow'!$B$1) -> 2973339.353
A67: KDFCFF | B67: =B66 -> -80000000 | C67: =B67+C66 -> -69559945.03 | D67: =C67+D66 -> -59137256.75 | E67: =D67+E66 -> -49089676.12 | F67: =E67+F66 -> -39404397.17 | G67: =F67+G66 -> -30069026.79 | H67: =G67+H66 -> -21092847.5 | I67: =H67+I66 -> -12462881.15 | J67: =I67+J66 -> -4166593.754 | K67: =J67+K66 -> 3808118.843 | L67: =K67+L66 -> 11472944.82 | M67: =L67+M66 -> 18839169.85 | N67: =M67+N66 -> 25917690.19 | O67: =N67+O66 -> 32719025.35 | P67: =O67+P66 -> 39253330.39 | Q67: =P67+Q66 -> 45530407.85 | R67: =Q67+R66 -> 51535260.8 | S67: =R67+S66 -> 57278524.22 | T67: =S67+T66 -> 62770444.42 | U67: =T67+U66 -> 68020892.47 | V67: =U67+V66 -> 73039377.16 | W67: =V67+W66 -> 77558603.16 | X67: =W67+X66 -> 81877161.52 | Y67: =X67+Y66 -> 86002906.9 | Z67: =Y67+Z66 -> 89943410.55 | AA67: =Z67+AA66 -> 93705969.76 | AB67: =AA67+AB66 -> 97297617.15 | AC67: =AB67+AC66 -> 100725129.6 | AD67: =AC67+AD66 -> 103995036.8 | AE67: =AD67+AE66 -> 107113629.8 | AF67: =AE67+AF66 -> 110086969.2
A68: =A28 -> FCFE | B68: =B28 -> 0 | C68: 6322395.817 | D68: 6842823.256 | E68: 6974091.432 | F68: 7105919.971 | G68: 7238283.752 | H68: 7342547.957 | I68: 7446339.787 | J68: 7549605.639 | K68: 7652290.01 | L68: 7754335.443 | M68: 7855682.466 | N68: 7956269.541 | O68: 8056032.999 | P68: 8154906.98 | Q68: 8252823.373 | R68: 8295831.607 | S68: 8335765.206 | T68: 8372493.342 | U68: 8405881.25 | V68: 8435790.125 | W68: 7682589.831 | X68: 7705107.511 | Y68: 7723704.392 | Z68: 7738224.388 | AA68: 7748506.801 | AB68: 7754386.198 | AC68: 7755692.281 | AD68: 7752249.763 | AE68: 7743878.23 | AF68: 7730392.011
A69: DFCFE | B69: =B68 -> 0 | C69: =C68/(1+Zadání!$B$25)^('Cash Flow'!C1-'Cash Flow'!$B$1) -> 5908781.137 | D69: =D68/(1+Zadání!$B$25)^('Cash Flow'!D1-'Cash Flow'!$B$1) -> 5976786.842 | E69: =E68/(1+Zadání!$B$25)^('Cash Flow'!E1-'Cash Flow'!$B$1) -> 5692936.029 | F69: =F68/(1+Zadání!$B$25)^('Cash Flow'!F1-'Cash Flow'!$B$1) -> 5421072.323 | G69: =G68/(1+Zadání!$B$25)^('Cash Flow'!G1-'Cash Flow'!$B$1) -> 5160796.278 | H69: =H68/(1+Zadání!$B$25)^('Cash Flow'!H1-'Cash Flow'!$B$1) -> 4892649.734 | I69: =I68/(1+Zadání!$B$25)^('Cash Flow'!I1-'Cash Flow'!$B$1) -> 4637206.18 | J69: =J68/(1+Zadání!$B$25)^('Cash Flow'!J1-'Cash Flow'!$B$1) -> 4393939.218 | K69: =K68/(1+Zadání!$B$25)^('Cash Flow'!K1-'Cash Flow'!$B$1) -> 4162338.745 | L69: =L68/(1+Zadání!$B$25)^('Cash Flow'!L1-'Cash Flow'!$B$1) -> 3941910.933 | M69: =M68/(1+Zadání!$B$25)^('Cash Flow'!M1-'Cash Flow'!$B$1) -> 3732178.15 | N69: =N68/(1+Zadání!$B$25)^('Cash Flow'!N1-'Cash Flow'!$B$1) -> 3532678.827 | O69: =O68/(1+Zadání!$B$25)^('Cash Flow'!O1-'Cash Flow'!$B$1) -> 3342967.286 | P69: =P68/(1+Zadání!$B$25)^('Cash Flow'!P1-'Cash Flow'!$B$1) -> 3162613.526 | Q69: =Q68/(1+Zadání!$B$25)^('Cash Flow'!Q1-'Cash Flow'!$B$1) -> 2991202.982 | R69: =R68/(1+Zadání!$B$25)^('Cash Flow'!R1-'Cash Flow'!$B$1) -> 2810085.183 | S69: =S68/(1+Zadání!$B$25)^('Cash Flow'!S1-'Cash Flow'!$B$1) -> 2638889.789 | T69: =T68/(1+Zadání!$B$25)^('Cash Flow'!T1-'Cash Flow'!$B$1) -> 2477118.669 | U69: =U68/(1+Zadání!$B$25)^('Cash Flow'!U1-'Cash Flow'!$B$1) -> 2324296.212 | V69: =V68/(1+Zadání!$B$25)^('Cash Flow'!V1-'Cash Flow'!$B$1) -> 2179968.472 | W69: =W68/(1+Zadání!$B$25)^('Cash Flow'!W1-'Cash Flow'!$B$1) -> 1855445.984 | X69: =X68/(1+Zadání!$B$25)^('Cash Flow'!X1-'Cash Flow'!$B$1) -> 1739144.204 | Y69: =Y68/(1+Zadání!$B$25)^('Cash Flow'!Y1-'Cash Flow'!$B$1) -> 1629291.369 | Z69: =Z68/(1+Zadání!$B$25)^('Cash Flow'!Z1-'Cash Flow'!$B$1) -> 1525564.782 | AA69: =AA68/(1+Zadání!$B$25)^('Cash Flow'!AA1-'Cash Flow'!$B$1) -> 1427656.005 | AB69: =AB68/(1+Zadání!$B$25)^('Cash Flow'!AB1-'Cash Flow'!$B$1) -> 1335270.354 | AC69: =AC68/(1+Zadání!$B$25)^('Cash Flow'!AC1-'Cash Flow'!$B$1) -> 1248126.407 | AD69: =AD68/(1+Zadání!$B$25)^('Cash Flow'!AD1-'Cash Flow'!$B$1) -> 1165955.516 | AE69: =AE68/(1+Zadání!$B$25)^('Cash Flow'!AE1-'Cash Flow'!$B$1) -> 1088501.326 | AF69: =AF68/(1+Zadání!$B$25)^('Cash Flow'!AF1-'Cash Flow'!$B$1) -> 1015519.313
A70: KDFCFE | B70: =B69 -> 0 | C70: =B70+C69 -> 5908781.137 | D70: =C70+D69 -> 11885567.98 | E70: =D70+E69 -> 17578504.01 | F70: =E70+F69 -> 22999576.33 | G70: =F70+G69 -> 28160372.61 | H70: =G70+H69 -> 33053022.34 | I70: =H70+I69 -> 37690228.52 | J70: =I70+J69 -> 42084167.74 | K70: =J70+K69 -> 46246506.49 | L70: =K70+L69 -> 50188417.42 | M70: =L70+M69 -> 53920595.57 | N70: =M70+N69 -> 57453274.4 | O70: =N70+O69 -> 60796241.68 | P70: =O70+P69 -> 63958855.21 | Q70: =P70+Q69 -> 66950058.19 | R70: =Q70+R69 -> 69760143.37 | S70: =R70+S69 -> 72399033.16 | T70: =S70+T69 -> 74876151.83 | U70: =T70+U69 -> 77200448.04 | V70: =U70+V69 -> 79380416.52 | W70: =V70+W69 -> 81235862.5 | X70: =W70+X69 -> 82975006.7 | Y70: =X70+Y69 -> 84604298.07 | Z70: =Y70+Z69 -> 86129862.86 | AA70: =Z70+AA69 -> 87557518.86 | AB70: =AA70+AB69 -> 88892789.22 | AC70: =AB70+AC69 -> 90140915.62 | AD70: =AC70+AD69 -> 91306871.14 | AE70: =AD70+AE69 -> 92395372.47 | AF70: =AE70+AF69 -> 93410891.78
A72: =A33 -> Uhlí | B72: =-$B$40 -> 85000000 | C72: 85000000 | D72: 85000000 | E72: 85000000 | F72: 85000000 | G72: 85000000 | H72: 85000000 | I72: 85000000 | J72: 85000000 | K72: 85000000 | L72: 85000000 | M72: 85000000 | N72: 85000000 | O72: 85000000 | P72: 85000000 | Q72: 85000000 | R72: 85000000 | S72: 85000000 | T72: 85000000 | U72: 85000000 | V72: 85000000 | W72: 85000000 | X72: 85000000 | Y72: 85000000 | Z72: 85000000 | AA72: 85000000 | AB72: 85000000 | AC72: 85000000 | AD72: 85000000 | AE72: 85000000 | AF72: =-$B$40 -> 85000000
A74: =A41 -> FCFF | B74: -85000000 | C74: 3926837.318 | D74: 4389991.641 | E74: 4438357.359 | F74: 4485992.166 | G74: 4532849.706 | H74: 4530318.585 | I74: 4525409.213 | J74: 4518031.998 | K74: 4508094.753 | L74: 4495502.628 | M74: 4480158.038 | N74: 4461960.592 | O74: 4440807.024 | P74: 4416591.116 | Q74: 4389203.617 | R74: 4311291.511 | S74: 4228494.297 | T74: 4140654.653 | U74: 4047610.954 | V74: 3949197.167 | W74: 3017037.609 | X74: 2907367.344 | Y74: 2791801.299 | Z74: 2670154.654 | AA74: 2542237.593 | AB74: 2407855.178 | AC74: 2266807.217 | AD74: 2118888.135 | AE74: 1963886.838 | AF74: 1801586.572
A75: DFCFF | B75: =B74 -> -85000000 | C75: =C74/(1+Zadání!$B$27)^('Cash Flow'!C1-'Cash Flow'!$B$1) -> 3737709.231 | D75: =D74/(1+Zadání!$B$27)^('Cash Flow'!D1-'Cash Flow'!$B$1) -> 3977305.038 | E75: =E74/(1+Zadání!$B$27)^('Cash Flow'!E1-'Cash Flow'!$B$1) -> 3827454.861 | F75: =F74/(1+Zadání!$B$27)^('Cash Flow'!F1-'Cash Flow'!$B$1) -> 3682213.153 | G75: =G74/(1+Zadání!$B$27)^('Cash Flow'!G1-'Cash Flow'!$B$1) -> 3541476.279 | H75: =H74/(1+Zadání!$B$27)^('Cash Flow'!H1-'Cash Flow'!$B$1) -> 3369026.019 | I75: =I74/(1+Zadání!$B$27)^('Cash Flow'!I1-'Cash Flow'!$B$1) -> 3203288.697 | J75: =J74/(1+Zadání!$B$27)^('Cash Flow'!J1-'Cash Flow'!$B$1) -> 3044038.428 | K75: =K74/(1+Zadání!$B$27)^('Cash Flow'!K1-'Cash Flow'!$B$1) -> 2891055.756 | L75: =L74/(1+Zadání!$B$27)^('Cash Flow'!L1-'Cash Flow'!$B$1) -> 2744127.533 | M75: =M74/(1+Zadání!$B$27)^('Cash Flow'!M1-'Cash Flow'!$B$1) -> 2603046.779 | N75: =N74/(1+Zadání!$B$27)^('Cash Flow'!N1-'Cash Flow'!$B$1) -> 2467612.563 | O75: =O74/(1+Zadání!$B$27)^('Cash Flow'!O1-'Cash Flow'!$B$1) -> 2337629.866 | P75: =P74/(1+Zadání!$B$27)^('Cash Flow'!P1-'Cash Flow'!$B$1) -> 2212909.453 | Q75: =Q74/(1+Zadání!$B$27)^('Cash Flow'!Q1-'Cash Flow'!$B$1) -> 2093267.744 | R75: =R74/(1+Zadání!$B$27)^('Cash Flow'!R1-'Cash Flow'!$B$1) -> 1957082.103 | S75: =S74/(1+Zadání!$B$27)^('Cash Flow'!S1-'Cash Flow'!$B$1) -> 1827048.219 | T75: =T74/(1+Zadání!$B$27)^('Cash Flow'!T1-'Cash Flow'!$B$1) -> 1702926.382 | U75: =U74/(1+Zadání!$B$27)^('Cash Flow'!U1-'Cash Flow'!$B$1) -> 1584485.356 | V75: =V74/(1+Zadání!$B$27)^('Cash Flow'!V1-'Cash Flow'!$B$1) -> 1471502.104 | W75: =W74/(1+Zadání!$B$27)^('Cash Flow'!W1-'Cash Flow'!$B$1) -> 1070028.63 | X75: =X74/(1+Zadání!$B$27)^('Cash Flow'!X1-'Cash Flow'!$B$1) -> 981470.3536 | Y75: =Y74/(1+Zadání!$B$27)^('Cash Flow'!Y1-'Cash Flow'!$B$1) -> 897065.9784 | Z75: =Z74/(1+Zadání!$B$27)^('Cash Flow'!Z1-'Cash Flow'!$B$1) -> 816655.5181 | AA75: =AA74/(1+Zadání!$B$27)^('Cash Flow'!AA1-'Cash Flow'!$B$1) -> 740084.3571 | AB75: =AB74/(1+Zadání!$B$27)^('Cash Flow'!AB1-'Cash Flow'!$B$1) -> 667203.0981 | AC75: =AC74/(1+Zadání!$B$27)^('Cash Flow'!AC1-'Cash Flow'!$B$1) -> 597867.4121 | AD75: =AD74/(1+Zadání!$B$27)^('Cash Flow'!AD1-'Cash Flow'!$B$1) -> 531937.8922 | AE75: =AE74/(1+Zadání!$B$27)^('Cash Flow'!AE1-'Cash Flow'!$B$1) -> 469279.9096 | AF75: =AF74/(1+Zadání!$B$27)^('Cash Flow'!AF1-'Cash Flow'!$B$1) -> 409763.473
A76: KDFCFF | B76: =B75 -> -85000000 | C76: =B76+C75 -> -81262290.77 | D76: =C76+D75 -> -77284985.73 | E76: =D76+E75 -> -73457530.87 | F76: =E76+F75 -> -69775317.72 | G76: =F76+G75 -> -66233841.44 | H76: =G76+H75 -> -62864815.42 | I76: =H76+I75 -> -59661526.72 | J76: =I76+J75 -> -56617488.29 | K76: =J76+K75 -> -53726432.54 | L76: =K76+L75 -> -50982305 | M76: =L76+M75 -> -48379258.23 | N76: =M76+N75 -> -45911645.66 | O76: =N76+O75 -> -43574015.8 | P76: =O76+P75 -> -41361106.34 | Q76: =P76+Q75 -> -39267838.6 | R76: =Q76+R75 -> -37310756.5 | S76: =R76+S75 -> -35483708.28 | T76: =S76+T75 -> -33780781.9 | U76: =T76+U75 -> -32196296.54 | V76: =U76+V75 -> -30724794.43 | W76: =V76+W75 -> -29654765.8 | X76: =W76+X75 -> -28673295.45 | Y76: =X76+Y75 -> -27776229.47 | Z76: =Y76+Z75 -> -26959573.95 | AA76: =Z76+AA75 -> -26219489.6 | AB76: =AA76+AB75 -> -25552286.5 | AC76: =AB76+AC75 -> -24954419.09 | AD76: =AC76+AD75 -> -24422481.19 | AE76: =AD76+AE75 -> -23953201.29 | AF76: =AE76+AF75 -> -23543437.81
A77: =A44 -> FCFE | B77: =B44 -> 0 | C77: =C44 -> -690588.6137 | D77: -241980.2691 | E77: -208596.9084 | F77: -176393.9291 | G77: -145431.1719 | H77: -164333.9189 | I77: -186106.0662 | J77: -210851.9391 | K77: -238678.9014 | L77: -269697.4361 | M77: -304021.2285 | N77: -341767.2519 | O77: -383055.8546 | P77: -428010.8498 | Q77: -476759.6075 | R77: -576673.8098 | S77: -682133.183 | T77: -793314.8517 | U77: -910400.8354 | V77: -1033578.176 | W77: -1991244.194 | X77: -2127186.113 | Y77: -2269811.962 | Z77: -2419330.205 | AA77: -2575955.011 | AB77: -2739906.404 | AC77: -2911410.412 | AD77: -3090699.223 | AE77: -3278011.341 | AF77: -3473591.752
A78: DFCFE | B78: =B77 -> 0 | C78: =C77/(1+Zadání!$B$25)^('Cash Flow'!C1-'Cash Flow'!$B$1) -> -645409.9193 | D78: =D77/(1+Zadání!$B$25)^('Cash Flow'!D1-'Cash Flow'!$B$1) -> -211354.9385 | E78: =E77/(1+Zadání!$B$25)^('Cash Flow'!E1-'Cash Flow'!$B$1) -> -170277.2134 | F78: =F77/(1+Zadání!$B$25)^('Cash Flow'!F1-'Cash Flow'!$B$1) -> -134570.084 | G78: =G77/(1+Zadání!$B$25)^('Cash Flow'!G1-'Cash Flow'!$B$1) -> -103690.4156 | H78: =H77/(1+Zadání!$B$25)^('Cash Flow'!H1-'Cash Flow'!$B$1) -> -109502.629 | I78: =I77/(1+Zadání!$B$25)^('Cash Flow'!I1-'Cash Flow'!$B$1) -> -115897.5047 | J78: =J77/(1+Zadání!$B$25)^('Cash Flow'!J1-'Cash Flow'!$B$1) -> -122717.7483 | K78: =K77/(1+Zadání!$B$25)^('Cash Flow'!K1-'Cash Flow'!$B$1) -> -129825.5081 | L78: =L77/(1+Zadání!$B$25)^('Cash Flow'!L1-'Cash Flow'!$B$1) -> -137100.5007 | M78: =M77/(1+Zadání!$B$25)^('Cash Flow'!M1-'Cash Flow'!$B$1) -> -144438.2956 | N78: =N77/(1+Zadání!$B$25)^('Cash Flow'!N1-'Cash Flow'!$B$1) -> -151748.7471 | O78: =O77/(1+Zadání!$B$25)^('Cash Flow'!O1-'Cash Flow'!$B$1) -> -158954.5612 | P78: =P77/(1+Zadání!$B$25)^('Cash Flow'!P1-'Cash Flow'!$B$1) -> -165989.9869 | Q78: =Q77/(1+Zadání!$B$25)^('Cash Flow'!Q1-'Cash Flow'!$B$1) -> -172799.6221 | R78: =R77/(1+Zadání!$B$25)^('Cash Flow'!R1-'Cash Flow'!$B$1) -> -195339.371 | S78: =S77/(1+Zadání!$B$25)^('Cash Flow'!S1-'Cash Flow'!$B$1) -> -215945.8966 | T78: =T77/(1+Zadání!$B$25)^('Cash Flow'!T1-'Cash Flow'!$B$1) -> -234713.2389 | U78: =U77/(1+Zadání!$B$25)^('Cash Flow'!U1-'Cash Flow'!$B$1) -> -251733.4174 | V78: =V77/(1+Zadání!$B$25)^('Cash Flow'!V1-'Cash Flow'!$B$1) -> -267096.2415 | W78: =W77/(1+Zadání!$B$25)^('Cash Flow'!W1-'Cash Flow'!$B$1) -> -480911.5318 | X78: =X77/(1+Zadání!$B$25)^('Cash Flow'!X1-'Cash Flow'!$B$1) -> -480133.9105 | Y78: =Y77/(1+Zadání!$B$25)^('Cash Flow'!Y1-'Cash Flow'!$B$1) -> -478809.7592 | Z78: =Z77/(1+Zadání!$B$25)^('Cash Flow'!Z1-'Cash Flow'!$B$1) -> -476962.7724 | AA78: =AA77/(1+Zadání!$B$25)^('Cash Flow'!AA1-'Cash Flow'!$B$1) -> -474617.5921 | AB78: =AB77/(1+Zadání!$B$25)^('Cash Flow'!AB1-'Cash Flow'!$B$1) -> -471799.5341 | AC78: =AC77/(1+Zadání!$B$25)^('Cash Flow'!AC1-'Cash Flow'!$B$1) -> -468534.347 | AD78: =AD77/(1+Zadání!$B$25)^('Cash Flow'!AD1-'Cash Flow'!$B$1) -> -464848.001 | AE78: =AE77/(1+Zadání!$B$25)^('Cash Flow'!AE1-'Cash Flow'!$B$1) -> -460766.5028 | AF78: =AF77/(1+Zadání!$B$25)^('Cash Flow'!AF1-'Cash Flow'!$B$1) -> -456315.7347
A79: KDFCFE | B79: =B78 -> 0 | C79: =B79+C78 -> -645409.9193 | D79: =C79+D78 -> -856764.8578 | E79: =D79+E78 -> -1027042.071 | F79: =E79+F78 -> -1161612.155 | G79: =F79+G78 -> -1265302.571 | H79: =G79+H78 -> -1374805.2 | I79: =H79+I78 -> -1490702.705 | J79: =I79+J78 -> -1613420.453 | K79: =J79+K78 -> -1743245.961 | L79: =K79+L78 -> -1880346.462 | M79: =L79+M78 -> -2024784.757 | N79: =M79+N78 -> -2176533.504 | O79: =N79+O78 -> -2335488.066 | P79: =O79+P78 -> -2501478.053 | Q79: =P79+Q78 -> -2674277.675 | R79: =Q79+R78 -> -2869617.046 | S79: =R79+S78 -> -3085562.942 | T79: =S79+T78 -> -3320276.181 | U79: =T79+U78 -> -3572009.599 | V79: =U79+V78 -> -3839105.84 | W79: =V79+W78 -> -4320017.372 | X79: =W79+X78 -> -4800151.282 | Y79: =X79+Y78 -> -5278961.041 | Z79: =Y79+Z78 -> -5755923.814 | AA79: =Z79+AA78 -> -6230541.406 | AB79: =AA79+AB78 -> -6702340.94 | AC79: =AB79+AC78 -> -7170875.287 | AD79: =AC79+AD78 -> -7635723.288 | AE79: =AD79+AE78 -> -8096489.791 | AF79: =AE79+AF78 -> -8552805.526
C86: FCFF | D86: FCFE | G86: FCFF | H86: FCFE | K86: FCFF | L86: FCFE
B87: NPV | C87: =B11 -> -305557843.6 | D87: =B14 -> -220403690.1 | F87: NPV | G87: =B26 -> 110086969.2 | H87: =B29 -> 93410891.78 | J87: NPV | K87: =B42 -> -23543437.81 | L87: =B45 -> -8552805.526
B88: IRR | C88: =B12 ->  | D88: =B15 ->  | F88: IRR | G88: =B27 -> 0.148416359 | H88: =B30 ->  | J88: IRR | K88: =B43 -> 0.02132689721 | L88: =B46 -> 
C95: =C86 -> FCFF | D95: =D86 -> FCFE
B96: Plynová kogenerace s bivalentní kotlem | C96: =C87 -> -305557843.6 | D96: =D87 -> -220403690.1
B97: Spoluspalování biomasy | C97: =G87 -> 110086969.2 | D97: =H87 -> 93410891.78
B98: Spalování hnědouhelného hruboprachu | C98: =K87 -> -23543437.81 | D98: =L87 -> -8552805.526

Sheet CA-plyn
A1: Cena Plynu | B1: NPV-FCFF | C1: NPV-FCFE | E1: Cena Výkupu elektřiny | F1: NPV-FCFF | G1: NPV-FCFE | I1: Výnos vlastního kapitálu | J1: NPV-FCFF | K1: NPV-FCFE | L1: Úrkoková míra | M1: NPV-FCFF | N1: NPV-FCFE | P1: Zadlužení | Q1: NPV-FCFF | R1: NPV-FCFE | T1: Cena páry | U1: Cena vody | V1: NPV-FCFF | W1: NPV-FCFE | Y1: Měrné investiční výdaje | Z1: NPV-FCFF | AA1: NPV-FCFE
A3: 259.568 | B3: -166816091.3 | C3: -124359420.2 | E3: 600 | F3: -305886555 | G3: -246887970.7 | I3: 0.04 | J3: -11750097.43 | K3: -62437149.21 | L3: 0.01 | M3: -299373.2921 | N3: -64237079.03 | P3: 0 | Q3: -229093518.3 | R3: -262322004.8 | S3: =T3/Zadání!$B$5 -> 0.8 | T3: 366.16 | U3: 423.2 | V3: -96113599.39 | W3: -142602210.9 | Y3: 8000 | Z3: 9187803.296 | AA3: -38190795.73
A4: 262.16368 | B4: -171562253.6 | C4: -128536537.6 | E4: 609 | F4: -304661570.5 | G4: -245801933.6 | I4: 0.041 | J4: -11958403.42 | K4: -62911233.48 | L4: 0.011 | M4: -1295551.456 | N4: -64665418.45 | P4: 0.02 | Q4: -230153270.5 | R4: -261483638.5 | S4: =T4/Zadání!$B$5 -> 0.808 | T4: 369.8216 | U4: 427.432 | V4: -92976479.58 | W4: -139840182.9 | Y4: 8100 | Z4: 7844132.922 | AA4: -39958831.5
A5: 264.7853168 | B5: -176355877.5 | C5: -132755426 | E5: 618.135 | F5: -303418211.4 | G5: -244699606 | I5: 0.042 | J5: -12165958.52 | K5: -63376661.67 | L5: 0.012 | M5: -2276908.932 | N5: -65097778.98 | P5: 0.04 | Q5: -231227281.4 | R5: -260645272.2 | S5: =T5/Zadání!$B$5 -> 0.81608 | T5: 373.519816 | U5: 431.70632 | V5: -89807988.57 | W5: -137050534.6 | Y5: 8200 | Z5: 6500462.548 | AA5: -41726867.27
A6: 267.43317 | B6: -181197437.6 | C6: -137016503.4 | E6: 627.407025 | F6: -302156201.8 | G6: -243580743.5 | I6: 0.043 | J6: -12372766.03 | K6: -63833623.13 | L6: 0.013 | M6: -3243711.291 | N6: -65534148.9 | P6: 0.06 | Q6: -232315790.8 | R6: -259806905.9 | S6: =T6/Zadání!$B$5 -> 0.8242408 | T6: 377.2550142 | U6: 436.0233832 | V6: -86607812.66 | W6: -134232989.9 | Y6: 8300 | Z6: 5156792.173 | AA6: -43494903.03
A7: 270.1075017 | B7: -186087413.3 | C7: -141320191.6 | E7: 636.8181304 | F7: -300875262 | G7: -242445098 | I7: 0.044 | J7: -12578829.24 | K7: -64282302.57 | L7: 0.014 | M7: -4196218.768 | N7: -65974515.84 | P7: 0.08 | Q7: -233419043.4 | R7: -258968539.6 | S7: =T7/Zadání!$B$5 -> 0.832483208 | T7: 381.0275643 | U7: 440.383617 | V7: -83375634.98 | W7: -131387269.7 | Y7: 8400 | Z7: 3813121.798 | AA7: -45262938.8
A8: 272.8085767 | B8: -191026288.8 | C8: -145666916.6 | E8: 646.3704023 | F8: -299575108.2 | G8: -241292417.9 | I8: 0.045 | J8: -12784151.4 | K8: -64722880.17 | L8: 0.015 | M8: -5134686.377 | N8: -66418866.78 | P8: 0.1 | Q8: -234537288.2 | R8: -258130173.3 | S8: =T8/Zadání!$B$5 -> 0.8408080401 | T8: 384.8378399 | U8: 444.7874532 | V8: -80111135.53 | W8: -128513092.3 | Y8: 8500 | Z8: 2469451.424 | AA8: -47030974.57
A9: 275.5366625 | B9: -196014553 | C9: -150057108.9 | E9: 656.0659584 | F9: -298255452.1 | G9: -240122447.5 | I9: 0.046 | J9: -12988735.79 | K9: -65155531.73 | L9: 0.016 | M9: -6059364.025 | N9: -66867188.08 | P9: 0.12 | Q9: -235670779.4 | R9: -257291807 | S9: =T9/Zadání!$B$5 -> 0.8492161205 | T9: 388.6862183 | U9: 449.2353277 | V9: -76813991.08 | W9: -125610173.1 | Y9: 8600 | Z9: 1125781.049 | AA9: -48799010.34
A10: 278.2920291 | B10: -201052699.9 | C10: -154491203.1 | E10: 665.9069477 | F10: -296916001.1 | G10: -238934927.6 | I10: 0.047 | J10: -13192585.62 | K10: -65580428.74 | L10: 0.017 | M10: -6970496.624 | N10: -67319465.46 | P10: 0.14 | Q10: -236819775.9 | R10: -256453440.7 | S10: =T10/Zadání!$B$5 -> 0.8577082817 | T10: 392.5730805 | U10: 453.727681 | V10: -73483875.19 | W10: -122678224.7 | Y10: 8700 | Z10: -217889.3251 | AA10: -50567046.1
A11: 281.0749494 | B11: -206141228.3 | C11: -158969638.2 | E11: 675.895552 | F11: -295556458.4 | G11: -237729594.9 | I11: 0.048 | J11: -13395704.12 | K11: -65997738.53 | L11: 0.018 | M11: -7868324.196 | N11: -67775684.03 | P11: 0.16 | Q11: -237984541.6 | R11: -255615074.5 | S11: =T11/Zadání!$B$5 -> 0.8662853645 | T11: 396.4988113 | U11: 458.2649578 | V11: -70120458.14 | W11: -119716956.9 | Y11: 8800 | Z11: -1561559.7 | AA11: -52335081.87
A12: 283.8856989 | B12: -211280641.9 | C12: -163492857.7 | E12: 686.0339852 | F12: -294176522.5 | G12: -236506182.2 | I12: 0.049 | J12: -13598094.5 | K12: -66407624.38 | L12: 0.019 | M12: -8753081.984 | N12: -68235828.29 | P12: 0.18 | Q12: -239165345.6 | R12: -254776708.2 | S12: =T12/Zadání!$B$5 -> 0.8749482181 | T12: 400.4637994 | U12: 462.8476074 | V12: -66723406.92 | W12: -116726076.3 | Y12: 8900 | Z12: -2905230.074 | AA12: -54103117.64
A13: 286.7245558 | B13: -216471449.6 | C13: -168061309.4 | E13: 696.324495 | F13: -292775887.6 | G13: -235264418.3 | I13: 0.05 | J13: -13799759.94 | K13: -66810245.61 | L13: 0.02 | M13: -9625000.553 | N13: -68699882.18 | P13: 0.2 | Q13: -240362462.1 | R13: -253938341.9 | S13: =T13/Zadání!$B$5 -> 0.8836977003 | T13: 404.4684374 | U13: 467.4760835 | V13: -63292385.19 | W13: -113705287 | Y13: 9000 | Z13: -4248900.449 | AA13: -55871153.41
A14: 289.5918014 | B14: -221714165.5 | C14: -172675445.6 | E14: 706.7693624 | F14: -291354243.2 | G14: -234004028 | I14: 0.051 | J14: -14000703.62 | K14: -67205757.69 | L14: 0.021 | M14: -10484305.89 | N14: -69167829.02 | P14: 0.22 | Q14: -241576170.9 | R14: -253099975.6 | S14: =T14/Zadání!$B$5 -> 0.8925346773 | T14: 408.5131218 | U14: 472.1508443 | V14: -59827053.24 | W14: -110654289.8 | Y14: 9100 | Z14: -5592570.823 | AA14: -57639189.17
A15: 292.4877194 | B15: -227009308.5 | C15: -177335723.1 | E15: 717.3709029 | F15: -289911274.1 | G15: -232724731.8 | I15: 0.052 | J15: -14200928.68 | K15: -67594312.34 | L15: 0.022 | M15: -11331219.5 | N15: -69639651.57 | P15: 0.24 | Q15: -242806756.9 | R15: -252261609.3 | S15: =T15/Zadání!$B$5 -> 0.9014600241 | T15: 412.598253 | U15: 476.8723528 | V15: -56327067.97 | W15: -107572782.6 | Y15: 9200 | Z15: -6936241.198 | AA15: -59407224.94
A16: 295.4125966 | B16: -232357402.9 | C16: -182042603.5 | E16: 728.1314664 | F16: -288446660.4 | G16: -231426246.1 | I16: 0.053 | J16: -14400438.28 | K16: -67976057.63 | L16: 0.023 | M16: -12165958.52 | N16: -70115332.05 | P16: 0.26 | Q16: -244054510.9 | R16: -251423243 | S16: =T16/Zadání!$B$5 -> 0.9104746243 | T16: 416.7242356 | U16: 481.6410763 | V16: -52792082.85 | W16: -104460460.3 | Y16: 9300 | Z16: -8279911.572 | AA16: -61175260.71
A17: 298.3667226 | B17: -237758978.3 | C17: -186796552.6 | E17: 739.0534384 | F17: -286960077.6 | G17: -230108283.2 | I17: 0.054 | J17: -14599235.53 | K17: -68351138.1 | L17: 0.024 | M17: -12988735.79 | N17: -70594852.11 | P17: 0.28 | Q17: -245319729 | R17: -250584876.7 | S17: =T17/Zadání!$B$5 -> 0.9195793706 | T17: 420.8914779 | U17: 486.457487 | V17: -49221747.88 | W17: -101317014.8 | Y17: 9400 | Z17: -9623581.947 | AA17: -62943296.47
A18: 301.3503898 | B18: -243214569.4 | C18: -191598041.3 | E18: 750.13924 | F18: -285451196 | G18: -228770550.8 | I18: 0.055 | J18: -14797323.55 | K18: -68719694.79 | L18: 0.025 | M18: -13799759.94 | N18: -71078192.89 | P18: 0.3 | Q18: -246602713.5 | R18: -249746510.4 | S18: =T18/Zadání!$B$5 -> 0.9287751643 | T18: 425.1003927 | U18: 491.3220619 | V18: -45615709.56 | W18: -98142134.83 | Y18: 9500 | Z18: -10967252.32 | AA18: -64711332.24
A19: 304.3638937 | B19: -248724716.5 | C19: -196447544.8 | E19: 761.3913286 | F19: -283919681.2 | G19: -227412752.5 | I19: 0.056 | J19: -14994705.43 | K19: -69081865.4 | L19: 0.026 | M19: -14599235.53 | N19: -71565334.99 | P19: 0.32 | Q19: -247903772.4 | R19: -248908144.1 | S19: =T19/Zadání!$B$5 -> 0.9380629159 | T19: 429.3513966 | U19: 496.2352825 | V19: -41973610.85 | W19: -94935506.08 | Y19: 9600 | Z19: -12310922.7 | AA19: -66479368.01
A20: 307.4075326 | B20: -254289965 | C20: -201345543.3 | E20: 772.8121985 | F20: -282365193.6 | G20: -226034587.2 | I20: 0.057 | J20: -15191384.25 | K20: -69437784.34 | L20: 0.027 | M20: -15387363.07 | N20: -72056258.49 | P20: 0.34 | Q20: -249223219.8 | R20: -248069777.8 | S20: =T20/Zadání!$B$5 -> 0.9474435451 | T20: 433.6449106 | U20: 501.1976354 | V20: -38295091.16 | W20: -91696811.04 | Y20: 9700 | Z20: -13654593.07 | AA20: -68247403.78
A21: 310.481608 | B21: -259910866 | C21: -206292521.9 | E21: 784.4043815 | F21: -280787388.8 | G21: -224635749.3 | I21: 0.058 | J21: -15387363.07 | K21: -69787582.82 | L21: 0.028 | M21: -16164339.16 | N21: -72550943.01 | P21: 0.36 | Q21: -250561376 | R21: -247231411.5 | S21: =T21/Zadání!$B$5 -> 0.9569179805 | T21: 437.9813597 | U21: 506.2096117 | V21: -34579786.27 | W21: -88425729.05 | Y21: 9800 | Z21: -14998263.44 | AA21: -70015439.54
A22: 313.586424 | B22: -265587976 | C22: -211288970.2 | E22: 796.1704472 | F22: -279185916.9 | G22: -223215929 | I22: 0.059 | J22: -15582644.95 | K22: -70131388.94 | L22: 0.029 | M22: -16930356.54 | N22: -73049367.66 | P22: 0.38 | Q22: -251918567.5 | R22: -246393045.2 | S22: =T22/Zadání!$B$5 -> 0.9664871604 | T22: 442.3611733 | U22: 511.2717078 | V22: -30827328.33 | W22: -85121936.23 | Y22: 9900 | Z22: -16341933.82 | AA22: -71783475.31
A23: 316.7222883 | B23: -271321857.1 | C23: -216335383 | E23: 808.1130039 | F23: -277560422.9 | G23: -221774811.3 | I23: 0.06 | J23: -15777232.91 | K23: -70469327.76 | L23: 0.03 | M23: -17685604.19 | N23: -73551511.08 | P23: 0.4 | Q23: -253295127.5 | R23: -245554678.9 | S23: =T23/Zadání!$B$5 -> 0.976152032 | T23: 446.784785 | U23: 516.3844249 | V23: -27037345.81 | W23: -81785105.49 | Y23: 10000 | Z23: -17685604.19 | AA23: -73551511.08
A24: 319.8895112 | B24: -277113077 | C24: -221432260 | E24: 820.234699 | F24: -275910546.5 | G24: -220312076.8 | I24: 0.061 | J24: -15971129.98 | K24: -70801521.4 | L24: 0.031 | M24: -18430267.41 | N24: -74057351.45 | P24: 0.42 | Q24: -254691395.7 | R24: -244716312.6 | S24: =T24/Zadání!$B$5 -> 0.9859135523 | T24: 451.2526329 | U24: 521.5482692 | V24: -23209463.46 | W24: -78414906.45 | Y24: 10100 | Z24: -19029274.57 | AA24: -75319546.85
A25: 323.0884063 | B25: -282962209.2 | C25: -226580105.7 | E25: 832.5382195 | F25: -274235921.9 | G25: -218827401.4 | I25: 0.062 | J25: -16164339.16 | K25: -71128089.08 | L25: 0.032 | M25: -19164527.88 | N25: -74566866.52 | P25: 0.44 | Q25: -256107718.3 | R25: -243877946.3 | S25: =T25/Zadání!$B$5 -> 0.9957726878 | T25: 455.7651592 | U25: 526.7637518 | V25: -19343302.3 | W25: -75011005.41 | Y25: 10200 | Z25: -20372944.94 | AA25: -77087582.61
A26: 326.3192903 | B26: -288869832.6 | C26: -231779429.8 | E26: 845.0262928 | F26: -272536178 | G26: -217320455.8 | I26: 0.063 | J26: -16356863.44 | K26: -71449147.24 | L26: 0.033 | M26: -19888563.77 | N26: -75080033.6 | P26: 0.46 | Q26: -257544448.8 | R26: -243039580 | S26: =T26/Zadání!$B$5 -> 1.005730415 | T26: 460.3228108 | U26: 532.0313894 | V26: -15438479.52 | W26: -71573065.36 | Y26: 10300 | Z26: -21716615.32 | AA26: -78855618.38
A27: 329.5824833 | B27: -294836532.3 | C27: -237030747.2 | E27: 857.7016872 | F27: -270810937.9 | G27: -215790906 | I27: 0.064 | J27: -16548705.79 | K27: -71764809.57 | L27: 0.034 | M27: -20602549.77 | N27: -75596829.57 | P27: 0.48 | Q27: -259001947.3 | R27: -242201213.7 | S27: =T27/Zadání!$B$5 -> 1.015787719 | T27: 464.9260389 | U27: 537.3517033 | V27: -11494608.51 | W27: -68100745.91 | Y27: 10400 | Z27: -23060285.69 | AA27: -80623654.15
A28: 332.8783081 | B28: -300862898.9 | C28: -242334577.8 | E28: 870.5672125 | F28: -269059819.2 | G28: -214238412.9 | I28: 0.065 | J28: -16739869.18 | K28: -72075187.1 | L28: 0.035 | M28: -21306657.2 | N28: -76117230.91 | P28: 0.5 | Q28: -260480581.4 | R28: -241362847.5 | S28: =T28/Zadání!$B$5 -> 1.025945596 | T28: 469.5752993 | U28: 542.7252203 | V28: -7511298.796 | W28: -64593703.27 | Y28: 10500 | Z28: -24403956.07 | AA28: -82391689.92
A29: 336.2070912 | B29: -306949529.3 | C29: -247691446.7 | E29: 883.6257207 | F29: -267282433.8 | G29: -212662632.5 | I29: 0.066 | J29: -16930356.54 | K29: -72380388.28 | L29: 0.036 | M29: -22001054.09 | N29: -76641213.73 | P29: 0.52 | Q29: -261980725.8 | R29: -240524481.2 | S29: =T29/Zadání!$B$5 -> 1.036205052 | T29: 474.2710523 | U29: 548.1524725 | V29: -3488155.983 | W29: -61051590.2 | Y29: 10600 | Z29: -25747626.44 | AA29: -84159725.68
A30: 339.5691621 | B30: -313097025.9 | C30: -253101884.3 | E30: 896.8801065 | F30: -265478387.5 | G30: -211063215.4 | I30: 0.067 | J30: -17120170.82 | K30: -72680519.01 | L30: 0.037 | M30: -22685905.18 | N30: -77168753.74 | P30: 0.54 | Q30: -263502763.1 | R30: -239686114.9 | S30: =T30/Zadání!$B$5 -> 1.046567102 | T30: 479.0137628 | U30: 553.6339972 | V30: 575218.2592 | W30: -57474056 | Y30: 10700 | Z30: -27091296.82 | AA30: -85927761.45
A31: 342.9648537 | B31: -319305997.5 | C31: -258566426.2 | E31: 910.3333081 | F31: -263647280.6 | G31: -209439807 | I31: 0.068 | J31: -17309314.92 | K31: -72975682.74 | L31: 0.038 | M31: -23361372.09 | N31: -77699826.29 | P31: 0.56 | Q31: -265047083 | R31: -238847748.6 | S31: =T31/Zadání!$B$5 -> 1.057032774 | T31: 483.8039004 | U31: 559.1703372 | V31: 4679226.243 | W31: -53860746.46 | Y31: 10800 | Z31: -28434967.19 | AA31: -87695797.22
A32: 346.3945022 | B32: -325577058.8 | C32: -264085613.6 | E32: 923.9883077 | F32: -261788707 | G32: -207792047.5 | I32: 0.069 | J32: -17497791.75 | K32: -73265980.53 | L32: 0.039 | M32: -24027613.3 | N32: -78234406.37 | P32: 0.58 | Q32: -266614083.4 | R32: -238009382.3 | S32: =T32/Zadání!$B$5 -> 1.067603101 | T32: 488.6419394 | U32: 564.7620406 | V32: 8824274.307 | W32: -50211303.82 | Y32: 10900 | Z32: -29778637.56 | AA32: -89463832.99
A33: 349.8584473 | B33: -331910830.8 | C33: -269659992.9 | E33: 937.8481323 | F33: -259902254.9 | G33: -206119571.6 | I33: 0.07 | J33: -17685604.19 | K33: -73551511.08 | L33: 0.04 | M33: -24684784.27 | N33: -78772468.65 | P33: 0.6 | Q33: -268204170.2 | R33: -237171016 | S33: =T33/Zadání!$B$5 -> 1.078279132 | T33: 493.5283588 | U33: 570.409661 | V33: 13010772.85 | W33: -46525366.75 | Y33: 11000 | Z33: -31122307.94 | AA33: -91231868.75
A34: 353.3570317 | B34: -338307940.4 | C34: -275290115.9 | E34: 951.9158543 | F34: -257987506 | G34: -204422008.5 | I34: 0.071 | J34: -17872755.13 | K34: -73832370.82 | L34: 0.041 | M34: -25333037.46 | N34: -79313987.46 | P34: 0.62 | Q34: -269817757.3 | R34: -236332649.7 | S34: =T34/Zadání!$B$5 -> 1.089061924 | T34: 498.4636424 | U34: 576.1137576 | V34: 17239136.38 | W34: -42802570.32 | Y34: 11100 | Z34: -32465978.31 | AA34: -92999904.52
A35: 356.890602 | B35: -344769021.2 | C35: -280976540.2 | E35: 966.1945921 | F35: -256044035.8 | G35: -202698982 | I35: 0.072 | J35: -18059247.42 | K35: -74108653.97 | L35: 0.042 | M35: -25972522.45 | N35: -79858936.84 | P35: 0.64 | Q35: -271455267.1 | R35: -235494283.4 | S35: =T35/Zadání!$B$5 -> 1.099952543 | T35: 503.4482789 | U35: 581.8748952 | V35: 21509783.55 | W35: -39042545.92 | Y35: 11200 | Z35: -33809648.69 | AA35: -94767940.29
A36: 360.4595081 | B36: -351294712.8 | C36: -286719828.7 | E36: 980.687511 | F36: -254071413.6 | G36: -200950110.2 | I36: 0.073 | J36: -18245083.9 | K36: -74380452.55 | L36: 0.043 | M36: -26603385.93 | N36: -80407290.51 | P36: 0.66 | Q36: -273117130.4 | R36: -234655917.1 | S36: =T36/Zadání!$B$5 -> 1.110952068 | T36: 508.4827616 | U36: 587.6936441 | V36: 25823137.18 | W36: -35244921.28 | Y36: 11300 | Z36: -35153319.06 | AA36: -96535976.06
A37: 364.0641031 | B37: -357885661.2 | C37: -292520550.1 | E37: 995.3978236 | F37: -252069202 | G37: -199175005.2 | I37: 0.074 | J37: -18430267.41 | K37: -74647856.51 | L37: 0.044 | M37: -27225771.82 | N37: -80959021.91 | P37: 0.68 | Q37: -274803786.9 | R37: -233817550.8 | S37: =T37/Zadání!$B$5 -> 1.122061589 | T37: 513.5675893 | U37: 593.5705805 | V37: 30179624.36 | W37: -31409320.39 | Y37: 11400 | Z37: -36496989.44 | AA37: -98304011.82
A38: 367.7047442 | B38: -364542519.2 | C38: -298379278.7 | E38: 1010.328791 | F38: -250036957.3 | G38: -197373273.6 | I38: 0.075 | J38: -18614800.77 | K38: -74910953.71 | L38: 0.045 | M38: -27839821.29 | N38: -81514104.23 | P38: 0.7 | Q38: -276515685 | R38: -232979184.5 | S38: =T38/Zadání!$B$5 -> 1.133282205 | T38: 518.7032651 | U38: 599.5062864 | V38: 34579676.4 | W38: -27535363.49 | Y38: 11500 | Z38: -37840659.81 | AA38: -100072047.6
A39: 371.3817916 | B39: -371265945.7 | C39: -304296594.6 | E39: 1025.483723 | F39: -247974228.9 | G39: -195544516.1 | I39: 0.076 | J39: -18798686.77 | K39: -75169830.03 | L39: 0.046 | M39: -28445672.85 | N39: -82072510.38 | P39: 0.72 | Q39: -278253282.4 | R39: -232140818.2 | S39: =T39/Zadání!$B$5 -> 1.144615027 | T39: 523.8902978 | U39: 605.5013492 | V39: 39023728.97 | W39: -23622667.02 | Y39: 11600 | Z39: -39184330.19 | AA39: -101840083.4
A40: 375.0956095 | B40: -378056606.5 | C40: -310273083.6 | E40: 1040.865979 | F40: -245880559.6 | G40: -193688327.3 | I40: 0.077 | J40: -18981928.22 | K40: -75424569.37 | L40: 0.047 | M40: -29043462.37 | N40: -82634213.04 | P40: 0.74 | Q40: -280017046.1 | R40: -231302451.9 | S40: =T40/Zadání!$B$5 -> 1.156061177 | T40: 529.1292008 | U40: 611.5563627 | V40: 43512222.06 | W40: -19670843.59 | Y40: 11700 | Z40: -40528000.56 | AA40: -103608119.1
A41: 378.8465656 | B41: -384915174 | C41: -316309337.6 | E41: 1056.478968 | F41: -243755485.2 | G41: -191804295.5 | I41: 0.078 | J41: -19164527.88 | K41: -75675253.73 | L41: 0.048 | M41: -29633323.16 | N41: -83199184.64 | P41: 0.76 | Q41: -281807452.4 | R41: -230464085.6 | S41: =T41/Zadání!$B$5 -> 1.167621789 | T41: 534.4204928 | U41: 617.6719263 | V41: 48045600.08 | W41: -15679501.92 | Y41: 11800 | Z41: -41871670.93 | AA41: -105376154.9
A42: 382.6350313 | B42: -391842327 | C42: -322405954.1 | E42: 1072.326153 | F42: -241598534.8 | G42: -189892003.4 | I42: 0.079 | J42: -19346488.53 | K42: -75921963.26 | L42: 0.049 | M42: -30215386 | N42: -83767397.42 | P42: 0.78 | Q42: -283624987.6 | R42: -229625719.3 | S42: =T42/Zadání!$B$5 -> 1.179298007 | T42: 539.7646977 | U42: 623.8486456 | V42: 52624311.89 | W42: -11648246.84 | Y42: 11900 | Z42: -43215341.31 | AA42: -107144190.7
A43: 386.4613816 | B43: -398838751.7 | C43: -328563536.7 | E43: 1088.411045 | F43: -239409230 | G43: -187951026.8 | I43: 0.08 | J43: -19527812.9 | K43: -76164776.29 | L43: 0.05 | M43: -30789779.24 | N43: -84338823.41 | P43: 0.8 | Q43: -285470147.9 | R43: -228787353 | S43: =T43/Zadání!$B$5 -> 1.191090987 | T43: 545.1623447 | U43: 630.0871321 | V43: 57248810.81 | W43: -7576679.204 | Y43: 12000 | Z43: -44559011.68 | AA43: -108912226.4
A44: 390.3259954 | B44: -405905140.5 | C44: -334782695.2 | E44: 1104.737211 | F44: -237187085.7 | G44: -185980935.6 | I44: 0.081 | J44: -19708503.74 | K44: -76403769.38 | L44: 0.051 | M44: -31356628.78 | N44: -84913434.43 | P44: 0.82 | Q44: -287343439.4 | R44: -227948986.7 | S44: =T44/Zadání!$B$5 -> 1.203001897 | T44: 550.6139681 | U44: 636.3880034 | V44: 61919554.72 | W44: -3464395.893 | Y44: 12100 | Z44: -45902682.06 | AA44: -110680262.2
A45: 394.2292554 | B45: -413042193.3 | C45: -341064045.2 | E45: 1121.308269 | F45: -234931609.3 | G45: -183981293 | I45: 0.082 | J45: -19888563.77 | K45: -76639017.37 | L45: 0.052 | M45: -31916058.19 | N45: -85491202.13 | P45: 0.84 | Q45: -289245378.9 | R45: -227110620.4 | S45: =T45/Zadání!$B$5 -> 1.215031916 | T45: 556.1201078 | U45: 642.7518834 | V45: 66637006.06 | W45: 689010.2503 | Y45: 12200 | Z45: -47246352.43 | AA45: -112448298
A46: 398.1715479 | B46: -420250616.6 | C46: -347408208.8 | E46: 1138.127893 | F46: -232642300.7 | G46: -181951655.8 | I46: 0.083 | J46: -20067995.7 | K46: -76870593.42 | L46: 0.053 | M46: -32468188.69 | N46: -86072098 | P46: 0.86 | Q46: -291176493.8 | R46: -226272254.2 | S46: =T46/Zadání!$B$5 -> 1.227182235 | T46: 561.6813089 | U46: 649.1794022 | V46: 71401631.93 | W46: 4883950.455 | Y46: 12300 | Z46: -48590022.81 | AA46: -114216333.7
A47: 402.1532634 | B47: -427531124.1 | C47: -353815814 | E47: 1155.199811 | F47: -230318652.4 | G47: -179891574 | I47: 0.084 | J47: -20246802.22 | K47: -77098569.05 | L47: 0.054 | M47: -33013139.27 | N47: -86656093.39 | P47: 0.88 | Q47: -293137322.2 | R47: -225433887.9 | S47: =T47/Zadání!$B$5 -> 1.239454057 | T47: 567.298122 | U47: 655.6711963 | V47: 76213904.05 | W47: 9120840.062 | Y47: 12400 | Z47: -49933693.18 | AA47: -115984369.5
A48: 406.174796 | B48: -434884436.7 | C48: -360287495.2 | E48: 1172.527809 | F48: -227960149.4 | G48: -177800591 | I48: 0.085 | J48: -20424986.02 | K48: -77323014.16 | L48: 0.055 | M48: -33551026.68 | N48: -87243159.47 | P48: 0.9 | Q48: -295128413.3 | R48: -224595521.6 | S48: =T48/Zadání!$B$5 -> 1.251848598 | T48: 572.9711032 | U48: 662.2279082 | V48: 81074298.89 | W48: 13400098.57 | Y48: 12500 | Z48: -51277363.56 | AA48: -117752405.3
A49: 410.236544 | B49: -442311282.4 | C49: -366823893.3 | E49: 1190.115726 | F49: -225566268.9 | G49: -175678243.2 | I49: 0.086 | J49: -20602549.77 | K49: -77543997.14 | L49: 0.056 | M49: -34081965.49 | N49: -87833267.31 | P49: 0.92 | Q49: -297150327.8 | R49: -223757155.3 | S49: =T49/Zadání!$B$5 -> 1.264367084 | T49: 578.7008142 | U49: 668.8501873 | V49: 85983297.68 | W49: 17722149.65 | Y49: 12600 | Z49: -52621033.93 | AA49: -119520441
A50: 414.3389094 | B50: -449812396.6 | C50: -373425655.4 | E50: 1207.967462 | F50: -223136480.2 | G50: -173524060.2 | I50: 0.087 | J50: -20779496.12 | K50: -77761584.8 | L50: 0.057 | M50: -34606068.17 | N50: -88426387.86 | P50: 0.94 | Q50: -299203637.9 | R50: -222918789 | S50: =T50/Zadání!$B$5 -> 1.277010755 | T50: 584.4878224 | U50: 675.5386892 | V50: 90941386.46 | W50: 22087421.25 | Y50: 12700 | Z50: -53964704.31 | AA50: -121288476.8
A51: 418.4822985 | B51: -457388521.9 | C51: -380093435 | E51: 1226.086974 | F51: -220670244.7 | G51: -171337564.5 | I51: 0.088 | J51: -20955827.73 | K51: -77975842.51 | L51: 0.058 | M51: -35123445.07 | N51: -89022491.96 | P51: 0.96 | Q51: -301288927.6 | R51: -222080422.7 | S51: =T51/Zadání!$B$5 -> 1.289780862 | T51: 590.3327006 | U51: 682.2940761 | V51: 95949056.12 | W51: 26496345.57 | Y51: 12800 | Z51: -55308374.68 | AA51: -123056512.6
A52: 422.6671215 | B52: -465040408.4 | C52: -386827892.5 | E52: 1244.478278 | F52: -218167015.6 | G52: -169118271.4 | I52: 0.089 | J52: -21131547.22 | K52: -78186834.17 | L52: 0.059 | M52: -35634204.51 | N52: -89621550.36 | P52: 0.98 | Q52: -303406793.3 | R52: -221242056.4 | S52: =T52/Zadání!$B$5 -> 1.302678671 | T52: 596.2360276 | U52: 689.1170168 | V52: 101006802.5 | W52: 30949359.13 | Y52: 12900 | Z52: -56652045.05 | AA52: -124824548.3
A53: 426.8937927 | B53: -472768813.9 | C53: -393629694.5 | E53: 1263.145452 | F53: -215626238.1 | G53: -166865688.8 | I53: 0.09 | J53: -21306657.2 | K53: -78394622.27 | L53: 0.06 | M53: -36138452.81 | N53: -90223533.73 | P53: 1 | Q53: -305557843.6 | R53: -220403690.1 | S53: =T53/Zadání!$B$5 -> 1.315705457 | T53: 602.1983879 | U53: 696.008187 | V53: 106115126.3 | W53: 35446902.82 | Y53: 13000 | Z53: -57995715.43 | AA53: -126592584.1
B59: 0.04 | C59: 0.041 | D59: 0.042 | E59: 0.043 | F59: 0.044 | G59: 0.045 | H59: 0.046 | I59: 0.047 | J59: 0.048 | K59: 0.049 | L59: 0.05 | M59: 0.051 | N59: 0.052 | O59: 0.053 | P59: 0.054 | Q59: 0.055 | R59: 0.056 | S59: 0.057 | T59: 0.058 | U59: 0.059 | V59: 0.06 | W59: 0.061 | X59: 0.062 | Y59: 0.063 | Z59: 0.064 | AA59: 0.065 | AB59: 0.066 | AC59: 0.067 | AD59: 0.068 | AE59: 0.069 | AF59: 0.07 | AG59: 0.071 | AH59: 0.072 | AI59: 0.073 | AJ59: 0.074 | AK59: 0.075 | AL59: 0.076 | AM59: 0.077 | AN59: 0.078 | AO59: 0.079 | AP59: 0.08 | AQ59: 0.081 | AR59: 0.082 | AS59: 0.083 | AT59: 0.084 | AU59: 0.085 | AV59: 0.086 | AW59: 0.087 | AX59: 0.088 | AY59: 0.089 | AZ59: 0.09
A60: 0.01 | B60: -349287139.2 | C60: -348571517.5 | D60: -347858823.1 | E60: -347149042 | F60: -346442160.1 | G60: -345738163.7 | H60: -345037038.8 | I60: -344338771.7 | J60: -343643348.8 | K60: -342950756.4 | L60: -342260981.1 | M60: -341574009.3 | N60: -340889827.8 | O60: -340208423.1 | P60: -339529782 | Q60: -338853891.4 | R60: -338180738.1 | S60: -337510309.1 | T60: -336842591.5 | U60: -336177572.3 | V60: -335515238.7 | W60: -334855578 | X60: -334198577.5 | Y60: -333544224.4 | Z60: -332892506.3 | AA60: -332243410.7 | AB60: -331596925 | AC60: -330953037.1 | AD60: -330311734.5 | AE60: -329673005 | AF60: -329036836.4 | AG60: -328403216.7 | AH60: -327772133.8 | AI60: -327143575.6 | AJ60: -326517530.4 | AK60: -325893986.2 | AL60: -325272931.2 | AM60: -324654353.6 | AN60: -324038241.9 | AO60: -323424584.4 | AP60: -322813369.6 | AQ60: -322204585.9 | AR60: -321598221.9 | AS60: -320994266.3 | AT60: -320392707.7 | AU60: -319793535 | AV60: -319196736.8 | AW60: -318602302 | AX60: -318010219.6 | AY60: -317420478.6 | AZ60: -316833067.9
A61: 0.011 | B61: -346442160.1 | C61: -345738163.7 | D61: -345037038.8 | E61: -344338771.7 | F61: -343643348.8 | G61: -342950756.4 | H61: -342260981.1 | I61: -341574009.3 | J61: -340889827.8 | K61: -340208423.1 | L61: -339529782 | M61: -338853891.4 | N61: -338180738.1 | O61: -337510309.1 | P61: -336842591.5 | Q61: -336177572.3 | R61: -335515238.7 | S61: -334855578 | T61: -334198577.5 | U61: -333544224.4 | V61: -332892506.3 | W61: -332243410.7 | X61: -331596925 | Y61: -330953037.1 | Z61: -330311734.5 | AA61: -329673005 | AB61: -329036836.4 | AC61: -328403216.7 | AD61: -327772133.8 | AE61: -327143575.6 | AF61: -326517530.4 | AG61: -325893986.2 | AH61: -325272931.2 | AI61: -324654353.6 | AJ61: -324038241.9 | AK61: -323424584.4 | AL61: -322813369.6 | AM61: -322204585.9 | AN61: -321598221.9 | AO61: -320994266.3 | AP61: -320392707.7 | AQ61: -319793535 | AR61: -319196736.8 | AS61: -318602302 | AT61: -318010219.6 | AU61: -317420478.6 | AV61: -316833067.9 | AW61: -316247976.8 | AX61: -315665194.2 | AY61: -315084709.5 | AZ61: -314506511.9
A62: 0.012 | B62: -343643348.8 | C62: -342950756.4 | D62: -342260981.1 | E62: -341574009.3 | F62: -340889827.8 | G62: -340208423.1 | H62: -339529782 | I62: -338853891.4 | J62: -338180738.1 | K62: -337510309.1 | L62: -336842591.5 | M62: -336177572.3 | N62: -335515238.7 | O62: -334855578 | P62: -334198577.5 | Q62: -333544224.4 | R62: -332892506.3 | S62: -332243410.7 | T62: -331596925 | U62: -330953037.1 | V62: -330311734.5 | W62: -329673005 | X62: -329036836.4 | Y62: -328403216.7 | Z62: -327772133.8 | AA62: -327143575.6 | AB62: -326517530.4 | AC62: -325893986.2 | AD62: -325272931.2 | AE62: -324654353.6 | AF62: -324038241.9 | AG62: -323424584.4 | AH62: -322813369.6 | AI62: -322204585.9 | AJ62: -321598221.9 | AK62: -320994266.3 | AL62: -320392707.7 | AM62: -319793535 | AN62: -319196736.8 | AO62: -318602302 | AP62: -318010219.6 | AQ62: -317420478.6 | AR62: -316833067.9 | AS62: -316247976.8 | AT62: -315665194.2 | AU62: -315084709.5 | AV62: -314506511.9 | AW62: -313930590.7 | AX62: -313356935.2 | AY62: -312785535 | AZ62: -312216379.5
A63: 0.013 | B63: -340889827.8 | C63: -340208423.1 | D63: -339529782 | E63: -338853891.4 | F63: -338180738.1 | G63: -337510309.1 | H63: -336842591.5 | I63: -336177572.3 | J63: -335515238.7 | K63: -334855578 | L63: -334198577.5 | M63: -333544224.4 | N63: -332892506.3 | O63: -332243410.7 | P63: -331596925 | Q63: -330953037.1 | R63: -330311734.5 | S63: -329673005 | T63: -329036836.4 | U63: -328403216.7 | V63: -327772133.8 | W63: -327143575.6 | X63: -326517530.4 | Y63: -325893986.2 | Z63: -325272931.2 | AA63: -324654353.6 | AB63: -324038241.9 | AC63: -323424584.4 | AD63: -322813369.6 | AE63: -322204585.9 | AF63: -321598221.9 | AG63: -320994266.3 | AH63: -320392707.7 | AI63: -319793535 | AJ63: -319196736.8 | AK63: -318602302 | AL63: -318010219.6 | AM63: -317420478.6 | AN63: -316833067.9 | AO63: -316247976.8 | AP63: -315665194.2 | AQ63: -315084709.5 | AR63: -314506511.9 | AS63: -313930590.7 | AT63: -313356935.2 | AU63: -312785535 | AV63: -312216379.5 | AW63: -311649458.2 | AX63: -311084760.7 | AY63: -310522276.6 | AZ63: -309961995.7
A64: 0.014 | B64: -338180738.1 | C64: -337510309.1 | D64: -336842591.5 | E64: -336177572.3 | F64: -335515238.7 | G64: -334855578 | H64: -334198577.5 | I64: -333544224.4 | J64: -332892506.3 | K64: -332243410.7 | L64: -331596925 | M64: -330953037.1 | N64: -330311734.5 | O64: -329673005 | P64: -329036836.4 | Q64: -328403216.7 | R64: -327772133.8 | S64: -327143575.6 | T64: -326517530.4 | U64: -325893986.2 | V64: -325272931.2 | W64: -324654353.6 | X64: -324038241.9 | Y64: -323424584.4 | Z64: -322813369.6 | AA64: -322204585.9 | AB64: -321598221.9 | AC64: -320994266.3 | AD64: -320392707.7 | AE64: -319793535 | AF64: -319196736.8 | AG64: -318602302 | AH64: -318010219.6 | AI64: -317420478.6 | AJ64: -316833067.9 | AK64: -316247976.8 | AL64: -315665194.2 | AM64: -315084709.5 | AN64: -314506511.9 | AO64: -313930590.7 | AP64: -313356935.2 | AQ64: -312785535 | AR64: -312216379.5 | AS64: -311649458.2 | AT64: -311084760.7 | AU64: -310522276.6 | AV64: -309961995.7 | AW64: -309403907.8 | AX64: -308848002.5 | AY64: -308294269.8 | AZ64: -307742699.6
A65: 0.015 | B65: -335515238.7 | C65: -334855578 | D65: -334198577.5 | E65: -333544224.4 | F65: -332892506.3 | G65: -332243410.7 | H65: -331596925 | I65: -330953037.1 | J65: -330311734.5 | K65: -329673005 | L65: -329036836.4 | M65: -328403216.7 | N65: -327772133.8 | O65: -327143575.6 | P65: -326517530.4 | Q65: -325893986.2 | R65: -325272931.2 | S65: -324654353.6 | T65: -324038241.9 | U65: -323424584.4 | V65: -322813369.6 | W65: -322204585.9 | X65: -321598221.9 | Y65: -320994266.3 | Z65: -320392707.7 | AA65: -319793535 | AB65: -319196736.8 | AC65: -318602302 | AD65: -318010219.6 | AE65: -317420478.6 | AF65: -316833067.9 | AG65: -316247976.8 | AH65: -315665194.2 | AI65: -315084709.5 | AJ65: -314506511.9 | AK65: -313930590.7 | AL65: -313356935.2 | AM65: -312785535 | AN65: -312216379.5 | AO65: -311649458.2 | AP65: -311084760.7 | AQ65: -310522276.6 | AR65: -309961995.7 | AS65: -309403907.8 | AT65: -308848002.5 | AU65: -308294269.8 | AV65: -307742699.6 | AW65: -307193281.8 | AX65: -306646006.5 | AY65: -306100863.7 | AZ65: -305557843.6
A66: 0.016 | B66: -332892506.3 | C66: -332243410.7 | D66: -331596925 | E66: -330953037.1 | F66: -330311734.5 | G66: -329673005 | H66: -329036836.4 | I66: -328403216.7 | J66: -327772133.8 | K66: -327143575.6 | L66: -326517530.4 | M66: -325893986.2 | N66: -325272931.2 | O66: -324654353.6 | P66: -324038241.9 | Q66: -323424584.4 | R66: -322813369.6 | S66: -322204585.9 | T66: -321598221.9 | U66: -320994266.3 | V66: -320392707.7 | W66: -319793535 | X66: -319196736.8 | Y66: -318602302 | Z66: -318010219.6 | AA66: -317420478.6 | AB66: -316833067.9 | AC66: -316247976.8 | AD66: -315665194.2 | AE66: -315084709.5 | AF66: -314506511.9 | AG66: -313930590.7 | AH66: -313356935.2 | AI66: -312785535 | AJ66: -312216379.5 | AK66: -311649458.2 | AL66: -311084760.7 | AM66: -310522276.6 | AN66: -309961995.7 | AO66: -309403907.8 | AP66: -308848002.5 | AQ66: -308294269.8 | AR66: -307742699.6 | AS66: -307193281.8 | AT66: -306646006.5 | AU66: -306100863.7 | AV66: -305557843.6 | AW66: -305016936.2 | AX66: -304478131.9 | AY66: -303941420.8 | AZ66: -303406793.3
A67: 0.017 | B67: -330311734.5 | C67: -329673005 | D67: -329036836.4 | E67: -328403216.7 | F67: -327772133.8 | G67: -327143575.6 | H67: -326517530.4 | I67: -325893986.2 | J67: -325272931.2 | K67: -324654353.6 | L67: -324038241.9 | M67: -323424584.4 | N67: -322813369.6 | O67: -322204585.9 | P67: -321598221.9 | Q67: -320994266.3 | R67: -320392707.7 | S67: -319793535 | T67: -319196736.8 | U67: -318602302 | V67: -318010219.6 | W67: -317420478.6 | X67: -316833067.9 | Y67: -316247976.8 | Z67: -315665194.2 | AA67: -315084709.5 | AB67: -314506511.9 | AC67: -313930590.7 | AD67: -313356935.2 | AE67: -312785535 | AF67: -312216379.5 | AG67: -311649458.2 | AH67: -311084760.7 | AI67: -310522276.6 | AJ67: -309961995.7 | AK67: -309403907.8 | AL67: -308848002.5 | AM67: -308294269.8 | AN67: -307742699.6 | AO67: -307193281.8 | AP67: -306646006.5 | AQ67: -306100863.7 | AR67: -305557843.6 | AS67: -305016936.2 | AT67: -304478131.9 | AU67: -303941420.8 | AV67: -303406793.3 | AW67: -302874239.9 | AX67: -302343750.8 | AY67: -301815316.5 | AZ67: -301288927.6
A68: 0.018 | B68: -327772133.8 | C68: -327143575.6 | D68: -326517530.4 | E68: -325893986.2 | F68: -325272931.2 | G68: -324654353.6 | H68: -324038241.9 | I68: -323424584.4 | J68: -322813369.6 | K68: -322204585.9 | L68: -321598221.9 | M68: -320994266.3 | N68: -320392707.7 | O68: -319793535 | P68: -319196736.8 | Q68: -318602302 | R68: -318010219.6 | S68: -317420478.6 | T68: -316833067.9 | U68: -316247976.8 | V68: -315665194.2 | W68: -315084709.5 | X68: -314506511.9 | Y68: -313930590.7 | Z68: -313356935.2 | AA68: -312785535 | AB68: -312216379.5 | AC68: -311649458.2 | AD68: -311084760.7 | AE68: -310522276.6 | AF68: -309961995.7 | AG68: -309403907.8 | AH68: -308848002.5 | AI68: -308294269.8 | AJ68: -307742699.6 | AK68: -307193281.8 | AL68: -306646006.5 | AM68: -306100863.7 | AN68: -305557843.6 | AO68: -305016936.2 | AP68: -304478131.9 | AQ68: -303941420.8 | AR68: -303406793.3 | AS68: -302874239.9 | AT68: -302343750.8 | AU68: -301815316.5 | AV68: -301288927.6 | AW68: -300764574.7 | AX68: -300242248.3 | AY68: -299721939.1 | AZ68: -299203637.9
A69: 0.019 | B69: -325272931.2 | C69: -324654353.6 | D69: -324038241.9 | E69: -323424584.4 | F69: -322813369.6 | G69: -322204585.9 | H69: -321598221.9 | I69: -320994266.3 | J69: -320392707.7 | K69: -319793535 | L69: -319196736.8 | M69: -318602302 | N69: -318010219.6 | O69: -317420478.6 | P69: -316833067.9 | Q69: -316247976.8 | R69: -315665194.2 | S69: -315084709.5 | T69: -314506511.9 | U69: -313930590.7 | V69: -313356935.2 | W69: -312785535 | X69: -312216379.5 | Y69: -311649458.2 | Z69: -311084760.7 | AA69: -310522276.6 | AB69: -309961995.7 | AC69: -309403907.8 | AD69: -308848002.5 | AE69: -308294269.8 | AF69: -307742699.6 | AG69: -307193281.8 | AH69: -306646006.5 | AI69: -306100863.7 | AJ69: -305557843.6 | AK69: -305016936.2 | AL69: -304478131.9 | AM69: -303941420.8 | AN69: -303406793.3 | AO69: -302874239.9 | AP69: -302343750.8 | AQ69: -301815316.5 | AR69: -301288927.6 | AS69: -300764574.7 | AT69: -300242248.3 | AU69: -299721939.1 | AV69: -299203637.9 | AW69: -298687335.3 | AX69: -298173022.1 | AY69: -297660689.3 | AZ69: -297150327.8
A70: 0.02 | B70: -322813369.6 | C70: -322204585.9 | D70: -321598221.9 | E70: -320994266.3 | F70: -320392707.7 | G70: -319793535 | H70: -319196736.8 | I70: -318602302 | J70: -318010219.6 | K70: -317420478.6 | L70: -316833067.9 | M70: -316247976.8 | N70: -315665194.2 | O70: -315084709.5 | P70: -314506511.9 | Q70: -313930590.7 | R70: -313356935.2 | S70: -312785535 | T70: -312216379.5 | U70: -311649458.2 | V70: -311084760.7 | W70: -310522276.6 | X70: -309961995.7 | Y70: -309403907.8 | Z70: -308848002.5 | AA70: -308294269.8 | AB70: -307742699.6 | AC70: -307193281.8 | AD70: -306646006.5 | AE70: -306100863.7 | AF70: -305557843.6 | AG70: -305016936.2 | AH70: -304478131.9 | AI70: -303941420.8 | AJ70: -303406793.3 | AK70: -302874239.9 | AL70: -302343750.8 | AM70: -301815316.5 | AN70: -301288927.6 | AO70: -300764574.7 | AP70: -300242248.3 | AQ70: -299721939.1 | AR70: -299203637.9 | AS70: -298687335.3 | AT70: -298173022.1 | AU70: -297660689.3 | AV70: -297150327.8 | AW70: -296641928.4 | AX70: -296135482.1 | AY70: -295630980 | AZ70: -295128413.3
